Workbook

Sheet About
A1: Industrial Transformation Technology and Investment Model (ITTIM)
A2: October 2025
A3: Model version: 1.0.0
A5: Computer Model Authors: Jeffrey Rissman,1 Hongyou Lu,2 Sonali Deshpande,1 Nik Sawe,1 Hon Leung Curtis Wong2
A6: 1 Energy Innovation: Policy and Technology LLC
A7: 2 Lawrence Berkeley National Laboratory
A9: This model is released under the GNU General Public License v3.0 or any later version.
A11: Complete data source citations appear on the "References" tab. Reference numbers are used on other tabs to indicate which data source(s) on the References tab provided which input data values.
A13: Key to tab colors:
A14: Dark blue: User-set scenario parameters
A15: Light blue: Output graphs
A16: Green: Consolidated input data and scenario settings
A17: Gray: Main calculations
A18: Pink: Unit conversion factors
A19: Orange: References
A20: No color: Raw input data and supporting calculations

Sheet User Settings
A1: Select a country or region: | B1: China | E1: Adjustments to End-Year Projected Costs and Assumptions
E2: Coal cost | F2: 0 | H2: BAU Energy Use | I2: +0%
A3: Year to achieve clean industrial sector: | B3: 2070 | E3: Petroleum cost | F3: +0% | H3: Capital Costs | I3: +0%
A4: Year to achieve clean electricity sector: | B4: 2060 | E4: Natural gas cost | F4: +0% | H4: Discount Rate | I4: 7%
A5: Year shown on graphs: | B5: 2070 | C5: =IF(COUNTIFS('Achievable Interventions'!A84:A100,YearShownOnGraphsSelector)=0,"← Please update year","") ->  | E5: Bioenergy cost | F5: +0%
A6: The graphs can show intermediate years to illustrate partial progress toward a clean industrial sector. | E6: Electricity cost | F6: +0%
A8: Carbon price in end year of analysis | B8: 50 | C8: USD / tonne CO2 | E8: Clean H2 Price Scenario | G8: High Improvement
A9: A user-set carbon price has no effect if it is lower than the BAU (i.e., minimum) carbon price. | E9: High improvement is based on projections for 2050 and is $1.80/kg in China, $3.50/kg in Indonesia, $2.17/kg in Viet Nam, $3.53/kg in the Philippines, and $3/kg in the United States.
E10: Low improvement is based on projections for 2030 and is $2.50/kg in China, $5.10/kg in Indonesia, $4.00/kg in Viet Nam, $6.53/kg in the Philippines, and $5/kg in the United States.
A11: Show feedstocks on emissions graphs? | B11: TRUE | E11: Present day is $3.90/kg in China, $11.11/kg in Indonesia, $8.33/kg in Viet Nam, $10.92/kg in the Philippines, and $7.25/kg in the United States.
A12: =_xlfn.CONCAT("For more explanation, see the note on the 'Calculations' tab starting on row ",ROW(Calculations!$A$353),".") -> For more explanation, see the note on the 'Calculations' tab starting on row 353. | E12: References: 23, 47, 84, 85, 86, 87, 88, 89, 99, 104
A14: Select which subindustries should transition to clean energy and processes. | E14: Select which technical decarbonization approaches may be used by this model.
A15: You can limit decarbonization to specific subindustries or include all of them. | E15: The model will attempt to use other approaches to compensate for disallowed approaches. Disallowing certain combinations of approaches will prevent the model from fully decarbonizing the industrial sector.
A16: Food, beverage, & tobacco | B16: Include | E16: Include | F16: Tier 1: Energy efficiency
A17: Textiles, leather, & apparel | B17: Include | E17: Include | F17: Tier 1: Material efficiency
A18: Wood & furniture | B18: Include | E18: Include | F18: Tier 1: Product longevity
A19: Pulp, paper, & printing | B19: Include | E19: Include | F19: Tier 2a: Direct use of geothermal heat by industry
A20: Refining & fuel processing | B20: Include | E20: Include | F20: Tier 2a: Shifting primary to secondary steelmaking
A21: Chemicals | B21: Include | E21: Include | F21: Tier 2a: Non-thermal electrification
A22: Plastic & rubber products | B22: Include | E22: Include | F22: Tier 2a: Low-temperature heat electrification
A23: Non-metallic minerals | B23: Include | E23: Include | F23: Tier 2b: Medium-temperature heat electrification
A24: Iron & steel | B24: Include | E24: Include | F24: Tier 2b: High-temperature heat electrification
A25: Nonferrous metals | B25: Include | E25: Include | F25: Tier 3: Carbon capture and storage (CCS)
A26: Machinery | B26: Include | E26: Include | F26: Tier 4a: Clean hydrogen use (except in chemical feedstocks)
A27: Vehicles & transport equipment | B27: Include | E27: Include | F27: Tier 4b: Clean chemical feedstocks
A28: Electronics | B28: Include
A29: Other metal products | B29: Include
A30: Other manufacturing | B30: Include
A32: Miscellaneous Graph Formatting Data
A34: Custom number format strings used in graphs to control number of significant figures to display
A35: axes | B35: [=0]0;[>=10]#,###;#.0###
A36: waterfall data pts | B36: [<=-4]-#.0#;[>=4]#.0#;#.0##
A38: Energy source color hex codes
A39: Fossil Feedstocks | B39: #156082
A40: Coal | B40: #000000
A41: Coke | B41: #762700
A42: Coal/Coke Byproducts | B42: #B45A00
A43: Petroleum | B43: #7030A0
A44: Natural Gas | B44: #FF3399
A45: Bioenergy and Waste | B45: #3B7D23
A46: Purchased Heat | B46: #C00000
A47: Direct Use of Electricity | B47: #FFC000
A48: Green Hydrogen | B48: #92D050
A49: Blue Hydrogen | B49: #00B0F0
A50: Fossil Fuels w/ Carbon Capture | B50: #FF6600
A51: Carbon Pricing | B51: #808080
A53: CO2 emissions color hex codes
A54: Fossil Feedstocks | B54: #156082
A55: Coal | B55: #000000
A56: Coke | B56: #762700
A57: Coal/Coke Byproducts | B57: #B45A00
A58: Petroleum | B58: #7030A0
A59: Natural Gas | B59: #FF3399
A60: Fossil Fuels w/ Carbon Capture | B60: #FF6600
A61: Cement Calcination | B61: #808080
A62: Fugitive Methane | B62: #47D45A
A63: Electricity (on-target) | B63: #FFC000
A64: Electricity (off-target) | B64: #FFFFFF
A66: Subindustry color hex codes
A67: Food, beverage, & tobacco | B67: #4EA72E
A68: Textiles, leather, & apparel | B68: #994010
A69: Wood & furniture | B69: #4EF89F
A70: Pulp, paper, & printing | B70: #601A58
A71: Refining & fuel processing | B71: #196B24
A72: Chemicals | B72: #FF6600
A73: Plastic & rubber products | B73: #0000C4
A74: Non-metallic minerals | B74: #00B0F0
A75: Iron & steel | B75: #000000
A76: Nonferrous metals | B76: #A02B93
A77: Machinery | B77: #FFC000
A78: Vehicles & transport equipment | B78: #DCB7A0
A79: Electronics | B79: #FF3399
A80: Other metal products | B80: #0F4016
A81: Other manufacturing | B81: #C00000

Sheet Energy Use Graphs
A1: Energy Use by Energy Type
B2: Fossil Feedstocks | C2: Coal | D2: Coke | E2: Coal/Coke Byproducts | F2: Petroleum | G2: Natural Gas | H2: Bioenergy and Waste | I2: Purchased Heat | J2: Direct Use of Electricity | K2: Electricity for Green H2 | L2: Blue Hydrogen | M2: Fossil Fuels w/ Carbon Capture
A3: =_xlfn.CONCAT('Other Region-Specific Data'!$O$2," Actual") -> 2022 Actual | B3: =SUM(Calculations!B333:G333)/10^3 -> 4.65861044 | C3: =Calculations!B21/10^3 -> 11.66310961 | D3: =Calculations!C21/10^3 -> 13.01217761 | E3: =Calculations!D21/10^3 -> 5.716855217 | F3: =Calculations!E21/10^3 -> 11.61280188 | G3: =Calculations!F21/10^3 -> 5.96376905 | H3: =Calculations!G21/10^3 -> 0 | I3: =Calculations!H21/10^3 -> 5.953458382 | J3: =Calculations!I21/10^3 -> 15.88938159 | K3: =Calculations!J21/10^3 -> 0 | L3: =Calculations!K21/10^3 -> 0 | M3: =Calculations!L21/10^3 -> 0
A4: Future BAU Projection | B4: =SUM(Calculations!B334:G334)/10^3 -> 6.77467504 | C4: =Calculations!B59/10^3 -> 11.14210922 | D4: =Calculations!C59/10^3 -> 11.04706827 | E4: =Calculations!D59/10^3 -> 4.945248689 | F4: =Calculations!E59/10^3 -> 13.22762425 | G4: =Calculations!F59/10^3 -> 6.387858119 | H4: =Calculations!G59/10^3 -> 0 | I4: =Calculations!H59/10^3 -> 7.436112092 | J4: =Calculations!I59/10^3 -> 16.5321997 | K4: =Calculations!J59/10^3 -> 0 | L4: =Calculations!K59/10^3 -> 0 | M4: =Calculations!L59/10^3 -> 0
A5: Tier 1: Efficiency | B5: =SUM(Calculations!B335:G335)/10^3 -> 5.162512444 | C5: =Calculations!B99/10^3 -> 6.591262459 | D5: =Calculations!C99/10^3 -> 5.994353241 | E5: =Calculations!D99/10^3 -> 2.88873561 | F5: =Calculations!E99/10^3 -> 9.723332976 | G5: =Calculations!F99/10^3 -> 4.184080955 | H5: =Calculations!G99/10^3 -> 0 | I5: =Calculations!H99/10^3 -> 5.065754813 | J5: =Calculations!I99/10^3 -> 10.93286014 | K5: =Calculations!J99/10^3 -> 0 | L5: =Calculations!K99/10^3 -> 0 | M5: =Calculations!L99/10^3 -> 0
A6: Tier 2a: Easy Electrification | B6: =B$5 -> 5.162512444 | C6: =Calculations!B226/10^3 -> 3.563699321 | D6: =Calculations!C226/10^3 -> 2.433834326 | E6: =Calculations!D226/10^3 -> 1.378036418 | F6: =Calculations!E226/10^3 -> 5.688654397 | G6: =Calculations!F226/10^3 -> 1.91782219 | H6: =Calculations!G226/10^3 -> 0 | I6: =Calculations!H226/10^3 -> 5.231504813 | J6: =Calculations!I226/10^3 -> 15.2311993 | K6: =Calculations!J226/10^3 -> 0 | L6: =Calculations!K226/10^3 -> 0 | M6: =Calculations!L226/10^3 -> 0
A7: Tier 2b: Other Electrification | B7: =B$5 -> 5.162512444 | C7: =Calculations!B246/10^3 -> 2.209938641 | D7: =Calculations!C246/10^3 -> 1.665089478 | E7: =Calculations!D246/10^3 -> 1.016700693 | F7: =Calculations!E246/10^3 -> 4.458343985 | G7: =Calculations!F246/10^3 -> 0.8358117885 | H7: =Calculations!G246/10^3 -> 0 | I7: =Calculations!H246/10^3 -> 5.231504813 | J7: =Calculations!I246/10^3 -> 18.14611753 | K7: =Calculations!J246/10^3 -> 0 | L7: =Calculations!K246/10^3 -> 0 | M7: =Calculations!L246/10^3 -> 0
A8: Tier 3: CCS | B8: =B$5 -> 5.162512444 | C8: =Calculations!B285/10^3 -> 1.290949288 | D8: =Calculations!C285/10^3 -> 0.6894248727 | E8: =Calculations!D285/10^3 -> 0.6259956196 | F8: =Calculations!E285/10^3 -> 4.246192698 | G8: =Calculations!F285/10^3 -> 0.6482526833 | H8: =Calculations!G285/10^3 -> 0 | I8: =Calculations!H285/10^3 -> 5.231504813 | J8: =Calculations!I285/10^3 -> 18.14611753 | K8: =Calculations!J285/10^3 -> 0 | L8: =Calculations!K285/10^3 -> 0 | M8: =Calculations!L285/10^3 -> 4.130512444
A9: Tier 4a: Green H2 | B9: =B$5 -> 5.162512444 | C9: =Calculations!B324/10^3 -> 2.43333871e-17 | D9: =Calculations!C324/10^3 -> 6.837817435e-18 | E9: =Calculations!D324/10^3 -> 5.685441089e-19 | F9: =Calculations!E324/10^3 -> 9.118830651e-18 | G9: =Calculations!F324/10^3 -> 8.266214307e-17 | H9: =Calculations!G324/10^3 -> 0 | I9: =Calculations!H324/10^3 -> 5.231504813 | J9: =Calculations!I324/10^3 -> 18.14611753 | K9: =Calculations!J324/10^3 -> 9.869493633 | L9: =Calculations!K324/10^3 -> 0 | M9: =Calculations!L324/10^3 -> 4.130512444
A10: Tier 4b: Clean Feedstocks | B10: =B$5*(1-'Achievable Interventions'!$S$50*'Achievable Interventions'!$B$58*'Achievable Interventions'!$B$81) -> 0 | C10: =Calculations!B384/10^3 -> 2.43333871e-17 | D10: =Calculations!C384/10^3 -> 6.837817435e-18 | E10: =Calculations!D384/10^3 -> 5.685441089e-19 | F10: =Calculations!E384/10^3 -> 9.118830651e-18 | G10: =Calculations!F384/10^3 -> 8.266214307e-17 | H10: =Calculations!G384/10^3 -> 1.548753733 | I10: =Calculations!H384/10^3 -> 5.231504813 | J10: =Calculations!I384/10^3 -> 18.14611753 | K10: =Calculations!J384/10^3 -> 12.58660544 | L10: =Calculations!K384/10^3 -> 1.548753733 | M10: =Calculations!L384/10^3 -> 4.130512444
A44: Waterfall version of energy use by tier
B45: Change since prior category
A46: =_xlfn.CONCAT('Other Region-Specific Data'!$O$2," Actual") -> 2022 Actual | B46: =SUM(B3:M3) -> 74.47016378 | C46: EJ / yr
A47: Future BAU Projection | B47: =SUM(B4:M4)-SUM(B3:M3) -> 3.022731601 | C47: EJ / yr
A48: Tier 1: Efficiency | B48: -26.95000274 | C48: EJ / yr
A49: Tier 2a: Easy Electrification | B49: -9.935629438 | C49: EJ / yr
A50: Tier 2b: Other Electrification | B50: -1.88124383 | C50: EJ / yr
A51: Tier 3: CCS | B51: 1.44544302 | C51: EJ / yr
A52: Tier 4a: Green H2 | B52: 2.368678472 | C52: EJ / yr
A53: Tier 4b: Clean Feedstocks | B53: 0.652106835 | C53: EJ / yr
A88: Energy Use by Subindustry (including feedstocks)
B89: Food, beverage, & tobacco | C89: Textiles, leather, & apparel | D89: Wood & furniture | E89: Pulp, paper, & printing | F89: Refining & fuel processing | G89: Chemicals | H89: Plastic & rubber products | I89: Non-metallic minerals | J89: Iron & steel | K89: Nonferrous metals | L89: Machinery | M89: Vehicles & transport equipment | N89: Electronics | O89: Other metal products | P89: Other manufacturing
A90: =_xlfn.CONCAT('Other Region-Specific Data'!$O$2," Actual") -> 2022 Actual | B90: =TRANSPOSE(Calculations!N6:N20)/10^3 -> 1.565952521 | C90: 1.418364596 | D90: 0.2006184056 | E90: 0.924616061 | F90: 9.06380129 | G90: 21.15793928 | H90: 0.758147714 | I90: 9.054973623 | J90: 21.32263482 | K90: 4.102667057 | L90: 1.541541618 | M90: 0.8836723329 | N90: 0.9986078546 | O90: 1.099912075 | P90: 0.3767145369
A91: Future BAU Projection | B91: =TRANSPOSE(Calculations!N44:N58)/10^3 -> 1.565952521 | C91: 1.418364596 | D91: 0.2006184056 | E91: 0.924616061 | F91: 9.311446134 | G91: 30.76843728 | H91: 1.49718246 | I91: 6.395734281 | J91: 16.76001681 | K91: 4.718067116 | L91: 1.211682498 | M91: 0.6945841019 | N91: 0.7849257174 | O91: 0.8645528578 | P91: 0.3767145369
A92: Tier 1: Efficiency | B92: =TRANSPOSE(Calculations!N84:N98)/10^3 -> 1.471995369 | C92: 0.9928552169 | D92: 0.1745380129 | E92: 0.7466274692 | F92: 8.38030152 | G92: 19.82018584 | H92: 1.463121559 | I92: 3.198986394 | J92: 8.82547201 | K92: 2.770684914 | L92: 0.8260645433 | M92: 0.490463199 | N92: 0.4968579791 | O92: 0.5325105259 | P92: 0.352228092
A93: Tier 2a: Easy Electrification | B93: =TRANSPOSE(Calculations!N211:N225)/10^3 -> 1.077500112 | C93: 0.910907735 | D93: 0.1682361201 | E93: 0.6962613281 | F93: 7.04018599 | G93: 15.9674225 | H93: 1.390965232 | I93: 3.04891941 | J93: 5.269309686 | K93: 2.60769149 | L93: 0.7638717191 | M93: 0.4314223333 | N93: 0.4570178667 | O93: 0.4460811949 | P93: 0.3314704896
A94: Tier 2b: Other Electrification | B94: =TRANSPOSE(Calculations!N231:N245)/10^3 -> 1.074005982 | C94: 0.8862576637 | D94: 0.1628216844 | E94: 0.6592243371 | F94: 6.956693453 | G94: 15.29555978 | H94: 1.348330518 | I94: 2.759122717 | J94: 4.907006069 | K94: 2.400913476 | L94: 0.718564046 | M94: 0.4021177767 | N94: 0.4370935488 | O94: 0.3973104722 | P94: 0.3209978465
A95: Tier 3: CCS | B95: =TRANSPOSE(Calculations!N270:N284)/10^3 -> 1.074005982 | C95: 0.8862576637 | D95: 0.1628216844 | E95: 0.6592243371 | F95: 6.956693453 | G95: 15.29555978 | H95: 1.348330518 | I95: 3.894082136 | J95: 5.21748967 | K95: 2.400913476 | L95: 0.718564046 | M95: 0.4021177767 | N95: 0.4370935488 | O95: 0.3973104722 | P95: 0.3209978465
A96: Tier 4a: Green H2 | B96: =TRANSPOSE(Calculations!N309:N323)/10^3 -> 1.074005982 | C96: 0.8862576637 | D96: 0.1628216844 | E96: 0.6592243371 | F96: 8.441591148 | G96: 15.72964684 | H96: 1.348330518 | I96: 4.068027274 | J96: 5.476118778 | K96: 2.418032945 | L96: 0.718564046 | M96: 0.4021177767 | N96: 0.4370935488 | O96: 0.3973104722 | P96: 0.3209978465
A97: Tier 4b: Clean Feedstocks | B97: =TRANSPOSE(Calculations!N369:N383)/10^3 -> 1.074005982 | C97: 0.8862576637 | D97: 0.1628216844 | E97: 0.6592243371 | F97: 8.441591148 | G97: 16.38175368 | H97: 1.348330518 | I97: 4.068027274 | J97: 5.476118778 | K97: 2.418032945 | L97: 0.718564046 | M97: 0.4021177767 | N97: 0.4370935488 | O97: 0.3973104722 | P97: 0.3209978465
A99: Sort subindustries by energy use in historical year
A100: Actual Rank | B100: =TRANSPOSE(Calculations!O6:O19) -> 6 | C100: 8 | D100: 14 | E100: 11 | F100: 3 | G100: 2 | H100: 13 | I100: 4 | J100: 1 | K100: 5 | L100: 7 | M100: 12 | N100: 10 | O100: 9
A101: Desired Rank Order | B101: 1 | C101: 2 | D101: 3 | E101: 4 | F101: 5 | G101: 6 | H101: 7 | I101: 8 | J101: 9 | K101: 10 | L101: 11 | M101: 12 | N101: 13 | O101: 14
B102: =INDEX($B$89:$O$89,MATCH(B$101,$B$100:$O$100,0)) -> Iron & steel | C102: Chemicals | D102: Refining & fuel processing | E102: Non-metallic minerals | F102: Nonferrous metals | G102: Food, beverage, & tobacco | H102: Machinery | I102: Textiles, leather, & apparel | J102: Other metal products | K102: Electronics | L102: Pulp, paper, & printing | M102: Vehicles & transport equipment | N102: Plastic & rubber products | O102: Wood & furniture | P102: =P89 -> Other manufacturing
A103: =_xlfn.CONCAT('Other Region-Specific Data'!$O$2," Actual") -> 2022 Actual | B103: =INDEX($B90:$P90,MATCH(B$102,$B$89:$P$89,0)) -> 21.32263482 | C103: 21.15793928 | D103: 9.06380129 | E103: 9.054973623 | F103: 4.102667057 | G103: 1.565952521 | H103: 1.541541618 | I103: 1.418364596 | J103: 1.099912075 | K103: 0.9986078546 | L103: 0.924616061 | M103: 0.8836723329 | N103: 0.758147714 | O103: 0.2006184056 | P103: 0.3767145369
A104: Future BAU Projection | B104: =INDEX($B91:$P91,MATCH(B$102,$B$89:$P$89,0)) -> 16.76001681 | C104: 30.76843728 | D104: 9.311446134 | E104: 6.395734281 | F104: 4.718067116 | G104: 1.565952521 | H104: 1.211682498 | I104: 1.418364596 | J104: 0.8645528578 | K104: 0.7849257174 | L104: 0.924616061 | M104: 0.6945841019 | N104: 1.49718246 | O104: 0.2006184056 | P104: 0.3767145369
A105: Tier 1: Efficiency | B105: =INDEX($B92:$P92,MATCH(B$102,$B$89:$P$89,0)) -> 8.82547201 | C105: 19.82018584 | D105: 8.38030152 | E105: 3.198986394 | F105: 2.770684914 | G105: 1.471995369 | H105: 0.8260645433 | I105: 0.9928552169 | J105: 0.5325105259 | K105: 0.4968579791 | L105: 0.7466274692 | M105: 0.490463199 | N105: 1.463121559 | O105: 0.1745380129 | P105: 0.352228092
A106: Tier 2a: Easy Electrification | B106: =INDEX($B93:$P93,MATCH(B$102,$B$89:$P$89,0)) -> 5.269309686 | C106: 15.9674225 | D106: 7.04018599 | E106: 3.04891941 | F106: 2.60769149 | G106: 1.077500112 | H106: 0.7638717191 | I106: 0.910907735 | J106: 0.4460811949 | K106: 0.4570178667 | L106: 0.6962613281 | M106: 0.4314223333 | N106: 1.390965232 | O106: 0.1682361201 | P106: 0.3314704896
A107: Tier 2b: Other Electrification | B107: =INDEX($B94:$P94,MATCH(B$102,$B$89:$P$89,0)) -> 4.907006069 | C107: 15.29555978 | D107: 6.956693453 | E107: 2.759122717 | F107: 2.400913476 | G107: 1.074005982 | H107: 0.718564046 | I107: 0.8862576637 | J107: 0.3973104722 | K107: 0.4370935488 | L107: 0.6592243371 | M107: 0.4021177767 | N107: 1.348330518 | O107: 0.1628216844 | P107: 0.3209978465
A108: Tier 3: CCS | B108: =INDEX($B95:$P95,MATCH(B$102,$B$89:$P$89,0)) -> 5.21748967 | C108: 15.29555978 | D108: 6.956693453 | E108: 3.894082136 | F108: 2.400913476 | G108: 1.074005982 | H108: 0.718564046 | I108: 0.8862576637 | J108: 0.3973104722 | K108: 0.4370935488 | L108: 0.6592243371 | M108: 0.4021177767 | N108: 1.348330518 | O108: 0.1628216844 | P108: 0.3209978465
A109: Tier 4a: Green H2 | B109: =INDEX($B96:$P96,MATCH(B$102,$B$89:$P$89,0)) -> 5.476118778 | C109: 15.72964684 | D109: 8.441591148 | E109: 4.068027274 | F109: 2.418032945 | G109: 1.074005982 | H109: 0.718564046 | I109: 0.8862576637 | J109: 0.3973104722 | K109: 0.4370935488 | L109: 0.6592243371 | M109: 0.4021177767 | N109: 1.348330518 | O109: 0.1628216844 | P109: 0.3209978465
A110: Tier 4b: Clean Feedstocks | B110: =INDEX($B97:$P97,MATCH(B$102,$B$89:$P$89,0)) -> 5.476118778 | C110: 16.38175368 | D110: 8.441591148 | E110: 4.068027274 | F110: 2.418032945 | G110: 1.074005982 | H110: 0.718564046 | I110: 0.8862576637 | J110: 0.3973104722 | K110: 0.4370935488 | L110: 0.6592243371 | M110: 0.4021177767 | N110: 1.348330518 | O110: 0.1628216844 | P110: 0.3209978465
A146: Chemicals Industry Feedstocks
B147: Coal | C147: Natural Gas | D147: Petroleum | E147: Bioenergy | F147: Green Hydrogen | G147: Blue Hydrogen
A148: =_xlfn.CONCAT('Other Region-Specific Data'!$O$2," Actual") -> 2022 Actual | B148: =Calculations!B333/10^3 -> 1.093242615 | C148: =SUM(Calculations!F333:G333)/10^3 -> 2.851264816 | D148: =Calculations!E333/10^3 -> 0.714103008
A149: Future BAU Projection | B149: =Calculations!B334/10^3 -> 1.589822449 | C149: =SUM(Calculations!F334:G334)/10^3 -> 4.14638503 | D149: =Calculations!E334/10^3 -> 1.038467562
A150: Tiers 1-4a | B150: =Calculations!B335/10^3 -> 1.211494002 | C150: =SUM(Calculations!F335:G335)/10^3 -> 3.15967396 | D150: =Calculations!E335/10^3 -> 0.791344482
A151: Tier 4b | B151: =Calculations!B336/10^3 -> 0 | C151: =SUM(Calculations!F336:G336)/10^3 -> 0 | D151: =Calculations!E336/10^3 -> 0 | E151: =TRANSPOSE(Calculations!B347:B349)/10^3 -> 1.548753733 | F151: 2.065004977 | G151: 1.548753733

Sheet CO2 Emissions Graphs
A1: CO2 Emissions by Energy Type
B2: Fossil Feedstocks | C2: Coal | D2: Coke | E2: Coal/Coke Byproducts | F2: Petroleum | G2: Natural Gas | H2: Bioenergy and Waste | I2: Purchased Heat | J2: Direct Use of Electricity | K2: Electricity for Green H2 | L2: Blue Hydrogen | M2: Fossil Fuels w/ Carbon Capture | N2: Cement Calcination | O2: Fugitive Methane | P2: Electricity (on-target) | Q2: Electricity (off-target)
A3: =_xlfn.CONCAT('Other Region-Specific Data'!$O$2," Actual") -> 2022 Actual | B3: =IF('User Settings'!$B$11=TRUE,Calculations!G361,0) -> 291.5478265 | C3: =Calculations!B21*Calculations!B$391 -> 1046.524931 | D3: =Calculations!C21*Calculations!C$391 -> 1401.90533 | E3: =Calculations!D21*Calculations!D$391 -> 253.8572863 | F3: =Calculations!E21*Calculations!E$391 -> 814.0606522 | G3: =Calculations!F21*Calculations!F$391 -> 299.9237841 | M3: =SUM(Calculations!K21:L21)*Calculations!$B$399 -> 0 | N3: =Calculations!B638 -> 907 | O3: =Calculations!E626 -> 521.3859971 | P3: =SUM(Calculations!I21:J21)*Calculations!$B$610 -> 2928.957026
A4: Future BAU Projection | B4: =IF('User Settings'!$B$11=TRUE,Calculations!G362,0) -> 423.9765932 | C4: =Calculations!B59*Calculations!B$391 -> 999.7758287 | D4: =Calculations!C59*Calculations!C$391 -> 1190.188479 | E4: =Calculations!D59*Calculations!D$391 -> 219.5940538 | F4: =Calculations!E59*Calculations!E$391 -> 927.2601514 | G4: =Calculations!F59*Calculations!F$391 -> 321.2516385 | M4: =SUM(Calculations!K59:L59)*Calculations!$B$399 -> 0 | N4: =Calculations!B639 -> 640.6347754 | O4: =Calculations!E627 -> 486.8755735 | P4: =SUM(Calculations!I59:J59)*Calculations!$B$612 -> 0 | Q4: =SUM(Calculations!I59:J59)*(Calculations!$B$610-Calculations!$B$612) -> 3047.450412
A5: Tier 1: Efficiency | B5: =IF('User Settings'!$B$11=TRUE,Calculations!G363,0) -> 323.0833103 | C5: =Calculations!B99*Calculations!B$391 -> 591.4306491 | D5: =Calculations!C99*Calculations!C$391 -> 645.8193248 | E5: =Calculations!D99*Calculations!D$391 -> 128.2744717 | F5: =Calculations!E99*Calculations!E$391 -> 681.608355 | G5: =Calculations!F99*Calculations!F$391 -> 210.4215274 | M5: =SUM(Calculations!K99:L99)*Calculations!$B$399 -> 0 | N5: =Calculations!B640 -> 452.8493731 | O5: =Calculations!E628 -> 286.0159073 | P5: =SUM(Calculations!I99:J99)*Calculations!$B$612 -> 0 | Q5: =SUM(Calculations!I99:J99)*(Calculations!$B$610-Calculations!$B$612) -> 2015.300429
A6: Tier 2a: Easy Electrification | B6: =IF('User Settings'!$B$11=TRUE,B$5,0) -> 323.0833103 | C6: =Calculations!B226*Calculations!B$391 -> 319.7689389 | D6: =Calculations!C226*Calculations!C$391 -> 262.2163189 | E6: =Calculations!D226*Calculations!D$391 -> 61.19178678 | F6: =Calculations!E226*Calculations!E$391 -> 398.7762607 | G6: =Calculations!F226*Calculations!F$391 -> 96.44915547 | M6: =SUM(Calculations!K226:L226)*Calculations!$B$399 -> 0 | N6: =Calculations!B641 -> 452.8493731 | O6: =Calculations!E629 -> 134.9604736 | P6: =SUM(Calculations!I226:J226)*Calculations!$B$612 -> 0 | Q6: =SUM(Calculations!I226:J226)*(Calculations!$B$610-Calculations!$B$612) -> 2807.631495
A7: Tier 2b: Other Electrification | B7: =IF('User Settings'!$B$11=TRUE,B$5,0) -> 323.0833103 | C7: =Calculations!B246*Calculations!B$391 -> 198.2966773 | D7: =Calculations!C246*Calculations!C$391 -> 179.3933255 | E7: =Calculations!D246*Calculations!D$391 -> 45.14665302 | F7: =Calculations!E246*Calculations!E$391 -> 312.5311575 | G7: =Calculations!F246*Calculations!F$391 -> 42.03379311 | M7: =SUM(Calculations!K246:L246)*Calculations!$B$399 -> 0 | N7: =Calculations!B642 -> 452.8493731 | O7: =Calculations!E630 -> 80.10762735 | P7: =SUM(Calculations!I246:J246)*Calculations!$B$612 -> 0 | Q7: =SUM(Calculations!I246:J246)*(Calculations!$B$610-Calculations!$B$612) -> 3344.950722
A8: Tier 3: CCS | B8: =IF('User Settings'!$B$11=TRUE,B$5,0) -> 323.0833103 | C8: =Calculations!B285*Calculations!B$391 -> 115.8362271 | D8: =Calculations!C285*Calculations!C$391 -> 74.27722189 | E8: =Calculations!D285*Calculations!D$391 -> 27.79737166 | F8: =Calculations!E285*Calculations!E$391 -> 297.6592931 | G8: =Calculations!F285*Calculations!F$391 -> 32.60126208 | M8: =SUM(Calculations!K285:L285)*Calculations!$B$399 -> 35.26308526 | N8: =Calculations!B643 -> 45.28493731 | O8: =Calculations!E631 -> 117.0185942 | P8: =SUM(Calculations!I285:J285)*Calculations!$B$612 -> 0 | Q8: =SUM(Calculations!I285:J285)*(Calculations!$B$610-Calculations!$B$612) -> 3344.950722
A9: Tier 4a: Green H2 | B9: =IF('User Settings'!$B$11=TRUE,B$5,0) -> 323.0833103 | C9: =Calculations!B324*Calculations!B$391 -> 2.183422525e-15 | D9: =Calculations!C324*Calculations!C$391 -> 7.366924273e-16 | E9: =Calculations!D324*Calculations!D$391 -> 2.524623401e-17 | F9: =Calculations!E324*Calculations!E$391 -> 6.392325734e-16 | G9: =Calculations!F324*Calculations!F$391 -> 4.157160102e-15 | M9: =SUM(Calculations!K324:L324)*Calculations!$B$399 -> 35.26308526 | N9: =Calculations!B644 -> 45.28493731 | O9: =Calculations!E632 -> 72.19132362 | P9: =SUM(Calculations!I324:J324)*Calculations!$B$612 -> 0 | Q9: =SUM(Calculations!I324:J324)*(Calculations!$B$610-Calculations!$B$612) -> 5164.236297
A10: Tier 4b: Clean Feedstocks | B10: =IF('User Settings'!$B$11=TRUE,Calculations!G364,0) -> 0 | C10: =Calculations!B384*Calculations!B$391 -> 2.183422525e-15 | D10: =Calculations!C384*Calculations!C$391 -> 7.366924273e-16 | E10: =Calculations!D384*Calculations!D$391 -> 2.524623401e-17 | F10: =Calculations!E384*Calculations!E$391 -> 6.392325734e-16 | G10: =Calculations!F384*Calculations!F$391 -> 4.157160102e-15 | L10: incl. in FF w/ CC | M10: =SUM(Calculations!K384:L384)*Calculations!$B$399 -> 48.48513354 | N10: =Calculations!B645 -> 45.28493731 | O10: =Calculations!E633 -> 72.19132362 | P10: =SUM(Calculations!I384:J384)*Calculations!$B$612 -> 0 | Q10: =SUM(Calculations!I384:J384)*(Calculations!$B$610-Calculations!$B$612) -> 5665.093028
A50: Data Formatted for Waterfall Graph | B50: Excludes electricity-related emissions, for which historical year can't be compared fairly to Future BAU (or other tiers)
B51: Change since prior category
A52: =_xlfn.CONCAT('Other Region-Specific Data'!$O$2," Actual") -> 2022 Actual | B52: =SUM(B3:O3) -> 5536.205807 | C52: million tonnes CO2 / yr
A53: Future BAU Projection | B53: =SUM(B4:O4)-SUM(B3:O3) -> -326.6487129 | C53: million tonnes CO2 / yr
A54: Tier 1: Efficiency | B54: -1890.054175 | C54: million tonnes CO2 / yr
A55: Tier 2a: Easy Electrification | B55: -1270.207301 | C55: million tonnes CO2 / yr
A56: Tier 2b: Other Electrification | B56: -415.8537006 | C56: million tonnes CO2 / yr
A57: Tier 3: CCS | B57: -564.6206144 | C57: million tonnes CO2 / yr
A58: Tier 4a: Green H2 | B58: -592.9986464 | C58: million tonnes CO2 / yr
A59: Tier 4b: Clean Feedstocks | B59: =IF('User Settings'!$B$11=TRUE,SUM(B10:O10)-SUM(B9:O9),0) -> -309.861262 | C59: million tonnes CO2 / yr

Sheet Finanical Expenditures Graphs
A1: Energy Expenditures by Energy Type
B2: Fossil Feedstocks | C2: Coal | D2: Coke | E2: Coal/Coke Byproducts | F2: Petroleum | G2: Natural Gas | H2: Bioenergy and Waste | I2: Purchased Heat | J2: Direct Use of Electricity | K2: Green Hydrogen | L2: Blue Hydrogen | M2: Fossil Fuels w/ Carbon Capture | N2: Carbon Pricing
A3: =_xlfn.CONCAT('Other Region-Specific Data'!$O$2," Actual") -> 2022 Actual | B3: ='Energy Use Graphs'!B3*Calculations!B$406*10^3 -> 27.71275597 | C3: ='Energy Use Graphs'!C3*Calculations!C$406*10^3 -> 38.87811199 | D3: ='Energy Use Graphs'!D3*Calculations!D$406*10^3 -> 43.37513022 | E3: ='Energy Use Graphs'!E3*Calculations!E$406*10^3 -> 19.05671341 | F3: ='Energy Use Graphs'!F3*Calculations!C422*10^3 -> 87.28708172 | G3: ='Energy Use Graphs'!G3*Calculations!G$406*10^3 -> 74.54918393 | H3: ='Energy Use Graphs'!H3*Calculations!H$406*10^3 -> 0 | I3: ='Energy Use Graphs'!I3*Calculations!I$406*10^3 -> 103.7911929 | J3: ='Energy Use Graphs'!J3*Calculations!J$406*10^3 -> 428.1424524 | K3: ='Energy Use Graphs'!K3*'Other Technical Data'!$B$16*Calculations!K$406*10^3 -> 0 | L3: ='Energy Use Graphs'!L3*Calculations!L$406*10^3 -> 0 | M3: ='Energy Use Graphs'!M3*Calculations!M$406*10^3 -> 0 | N3: =SUMPRODUCT(Calculations!B21:L21,Calculations!$C$433:$M$433)/10^3 -> 0
A4: Future BAU Projection | B4: ='Energy Use Graphs'!B4*Calculations!B$411*10^3 -> 50.19115244 | C4: ='Energy Use Graphs'!C4*Calculations!C$411*10^3 -> 43.33162839 | D4: ='Energy Use Graphs'!D4*Calculations!D$411*10^3 -> 42.96201442 | E4: ='Energy Use Graphs'!E4*Calculations!E$411*10^3 -> 19.2320569 | F4: ='Energy Use Graphs'!F4*Calculations!C423*10^3 -> 139.4509242 | G4: ='Energy Use Graphs'!G4*Calculations!G$411*10^3 -> 108.2417137 | H4: ='Energy Use Graphs'!H4*Calculations!H$411*10^3 -> 0 | I4: ='Energy Use Graphs'!I4*Calculations!I$411*10^3 -> 64.81971443 | J4: ='Energy Use Graphs'!J4*Calculations!J$411*10^3 -> 473.017742 | K4: ='Energy Use Graphs'!K4*'Other Technical Data'!$B$16*Calculations!K$411*10^3 -> 0 | L4: ='Energy Use Graphs'!L4*Calculations!L$411*10^3 -> 0 | M4: ='Energy Use Graphs'!M4*Calculations!M$411*10^3 -> 0 | N4: =SUMPRODUCT(Calculations!B59:L59,Calculations!$C$435:$M$435)/10^3 -> 182.9035076
A5: Tier 1: Efficiency | B5: ='Energy Use Graphs'!B5*Calculations!B$411*10^3 -> 38.24721444 | C5: ='Energy Use Graphs'!C5*Calculations!C$411*10^3 -> 25.63339938 | D5: ='Energy Use Graphs'!D5*Calculations!D$411*10^3 -> 23.31202127 | E5: ='Energy Use Graphs'!E5*Calculations!E$411*10^3 -> 11.23428388 | F5: ='Energy Use Graphs'!F5*Calculations!C424*10^3 -> 83.69203402 | G5: ='Energy Use Graphs'!G5*Calculations!G$411*10^3 -> 70.89889669 | H5: ='Energy Use Graphs'!H5*Calculations!H$411*10^3 -> 0 | I5: ='Energy Use Graphs'!I5*Calculations!I$411*10^3 -> 44.15758884 | J5: ='Energy Use Graphs'!J5*Calculations!J$411*10^3 -> 312.8099655 | K5: ='Energy Use Graphs'!K5*'Other Technical Data'!$B$16*Calculations!K$411*10^3 -> 0 | L5: ='Energy Use Graphs'!L5*Calculations!L$411*10^3 -> 0 | M5: ='Energy Use Graphs'!M5*Calculations!M$411*10^3 -> 0 | N5: =SUMPRODUCT(Calculations!B99:L99,Calculations!$C$435:$M$435)/10^3 -> 112.8777164
A6: Tier 2a: Easy Electrification | B6: ='Energy Use Graphs'!B6*Calculations!B$411*10^3 -> 38.24721444 | C6: ='Energy Use Graphs'!C6*Calculations!C$411*10^3 -> 13.85921567 | D6: ='Energy Use Graphs'!D6*Calculations!D$411*10^3 -> 9.465174188 | E6: ='Energy Use Graphs'!E6*Calculations!E$411*10^3 -> 5.35917938 | F6: ='Energy Use Graphs'!F6*Calculations!C425*10^3 -> 35.61573017 | G6: ='Energy Use Graphs'!G6*Calculations!G$411*10^3 -> 32.49733425 | H6: ='Energy Use Graphs'!H6*Calculations!H$411*10^3 -> 0 | I6: ='Energy Use Graphs'!I6*Calculations!I$411*10^3 -> 45.60241209 | J6: ='Energy Use Graphs'!J6*Calculations!J$411*10^3 -> 435.7936407 | K6: ='Energy Use Graphs'!K6*'Other Technical Data'!$B$16*Calculations!K$411*10^3 -> 0 | L6: ='Energy Use Graphs'!L6*Calculations!L$411*10^3 -> 0 | M6: ='Energy Use Graphs'!M6*Calculations!M$411*10^3 -> 0 | N6: =SUMPRODUCT(Calculations!B226:L226,Calculations!$C$435:$M$435)/10^3 -> 56.92012304
A7: Tier 2b: Other Electrification | B7: ='Energy Use Graphs'!B7*Calculations!B$411*10^3 -> 38.24721444 | C7: ='Energy Use Graphs'!C7*Calculations!C$411*10^3 -> 8.594444561 | D7: ='Energy Use Graphs'!D7*Calculations!D$411*10^3 -> 6.475527844 | E7: ='Energy Use Graphs'!E7*Calculations!E$411*10^3 -> 3.953945859 | F7: ='Energy Use Graphs'!F7*Calculations!C426*10^3 -> 16.37118858 | G7: ='Energy Use Graphs'!G7*Calculations!G$411*10^3 -> 14.16275982 | H7: ='Energy Use Graphs'!H7*Calculations!H$411*10^3 -> 0 | I7: ='Energy Use Graphs'!I7*Calculations!I$411*10^3 -> 45.60241209 | J7: ='Energy Use Graphs'!J7*Calculations!J$411*10^3 -> 519.1950069 | K7: ='Energy Use Graphs'!K7*'Other Technical Data'!$B$16*Calculations!K$411*10^3 -> 0 | L7: ='Energy Use Graphs'!L7*Calculations!L$411*10^3 -> 0 | M7: ='Energy Use Graphs'!M7*Calculations!M$411*10^3 -> 0 | N7: =SUMPRODUCT(Calculations!B246:L246,Calculations!$C$435:$M$435)/10^3 -> 38.87008032
A8: Tier 3: CCS | B8: ='Energy Use Graphs'!B8*Calculations!B$411*10^3 -> 38.24721444 | C8: ='Energy Use Graphs'!C8*Calculations!C$411*10^3 -> 5.020497798 | D8: ='Energy Use Graphs'!D8*Calculations!D$411*10^3 -> 2.681171204 | E8: ='Energy Use Graphs'!E8*Calculations!E$411*10^3 -> 2.434495034 | F8: ='Energy Use Graphs'!F8*Calculations!C427*10^3 -> 12.30484263 | G8: ='Energy Use Graphs'!G8*Calculations!G$411*10^3 -> 10.9845867 | H8: ='Energy Use Graphs'!H8*Calculations!H$411*10^3 -> 0 | I8: ='Energy Use Graphs'!I8*Calculations!I$411*10^3 -> 45.60241209 | J8: ='Energy Use Graphs'!J8*Calculations!J$411*10^3 -> 519.1950069 | K8: ='Energy Use Graphs'!K8*'Other Technical Data'!$B$16*Calculations!K$411*10^3 -> 0 | L8: ='Energy Use Graphs'!L8*Calculations!L$411*10^3 -> 0 | M8: ='Energy Use Graphs'!M8*Calculations!M$411*10^3 -> 24.81669749 | N8: =SUMPRODUCT(Calculations!B285:L285,Calculations!$C$435:$M$435)/10^3 -> 29.17172305
A9: Tier 4a: Green H2 | B9: ='Energy Use Graphs'!B9*Calculations!B$411*10^3 -> 38.24721444 | C9: ='Energy Use Graphs'!C9*Calculations!C$411*10^3 -> 9.463246737e-17 | D9: ='Energy Use Graphs'!D9*Calculations!D$411*10^3 -> 2.659225092e-17 | E9: ='Energy Use Graphs'!E9*Calculations!E$411*10^3 -> 2.211066286e-18 | F9: ='Energy Use Graphs'!F9*Calculations!C428*10^3 -> 1.747824425e-16 | G9: ='Energy Use Graphs'!G9*Calculations!G$411*10^3 -> 1.400702999e-15 | H9: ='Energy Use Graphs'!H9*Calculations!H$411*10^3 -> 0 | I9: ='Energy Use Graphs'!I9*Calculations!I$411*10^3 -> 45.60241209 | J9: ='Energy Use Graphs'!J9*Calculations!J$411*10^3 -> 519.1950069 | K9: ='Energy Use Graphs'!K9*'Other Technical Data'!$B$16*Calculations!K$411*10^3 -> 112.5122274 | L9: ='Energy Use Graphs'!L9*Calculations!L$411*10^3 -> 0 | M9: ='Energy Use Graphs'!M9*Calculations!M$411*10^3 -> 24.81669749 | N9: =SUMPRODUCT(Calculations!B324:L324,Calculations!$C$435:$M$435)/10^3 -> 1.763154263
A10: Tier 4b: Clean Feedstocks | B10: ='Energy Use Graphs'!B10*Calculations!B$411*10^3 -> 0 | C10: ='Energy Use Graphs'!C10*Calculations!C$411*10^3 -> 9.463246737e-17 | D10: ='Energy Use Graphs'!D10*Calculations!D$411*10^3 -> 2.659225092e-17 | E10: ='Energy Use Graphs'!E10*Calculations!E$411*10^3 -> 2.211066286e-18 | F10: ='Energy Use Graphs'!F10*Calculations!C429*10^3 -> 1.747824425e-16 | G10: ='Energy Use Graphs'!G10*Calculations!G$411*10^3 -> 1.400702999e-15 | H10: ='Energy Use Graphs'!H10*Calculations!H$411*10^3 -> 6.023098492 | I10: ='Energy Use Graphs'!I10*Calculations!I$411*10^3 -> 45.60241209 | J10: ='Energy Use Graphs'!J10*Calculations!J$411*10^3 -> 519.1950069 | K10: ='Energy Use Graphs'!K10*'Other Technical Data'!$B$16*Calculations!K$411*10^3 -> 143.4873021 | L10: ='Energy Use Graphs'!L10*Calculations!L$411*10^3 -> 23.231306 | M10: ='Energy Use Graphs'!M10*Calculations!M$411*10^3 -> 24.81669749 | N10: =SUMPRODUCT(Calculations!B384:L384,Calculations!$C$435:$M$435)/10^3 -> 2.424256677
A43: Energy cost values are in real 2021 US$.
A45: Waterfall version of energy expenditures by tier
B46: Change since prior category
A47: =_xlfn.CONCAT('Other Region-Specific Data'!$O$2," Actual") -> 2022 Actual | B47: =SUM(B3:N3) -> 822.7926225 | C47: billions of 2021 USD / year
A48: Future BAU Projection | B48: =SUM(B4:N4)-SUM(B3:N3) -> 301.3578316 | C48: billions of 2021 USD / year
A49: Tier 1: Efficiency | B49: -401.2873337 | C49: billions of 2021 USD / year
A50: Tier 2a: Easy Electrification | B50: -49.50309646 | C50: billions of 2021 USD / year
A51: Tier 2b: Other Electrification | B51: 18.11255652 | C51: billions of 2021 USD / year
A52: Tier 3: CCS | B52: -1.013933086 | C52: billions of 2021 USD / year
A53: Tier 4a: Green H2 | B53: 51.67806526 | C53: billions of 2021 USD / year
A54: Tier 4b: Clean Feedstocks | B54: 22.64336713 | C54: billions of 2021 USD / year
A90: CapEx Investment Need
B92: Change since prior category
A93: Tier 1: Efficiency | B93: =Calculations!C563/10^3 -> 56.83012714 | C93: billion $
A94: Tier 2a: Easy Electrification | B94: =Calculations!C564/10^3 -> 248.4365358 | C94: billion $
A95: Tier 2b: Other Electrification | B95: =Calculations!C565/10^3 -> 231.4677984 | C95: billion $
A96: Tier 3: CCS | B96: =Calculations!C566/10^3 -> 379.996143 | C96: billion $
A97: Tier 4a: Green H2 | B97: =Calculations!C567/10^3 -> 369.9967302 | C97: billion $
A98: Tier 4b: Clean Feedstocks | B98: =Calculations!C568/10^3 -> 201.1522446 | C98: billion $
A129: CapEx Cost per Unit of Annual Abatement Delivered by That Investment
B130: Cost Effectiveness
A131: Tier 1: Efficiency | B131: =IF('CO2 Emissions Graphs'!B54=0,0,B93/-'CO2 Emissions Graphs'!B54*10^3) -> 30.06798847 | C131: $ / (ton / yr)
A132: Tier 2a: Easy Electrification | B132: =IF('CO2 Emissions Graphs'!B55=0,0,B94/-'CO2 Emissions Graphs'!B55*10^3) -> 195.587394 | C132: $ / (ton / yr)
A133: Tier 2b: Other Electrification | B133: =IF('CO2 Emissions Graphs'!B56=0,0,B95/-'CO2 Emissions Graphs'!B56*10^3) -> 556.6087257 | C133: $ / (ton / yr)
A134: Tier 3: CCS | B134: =IF('CO2 Emissions Graphs'!B57=0,0,B96/-'CO2 Emissions Graphs'!B57*10^3) -> 673.0114582 | C134: $ / (ton / yr)
A135: Tier 4a: Green H2 | B135: =IF('CO2 Emissions Graphs'!B58=0,0,B97/-'CO2 Emissions Graphs'!B58*10^3) -> 623.9419474 | C135: $ / (ton / yr)
A136: Tier 4b: Clean Feedstocks | B136: =IF('CO2 Emissions Graphs'!B59=0,0,B98/-'CO2 Emissions Graphs'!B59*10^3) -> 649.1687387 | C136: $ / (ton / yr)
A165: Annual Incremental Energy Expenditures and Annualized CapEx Needs by Intervention Tier
B167: Energy | C167: Annualized CapEx
A168: Tier 1: Efficiency | B168: ='Finanical Expenditures Graphs'!B49 -> -401.2873337 | C168: =Calculations!C600/10^3 -> 4.579735558 | D168: billion $ / yr
A169: Tier 2a: Easy Electrification | B169: ='Finanical Expenditures Graphs'!B50 -> -49.50309646 | C169: =Calculations!C601/10^3 -> 20.02060692 | D169: billion $ / yr
A170: Tier 2b: Other Electrification | B170: ='Finanical Expenditures Graphs'!B51 -> 18.11255652 | C170: =Calculations!C602/10^3 -> 18.6531574 | D170: billion $ / yr
A171: Tier 3: CCS | B171: ='Finanical Expenditures Graphs'!B52 -> -1.013933086 | C171: =Calculations!C603/10^3 -> 30.62252251 | D171: billion $ / yr
A172: Tier 4a: Green H2 | B172: ='Finanical Expenditures Graphs'!B53 -> 51.67806526 | C172: =Calculations!C604/10^3 -> 29.8167058 | D172: billion $ / yr
A173: Tier 4b: Clean Feedstocks | B173: ='Finanical Expenditures Graphs'!B54 -> 22.64336713 | C173: =Calculations!C605/10^3 -> 16.21013595 | D173: billion $ / yr
A204: Total Annualized Costs per Unit of Abatement by Intervention Tier
B206: Energy | C206: Annualized CapEx
A207: Tier 1: Efficiency | B207: =B168/-'CO2 Emissions Graphs'!$B54*10^3 -> -212.3152547 | C207: =C168/-'CO2 Emissions Graphs'!$B54*10^3 -> 2.423071051 | D207: ($/yr) / (tonnes/yr)
A208: Tier 2a: Easy Electrification | B208: =B169/-'CO2 Emissions Graphs'!$B55*10^3 -> -38.97245467 | C208: =C169/-'CO2 Emissions Graphs'!$B55*10^3 -> 15.76168465 | D208: ($/yr) / (tonnes/yr)
A209: Tier 2b: Other Electrification | B209: =B170/-'CO2 Emissions Graphs'!$B56*10^3 -> 43.55511684 | C209: =C170/-'CO2 Emissions Graphs'!$B56*10^3 -> 44.85509537 | D209: ($/yr) / (tonnes/yr)
A210: Tier 3: CCS | B210: =B171/-'CO2 Emissions Graphs'!$B57*10^3 -> -1.795777661 | C210: =C171/-'CO2 Emissions Graphs'!$B57*10^3 -> 54.23557294 | D210: ($/yr) / (tonnes/yr)
A211: Tier 4a: Green H2 | B211: =B172/-'CO2 Emissions Graphs'!$B58*10^3 -> 87.14702061 | C211: =C172/-'CO2 Emissions Graphs'!$B58*10^3 -> 50.28123754 | D211: ($/yr) / (tonnes/yr)
A212: Tier 4b: Clean Feedstocks | B212: =B173/-'CO2 Emissions Graphs'!$B59*10^3 -> 73.07582426 | C212: =C173/-'CO2 Emissions Graphs'!$B59*10^3 -> 52.31417392 | D212: ($/yr) / (tonnes/yr)

Sheet Subindustry Breakout Graphs
A1: The following graph scope setting applies to all graphs on this tab that change depending on whether historical, future BAU, or one of the six tiers is being considered.
A2: Select a graph scope: | B2: Tier 4b
A4: Energy Use by Subindustry by Energy Type
A6: Unsorted Subindustry Data for Selected Graph Scope
B7: Fossil Feedstocks | C7: Coal | D7: Coke | E7: Coal/Coke Byproducts | F7: Petroleum | G7: Natural Gas | H7: Bioenergy and Waste | I7: Purchased Heat | J7: Direct Use of Electricity | K7: Electricity for Green H2 | L7: Blue Hydrogen | M7: Fossil Fuels w/ Carbon Capture | N7: Total with feedstocks | O7: Rank
A8: Food, beverage, & tobacco | C8: =_xlfn.SWITCH($B$2,"Historical",Calculations!B6,"Future BAU",Calculations!B44,"Tier 1",Calculations!B84,"Tier 2a",Calculations!B211,"Tier 2b",Calculations!B231,"Tier 3",Calculations!B270,"Tier 4a",Calculations!B309,"Tier 4b",Calculations!B369)/10^3 -> 2.319890405e-17 | D8: =_xlfn.SWITCH($B$2,"Historical",Calculations!C6,"Future BAU",Calculations!C44,"Tier 1",Calculations!C84,"Tier 2a",Calculations!C211,"Tier 2b",Calculations!C231,"Tier 3",Calculations!C270,"Tier 4a",Calculations!C309,"Tier 4b",Calculations!C369)/10^3 -> 3.994590252e-19 | E8: =_xlfn.SWITCH($B$2,"Historical",Calculations!D6,"Future BAU",Calculations!D44,"Tier 1",Calculations!D84,"Tier 2a",Calculations!D211,"Tier 2b",Calculations!D231,"Tier 3",Calculations!D270,"Tier 4a",Calculations!D309,"Tier 4b",Calculations!D369)/10^3 -> 1.804600497e-20 | F8: =_xlfn.SWITCH($B$2,"Historical",Calculations!E6,"Future BAU",Calculations!E44,"Tier 1",Calculations!E84,"Tier 2a",Calculations!E211,"Tier 2b",Calculations!E231,"Tier 3",Calculations!E270,"Tier 4a",Calculations!E309,"Tier 4b",Calculations!E369)/10^3 -> 2.230669733e-18 | G8: =_xlfn.SWITCH($B$2,"Historical",Calculations!F6,"Future BAU",Calculations!F44,"Tier 1",Calculations!F84,"Tier 2a",Calculations!F211,"Tier 2b",Calculations!F231,"Tier 3",Calculations!F270,"Tier 4a",Calculations!F309,"Tier 4b",Calculations!F369)/10^3 -> 3.667896389e-17 | H8: =_xlfn.SWITCH($B$2,"Historical",Calculations!G6,"Future BAU",Calculations!G44,"Tier 1",Calculations!G84,"Tier 2a",Calculations!G211,"Tier 2b",Calculations!G231,"Tier 3",Calculations!G270,"Tier 4a",Calculations!G309,"Tier 4b",Calculations!G369)/10^3 -> 0 | I8: =_xlfn.SWITCH($B$2,"Historical",Calculations!H6,"Future BAU",Calculations!H44,"Tier 1",Calculations!H84,"Tier 2a",Calculations!H211,"Tier 2b",Calculations!H231,"Tier 3",Calculations!H270,"Tier 4a",Calculations!H309,"Tier 4b",Calculations!H369)/10^3 -> 0.3833743975 | J8: =_xlfn.SWITCH($B$2,"Historical",Calculations!I6,"Future BAU",Calculations!I44,"Tier 1",Calculations!I84,"Tier 2a",Calculations!I211,"Tier 2b",Calculations!I231,"Tier 3",Calculations!I270,"Tier 4a",Calculations!I309,"Tier 4b",Calculations!I369)/10^3 -> 0.6906315848 | K8: =_xlfn.SWITCH($B$2,"Historical",Calculations!J6,"Future BAU",Calculations!J44,"Tier 1",Calculations!J84,"Tier 2a",Calculations!J211,"Tier 2b",Calculations!J231,"Tier 3",Calculations!J270,"Tier 4a",Calculations!J309,"Tier 4b",Calculations!J369)/10^3 -> 0 | L8: =_xlfn.SWITCH($B$2,"Historical",Calculations!K6,"Future BAU",Calculations!K44,"Tier 1",Calculations!K84,"Tier 2a",Calculations!K211,"Tier 2b",Calculations!K231,"Tier 3",Calculations!K270,"Tier 4a",Calculations!K309,"Tier 4b",Calculations!K369)/10^3 -> 0 | M8: =_xlfn.SWITCH($B$2,"Historical",Calculations!L6,"Future BAU",Calculations!L44,"Tier 1",Calculations!L84,"Tier 2a",Calculations!L211,"Tier 2b",Calculations!L231,"Tier 3",Calculations!L270,"Tier 4a",Calculations!L309,"Tier 4b",Calculations!L369)/10^3 -> 0 | N8: =SUM(B8:M8) -> 1.074005982 | O8: =_xlfn.RANK.EQ(N8,$N$8:$N$21,0)+COUNTIF($N$8:$N8,N8)-1 -> 7
A9: Textiles, leather, & apparel | C9: =_xlfn.SWITCH($B$2,"Historical",Calculations!B7,"Future BAU",Calculations!B45,"Tier 1",Calculations!B85,"Tier 2a",Calculations!B212,"Tier 2b",Calculations!B232,"Tier 3",Calculations!B271,"Tier 4a",Calculations!B310,"Tier 4b",Calculations!B370)/10^3 -> 0 | D9: =_xlfn.SWITCH($B$2,"Historical",Calculations!C7,"Future BAU",Calculations!C45,"Tier 1",Calculations!C85,"Tier 2a",Calculations!C212,"Tier 2b",Calculations!C232,"Tier 3",Calculations!C271,"Tier 4a",Calculations!C310,"Tier 4b",Calculations!C370)/10^3 -> 0 | E9: =_xlfn.SWITCH($B$2,"Historical",Calculations!D7,"Future BAU",Calculations!D45,"Tier 1",Calculations!D85,"Tier 2a",Calculations!D212,"Tier 2b",Calculations!D232,"Tier 3",Calculations!D271,"Tier 4a",Calculations!D310,"Tier 4b",Calculations!D370)/10^3 -> 0 | F9: =_xlfn.SWITCH($B$2,"Historical",Calculations!E7,"Future BAU",Calculations!E45,"Tier 1",Calculations!E85,"Tier 2a",Calculations!E212,"Tier 2b",Calculations!E232,"Tier 3",Calculations!E271,"Tier 4a",Calculations!E310,"Tier 4b",Calculations!E370)/10^3 -> 0 | G9: =_xlfn.SWITCH($B$2,"Historical",Calculations!F7,"Future BAU",Calculations!F45,"Tier 1",Calculations!F85,"Tier 2a",Calculations!F212,"Tier 2b",Calculations!F232,"Tier 3",Calculations!F271,"Tier 4a",Calculations!F310,"Tier 4b",Calculations!F370)/10^3 -> 0 | H9: =_xlfn.SWITCH($B$2,"Historical",Calculations!G7,"Future BAU",Calculations!G45,"Tier 1",Calculations!G85,"Tier 2a",Calculations!G212,"Tier 2b",Calculations!G232,"Tier 3",Calculations!G271,"Tier 4a",Calculations!G310,"Tier 4b",Calculations!G370)/10^3 -> 0 | I9: =_xlfn.SWITCH($B$2,"Historical",Calculations!H7,"Future BAU",Calculations!H45,"Tier 1",Calculations!H85,"Tier 2a",Calculations!H212,"Tier 2b",Calculations!H232,"Tier 3",Calculations!H271,"Tier 4a",Calculations!H310,"Tier 4b",Calculations!H370)/10^3 -> 0.2497523842 | J9: =_xlfn.SWITCH($B$2,"Historical",Calculations!I7,"Future BAU",Calculations!I45,"Tier 1",Calculations!I85,"Tier 2a",Calculations!I212,"Tier 2b",Calculations!I232,"Tier 3",Calculations!I271,"Tier 4a",Calculations!I310,"Tier 4b",Calculations!I370)/10^3 -> 0.6365052794 | K9: =_xlfn.SWITCH($B$2,"Historical",Calculations!J7,"Future BAU",Calculations!J45,"Tier 1",Calculations!J85,"Tier 2a",Calculations!J212,"Tier 2b",Calculations!J232,"Tier 3",Calculations!J271,"Tier 4a",Calculations!J310,"Tier 4b",Calculations!J370)/10^3 -> 0 | L9: =_xlfn.SWITCH($B$2,"Historical",Calculations!K7,"Future BAU",Calculations!K45,"Tier 1",Calculations!K85,"Tier 2a",Calculations!K212,"Tier 2b",Calculations!K232,"Tier 3",Calculations!K271,"Tier 4a",Calculations!K310,"Tier 4b",Calculations!K370)/10^3 -> 0 | M9: =_xlfn.SWITCH($B$2,"Historical",Calculations!L7,"Future BAU",Calculations!L45,"Tier 1",Calculations!L85,"Tier 2a",Calculations!L212,"Tier 2b",Calculations!L232,"Tier 3",Calculations!L271,"Tier 4a",Calculations!L310,"Tier 4b",Calculations!L370)/10^3 -> 0 | N9: =SUM(B9:M9) -> 0.8862576637 | O9: =_xlfn.RANK.EQ(N9,$N$8:$N$21,0)+COUNTIF($N$8:$N9,N9)-1 -> 8
A10: Wood & furniture | C10: =_xlfn.SWITCH($B$2,"Historical",Calculations!B8,"Future BAU",Calculations!B46,"Tier 1",Calculations!B86,"Tier 2a",Calculations!B213,"Tier 2b",Calculations!B233,"Tier 3",Calculations!B272,"Tier 4a",Calculations!B311,"Tier 4b",Calculations!B371)/10^3 -> 0 | D10: =_xlfn.SWITCH($B$2,"Historical",Calculations!C8,"Future BAU",Calculations!C46,"Tier 1",Calculations!C86,"Tier 2a",Calculations!C213,"Tier 2b",Calculations!C233,"Tier 3",Calculations!C272,"Tier 4a",Calculations!C311,"Tier 4b",Calculations!C371)/10^3 -> 0 | E10: =_xlfn.SWITCH($B$2,"Historical",Calculations!D8,"Future BAU",Calculations!D46,"Tier 1",Calculations!D86,"Tier 2a",Calculations!D213,"Tier 2b",Calculations!D233,"Tier 3",Calculations!D272,"Tier 4a",Calculations!D311,"Tier 4b",Calculations!D371)/10^3 -> 0 | F10: =_xlfn.SWITCH($B$2,"Historical",Calculations!E8,"Future BAU",Calculations!E46,"Tier 1",Calculations!E86,"Tier 2a",Calculations!E213,"Tier 2b",Calculations!E233,"Tier 3",Calculations!E272,"Tier 4a",Calculations!E311,"Tier 4b",Calculations!E371)/10^3 -> 0 | G10: =_xlfn.SWITCH($B$2,"Historical",Calculations!F8,"Future BAU",Calculations!F46,"Tier 1",Calculations!F86,"Tier 2a",Calculations!F213,"Tier 2b",Calculations!F233,"Tier 3",Calculations!F272,"Tier 4a",Calculations!F311,"Tier 4b",Calculations!F371)/10^3 -> 0 | H10: =_xlfn.SWITCH($B$2,"Historical",Calculations!G8,"Future BAU",Calculations!G46,"Tier 1",Calculations!G86,"Tier 2a",Calculations!G213,"Tier 2b",Calculations!G233,"Tier 3",Calculations!G272,"Tier 4a",Calculations!G311,"Tier 4b",Calculations!G371)/10^3 -> 0 | I10: =_xlfn.SWITCH($B$2,"Historical",Calculations!H8,"Future BAU",Calculations!H46,"Tier 1",Calculations!H86,"Tier 2a",Calculations!H213,"Tier 2b",Calculations!H233,"Tier 3",Calculations!H272,"Tier 4a",Calculations!H311,"Tier 4b",Calculations!H371)/10^3 -> 0.007906835893 | J10: =_xlfn.SWITCH($B$2,"Historical",Calculations!I8,"Future BAU",Calculations!I46,"Tier 1",Calculations!I86,"Tier 2a",Calculations!I213,"Tier 2b",Calculations!I233,"Tier 3",Calculations!I272,"Tier 4a",Calculations!I311,"Tier 4b",Calculations!I371)/10^3 -> 0.1549148485 | K10: =_xlfn.SWITCH($B$2,"Historical",Calculations!J8,"Future BAU",Calculations!J46,"Tier 1",Calculations!J86,"Tier 2a",Calculations!J213,"Tier 2b",Calculations!J233,"Tier 3",Calculations!J272,"Tier 4a",Calculations!J311,"Tier 4b",Calculations!J371)/10^3 -> 0 | L10: =_xlfn.SWITCH($B$2,"Historical",Calculations!K8,"Future BAU",Calculations!K46,"Tier 1",Calculations!K86,"Tier 2a",Calculations!K213,"Tier 2b",Calculations!K233,"Tier 3",Calculations!K272,"Tier 4a",Calculations!K311,"Tier 4b",Calculations!K371)/10^3 -> 0 | M10: =_xlfn.SWITCH($B$2,"Historical",Calculations!L8,"Future BAU",Calculations!L46,"Tier 1",Calculations!L86,"Tier 2a",Calculations!L213,"Tier 2b",Calculations!L233,"Tier 3",Calculations!L272,"Tier 4a",Calculations!L311,"Tier 4b",Calculations!L371)/10^3 -> 0 | N10: 0.1628216844 | O10: =_xlfn.RANK.EQ(N10,$N$8:$N$21,0)+COUNTIF($N$8:$N10,N10)-1 -> 14
A11: Pulp, paper, & printing | C11: =_xlfn.SWITCH($B$2,"Historical",Calculations!B9,"Future BAU",Calculations!B47,"Tier 1",Calculations!B87,"Tier 2a",Calculations!B214,"Tier 2b",Calculations!B234,"Tier 3",Calculations!B273,"Tier 4a",Calculations!B312,"Tier 4b",Calculations!B372)/10^3 -> 0 | D11: =_xlfn.SWITCH($B$2,"Historical",Calculations!C9,"Future BAU",Calculations!C47,"Tier 1",Calculations!C87,"Tier 2a",Calculations!C214,"Tier 2b",Calculations!C234,"Tier 3",Calculations!C273,"Tier 4a",Calculations!C312,"Tier 4b",Calculations!C372)/10^3 -> 0 | E11: =_xlfn.SWITCH($B$2,"Historical",Calculations!D9,"Future BAU",Calculations!D47,"Tier 1",Calculations!D87,"Tier 2a",Calculations!D214,"Tier 2b",Calculations!D234,"Tier 3",Calculations!D273,"Tier 4a",Calculations!D312,"Tier 4b",Calculations!D372)/10^3 -> 0 | F11: =_xlfn.SWITCH($B$2,"Historical",Calculations!E9,"Future BAU",Calculations!E47,"Tier 1",Calculations!E87,"Tier 2a",Calculations!E214,"Tier 2b",Calculations!E234,"Tier 3",Calculations!E273,"Tier 4a",Calculations!E312,"Tier 4b",Calculations!E372)/10^3 -> 0 | G11: =_xlfn.SWITCH($B$2,"Historical",Calculations!F9,"Future BAU",Calculations!F47,"Tier 1",Calculations!F87,"Tier 2a",Calculations!F214,"Tier 2b",Calculations!F234,"Tier 3",Calculations!F273,"Tier 4a",Calculations!F312,"Tier 4b",Calculations!F372)/10^3 -> 0 | H11: =_xlfn.SWITCH($B$2,"Historical",Calculations!G9,"Future BAU",Calculations!G47,"Tier 1",Calculations!G87,"Tier 2a",Calculations!G214,"Tier 2b",Calculations!G234,"Tier 3",Calculations!G273,"Tier 4a",Calculations!G312,"Tier 4b",Calculations!G372)/10^3 -> 0 | I11: =_xlfn.SWITCH($B$2,"Historical",Calculations!H9,"Future BAU",Calculations!H47,"Tier 1",Calculations!H87,"Tier 2a",Calculations!H214,"Tier 2b",Calculations!H234,"Tier 3",Calculations!H273,"Tier 4a",Calculations!H312,"Tier 4b",Calculations!H372)/10^3 -> 0.2909835899 | J11: =_xlfn.SWITCH($B$2,"Historical",Calculations!I9,"Future BAU",Calculations!I47,"Tier 1",Calculations!I87,"Tier 2a",Calculations!I214,"Tier 2b",Calculations!I234,"Tier 3",Calculations!I273,"Tier 4a",Calculations!I312,"Tier 4b",Calculations!I372)/10^3 -> 0.3682407472 | K11: =_xlfn.SWITCH($B$2,"Historical",Calculations!J9,"Future BAU",Calculations!J47,"Tier 1",Calculations!J87,"Tier 2a",Calculations!J214,"Tier 2b",Calculations!J234,"Tier 3",Calculations!J273,"Tier 4a",Calculations!J312,"Tier 4b",Calculations!J372)/10^3 -> 0 | L11: =_xlfn.SWITCH($B$2,"Historical",Calculations!K9,"Future BAU",Calculations!K47,"Tier 1",Calculations!K87,"Tier 2a",Calculations!K214,"Tier 2b",Calculations!K234,"Tier 3",Calculations!K273,"Tier 4a",Calculations!K312,"Tier 4b",Calculations!K372)/10^3 -> 0 | M11: =_xlfn.SWITCH($B$2,"Historical",Calculations!L9,"Future BAU",Calculations!L47,"Tier 1",Calculations!L87,"Tier 2a",Calculations!L214,"Tier 2b",Calculations!L234,"Tier 3",Calculations!L273,"Tier 4a",Calculations!L312,"Tier 4b",Calculations!L372)/10^3 -> 0 | N11: 0.6592243371 | O11: =_xlfn.RANK.EQ(N11,$N$8:$N$21,0)+COUNTIF($N$8:$N11,N11)-1 -> 10
A12: Refining & fuel processing | C12: =_xlfn.SWITCH($B$2,"Historical",Calculations!B10,"Future BAU",Calculations!B48,"Tier 1",Calculations!B88,"Tier 2a",Calculations!B215,"Tier 2b",Calculations!B235,"Tier 3",Calculations!B274,"Tier 4a",Calculations!B313,"Tier 4b",Calculations!B373)/10^3 -> 0 | D12: =_xlfn.SWITCH($B$2,"Historical",Calculations!C10,"Future BAU",Calculations!C48,"Tier 1",Calculations!C88,"Tier 2a",Calculations!C215,"Tier 2b",Calculations!C235,"Tier 3",Calculations!C274,"Tier 4a",Calculations!C313,"Tier 4b",Calculations!C373)/10^3 -> 0 | E12: =_xlfn.SWITCH($B$2,"Historical",Calculations!D10,"Future BAU",Calculations!D48,"Tier 1",Calculations!D88,"Tier 2a",Calculations!D215,"Tier 2b",Calculations!D235,"Tier 3",Calculations!D274,"Tier 4a",Calculations!D313,"Tier 4b",Calculations!D373)/10^3 -> 0 | F12: =_xlfn.SWITCH($B$2,"Historical",Calculations!E10,"Future BAU",Calculations!E48,"Tier 1",Calculations!E88,"Tier 2a",Calculations!E215,"Tier 2b",Calculations!E235,"Tier 3",Calculations!E274,"Tier 4a",Calculations!E313,"Tier 4b",Calculations!E373)/10^3 -> 0 | G12: =_xlfn.SWITCH($B$2,"Historical",Calculations!F10,"Future BAU",Calculations!F48,"Tier 1",Calculations!F88,"Tier 2a",Calculations!F215,"Tier 2b",Calculations!F235,"Tier 3",Calculations!F274,"Tier 4a",Calculations!F313,"Tier 4b",Calculations!F373)/10^3 -> 0 | H12: =_xlfn.SWITCH($B$2,"Historical",Calculations!G10,"Future BAU",Calculations!G48,"Tier 1",Calculations!G88,"Tier 2a",Calculations!G215,"Tier 2b",Calculations!G235,"Tier 3",Calculations!G274,"Tier 4a",Calculations!G313,"Tier 4b",Calculations!G373)/10^3 -> 0 | I12: =_xlfn.SWITCH($B$2,"Historical",Calculations!H10,"Future BAU",Calculations!H48,"Tier 1",Calculations!H88,"Tier 2a",Calculations!H215,"Tier 2b",Calculations!H235,"Tier 3",Calculations!H274,"Tier 4a",Calculations!H313,"Tier 4b",Calculations!H373)/10^3 -> 0.895072605 | J12: =_xlfn.SWITCH($B$2,"Historical",Calculations!I10,"Future BAU",Calculations!I48,"Tier 1",Calculations!I88,"Tier 2a",Calculations!I215,"Tier 2b",Calculations!I235,"Tier 3",Calculations!I274,"Tier 4a",Calculations!I313,"Tier 4b",Calculations!I373)/10^3 -> 1.359444811 | K12: =_xlfn.SWITCH($B$2,"Historical",Calculations!J10,"Future BAU",Calculations!J48,"Tier 1",Calculations!J88,"Tier 2a",Calculations!J215,"Tier 2b",Calculations!J235,"Tier 3",Calculations!J274,"Tier 4a",Calculations!J313,"Tier 4b",Calculations!J373)/10^3 -> 6.187073732 | L12: =_xlfn.SWITCH($B$2,"Historical",Calculations!K10,"Future BAU",Calculations!K48,"Tier 1",Calculations!K88,"Tier 2a",Calculations!K215,"Tier 2b",Calculations!K235,"Tier 3",Calculations!K274,"Tier 4a",Calculations!K313,"Tier 4b",Calculations!K373)/10^3 -> 0 | M12: =_xlfn.SWITCH($B$2,"Historical",Calculations!L10,"Future BAU",Calculations!L48,"Tier 1",Calculations!L88,"Tier 2a",Calculations!L215,"Tier 2b",Calculations!L235,"Tier 3",Calculations!L274,"Tier 4a",Calculations!L313,"Tier 4b",Calculations!L373)/10^3 -> 0 | N12: 8.441591148 | O12: =_xlfn.RANK.EQ(N12,$N$8:$N$21,0)+COUNTIF($N$8:$N12,N12)-1 -> 2
A13: Chemicals | B13: =_xlfn.SWITCH(B2,"Historical",Calculations!$H$333,"Future BAU",Calculations!$H$334,"Tier 4b",Calculations!$H$336,Calculations!$H$335)/10^3 -> 0 | C13: =_xlfn.SWITCH($B$2,"Historical",Calculations!B11,"Future BAU",Calculations!B49,"Tier 1",Calculations!B89,"Tier 2a",Calculations!B216,"Tier 2b",Calculations!B236,"Tier 3",Calculations!B275,"Tier 4a",Calculations!B314,"Tier 4b",Calculations!B374)/10^3 -> 0 | D13: =_xlfn.SWITCH($B$2,"Historical",Calculations!C11,"Future BAU",Calculations!C49,"Tier 1",Calculations!C89,"Tier 2a",Calculations!C216,"Tier 2b",Calculations!C236,"Tier 3",Calculations!C275,"Tier 4a",Calculations!C314,"Tier 4b",Calculations!C374)/10^3 -> 0 | E13: =_xlfn.SWITCH($B$2,"Historical",Calculations!D11,"Future BAU",Calculations!D49,"Tier 1",Calculations!D89,"Tier 2a",Calculations!D216,"Tier 2b",Calculations!D236,"Tier 3",Calculations!D275,"Tier 4a",Calculations!D314,"Tier 4b",Calculations!D374)/10^3 -> 0 | F13: =_xlfn.SWITCH($B$2,"Historical",Calculations!E11,"Future BAU",Calculations!E49,"Tier 1",Calculations!E89,"Tier 2a",Calculations!E216,"Tier 2b",Calculations!E236,"Tier 3",Calculations!E275,"Tier 4a",Calculations!E314,"Tier 4b",Calculations!E374)/10^3 -> 0 | G13: =_xlfn.SWITCH($B$2,"Historical",Calculations!F11,"Future BAU",Calculations!F49,"Tier 1",Calculations!F89,"Tier 2a",Calculations!F216,"Tier 2b",Calculations!F236,"Tier 3",Calculations!F275,"Tier 4a",Calculations!F314,"Tier 4b",Calculations!F374)/10^3 -> 0 | H13: =_xlfn.SWITCH($B$2,"Historical",Calculations!G11,"Future BAU",Calculations!G49,"Tier 1",Calculations!G89,"Tier 2a",Calculations!G216,"Tier 2b",Calculations!G236,"Tier 3",Calculations!G275,"Tier 4a",Calculations!G314,"Tier 4b",Calculations!G374)/10^3 -> 1.548753733 | I13: =_xlfn.SWITCH($B$2,"Historical",Calculations!H11,"Future BAU",Calculations!H49,"Tier 1",Calculations!H89,"Tier 2a",Calculations!H216,"Tier 2b",Calculations!H236,"Tier 3",Calculations!H275,"Tier 4a",Calculations!H314,"Tier 4b",Calculations!H374)/10^3 -> 2.937368427 | J13: =_xlfn.SWITCH($B$2,"Historical",Calculations!I11,"Future BAU",Calculations!I49,"Tier 1",Calculations!I89,"Tier 2a",Calculations!I216,"Tier 2b",Calculations!I236,"Tier 3",Calculations!I275,"Tier 4a",Calculations!I314,"Tier 4b",Calculations!I374)/10^3 -> 5.821069883 | K13: =_xlfn.SWITCH($B$2,"Historical",Calculations!J11,"Future BAU",Calculations!J49,"Tier 1",Calculations!J89,"Tier 2a",Calculations!J216,"Tier 2b",Calculations!J236,"Tier 3",Calculations!J275,"Tier 4a",Calculations!J314,"Tier 4b",Calculations!J374)/10^3 -> 4.525807902 | L13: =_xlfn.SWITCH($B$2,"Historical",Calculations!K11,"Future BAU",Calculations!K49,"Tier 1",Calculations!K89,"Tier 2a",Calculations!K216,"Tier 2b",Calculations!K236,"Tier 3",Calculations!K275,"Tier 4a",Calculations!K314,"Tier 4b",Calculations!K374)/10^3 -> 1.548753733 | M13: =_xlfn.SWITCH($B$2,"Historical",Calculations!L11,"Future BAU",Calculations!L49,"Tier 1",Calculations!L89,"Tier 2a",Calculations!L216,"Tier 2b",Calculations!L236,"Tier 3",Calculations!L275,"Tier 4a",Calculations!L314,"Tier 4b",Calculations!L374)/10^3 -> 0 | N13: 16.38175368 | O13: =_xlfn.RANK.EQ(N13,$N$8:$N$21,0)+COUNTIF($N$8:$N13,N13)-1 -> 1
A14: Plastic & rubber products | C14: =_xlfn.SWITCH($B$2,"Historical",Calculations!B12,"Future BAU",Calculations!B50,"Tier 1",Calculations!B90,"Tier 2a",Calculations!B217,"Tier 2b",Calculations!B237,"Tier 3",Calculations!B276,"Tier 4a",Calculations!B315,"Tier 4b",Calculations!B375)/10^3 -> 0 | D14: =_xlfn.SWITCH($B$2,"Historical",Calculations!C12,"Future BAU",Calculations!C50,"Tier 1",Calculations!C90,"Tier 2a",Calculations!C217,"Tier 2b",Calculations!C237,"Tier 3",Calculations!C276,"Tier 4a",Calculations!C315,"Tier 4b",Calculations!C375)/10^3 -> 0 | E14: =_xlfn.SWITCH($B$2,"Historical",Calculations!D12,"Future BAU",Calculations!D50,"Tier 1",Calculations!D90,"Tier 2a",Calculations!D217,"Tier 2b",Calculations!D237,"Tier 3",Calculations!D276,"Tier 4a",Calculations!D315,"Tier 4b",Calculations!D375)/10^3 -> 0 | F14: =_xlfn.SWITCH($B$2,"Historical",Calculations!E12,"Future BAU",Calculations!E50,"Tier 1",Calculations!E90,"Tier 2a",Calculations!E217,"Tier 2b",Calculations!E237,"Tier 3",Calculations!E276,"Tier 4a",Calculations!E315,"Tier 4b",Calculations!E375)/10^3 -> 0 | G14: =_xlfn.SWITCH($B$2,"Historical",Calculations!F12,"Future BAU",Calculations!F50,"Tier 1",Calculations!F90,"Tier 2a",Calculations!F217,"Tier 2b",Calculations!F237,"Tier 3",Calculations!F276,"Tier 4a",Calculations!F315,"Tier 4b",Calculations!F375)/10^3 -> 0 | H14: =_xlfn.SWITCH($B$2,"Historical",Calculations!G12,"Future BAU",Calculations!G50,"Tier 1",Calculations!G90,"Tier 2a",Calculations!G217,"Tier 2b",Calculations!G237,"Tier 3",Calculations!G276,"Tier 4a",Calculations!G315,"Tier 4b",Calculations!G375)/10^3 -> 0 | I14: =_xlfn.SWITCH($B$2,"Historical",Calculations!H12,"Future BAU",Calculations!H50,"Tier 1",Calculations!H90,"Tier 2a",Calculations!H217,"Tier 2b",Calculations!H237,"Tier 3",Calculations!H276,"Tier 4a",Calculations!H315,"Tier 4b",Calculations!H375)/10^3 -> 0.08728370581 | J14: =_xlfn.SWITCH($B$2,"Historical",Calculations!I12,"Future BAU",Calculations!I50,"Tier 1",Calculations!I90,"Tier 2a",Calculations!I217,"Tier 2b",Calculations!I237,"Tier 3",Calculations!I276,"Tier 4a",Calculations!I315,"Tier 4b",Calculations!I375)/10^3 -> 1.261046812 | K14: =_xlfn.SWITCH($B$2,"Historical",Calculations!J12,"Future BAU",Calculations!J50,"Tier 1",Calculations!J90,"Tier 2a",Calculations!J217,"Tier 2b",Calculations!J237,"Tier 3",Calculations!J276,"Tier 4a",Calculations!J315,"Tier 4b",Calculations!J375)/10^3 -> 0 | L14: =_xlfn.SWITCH($B$2,"Historical",Calculations!K12,"Future BAU",Calculations!K50,"Tier 1",Calculations!K90,"Tier 2a",Calculations!K217,"Tier 2b",Calculations!K237,"Tier 3",Calculations!K276,"Tier 4a",Calculations!K315,"Tier 4b",Calculations!K375)/10^3 -> 0 | M14: =_xlfn.SWITCH($B$2,"Historical",Calculations!L12,"Future BAU",Calculations!L50,"Tier 1",Calculations!L90,"Tier 2a",Calculations!L217,"Tier 2b",Calculations!L237,"Tier 3",Calculations!L276,"Tier 4a",Calculations!L315,"Tier 4b",Calculations!L375)/10^3 -> 0 | N14: 1.348330518 | O14: =_xlfn.RANK.EQ(N14,$N$8:$N$21,0)+COUNTIF($N$8:$N14,N14)-1 -> 6
A15: Non-metallic minerals | C15: =_xlfn.SWITCH($B$2,"Historical",Calculations!B13,"Future BAU",Calculations!B51,"Tier 1",Calculations!B91,"Tier 2a",Calculations!B218,"Tier 2b",Calculations!B238,"Tier 3",Calculations!B277,"Tier 4a",Calculations!B316,"Tier 4b",Calculations!B376)/10^3 -> 0 | D15: =_xlfn.SWITCH($B$2,"Historical",Calculations!C13,"Future BAU",Calculations!C51,"Tier 1",Calculations!C91,"Tier 2a",Calculations!C218,"Tier 2b",Calculations!C238,"Tier 3",Calculations!C277,"Tier 4a",Calculations!C316,"Tier 4b",Calculations!C376)/10^3 -> 0 | E15: =_xlfn.SWITCH($B$2,"Historical",Calculations!D13,"Future BAU",Calculations!D51,"Tier 1",Calculations!D91,"Tier 2a",Calculations!D218,"Tier 2b",Calculations!D238,"Tier 3",Calculations!D277,"Tier 4a",Calculations!D316,"Tier 4b",Calculations!D376)/10^3 -> 0 | F15: =_xlfn.SWITCH($B$2,"Historical",Calculations!E13,"Future BAU",Calculations!E51,"Tier 1",Calculations!E91,"Tier 2a",Calculations!E218,"Tier 2b",Calculations!E238,"Tier 3",Calculations!E277,"Tier 4a",Calculations!E316,"Tier 4b",Calculations!E376)/10^3 -> 0 | G15: =_xlfn.SWITCH($B$2,"Historical",Calculations!F13,"Future BAU",Calculations!F51,"Tier 1",Calculations!F91,"Tier 2a",Calculations!F218,"Tier 2b",Calculations!F238,"Tier 3",Calculations!F277,"Tier 4a",Calculations!F316,"Tier 4b",Calculations!F376)/10^3 -> 0 | H15: =_xlfn.SWITCH($B$2,"Historical",Calculations!G13,"Future BAU",Calculations!G51,"Tier 1",Calculations!G91,"Tier 2a",Calculations!G218,"Tier 2b",Calculations!G238,"Tier 3",Calculations!G277,"Tier 4a",Calculations!G316,"Tier 4b",Calculations!G376)/10^3 -> 0 | I15: =_xlfn.SWITCH($B$2,"Historical",Calculations!H13,"Future BAU",Calculations!H51,"Tier 1",Calculations!H91,"Tier 2a",Calculations!H218,"Tier 2b",Calculations!H238,"Tier 3",Calculations!H277,"Tier 4a",Calculations!H316,"Tier 4b",Calculations!H376)/10^3 -> 0.02270156423 | J15: =_xlfn.SWITCH($B$2,"Historical",Calculations!I13,"Future BAU",Calculations!I51,"Tier 1",Calculations!I91,"Tier 2a",Calculations!I218,"Tier 2b",Calculations!I238,"Tier 3",Calculations!I277,"Tier 4a",Calculations!I316,"Tier 4b",Calculations!I376)/10^3 -> 1.052943465 | K15: =_xlfn.SWITCH($B$2,"Historical",Calculations!J13,"Future BAU",Calculations!J51,"Tier 1",Calculations!J91,"Tier 2a",Calculations!J218,"Tier 2b",Calculations!J238,"Tier 3",Calculations!J277,"Tier 4a",Calculations!J316,"Tier 4b",Calculations!J376)/10^3 -> 0.7247714066 | L15: =_xlfn.SWITCH($B$2,"Historical",Calculations!K13,"Future BAU",Calculations!K51,"Tier 1",Calculations!K91,"Tier 2a",Calculations!K218,"Tier 2b",Calculations!K238,"Tier 3",Calculations!K277,"Tier 4a",Calculations!K316,"Tier 4b",Calculations!K376)/10^3 -> 0 | M15: =_xlfn.SWITCH($B$2,"Historical",Calculations!L13,"Future BAU",Calculations!L51,"Tier 1",Calculations!L91,"Tier 2a",Calculations!L218,"Tier 2b",Calculations!L238,"Tier 3",Calculations!L277,"Tier 4a",Calculations!L316,"Tier 4b",Calculations!L376)/10^3 -> 2.267610838 | N15: 4.068027274 | O15: =_xlfn.RANK.EQ(N15,$N$8:$N$21,0)+COUNTIF($N$8:$N15,N15)-1 -> 4
A16: Iron & steel | C16: =_xlfn.SWITCH($B$2,"Historical",Calculations!B14,"Future BAU",Calculations!B52,"Tier 1",Calculations!B92,"Tier 2a",Calculations!B219,"Tier 2b",Calculations!B239,"Tier 3",Calculations!B278,"Tier 4a",Calculations!B317,"Tier 4b",Calculations!B377)/10^3 -> 0 | D16: =_xlfn.SWITCH($B$2,"Historical",Calculations!C14,"Future BAU",Calculations!C52,"Tier 1",Calculations!C92,"Tier 2a",Calculations!C219,"Tier 2b",Calculations!C239,"Tier 3",Calculations!C278,"Tier 4a",Calculations!C317,"Tier 4b",Calculations!C377)/10^3 -> 0 | E16: =_xlfn.SWITCH($B$2,"Historical",Calculations!D14,"Future BAU",Calculations!D52,"Tier 1",Calculations!D92,"Tier 2a",Calculations!D219,"Tier 2b",Calculations!D239,"Tier 3",Calculations!D278,"Tier 4a",Calculations!D317,"Tier 4b",Calculations!D377)/10^3 -> 0 | F16: =_xlfn.SWITCH($B$2,"Historical",Calculations!E14,"Future BAU",Calculations!E52,"Tier 1",Calculations!E92,"Tier 2a",Calculations!E219,"Tier 2b",Calculations!E239,"Tier 3",Calculations!E278,"Tier 4a",Calculations!E317,"Tier 4b",Calculations!E377)/10^3 -> 0 | G16: =_xlfn.SWITCH($B$2,"Historical",Calculations!F14,"Future BAU",Calculations!F52,"Tier 1",Calculations!F92,"Tier 2a",Calculations!F219,"Tier 2b",Calculations!F239,"Tier 3",Calculations!F278,"Tier 4a",Calculations!F317,"Tier 4b",Calculations!F377)/10^3 -> 0 | H16: =_xlfn.SWITCH($B$2,"Historical",Calculations!G14,"Future BAU",Calculations!G52,"Tier 1",Calculations!G92,"Tier 2a",Calculations!G219,"Tier 2b",Calculations!G239,"Tier 3",Calculations!G278,"Tier 4a",Calculations!G317,"Tier 4b",Calculations!G377)/10^3 -> 0 | I16: =_xlfn.SWITCH($B$2,"Historical",Calculations!H14,"Future BAU",Calculations!H52,"Tier 1",Calculations!H92,"Tier 2a",Calculations!H219,"Tier 2b",Calculations!H239,"Tier 3",Calculations!H278,"Tier 4a",Calculations!H317,"Tier 4b",Calculations!H377)/10^3 -> 0.07706651783 | J16: =_xlfn.SWITCH($B$2,"Historical",Calculations!I14,"Future BAU",Calculations!I52,"Tier 1",Calculations!I92,"Tier 2a",Calculations!I219,"Tier 2b",Calculations!I239,"Tier 3",Calculations!I278,"Tier 4a",Calculations!I317,"Tier 4b",Calculations!I377)/10^3 -> 2.458529369 | K16: =_xlfn.SWITCH($B$2,"Historical",Calculations!J14,"Future BAU",Calculations!J52,"Tier 1",Calculations!J92,"Tier 2a",Calculations!J219,"Tier 2b",Calculations!J239,"Tier 3",Calculations!J278,"Tier 4a",Calculations!J317,"Tier 4b",Calculations!J377)/10^3 -> 1.077621284 | L16: =_xlfn.SWITCH($B$2,"Historical",Calculations!K14,"Future BAU",Calculations!K52,"Tier 1",Calculations!K92,"Tier 2a",Calculations!K219,"Tier 2b",Calculations!K239,"Tier 3",Calculations!K278,"Tier 4a",Calculations!K317,"Tier 4b",Calculations!K377)/10^3 -> 0 | M16: =_xlfn.SWITCH($B$2,"Historical",Calculations!L14,"Future BAU",Calculations!L52,"Tier 1",Calculations!L92,"Tier 2a",Calculations!L219,"Tier 2b",Calculations!L239,"Tier 3",Calculations!L278,"Tier 4a",Calculations!L317,"Tier 4b",Calculations!L377)/10^3 -> 1.862901607 | N16: 5.476118778 | O16: =_xlfn.RANK.EQ(N16,$N$8:$N$21,0)+COUNTIF($N$8:$N16,N16)-1 -> 3
A17: Nonferrous metals | C17: =_xlfn.SWITCH($B$2,"Historical",Calculations!B15,"Future BAU",Calculations!B53,"Tier 1",Calculations!B93,"Tier 2a",Calculations!B220,"Tier 2b",Calculations!B240,"Tier 3",Calculations!B279,"Tier 4a",Calculations!B318,"Tier 4b",Calculations!B378)/10^3 -> 0 | D17: =_xlfn.SWITCH($B$2,"Historical",Calculations!C15,"Future BAU",Calculations!C53,"Tier 1",Calculations!C93,"Tier 2a",Calculations!C220,"Tier 2b",Calculations!C240,"Tier 3",Calculations!C279,"Tier 4a",Calculations!C318,"Tier 4b",Calculations!C378)/10^3 -> 0 | E17: =_xlfn.SWITCH($B$2,"Historical",Calculations!D15,"Future BAU",Calculations!D53,"Tier 1",Calculations!D93,"Tier 2a",Calculations!D220,"Tier 2b",Calculations!D240,"Tier 3",Calculations!D279,"Tier 4a",Calculations!D318,"Tier 4b",Calculations!D378)/10^3 -> 0 | F17: =_xlfn.SWITCH($B$2,"Historical",Calculations!E15,"Future BAU",Calculations!E53,"Tier 1",Calculations!E93,"Tier 2a",Calculations!E220,"Tier 2b",Calculations!E240,"Tier 3",Calculations!E279,"Tier 4a",Calculations!E318,"Tier 4b",Calculations!E378)/10^3 -> 0 | G17: =_xlfn.SWITCH($B$2,"Historical",Calculations!F15,"Future BAU",Calculations!F53,"Tier 1",Calculations!F93,"Tier 2a",Calculations!F220,"Tier 2b",Calculations!F240,"Tier 3",Calculations!F279,"Tier 4a",Calculations!F318,"Tier 4b",Calculations!F378)/10^3 -> 0 | H17: =_xlfn.SWITCH($B$2,"Historical",Calculations!G15,"Future BAU",Calculations!G53,"Tier 1",Calculations!G93,"Tier 2a",Calculations!G220,"Tier 2b",Calculations!G240,"Tier 3",Calculations!G279,"Tier 4a",Calculations!G318,"Tier 4b",Calculations!G378)/10^3 -> 0 | I17: =_xlfn.SWITCH($B$2,"Historical",Calculations!H15,"Future BAU",Calculations!H53,"Tier 1",Calculations!H93,"Tier 2a",Calculations!H220,"Tier 2b",Calculations!H240,"Tier 3",Calculations!H279,"Tier 4a",Calculations!H318,"Tier 4b",Calculations!H378)/10^3 -> 0.212768627 | J17: =_xlfn.SWITCH($B$2,"Historical",Calculations!I15,"Future BAU",Calculations!I53,"Tier 1",Calculations!I93,"Tier 2a",Calculations!I220,"Tier 2b",Calculations!I240,"Tier 3",Calculations!I279,"Tier 4a",Calculations!I318,"Tier 4b",Calculations!I378)/10^3 -> 2.133933198 | K17: =_xlfn.SWITCH($B$2,"Historical",Calculations!J15,"Future BAU",Calculations!J53,"Tier 1",Calculations!J93,"Tier 2a",Calculations!J220,"Tier 2b",Calculations!J240,"Tier 3",Calculations!J279,"Tier 4a",Calculations!J318,"Tier 4b",Calculations!J378)/10^3 -> 0.07133112009 | L17: =_xlfn.SWITCH($B$2,"Historical",Calculations!K15,"Future BAU",Calculations!K53,"Tier 1",Calculations!K93,"Tier 2a",Calculations!K220,"Tier 2b",Calculations!K240,"Tier 3",Calculations!K279,"Tier 4a",Calculations!K318,"Tier 4b",Calculations!K378)/10^3 -> 0 | M17: =_xlfn.SWITCH($B$2,"Historical",Calculations!L15,"Future BAU",Calculations!L53,"Tier 1",Calculations!L93,"Tier 2a",Calculations!L220,"Tier 2b",Calculations!L240,"Tier 3",Calculations!L279,"Tier 4a",Calculations!L318,"Tier 4b",Calculations!L378)/10^3 -> 0 | N17: 2.418032945 | O17: =_xlfn.RANK.EQ(N17,$N$8:$N$21,0)+COUNTIF($N$8:$N17,N17)-1 -> 5
A18: Machinery | C18: =_xlfn.SWITCH($B$2,"Historical",Calculations!B16,"Future BAU",Calculations!B54,"Tier 1",Calculations!B94,"Tier 2a",Calculations!B221,"Tier 2b",Calculations!B241,"Tier 3",Calculations!B280,"Tier 4a",Calculations!B319,"Tier 4b",Calculations!B379)/10^3 -> 7.281492807e-19 | D18: =_xlfn.SWITCH($B$2,"Historical",Calculations!C16,"Future BAU",Calculations!C54,"Tier 1",Calculations!C94,"Tier 2a",Calculations!C221,"Tier 2b",Calculations!C241,"Tier 3",Calculations!C280,"Tier 4a",Calculations!C319,"Tier 4b",Calculations!C379)/10^3 -> 6.436170078e-18 | E18: =_xlfn.SWITCH($B$2,"Historical",Calculations!D16,"Future BAU",Calculations!D54,"Tier 1",Calculations!D94,"Tier 2a",Calculations!D221,"Tier 2b",Calculations!D241,"Tier 3",Calculations!D280,"Tier 4a",Calculations!D319,"Tier 4b",Calculations!D379)/10^3 -> 4.156867541e-19 | F18: =_xlfn.SWITCH($B$2,"Historical",Calculations!E16,"Future BAU",Calculations!E54,"Tier 1",Calculations!E94,"Tier 2a",Calculations!E221,"Tier 2b",Calculations!E241,"Tier 3",Calculations!E280,"Tier 4a",Calculations!E319,"Tier 4b",Calculations!E379)/10^3 -> 5.209684916e-18 | G18: =_xlfn.SWITCH($B$2,"Historical",Calculations!F16,"Future BAU",Calculations!F54,"Tier 1",Calculations!F94,"Tier 2a",Calculations!F221,"Tier 2b",Calculations!F241,"Tier 3",Calculations!F280,"Tier 4a",Calculations!F319,"Tier 4b",Calculations!F379)/10^3 -> 3.017007034e-17 | H18: =_xlfn.SWITCH($B$2,"Historical",Calculations!G16,"Future BAU",Calculations!G54,"Tier 1",Calculations!G94,"Tier 2a",Calculations!G221,"Tier 2b",Calculations!G241,"Tier 3",Calculations!G280,"Tier 4a",Calculations!G319,"Tier 4b",Calculations!G379)/10^3 -> 0 | I18: =_xlfn.SWITCH($B$2,"Historical",Calculations!H16,"Future BAU",Calculations!H54,"Tier 1",Calculations!H94,"Tier 2a",Calculations!H221,"Tier 2b",Calculations!H241,"Tier 3",Calculations!H280,"Tier 4a",Calculations!H319,"Tier 4b",Calculations!H379)/10^3 -> 0.02193439491 | J18: =_xlfn.SWITCH($B$2,"Historical",Calculations!I16,"Future BAU",Calculations!I54,"Tier 1",Calculations!I94,"Tier 2a",Calculations!I221,"Tier 2b",Calculations!I241,"Tier 3",Calculations!I280,"Tier 4a",Calculations!I319,"Tier 4b",Calculations!I379)/10^3 -> 0.6966296511 | K18: =_xlfn.SWITCH($B$2,"Historical",Calculations!J16,"Future BAU",Calculations!J54,"Tier 1",Calculations!J94,"Tier 2a",Calculations!J221,"Tier 2b",Calculations!J241,"Tier 3",Calculations!J280,"Tier 4a",Calculations!J319,"Tier 4b",Calculations!J379)/10^3 -> 0 | L18: =_xlfn.SWITCH($B$2,"Historical",Calculations!K16,"Future BAU",Calculations!K54,"Tier 1",Calculations!K94,"Tier 2a",Calculations!K221,"Tier 2b",Calculations!K241,"Tier 3",Calculations!K280,"Tier 4a",Calculations!K319,"Tier 4b",Calculations!K379)/10^3 -> 0 | M18: =_xlfn.SWITCH($B$2,"Historical",Calculations!L16,"Future BAU",Calculations!L54,"Tier 1",Calculations!L94,"Tier 2a",Calculations!L221,"Tier 2b",Calculations!L241,"Tier 3",Calculations!L280,"Tier 4a",Calculations!L319,"Tier 4b",Calculations!L379)/10^3 -> 0 | N18: 0.718564046 | O18: =_xlfn.RANK.EQ(N18,$N$8:$N$21,0)+COUNTIF($N$8:$N18,N18)-1 -> 9
A19: Vehicles & transport equipment | C19: =_xlfn.SWITCH($B$2,"Historical",Calculations!B17,"Future BAU",Calculations!B55,"Tier 1",Calculations!B95,"Tier 2a",Calculations!B222,"Tier 2b",Calculations!B242,"Tier 3",Calculations!B281,"Tier 4a",Calculations!B320,"Tier 4b",Calculations!B380)/10^3 -> 0 | D19: =_xlfn.SWITCH($B$2,"Historical",Calculations!C17,"Future BAU",Calculations!C55,"Tier 1",Calculations!C95,"Tier 2a",Calculations!C222,"Tier 2b",Calculations!C242,"Tier 3",Calculations!C281,"Tier 4a",Calculations!C320,"Tier 4b",Calculations!C380)/10^3 -> 0 | E19: =_xlfn.SWITCH($B$2,"Historical",Calculations!D17,"Future BAU",Calculations!D55,"Tier 1",Calculations!D95,"Tier 2a",Calculations!D222,"Tier 2b",Calculations!D242,"Tier 3",Calculations!D281,"Tier 4a",Calculations!D320,"Tier 4b",Calculations!D380)/10^3 -> 0 | F19: =_xlfn.SWITCH($B$2,"Historical",Calculations!E17,"Future BAU",Calculations!E55,"Tier 1",Calculations!E95,"Tier 2a",Calculations!E222,"Tier 2b",Calculations!E242,"Tier 3",Calculations!E281,"Tier 4a",Calculations!E320,"Tier 4b",Calculations!E380)/10^3 -> 0 | G19: =_xlfn.SWITCH($B$2,"Historical",Calculations!F17,"Future BAU",Calculations!F55,"Tier 1",Calculations!F95,"Tier 2a",Calculations!F222,"Tier 2b",Calculations!F242,"Tier 3",Calculations!F281,"Tier 4a",Calculations!F320,"Tier 4b",Calculations!F380)/10^3 -> 0 | H19: =_xlfn.SWITCH($B$2,"Historical",Calculations!G17,"Future BAU",Calculations!G55,"Tier 1",Calculations!G95,"Tier 2a",Calculations!G222,"Tier 2b",Calculations!G242,"Tier 3",Calculations!G281,"Tier 4a",Calculations!G320,"Tier 4b",Calculations!G380)/10^3 -> 0 | I19: =_xlfn.SWITCH($B$2,"Historical",Calculations!H17,"Future BAU",Calculations!H55,"Tier 1",Calculations!H95,"Tier 2a",Calculations!H222,"Tier 2b",Calculations!H242,"Tier 3",Calculations!H281,"Tier 4a",Calculations!H320,"Tier 4b",Calculations!H380)/10^3 -> 0.01767446425 | J19: =_xlfn.SWITCH($B$2,"Historical",Calculations!I17,"Future BAU",Calculations!I55,"Tier 1",Calculations!I95,"Tier 2a",Calculations!I222,"Tier 2b",Calculations!I242,"Tier 3",Calculations!I281,"Tier 4a",Calculations!I320,"Tier 4b",Calculations!I380)/10^3 -> 0.3844433124 | K19: =_xlfn.SWITCH($B$2,"Historical",Calculations!J17,"Future BAU",Calculations!J55,"Tier 1",Calculations!J95,"Tier 2a",Calculations!J222,"Tier 2b",Calculations!J242,"Tier 3",Calculations!J281,"Tier 4a",Calculations!J320,"Tier 4b",Calculations!J380)/10^3 -> 0 | L19: =_xlfn.SWITCH($B$2,"Historical",Calculations!K17,"Future BAU",Calculations!K55,"Tier 1",Calculations!K95,"Tier 2a",Calculations!K222,"Tier 2b",Calculations!K242,"Tier 3",Calculations!K281,"Tier 4a",Calculations!K320,"Tier 4b",Calculations!K380)/10^3 -> 0 | M19: =_xlfn.SWITCH($B$2,"Historical",Calculations!L17,"Future BAU",Calculations!L55,"Tier 1",Calculations!L95,"Tier 2a",Calculations!L222,"Tier 2b",Calculations!L242,"Tier 3",Calculations!L281,"Tier 4a",Calculations!L320,"Tier 4b",Calculations!L380)/10^3 -> 0 | N19: 0.4021177767 | O19: =_xlfn.RANK.EQ(N19,$N$8:$N$21,0)+COUNTIF($N$8:$N19,N19)-1 -> 12
A20: Electronics | C20: =_xlfn.SWITCH($B$2,"Historical",Calculations!B18,"Future BAU",Calculations!B56,"Tier 1",Calculations!B96,"Tier 2a",Calculations!B223,"Tier 2b",Calculations!B243,"Tier 3",Calculations!B282,"Tier 4a",Calculations!B321,"Tier 4b",Calculations!B381)/10^3 -> 2.648633072e-19 | D20: =_xlfn.SWITCH($B$2,"Historical",Calculations!C18,"Future BAU",Calculations!C56,"Tier 1",Calculations!C96,"Tier 2a",Calculations!C223,"Tier 2b",Calculations!C243,"Tier 3",Calculations!C282,"Tier 4a",Calculations!C321,"Tier 4b",Calculations!C381)/10^3 -> 9.713813223e-22 | E20: =_xlfn.SWITCH($B$2,"Historical",Calculations!D18,"Future BAU",Calculations!D56,"Tier 1",Calculations!D96,"Tier 2a",Calculations!D223,"Tier 2b",Calculations!D243,"Tier 3",Calculations!D282,"Tier 4a",Calculations!D321,"Tier 4b",Calculations!D381)/10^3 -> 1.113850583e-19 | F20: =_xlfn.SWITCH($B$2,"Historical",Calculations!E18,"Future BAU",Calculations!E56,"Tier 1",Calculations!E96,"Tier 2a",Calculations!E223,"Tier 2b",Calculations!E243,"Tier 3",Calculations!E282,"Tier 4a",Calculations!E321,"Tier 4b",Calculations!E381)/10^3 -> 8.059227037e-19 | G20: =_xlfn.SWITCH($B$2,"Historical",Calculations!F18,"Future BAU",Calculations!F56,"Tier 1",Calculations!F96,"Tier 2a",Calculations!F223,"Tier 2b",Calculations!F243,"Tier 3",Calculations!F282,"Tier 4a",Calculations!F321,"Tier 4b",Calculations!F381)/10^3 -> 1.066236708e-17 | H20: =_xlfn.SWITCH($B$2,"Historical",Calculations!G18,"Future BAU",Calculations!G56,"Tier 1",Calculations!G96,"Tier 2a",Calculations!G223,"Tier 2b",Calculations!G243,"Tier 3",Calculations!G282,"Tier 4a",Calculations!G321,"Tier 4b",Calculations!G381)/10^3 -> 0 | I20: =_xlfn.SWITCH($B$2,"Historical",Calculations!H18,"Future BAU",Calculations!H56,"Tier 1",Calculations!H96,"Tier 2a",Calculations!H223,"Tier 2b",Calculations!H243,"Tier 3",Calculations!H282,"Tier 4a",Calculations!H321,"Tier 4b",Calculations!H381)/10^3 -> 0.01814868726 | J20: =_xlfn.SWITCH($B$2,"Historical",Calculations!I18,"Future BAU",Calculations!I56,"Tier 1",Calculations!I96,"Tier 2a",Calculations!I223,"Tier 2b",Calculations!I243,"Tier 3",Calculations!I282,"Tier 4a",Calculations!I321,"Tier 4b",Calculations!I381)/10^3 -> 0.4189448616 | K20: =_xlfn.SWITCH($B$2,"Historical",Calculations!J18,"Future BAU",Calculations!J56,"Tier 1",Calculations!J96,"Tier 2a",Calculations!J223,"Tier 2b",Calculations!J243,"Tier 3",Calculations!J282,"Tier 4a",Calculations!J321,"Tier 4b",Calculations!J381)/10^3 -> 0 | L20: =_xlfn.SWITCH($B$2,"Historical",Calculations!K18,"Future BAU",Calculations!K56,"Tier 1",Calculations!K96,"Tier 2a",Calculations!K223,"Tier 2b",Calculations!K243,"Tier 3",Calculations!K282,"Tier 4a",Calculations!K321,"Tier 4b",Calculations!K381)/10^3 -> 0 | M20: =_xlfn.SWITCH($B$2,"Historical",Calculations!L18,"Future BAU",Calculations!L56,"Tier 1",Calculations!L96,"Tier 2a",Calculations!L223,"Tier 2b",Calculations!L243,"Tier 3",Calculations!L282,"Tier 4a",Calculations!L321,"Tier 4b",Calculations!L381)/10^3 -> 0 | N20: 0.4370935488 | O20: =_xlfn.RANK.EQ(N20,$N$8:$N$21,0)+COUNTIF($N$8:$N20,N20)-1 -> 11
A21: Other metal products | C21: =_xlfn.SWITCH($B$2,"Historical",Calculations!B19,"Future BAU",Calculations!B57,"Tier 1",Calculations!B97,"Tier 2a",Calculations!B224,"Tier 2b",Calculations!B244,"Tier 3",Calculations!B283,"Tier 4a",Calculations!B322,"Tier 4b",Calculations!B382)/10^3 -> 0 | D21: =_xlfn.SWITCH($B$2,"Historical",Calculations!C19,"Future BAU",Calculations!C57,"Tier 1",Calculations!C97,"Tier 2a",Calculations!C224,"Tier 2b",Calculations!C244,"Tier 3",Calculations!C283,"Tier 4a",Calculations!C322,"Tier 4b",Calculations!C382)/10^3 -> 0 | E21: =_xlfn.SWITCH($B$2,"Historical",Calculations!D19,"Future BAU",Calculations!D57,"Tier 1",Calculations!D97,"Tier 2a",Calculations!D224,"Tier 2b",Calculations!D244,"Tier 3",Calculations!D283,"Tier 4a",Calculations!D322,"Tier 4b",Calculations!D382)/10^3 -> 0 | F21: =_xlfn.SWITCH($B$2,"Historical",Calculations!E19,"Future BAU",Calculations!E57,"Tier 1",Calculations!E97,"Tier 2a",Calculations!E224,"Tier 2b",Calculations!E244,"Tier 3",Calculations!E283,"Tier 4a",Calculations!E322,"Tier 4b",Calculations!E382)/10^3 -> 0 | G21: =_xlfn.SWITCH($B$2,"Historical",Calculations!F19,"Future BAU",Calculations!F57,"Tier 1",Calculations!F97,"Tier 2a",Calculations!F224,"Tier 2b",Calculations!F244,"Tier 3",Calculations!F283,"Tier 4a",Calculations!F322,"Tier 4b",Calculations!F382)/10^3 -> 0 | H21: =_xlfn.SWITCH($B$2,"Historical",Calculations!G19,"Future BAU",Calculations!G57,"Tier 1",Calculations!G97,"Tier 2a",Calculations!G224,"Tier 2b",Calculations!G244,"Tier 3",Calculations!G283,"Tier 4a",Calculations!G322,"Tier 4b",Calculations!G382)/10^3 -> 0 | I21: =_xlfn.SWITCH($B$2,"Historical",Calculations!H19,"Future BAU",Calculations!H57,"Tier 1",Calculations!H97,"Tier 2a",Calculations!H224,"Tier 2b",Calculations!H244,"Tier 3",Calculations!H283,"Tier 4a",Calculations!H322,"Tier 4b",Calculations!H382)/10^3 -> 0.00620285474 | J21: =_xlfn.SWITCH($B$2,"Historical",Calculations!I19,"Future BAU",Calculations!I57,"Tier 1",Calculations!I97,"Tier 2a",Calculations!I224,"Tier 2b",Calculations!I244,"Tier 3",Calculations!I283,"Tier 4a",Calculations!I322,"Tier 4b",Calculations!I382)/10^3 -> 0.3911076175 | K21: =_xlfn.SWITCH($B$2,"Historical",Calculations!J19,"Future BAU",Calculations!J57,"Tier 1",Calculations!J97,"Tier 2a",Calculations!J224,"Tier 2b",Calculations!J244,"Tier 3",Calculations!J283,"Tier 4a",Calculations!J322,"Tier 4b",Calculations!J382)/10^3 -> 0 | L21: =_xlfn.SWITCH($B$2,"Historical",Calculations!K19,"Future BAU",Calculations!K57,"Tier 1",Calculations!K97,"Tier 2a",Calculations!K224,"Tier 2b",Calculations!K244,"Tier 3",Calculations!K283,"Tier 4a",Calculations!K322,"Tier 4b",Calculations!K382)/10^3 -> 0 | M21: =_xlfn.SWITCH($B$2,"Historical",Calculations!L19,"Future BAU",Calculations!L57,"Tier 1",Calculations!L97,"Tier 2a",Calculations!L224,"Tier 2b",Calculations!L244,"Tier 3",Calculations!L283,"Tier 4a",Calculations!L322,"Tier 4b",Calculations!L382)/10^3 -> 0 | N21: 0.3973104722 | O21: =_xlfn.RANK.EQ(N21,$N$8:$N$21,0)+COUNTIF($N$8:$N21,N21)-1 -> 13
A22: Other manufacturing | C22: =_xlfn.SWITCH($B$2,"Historical",Calculations!B20,"Future BAU",Calculations!B58,"Tier 1",Calculations!B98,"Tier 2a",Calculations!B225,"Tier 2b",Calculations!B245,"Tier 3",Calculations!B284,"Tier 4a",Calculations!B323,"Tier 4b",Calculations!B383)/10^3 -> 1.414704618e-19 | D22: =_xlfn.SWITCH($B$2,"Historical",Calculations!C20,"Future BAU",Calculations!C58,"Tier 1",Calculations!C98,"Tier 2a",Calculations!C225,"Tier 2b",Calculations!C245,"Tier 3",Calculations!C284,"Tier 4a",Calculations!C323,"Tier 4b",Calculations!C383)/10^3 -> 1.216950209e-21 | E22: =_xlfn.SWITCH($B$2,"Historical",Calculations!D20,"Future BAU",Calculations!D58,"Tier 1",Calculations!D98,"Tier 2a",Calculations!D225,"Tier 2b",Calculations!D245,"Tier 3",Calculations!D284,"Tier 4a",Calculations!D323,"Tier 4b",Calculations!D383)/10^3 -> 2.342629152e-20 | F22: =_xlfn.SWITCH($B$2,"Historical",Calculations!E20,"Future BAU",Calculations!E58,"Tier 1",Calculations!E98,"Tier 2a",Calculations!E225,"Tier 2b",Calculations!E245,"Tier 3",Calculations!E284,"Tier 4a",Calculations!E323,"Tier 4b",Calculations!E383)/10^3 -> 8.725532996e-19 | G22: =_xlfn.SWITCH($B$2,"Historical",Calculations!F20,"Future BAU",Calculations!F58,"Tier 1",Calculations!F98,"Tier 2a",Calculations!F225,"Tier 2b",Calculations!F245,"Tier 3",Calculations!F284,"Tier 4a",Calculations!F323,"Tier 4b",Calculations!F383)/10^3 -> 5.150741758e-18 | H22: =_xlfn.SWITCH($B$2,"Historical",Calculations!G20,"Future BAU",Calculations!G58,"Tier 1",Calculations!G98,"Tier 2a",Calculations!G225,"Tier 2b",Calculations!G245,"Tier 3",Calculations!G284,"Tier 4a",Calculations!G323,"Tier 4b",Calculations!G383)/10^3 -> 0 | I22: =_xlfn.SWITCH($B$2,"Historical",Calculations!H20,"Future BAU",Calculations!H58,"Tier 1",Calculations!H98,"Tier 2a",Calculations!H225,"Tier 2b",Calculations!H245,"Tier 3",Calculations!H284,"Tier 4a",Calculations!H323,"Tier 4b",Calculations!H383)/10^3 -> 0.003265756653 | J22: =_xlfn.SWITCH($B$2,"Historical",Calculations!I20,"Future BAU",Calculations!I58,"Tier 1",Calculations!I98,"Tier 2a",Calculations!I225,"Tier 2b",Calculations!I245,"Tier 3",Calculations!I284,"Tier 4a",Calculations!I323,"Tier 4b",Calculations!I383)/10^3 -> 0.3177320898 | K22: =_xlfn.SWITCH($B$2,"Historical",Calculations!J20,"Future BAU",Calculations!J58,"Tier 1",Calculations!J98,"Tier 2a",Calculations!J225,"Tier 2b",Calculations!J245,"Tier 3",Calculations!J284,"Tier 4a",Calculations!J323,"Tier 4b",Calculations!J383)/10^3 -> 0 | L22: =_xlfn.SWITCH($B$2,"Historical",Calculations!K20,"Future BAU",Calculations!K58,"Tier 1",Calculations!K98,"Tier 2a",Calculations!K225,"Tier 2b",Calculations!K245,"Tier 3",Calculations!K284,"Tier 4a",Calculations!K323,"Tier 4b",Calculations!K383)/10^3 -> 0 | M22: =_xlfn.SWITCH($B$2,"Historical",Calculations!L20,"Future BAU",Calculations!L58,"Tier 1",Calculations!L98,"Tier 2a",Calculations!L225,"Tier 2b",Calculations!L245,"Tier 3",Calculations!L284,"Tier 4a",Calculations!L323,"Tier 4b",Calculations!L383)/10^3 -> 0 | N22: 0.3209978465
A24: Sorted by Subindustry Total
B25: Fossil Feedstocks | C25: Coal | D25: Coke | E25: Coal/Coke Byproducts | F25: Petroleum | G25: Natural Gas | H25: Bioenergy and Waste | I25: Purchased Heat | J25: Direct Use of Electricity | K25: Electricity for Green H2 | L25: Blue Hydrogen | M25: Fossil Fuels w/ Carbon Capture | O25: Rank
A26: =INDEX(A$8:A$21,MATCH($O26,$O$8:$O$21,0)) -> Chemicals | B26: =INDEX(B$8:B$21,MATCH($O26,$O$8:$O$21,0)) -> 0 | C26: =INDEX(C$8:C$21,MATCH($O26,$O$8:$O$21,0)) -> 0 | D26: 0 | E26: 0 | F26: 0 | G26: 0 | H26: 1.548753733 | I26: 2.937368427 | J26: 5.821069883 | K26: 4.525807902 | L26: 1.548753733 | M26: 0 | O26: 1
A27: =INDEX(A$8:A$21,MATCH($O27,$O$8:$O$21,0)) -> Refining & fuel processing | B27: =INDEX(B$8:B$21,MATCH($O27,$O$8:$O$21,0)) -> 0 | C27: 0 | D27: 0 | E27: 0 | F27: 0 | G27: 0 | H27: 0 | I27: 0.895072605 | J27: 1.359444811 | K27: 6.187073732 | L27: 0 | M27: 0 | O27: 2
A28: Iron & steel | B28: 0 | C28: 0 | D28: 0 | E28: 0 | F28: 0 | G28: 0 | H28: 0 | I28: 0.07706651783 | J28: 2.458529369 | K28: 1.077621284 | L28: 0 | M28: 1.862901607 | O28: 3
A29: Non-metallic minerals | B29: 0 | C29: 0 | D29: 0 | E29: 0 | F29: 0 | G29: 0 | H29: 0 | I29: 0.02270156423 | J29: 1.052943465 | K29: 0.7247714066 | L29: 0 | M29: 2.267610838 | O29: 4
A30: Nonferrous metals | B30: 0 | C30: 0 | D30: 0 | E30: 0 | F30: 0 | G30: 0 | H30: 0 | I30: 0.212768627 | J30: 2.133933198 | K30: 0.07133112009 | L30: 0 | M30: 0 | O30: 5
A31: Plastic & rubber products | B31: 0 | C31: 0 | D31: 0 | E31: 0 | F31: 0 | G31: 0 | H31: 0 | I31: 0.08728370581 | J31: 1.261046812 | K31: 0 | L31: 0 | M31: 0 | O31: 6
A32: Food, beverage, & tobacco | B32: 0 | C32: 2.319890405e-17 | D32: 3.994590252e-19 | E32: 1.804600497e-20 | F32: 2.230669733e-18 | G32: 3.667896389e-17 | H32: 0 | I32: 0.3833743975 | J32: 0.6906315848 | K32: 0 | L32: 0 | M32: 0 | O32: 7
A33: Textiles, leather, & apparel | B33: 0 | C33: 0 | D33: 0 | E33: 0 | F33: 0 | G33: 0 | H33: 0 | I33: 0.2497523842 | J33: 0.6365052794 | K33: 0 | L33: 0 | M33: 0 | O33: 8
A34: Machinery | B34: 0 | C34: 7.281492807e-19 | D34: 6.436170078e-18 | E34: 4.156867541e-19 | F34: 5.209684916e-18 | G34: 3.017007034e-17 | H34: 0 | I34: 0.02193439491 | J34: 0.6966296511 | K34: 0 | L34: 0 | M34: 0 | O34: 9
A35: Pulp, paper, & printing | B35: 0 | C35: 0 | D35: 0 | E35: 0 | F35: 0 | G35: 0 | H35: 0 | I35: 0.2909835899 | J35: 0.3682407472 | K35: 0 | L35: 0 | M35: 0 | O35: 10
A36: Electronics | B36: 0 | C36: 2.648633072e-19 | D36: 9.713813223e-22 | E36: 1.113850583e-19 | F36: 8.059227037e-19 | G36: 1.066236708e-17 | H36: 0 | I36: 0.01814868726 | J36: 0.4189448616 | K36: 0 | L36: 0 | M36: 0 | O36: 11
A37: Vehicles & transport equipment | B37: 0 | C37: 0 | D37: 0 | E37: 0 | F37: 0 | G37: 0 | H37: 0 | I37: 0.01767446425 | J37: 0.3844433124 | K37: 0 | L37: 0 | M37: 0 | O37: 12
A38: Other metal products | B38: 0 | C38: 0 | D38: 0 | E38: 0 | F38: 0 | G38: 0 | H38: 0 | I38: 0.00620285474 | J38: 0.3911076175 | K38: 0 | L38: 0 | M38: 0 | O38: 13
A39: Wood & furniture | B39: 0 | C39: 0 | D39: 0 | E39: 0 | F39: 0 | G39: 0 | H39: 0 | I39: 0.007906835893 | J39: 0.1549148485 | K39: 0 | L39: 0 | M39: 0 | O39: 14
A40: Other manufacturing | B40: =B22 -> 0 | C40: =C22 -> 1.414704618e-19 | D40: 1.216950209e-21 | E40: 2.342629152e-20 | F40: 8.725532996e-19 | G40: 5.150741758e-18 | H40: 0 | I40: 0.003265756653 | J40: 0.3177320898 | K40: 0 | L40: 0 | M40: 0
A83: Annual CO2 Emissions by Subindustry by Energy Type
A85: Unsorted Subindustry Data for Selected Graph Scope
B86: Fossil Feedstocks | C86: Coal | D86: Coke | E86: Coal/Coke Byproducts | F86: Petroleum | G86: Natural Gas | H86: Bioenergy and Waste | I86: Purchased Heat | J86: Direct Use of Electricity | K86: Electricity for Green H2 | L86: Blue Hydrogen | M86: Fossil Fuels w/ Carbon Capture | N86: Cement Calcination | O86: Fugitive Methane | P86: Electricity (on-target) | Q86: Electricity (off-target) | R86: Total | S86: Rank
A87: Food, beverage, & tobacco | C87: =_xlfn.SWITCH($B$2,"Historical",Calculations!B6,"Future BAU",Calculations!B44,"Tier 1",Calculations!B84,"Tier 2a",Calculations!B211,"Tier 2b",Calculations!B231,"Tier 3",Calculations!B270,"Tier 4a",Calculations!B309,"Tier 4b",Calculations!B369)*Calculations!B$391 -> 2.081625935e-15 | D87: =_xlfn.SWITCH($B$2,"Historical",Calculations!C6,"Future BAU",Calculations!C44,"Tier 1",Calculations!C84,"Tier 2a",Calculations!C211,"Tier 2b",Calculations!C231,"Tier 3",Calculations!C270,"Tier 4a",Calculations!C309,"Tier 4b",Calculations!C369)*Calculations!C$391 -> 4.303689615e-17 | E87: =_xlfn.SWITCH($B$2,"Historical",Calculations!D6,"Future BAU",Calculations!D44,"Tier 1",Calculations!D84,"Tier 2a",Calculations!D211,"Tier 2b",Calculations!D231,"Tier 3",Calculations!D270,"Tier 4a",Calculations!D309,"Tier 4b",Calculations!D369)*Calculations!D$391 -> 8.013338934e-19 | F87: =_xlfn.SWITCH($B$2,"Historical",Calculations!E6,"Future BAU",Calculations!E44,"Tier 1",Calculations!E84,"Tier 2a",Calculations!E211,"Tier 2b",Calculations!E231,"Tier 3",Calculations!E270,"Tier 4a",Calculations!E309,"Tier 4b",Calculations!E369)*Calculations!E$391 -> 1.563705708e-16 | G87: =_xlfn.SWITCH($B$2,"Historical",Calculations!F6,"Future BAU",Calculations!F44,"Tier 1",Calculations!F84,"Tier 2a",Calculations!F211,"Tier 2b",Calculations!F231,"Tier 3",Calculations!F270,"Tier 4a",Calculations!F309,"Tier 4b",Calculations!F369)*Calculations!F$391 -> 1.844621003e-15 | M87: =_xlfn.SWITCH($B$2,"Historical",Calculations!K6+Calculations!L6,"Future BAU",Calculations!K44+Calculations!L44,"Tier 1",Calculations!K84+Calculations!L84,"Tier 2a",Calculations!K211+Calculations!L211,"Tier 2b",Calculations!K231+Calculations!L231,"Tier 3",Calculations!K270+Calculations!L270,"Tier 4a",Calculations!K309+Calculations!L309,"Tier 4b",Calculations!K369+Calculations!L369)*Calculations!$B$399 -> 0 | P87: =_xlfn.SWITCH($B$2,"Historical",Calculations!I6+Calculations!J6,"Future BAU",Calculations!I44+Calculations!J44,"Tier 1",Calculations!I84+Calculations!J84,"Tier 2a",Calculations!I211+Calculations!J211,"Tier 2b",Calculations!I231+Calculations!J231,"Tier 3",Calculations!I270+Calculations!J270,"Tier 4a",Calculations!I309+Calculations!J309,"Tier 4b",Calculations!I369+Calculations!J369)*IF($B$2="Historical",Calculations!$B$610,Calculations!$B$612) -> 0 | Q87: =_xlfn.SWITCH($B$2,"Historical",Calculations!I6+Calculations!J6,"Future BAU",Calculations!I44+Calculations!J44,"Tier 1",Calculations!I84+Calculations!J84,"Tier 2a",Calculations!I211+Calculations!J211,"Tier 2b",Calculations!I231+Calculations!J231,"Tier 3",Calculations!I270+Calculations!J270,"Tier 4a",Calculations!I309+Calculations!J309,"Tier 4b",Calculations!I369+Calculations!J369)*IF($B$2="Historical",0,Calculations!$B$610-Calculations!$B$612) -> 127.3070459 | R87: =SUM(B87:Q87) -> 127.3070459 | S87: =_xlfn.RANK.EQ(R87,$R$87:$R$100,0)+COUNTIF($R$87:$R87,R87)-1 -> 8
A88: Textiles, leather, & apparel | C88: =_xlfn.SWITCH($B$2,"Historical",Calculations!B7,"Future BAU",Calculations!B45,"Tier 1",Calculations!B85,"Tier 2a",Calculations!B212,"Tier 2b",Calculations!B232,"Tier 3",Calculations!B271,"Tier 4a",Calculations!B310,"Tier 4b",Calculations!B370)*Calculations!B$391 -> 0 | D88: =_xlfn.SWITCH($B$2,"Historical",Calculations!C7,"Future BAU",Calculations!C45,"Tier 1",Calculations!C85,"Tier 2a",Calculations!C212,"Tier 2b",Calculations!C232,"Tier 3",Calculations!C271,"Tier 4a",Calculations!C310,"Tier 4b",Calculations!C370)*Calculations!C$391 -> 0 | E88: =_xlfn.SWITCH($B$2,"Historical",Calculations!D7,"Future BAU",Calculations!D45,"Tier 1",Calculations!D85,"Tier 2a",Calculations!D212,"Tier 2b",Calculations!D232,"Tier 3",Calculations!D271,"Tier 4a",Calculations!D310,"Tier 4b",Calculations!D370)*Calculations!D$391 -> 0 | F88: =_xlfn.SWITCH($B$2,"Historical",Calculations!E7,"Future BAU",Calculations!E45,"Tier 1",Calculations!E85,"Tier 2a",Calculations!E212,"Tier 2b",Calculations!E232,"Tier 3",Calculations!E271,"Tier 4a",Calculations!E310,"Tier 4b",Calculations!E370)*Calculations!E$391 -> 0 | G88: =_xlfn.SWITCH($B$2,"Historical",Calculations!F7,"Future BAU",Calculations!F45,"Tier 1",Calculations!F85,"Tier 2a",Calculations!F212,"Tier 2b",Calculations!F232,"Tier 3",Calculations!F271,"Tier 4a",Calculations!F310,"Tier 4b",Calculations!F370)*Calculations!F$391 -> 0 | M88: =_xlfn.SWITCH($B$2,"Historical",Calculations!K7+Calculations!L7,"Future BAU",Calculations!K45+Calculations!L45,"Tier 1",Calculations!K85+Calculations!L85,"Tier 2a",Calculations!K212+Calculations!L212,"Tier 2b",Calculations!K232+Calculations!L232,"Tier 3",Calculations!K271+Calculations!L271,"Tier 4a",Calculations!K310+Calculations!L310,"Tier 4b",Calculations!K370+Calculations!L370)*Calculations!$B$399 -> 0 | P88: =_xlfn.SWITCH($B$2,"Historical",Calculations!I7+Calculations!J7,"Future BAU",Calculations!I45+Calculations!J45,"Tier 1",Calculations!I85+Calculations!J85,"Tier 2a",Calculations!I212+Calculations!J212,"Tier 2b",Calculations!I232+Calculations!J232,"Tier 3",Calculations!I271+Calculations!J271,"Tier 4a",Calculations!I310+Calculations!J310,"Tier 4b",Calculations!I370+Calculations!J370)*IF($B$2="Historical",Calculations!$B$610,Calculations!$B$612) -> 0 | Q88: =_xlfn.SWITCH($B$2,"Historical",Calculations!I7+Calculations!J7,"Future BAU",Calculations!I45+Calculations!J45,"Tier 1",Calculations!I85+Calculations!J85,"Tier 2a",Calculations!I212+Calculations!J212,"Tier 2b",Calculations!I232+Calculations!J232,"Tier 3",Calculations!I271+Calculations!J271,"Tier 4a",Calculations!I310+Calculations!J310,"Tier 4b",Calculations!I370+Calculations!J370)*IF($B$2="Historical",0,Calculations!$B$610-Calculations!$B$612) -> 117.3297148 | R88: =SUM(B88:Q88) -> 117.3297148 | S88: =_xlfn.RANK.EQ(R88,$R$87:$R$100,0)+COUNTIF($R$87:$R88,R88)-1 -> 9
A89: Wood & furniture | C89: =_xlfn.SWITCH($B$2,"Historical",Calculations!B8,"Future BAU",Calculations!B46,"Tier 1",Calculations!B86,"Tier 2a",Calculations!B213,"Tier 2b",Calculations!B233,"Tier 3",Calculations!B272,"Tier 4a",Calculations!B311,"Tier 4b",Calculations!B371)*Calculations!B$391 -> 0 | D89: =_xlfn.SWITCH($B$2,"Historical",Calculations!C8,"Future BAU",Calculations!C46,"Tier 1",Calculations!C86,"Tier 2a",Calculations!C213,"Tier 2b",Calculations!C233,"Tier 3",Calculations!C272,"Tier 4a",Calculations!C311,"Tier 4b",Calculations!C371)*Calculations!C$391 -> 0 | E89: =_xlfn.SWITCH($B$2,"Historical",Calculations!D8,"Future BAU",Calculations!D46,"Tier 1",Calculations!D86,"Tier 2a",Calculations!D213,"Tier 2b",Calculations!D233,"Tier 3",Calculations!D272,"Tier 4a",Calculations!D311,"Tier 4b",Calculations!D371)*Calculations!D$391 -> 0 | F89: =_xlfn.SWITCH($B$2,"Historical",Calculations!E8,"Future BAU",Calculations!E46,"Tier 1",Calculations!E86,"Tier 2a",Calculations!E213,"Tier 2b",Calculations!E233,"Tier 3",Calculations!E272,"Tier 4a",Calculations!E311,"Tier 4b",Calculations!E371)*Calculations!E$391 -> 0 | G89: =_xlfn.SWITCH($B$2,"Historical",Calculations!F8,"Future BAU",Calculations!F46,"Tier 1",Calculations!F86,"Tier 2a",Calculations!F213,"Tier 2b",Calculations!F233,"Tier 3",Calculations!F272,"Tier 4a",Calculations!F311,"Tier 4b",Calculations!F371)*Calculations!F$391 -> 0 | M89: =_xlfn.SWITCH($B$2,"Historical",Calculations!K8+Calculations!L8,"Future BAU",Calculations!K46+Calculations!L46,"Tier 1",Calculations!K86+Calculations!L86,"Tier 2a",Calculations!K213+Calculations!L213,"Tier 2b",Calculations!K233+Calculations!L233,"Tier 3",Calculations!K272+Calculations!L272,"Tier 4a",Calculations!K311+Calculations!L311,"Tier 4b",Calculations!K371+Calculations!L371)*Calculations!$B$399 -> 0 | P89: =_xlfn.SWITCH($B$2,"Historical",Calculations!I8+Calculations!J8,"Future BAU",Calculations!I46+Calculations!J46,"Tier 1",Calculations!I86+Calculations!J86,"Tier 2a",Calculations!I213+Calculations!J213,"Tier 2b",Calculations!I233+Calculations!J233,"Tier 3",Calculations!I272+Calculations!J272,"Tier 4a",Calculations!I311+Calculations!J311,"Tier 4b",Calculations!I371+Calculations!J371)*IF($B$2="Historical",Calculations!$B$610,Calculations!$B$612) -> 0 | Q89: =_xlfn.SWITCH($B$2,"Historical",Calculations!I8+Calculations!J8,"Future BAU",Calculations!I46+Calculations!J46,"Tier 1",Calculations!I86+Calculations!J86,"Tier 2a",Calculations!I213+Calculations!J213,"Tier 2b",Calculations!I233+Calculations!J233,"Tier 3",Calculations!I272+Calculations!J272,"Tier 4a",Calculations!I311+Calculations!J311,"Tier 4b",Calculations!I371+Calculations!J371)*IF($B$2="Historical",0,Calculations!$B$610-Calculations!$B$612) -> 28.55611034 | R89: 28.55611034 | S89: =_xlfn.RANK.EQ(R89,$R$87:$R$100,0)+COUNTIF($R$87:$R89,R89)-1 -> 14
A90: Pulp, paper, & printing | C90: =_xlfn.SWITCH($B$2,"Historical",Calculations!B9,"Future BAU",Calculations!B47,"Tier 1",Calculations!B87,"Tier 2a",Calculations!B214,"Tier 2b",Calculations!B234,"Tier 3",Calculations!B273,"Tier 4a",Calculations!B312,"Tier 4b",Calculations!B372)*Calculations!B$391 -> 0 | D90: =_xlfn.SWITCH($B$2,"Historical",Calculations!C9,"Future BAU",Calculations!C47,"Tier 1",Calculations!C87,"Tier 2a",Calculations!C214,"Tier 2b",Calculations!C234,"Tier 3",Calculations!C273,"Tier 4a",Calculations!C312,"Tier 4b",Calculations!C372)*Calculations!C$391 -> 0 | E90: =_xlfn.SWITCH($B$2,"Historical",Calculations!D9,"Future BAU",Calculations!D47,"Tier 1",Calculations!D87,"Tier 2a",Calculations!D214,"Tier 2b",Calculations!D234,"Tier 3",Calculations!D273,"Tier 4a",Calculations!D312,"Tier 4b",Calculations!D372)*Calculations!D$391 -> 0 | F90: =_xlfn.SWITCH($B$2,"Historical",Calculations!E9,"Future BAU",Calculations!E47,"Tier 1",Calculations!E87,"Tier 2a",Calculations!E214,"Tier 2b",Calculations!E234,"Tier 3",Calculations!E273,"Tier 4a",Calculations!E312,"Tier 4b",Calculations!E372)*Calculations!E$391 -> 0 | G90: =_xlfn.SWITCH($B$2,"Historical",Calculations!F9,"Future BAU",Calculations!F47,"Tier 1",Calculations!F87,"Tier 2a",Calculations!F214,"Tier 2b",Calculations!F234,"Tier 3",Calculations!F273,"Tier 4a",Calculations!F312,"Tier 4b",Calculations!F372)*Calculations!F$391 -> 0 | M90: =_xlfn.SWITCH($B$2,"Historical",Calculations!K9+Calculations!L9,"Future BAU",Calculations!K47+Calculations!L47,"Tier 1",Calculations!K87+Calculations!L87,"Tier 2a",Calculations!K214+Calculations!L214,"Tier 2b",Calculations!K234+Calculations!L234,"Tier 3",Calculations!K273+Calculations!L273,"Tier 4a",Calculations!K312+Calculations!L312,"Tier 4b",Calculations!K372+Calculations!L372)*Calculations!$B$399 -> 0 | P90: =_xlfn.SWITCH($B$2,"Historical",Calculations!I9+Calculations!J9,"Future BAU",Calculations!I47+Calculations!J47,"Tier 1",Calculations!I87+Calculations!J87,"Tier 2a",Calculations!I214+Calculations!J214,"Tier 2b",Calculations!I234+Calculations!J234,"Tier 3",Calculations!I273+Calculations!J273,"Tier 4a",Calculations!I312+Calculations!J312,"Tier 4b",Calculations!I372+Calculations!J372)*IF($B$2="Historical",Calculations!$B$610,Calculations!$B$612) -> 0 | Q90: =_xlfn.SWITCH($B$2,"Historical",Calculations!I9+Calculations!J9,"Future BAU",Calculations!I47+Calculations!J47,"Tier 1",Calculations!I87+Calculations!J87,"Tier 2a",Calculations!I214+Calculations!J214,"Tier 2b",Calculations!I234+Calculations!J234,"Tier 3",Calculations!I273+Calculations!J273,"Tier 4a",Calculations!I312+Calculations!J312,"Tier 4b",Calculations!I372+Calculations!J372)*IF($B$2="Historical",0,Calculations!$B$610-Calculations!$B$612) -> 67.87937703 | R90: 67.87937703 | S90: =_xlfn.RANK.EQ(R90,$R$87:$R$100,0)+COUNTIF($R$87:$R90,R90)-1 -> 13
A91: Refining & fuel processing | C91: =_xlfn.SWITCH($B$2,"Historical",Calculations!B10,"Future BAU",Calculations!B48,"Tier 1",Calculations!B88,"Tier 2a",Calculations!B215,"Tier 2b",Calculations!B235,"Tier 3",Calculations!B274,"Tier 4a",Calculations!B313,"Tier 4b",Calculations!B373)*Calculations!B$391 -> 0 | D91: =_xlfn.SWITCH($B$2,"Historical",Calculations!C10,"Future BAU",Calculations!C48,"Tier 1",Calculations!C88,"Tier 2a",Calculations!C215,"Tier 2b",Calculations!C235,"Tier 3",Calculations!C274,"Tier 4a",Calculations!C313,"Tier 4b",Calculations!C373)*Calculations!C$391 -> 0 | E91: =_xlfn.SWITCH($B$2,"Historical",Calculations!D10,"Future BAU",Calculations!D48,"Tier 1",Calculations!D88,"Tier 2a",Calculations!D215,"Tier 2b",Calculations!D235,"Tier 3",Calculations!D274,"Tier 4a",Calculations!D313,"Tier 4b",Calculations!D373)*Calculations!D$391 -> 0 | F91: =_xlfn.SWITCH($B$2,"Historical",Calculations!E10,"Future BAU",Calculations!E48,"Tier 1",Calculations!E88,"Tier 2a",Calculations!E215,"Tier 2b",Calculations!E235,"Tier 3",Calculations!E274,"Tier 4a",Calculations!E313,"Tier 4b",Calculations!E373)*Calculations!E$391 -> 0 | G91: =_xlfn.SWITCH($B$2,"Historical",Calculations!F10,"Future BAU",Calculations!F48,"Tier 1",Calculations!F88,"Tier 2a",Calculations!F215,"Tier 2b",Calculations!F235,"Tier 3",Calculations!F274,"Tier 4a",Calculations!F313,"Tier 4b",Calculations!F373)*Calculations!F$391 -> 0 | M91: =_xlfn.SWITCH($B$2,"Historical",Calculations!K10+Calculations!L10,"Future BAU",Calculations!K48+Calculations!L48,"Tier 1",Calculations!K88+Calculations!L88,"Tier 2a",Calculations!K215+Calculations!L215,"Tier 2b",Calculations!K235+Calculations!L235,"Tier 3",Calculations!K274+Calculations!L274,"Tier 4a",Calculations!K313+Calculations!L313,"Tier 4b",Calculations!K373+Calculations!L373)*Calculations!$B$399 -> 0 | P91: =_xlfn.SWITCH($B$2,"Historical",Calculations!I10+Calculations!J10,"Future BAU",Calculations!I48+Calculations!J48,"Tier 1",Calculations!I88+Calculations!J88,"Tier 2a",Calculations!I215+Calculations!J215,"Tier 2b",Calculations!I235+Calculations!J235,"Tier 3",Calculations!I274+Calculations!J274,"Tier 4a",Calculations!I313+Calculations!J313,"Tier 4b",Calculations!I373+Calculations!J373)*IF($B$2="Historical",Calculations!$B$610,Calculations!$B$612) -> 0 | Q91: =_xlfn.SWITCH($B$2,"Historical",Calculations!I10+Calculations!J10,"Future BAU",Calculations!I48+Calculations!J48,"Tier 1",Calculations!I88+Calculations!J88,"Tier 2a",Calculations!I215+Calculations!J215,"Tier 2b",Calculations!I235+Calculations!J235,"Tier 3",Calculations!I274+Calculations!J274,"Tier 4a",Calculations!I313+Calculations!J313,"Tier 4b",Calculations!I373+Calculations!J373)*IF($B$2="Historical",0,Calculations!$B$610-Calculations!$B$612) -> 1391.081735 | R91: 1391.081735 | S91: =_xlfn.RANK.EQ(R91,$R$87:$R$100,0)+COUNTIF($R$87:$R91,R91)-1 -> 2
A92: Chemicals | B92: =IF('User Settings'!$B$11=TRUE,1,0)*_xlfn.SWITCH($B$2,"Historical",Calculations!G361,"Future BAU",Calculations!G362,"Tier 1",Calculations!G363,"Tier 2a",Calculations!G363,"Tier 2b",Calculations!G363,"Tier 3",Calculations!G363,"Tier 4a",Calculations!G363,"Tier 4b",Calculations!G364) -> 0 | C92: =_xlfn.SWITCH($B$2,"Historical",Calculations!B11,"Future BAU",Calculations!B49,"Tier 1",Calculations!B89,"Tier 2a",Calculations!B216,"Tier 2b",Calculations!B236,"Tier 3",Calculations!B275,"Tier 4a",Calculations!B314,"Tier 4b",Calculations!B374)*Calculations!B$391 -> 0 | D92: =_xlfn.SWITCH($B$2,"Historical",Calculations!C11,"Future BAU",Calculations!C49,"Tier 1",Calculations!C89,"Tier 2a",Calculations!C216,"Tier 2b",Calculations!C236,"Tier 3",Calculations!C275,"Tier 4a",Calculations!C314,"Tier 4b",Calculations!C374)*Calculations!C$391 -> 0 | E92: =_xlfn.SWITCH($B$2,"Historical",Calculations!D11,"Future BAU",Calculations!D49,"Tier 1",Calculations!D89,"Tier 2a",Calculations!D216,"Tier 2b",Calculations!D236,"Tier 3",Calculations!D275,"Tier 4a",Calculations!D314,"Tier 4b",Calculations!D374)*Calculations!D$391 -> 0 | F92: =_xlfn.SWITCH($B$2,"Historical",Calculations!E11,"Future BAU",Calculations!E49,"Tier 1",Calculations!E89,"Tier 2a",Calculations!E216,"Tier 2b",Calculations!E236,"Tier 3",Calculations!E275,"Tier 4a",Calculations!E314,"Tier 4b",Calculations!E374)*Calculations!E$391 -> 0 | G92: =_xlfn.SWITCH($B$2,"Historical",Calculations!F11,"Future BAU",Calculations!F49,"Tier 1",Calculations!F89,"Tier 2a",Calculations!F216,"Tier 2b",Calculations!F236,"Tier 3",Calculations!F275,"Tier 4a",Calculations!F314,"Tier 4b",Calculations!F374)*Calculations!F$391 -> 0 | M92: =_xlfn.SWITCH($B$2,"Historical",Calculations!K11+Calculations!L11,"Future BAU",Calculations!K49+Calculations!L49,"Tier 1",Calculations!K89+Calculations!L89,"Tier 2a",Calculations!K216+Calculations!L216,"Tier 2b",Calculations!K236+Calculations!L236,"Tier 3",Calculations!K275+Calculations!L275,"Tier 4a",Calculations!K314+Calculations!L314,"Tier 4b",Calculations!K374+Calculations!L374)*Calculations!$B$399 -> 13.22204827 | P92: =_xlfn.SWITCH($B$2,"Historical",Calculations!I11+Calculations!J11,"Future BAU",Calculations!I49+Calculations!J49,"Tier 1",Calculations!I89+Calculations!J89,"Tier 2a",Calculations!I216+Calculations!J216,"Tier 2b",Calculations!I236+Calculations!J236,"Tier 3",Calculations!I275+Calculations!J275,"Tier 4a",Calculations!I314+Calculations!J314,"Tier 4b",Calculations!I374+Calculations!J374)*IF($B$2="Historical",Calculations!$B$610,Calculations!$B$612) -> 0 | Q92: =_xlfn.SWITCH($B$2,"Historical",Calculations!I11+Calculations!J11,"Future BAU",Calculations!I49+Calculations!J49,"Tier 1",Calculations!I89+Calculations!J89,"Tier 2a",Calculations!I216+Calculations!J216,"Tier 2b",Calculations!I236+Calculations!J236,"Tier 3",Calculations!I275+Calculations!J275,"Tier 4a",Calculations!I314+Calculations!J314,"Tier 4b",Calculations!I374+Calculations!J374)*IF($B$2="Historical",0,Calculations!$B$610-Calculations!$B$612) -> 1907.283818 | R92: 1920.505866 | S92: =_xlfn.RANK.EQ(R92,$R$87:$R$100,0)+COUNTIF($R$87:$R92,R92)-1 -> 1
A93: Plastic & rubber products | C93: =_xlfn.SWITCH($B$2,"Historical",Calculations!B12,"Future BAU",Calculations!B50,"Tier 1",Calculations!B90,"Tier 2a",Calculations!B217,"Tier 2b",Calculations!B237,"Tier 3",Calculations!B276,"Tier 4a",Calculations!B315,"Tier 4b",Calculations!B375)*Calculations!B$391 -> 0 | D93: =_xlfn.SWITCH($B$2,"Historical",Calculations!C12,"Future BAU",Calculations!C50,"Tier 1",Calculations!C90,"Tier 2a",Calculations!C217,"Tier 2b",Calculations!C237,"Tier 3",Calculations!C276,"Tier 4a",Calculations!C315,"Tier 4b",Calculations!C375)*Calculations!C$391 -> 0 | E93: =_xlfn.SWITCH($B$2,"Historical",Calculations!D12,"Future BAU",Calculations!D50,"Tier 1",Calculations!D90,"Tier 2a",Calculations!D217,"Tier 2b",Calculations!D237,"Tier 3",Calculations!D276,"Tier 4a",Calculations!D315,"Tier 4b",Calculations!D375)*Calculations!D$391 -> 0 | F93: =_xlfn.SWITCH($B$2,"Historical",Calculations!E12,"Future BAU",Calculations!E50,"Tier 1",Calculations!E90,"Tier 2a",Calculations!E217,"Tier 2b",Calculations!E237,"Tier 3",Calculations!E276,"Tier 4a",Calculations!E315,"Tier 4b",Calculations!E375)*Calculations!E$391 -> 0 | G93: =_xlfn.SWITCH($B$2,"Historical",Calculations!F12,"Future BAU",Calculations!F50,"Tier 1",Calculations!F90,"Tier 2a",Calculations!F217,"Tier 2b",Calculations!F237,"Tier 3",Calculations!F276,"Tier 4a",Calculations!F315,"Tier 4b",Calculations!F375)*Calculations!F$391 -> 0 | M93: =_xlfn.SWITCH($B$2,"Historical",Calculations!K12+Calculations!L12,"Future BAU",Calculations!K50+Calculations!L50,"Tier 1",Calculations!K90+Calculations!L90,"Tier 2a",Calculations!K217+Calculations!L217,"Tier 2b",Calculations!K237+Calculations!L237,"Tier 3",Calculations!K276+Calculations!L276,"Tier 4a",Calculations!K315+Calculations!L315,"Tier 4b",Calculations!K375+Calculations!L375)*Calculations!$B$399 -> 0 | P93: =_xlfn.SWITCH($B$2,"Historical",Calculations!I12+Calculations!J12,"Future BAU",Calculations!I50+Calculations!J50,"Tier 1",Calculations!I90+Calculations!J90,"Tier 2a",Calculations!I217+Calculations!J217,"Tier 2b",Calculations!I237+Calculations!J237,"Tier 3",Calculations!I276+Calculations!J276,"Tier 4a",Calculations!I315+Calculations!J315,"Tier 4b",Calculations!I375+Calculations!J375)*IF($B$2="Historical",Calculations!$B$610,Calculations!$B$612) -> 0 | Q93: =_xlfn.SWITCH($B$2,"Historical",Calculations!I12+Calculations!J12,"Future BAU",Calculations!I50+Calculations!J50,"Tier 1",Calculations!I90+Calculations!J90,"Tier 2a",Calculations!I217+Calculations!J217,"Tier 2b",Calculations!I237+Calculations!J237,"Tier 3",Calculations!I276+Calculations!J276,"Tier 4a",Calculations!I315+Calculations!J315,"Tier 4b",Calculations!I375+Calculations!J375)*IF($B$2="Historical",0,Calculations!$B$610-Calculations!$B$612) -> 232.4541014 | R93: 232.4541014 | S93: =_xlfn.RANK.EQ(R93,$R$87:$R$100,0)+COUNTIF($R$87:$R93,R93)-1 -> 6
A94: Non-metallic minerals | C94: =_xlfn.SWITCH($B$2,"Historical",Calculations!B13,"Future BAU",Calculations!B51,"Tier 1",Calculations!B91,"Tier 2a",Calculations!B218,"Tier 2b",Calculations!B238,"Tier 3",Calculations!B277,"Tier 4a",Calculations!B316,"Tier 4b",Calculations!B376)*Calculations!B$391 -> 0 | D94: =_xlfn.SWITCH($B$2,"Historical",Calculations!C13,"Future BAU",Calculations!C51,"Tier 1",Calculations!C91,"Tier 2a",Calculations!C218,"Tier 2b",Calculations!C238,"Tier 3",Calculations!C277,"Tier 4a",Calculations!C316,"Tier 4b",Calculations!C376)*Calculations!C$391 -> 0 | E94: =_xlfn.SWITCH($B$2,"Historical",Calculations!D13,"Future BAU",Calculations!D51,"Tier 1",Calculations!D91,"Tier 2a",Calculations!D218,"Tier 2b",Calculations!D238,"Tier 3",Calculations!D277,"Tier 4a",Calculations!D316,"Tier 4b",Calculations!D376)*Calculations!D$391 -> 0 | F94: =_xlfn.SWITCH($B$2,"Historical",Calculations!E13,"Future BAU",Calculations!E51,"Tier 1",Calculations!E91,"Tier 2a",Calculations!E218,"Tier 2b",Calculations!E238,"Tier 3",Calculations!E277,"Tier 4a",Calculations!E316,"Tier 4b",Calculations!E376)*Calculations!E$391 -> 0 | G94: =_xlfn.SWITCH($B$2,"Historical",Calculations!F13,"Future BAU",Calculations!F51,"Tier 1",Calculations!F91,"Tier 2a",Calculations!F218,"Tier 2b",Calculations!F238,"Tier 3",Calculations!F277,"Tier 4a",Calculations!F316,"Tier 4b",Calculations!F376)*Calculations!F$391 -> 0 | M94: =_xlfn.SWITCH($B$2,"Historical",Calculations!K13+Calculations!L13,"Future BAU",Calculations!K51+Calculations!L51,"Tier 1",Calculations!K91+Calculations!L91,"Tier 2a",Calculations!K218+Calculations!L218,"Tier 2b",Calculations!K238+Calculations!L238,"Tier 3",Calculations!K277+Calculations!L277,"Tier 4a",Calculations!K316+Calculations!L316,"Tier 4b",Calculations!K376+Calculations!L376)*Calculations!$B$399 -> 19.3590881 | N94: =_xlfn.SWITCH($B$2,"Historical",Calculations!B638,"Future BAU",Calculations!B639,"Tier 1",Calculations!B640,"Tier 2a",Calculations!B641,"Tier 2b",Calculations!B642,"Tier 3",Calculations!B643,"Tier 4a",Calculations!B644,"Tier 4b",Calculations!B645) -> 45.28493731 | P94: =_xlfn.SWITCH($B$2,"Historical",Calculations!I13+Calculations!J13,"Future BAU",Calculations!I51+Calculations!J51,"Tier 1",Calculations!I91+Calculations!J91,"Tier 2a",Calculations!I218+Calculations!J218,"Tier 2b",Calculations!I238+Calculations!J238,"Tier 3",Calculations!I277+Calculations!J277,"Tier 4a",Calculations!I316+Calculations!J316,"Tier 4b",Calculations!I376+Calculations!J376)*IF($B$2="Historical",Calculations!$B$610,Calculations!$B$612) -> 0 | Q94: =_xlfn.SWITCH($B$2,"Historical",Calculations!I13+Calculations!J13,"Future BAU",Calculations!I51+Calculations!J51,"Tier 1",Calculations!I91+Calculations!J91,"Tier 2a",Calculations!I218+Calculations!J218,"Tier 2b",Calculations!I238+Calculations!J238,"Tier 3",Calculations!I277+Calculations!J277,"Tier 4a",Calculations!I316+Calculations!J316,"Tier 4b",Calculations!I376+Calculations!J376)*IF($B$2="Historical",0,Calculations!$B$610-Calculations!$B$612) -> 327.6937138 | R94: 392.3377392 | S94: =_xlfn.RANK.EQ(R94,$R$87:$R$100,0)+COUNTIF($R$87:$R94,R94)-1 -> 5
A95: Iron & steel | C95: =_xlfn.SWITCH($B$2,"Historical",Calculations!B14,"Future BAU",Calculations!B52,"Tier 1",Calculations!B92,"Tier 2a",Calculations!B219,"Tier 2b",Calculations!B239,"Tier 3",Calculations!B278,"Tier 4a",Calculations!B317,"Tier 4b",Calculations!B377)*Calculations!B$391 -> 0 | D95: =_xlfn.SWITCH($B$2,"Historical",Calculations!C14,"Future BAU",Calculations!C52,"Tier 1",Calculations!C92,"Tier 2a",Calculations!C219,"Tier 2b",Calculations!C239,"Tier 3",Calculations!C278,"Tier 4a",Calculations!C317,"Tier 4b",Calculations!C377)*Calculations!C$391 -> 0 | E95: =_xlfn.SWITCH($B$2,"Historical",Calculations!D14,"Future BAU",Calculations!D52,"Tier 1",Calculations!D92,"Tier 2a",Calculations!D219,"Tier 2b",Calculations!D239,"Tier 3",Calculations!D278,"Tier 4a",Calculations!D317,"Tier 4b",Calculations!D377)*Calculations!D$391 -> 0 | F95: =_xlfn.SWITCH($B$2,"Historical",Calculations!E14,"Future BAU",Calculations!E52,"Tier 1",Calculations!E92,"Tier 2a",Calculations!E219,"Tier 2b",Calculations!E239,"Tier 3",Calculations!E278,"Tier 4a",Calculations!E317,"Tier 4b",Calculations!E377)*Calculations!E$391 -> 0 | G95: =_xlfn.SWITCH($B$2,"Historical",Calculations!F14,"Future BAU",Calculations!F52,"Tier 1",Calculations!F92,"Tier 2a",Calculations!F219,"Tier 2b",Calculations!F239,"Tier 3",Calculations!F278,"Tier 4a",Calculations!F317,"Tier 4b",Calculations!F377)*Calculations!F$391 -> 0 | M95: =_xlfn.SWITCH($B$2,"Historical",Calculations!K14+Calculations!L14,"Future BAU",Calculations!K52+Calculations!L52,"Tier 1",Calculations!K92+Calculations!L92,"Tier 2a",Calculations!K219+Calculations!L219,"Tier 2b",Calculations!K239+Calculations!L239,"Tier 3",Calculations!K278+Calculations!L278,"Tier 4a",Calculations!K317+Calculations!L317,"Tier 4b",Calculations!K377+Calculations!L377)*Calculations!$B$399 -> 15.90399716 | P95: =_xlfn.SWITCH($B$2,"Historical",Calculations!I14+Calculations!J14,"Future BAU",Calculations!I52+Calculations!J52,"Tier 1",Calculations!I92+Calculations!J92,"Tier 2a",Calculations!I219+Calculations!J219,"Tier 2b",Calculations!I239+Calculations!J239,"Tier 3",Calculations!I278+Calculations!J278,"Tier 4a",Calculations!I317+Calculations!J317,"Tier 4b",Calculations!I377+Calculations!J377)*IF($B$2="Historical",Calculations!$B$610,Calculations!$B$612) -> 0 | Q95: =_xlfn.SWITCH($B$2,"Historical",Calculations!I14+Calculations!J14,"Future BAU",Calculations!I52+Calculations!J52,"Tier 1",Calculations!I92+Calculations!J92,"Tier 2a",Calculations!I219+Calculations!J219,"Tier 2b",Calculations!I239+Calculations!J239,"Tier 3",Calculations!I278+Calculations!J278,"Tier 4a",Calculations!I317+Calculations!J317,"Tier 4b",Calculations!I377+Calculations!J377)*IF($B$2="Historical",0,Calculations!$B$610-Calculations!$B$612) -> 651.8336312 | R95: 667.7376284 | S95: =_xlfn.RANK.EQ(R95,$R$87:$R$100,0)+COUNTIF($R$87:$R95,R95)-1 -> 3
A96: Nonferrous metals | C96: =_xlfn.SWITCH($B$2,"Historical",Calculations!B15,"Future BAU",Calculations!B53,"Tier 1",Calculations!B93,"Tier 2a",Calculations!B220,"Tier 2b",Calculations!B240,"Tier 3",Calculations!B279,"Tier 4a",Calculations!B318,"Tier 4b",Calculations!B378)*Calculations!B$391 -> 0 | D96: =_xlfn.SWITCH($B$2,"Historical",Calculations!C15,"Future BAU",Calculations!C53,"Tier 1",Calculations!C93,"Tier 2a",Calculations!C220,"Tier 2b",Calculations!C240,"Tier 3",Calculations!C279,"Tier 4a",Calculations!C318,"Tier 4b",Calculations!C378)*Calculations!C$391 -> 0 | E96: =_xlfn.SWITCH($B$2,"Historical",Calculations!D15,"Future BAU",Calculations!D53,"Tier 1",Calculations!D93,"Tier 2a",Calculations!D220,"Tier 2b",Calculations!D240,"Tier 3",Calculations!D279,"Tier 4a",Calculations!D318,"Tier 4b",Calculations!D378)*Calculations!D$391 -> 0 | F96: =_xlfn.SWITCH($B$2,"Historical",Calculations!E15,"Future BAU",Calculations!E53,"Tier 1",Calculations!E93,"Tier 2a",Calculations!E220,"Tier 2b",Calculations!E240,"Tier 3",Calculations!E279,"Tier 4a",Calculations!E318,"Tier 4b",Calculations!E378)*Calculations!E$391 -> 0 | G96: =_xlfn.SWITCH($B$2,"Historical",Calculations!F15,"Future BAU",Calculations!F53,"Tier 1",Calculations!F93,"Tier 2a",Calculations!F220,"Tier 2b",Calculations!F240,"Tier 3",Calculations!F279,"Tier 4a",Calculations!F318,"Tier 4b",Calculations!F378)*Calculations!F$391 -> 0 | M96: =_xlfn.SWITCH($B$2,"Historical",Calculations!K15+Calculations!L15,"Future BAU",Calculations!K53+Calculations!L53,"Tier 1",Calculations!K93+Calculations!L93,"Tier 2a",Calculations!K220+Calculations!L220,"Tier 2b",Calculations!K240+Calculations!L240,"Tier 3",Calculations!K279+Calculations!L279,"Tier 4a",Calculations!K318+Calculations!L318,"Tier 4b",Calculations!K378+Calculations!L378)*Calculations!$B$399 -> 0 | P96: =_xlfn.SWITCH($B$2,"Historical",Calculations!I15+Calculations!J15,"Future BAU",Calculations!I53+Calculations!J53,"Tier 1",Calculations!I93+Calculations!J93,"Tier 2a",Calculations!I220+Calculations!J220,"Tier 2b",Calculations!I240+Calculations!J240,"Tier 3",Calculations!I279+Calculations!J279,"Tier 4a",Calculations!I318+Calculations!J318,"Tier 4b",Calculations!I378+Calculations!J378)*IF($B$2="Historical",Calculations!$B$610,Calculations!$B$612) -> 0 | Q96: =_xlfn.SWITCH($B$2,"Historical",Calculations!I15+Calculations!J15,"Future BAU",Calculations!I53+Calculations!J53,"Tier 1",Calculations!I93+Calculations!J93,"Tier 2a",Calculations!I220+Calculations!J220,"Tier 2b",Calculations!I240+Calculations!J240,"Tier 3",Calculations!I279+Calculations!J279,"Tier 4a",Calculations!I318+Calculations!J318,"Tier 4b",Calculations!I378+Calculations!J378)*IF($B$2="Historical",0,Calculations!$B$610-Calculations!$B$612) -> 406.5057145 | R96: 406.5057145 | S96: =_xlfn.RANK.EQ(R96,$R$87:$R$100,0)+COUNTIF($R$87:$R96,R96)-1 -> 4
A97: Machinery | C97: =_xlfn.SWITCH($B$2,"Historical",Calculations!B16,"Future BAU",Calculations!B54,"Tier 1",Calculations!B94,"Tier 2a",Calculations!B221,"Tier 2b",Calculations!B241,"Tier 3",Calculations!B280,"Tier 4a",Calculations!B319,"Tier 4b",Calculations!B379)*Calculations!B$391 -> 6.533646693e-17 | D97: =_xlfn.SWITCH($B$2,"Historical",Calculations!C16,"Future BAU",Calculations!C54,"Tier 1",Calculations!C94,"Tier 2a",Calculations!C221,"Tier 2b",Calculations!C241,"Tier 3",Calculations!C280,"Tier 4a",Calculations!C319,"Tier 4b",Calculations!C379)*Calculations!C$391 -> 6.934197648e-16 | E97: =_xlfn.SWITCH($B$2,"Historical",Calculations!D16,"Future BAU",Calculations!D54,"Tier 1",Calculations!D94,"Tier 2a",Calculations!D221,"Tier 2b",Calculations!D241,"Tier 3",Calculations!D280,"Tier 4a",Calculations!D319,"Tier 4b",Calculations!D379)*Calculations!D$391 -> 1.845859434e-17 | F97: =_xlfn.SWITCH($B$2,"Historical",Calculations!E16,"Future BAU",Calculations!E54,"Tier 1",Calculations!E94,"Tier 2a",Calculations!E221,"Tier 2b",Calculations!E241,"Tier 3",Calculations!E280,"Tier 4a",Calculations!E319,"Tier 4b",Calculations!E379)*Calculations!E$391 -> 3.652003664e-16 | G97: =_xlfn.SWITCH($B$2,"Historical",Calculations!F16,"Future BAU",Calculations!F54,"Tier 1",Calculations!F94,"Tier 2a",Calculations!F221,"Tier 2b",Calculations!F241,"Tier 3",Calculations!F280,"Tier 4a",Calculations!F319,"Tier 4b",Calculations!F379)*Calculations!F$391 -> 1.517282374e-15 | M97: =_xlfn.SWITCH($B$2,"Historical",Calculations!K16+Calculations!L16,"Future BAU",Calculations!K54+Calculations!L54,"Tier 1",Calculations!K94+Calculations!L94,"Tier 2a",Calculations!K221+Calculations!L221,"Tier 2b",Calculations!K241+Calculations!L241,"Tier 3",Calculations!K280+Calculations!L280,"Tier 4a",Calculations!K319+Calculations!L319,"Tier 4b",Calculations!K379+Calculations!L379)*Calculations!$B$399 -> 0 | P97: =_xlfn.SWITCH($B$2,"Historical",Calculations!I16+Calculations!J16,"Future BAU",Calculations!I54+Calculations!J54,"Tier 1",Calculations!I94+Calculations!J94,"Tier 2a",Calculations!I221+Calculations!J221,"Tier 2b",Calculations!I241+Calculations!J241,"Tier 3",Calculations!I280+Calculations!J280,"Tier 4a",Calculations!I319+Calculations!J319,"Tier 4b",Calculations!I379+Calculations!J379)*IF($B$2="Historical",Calculations!$B$610,Calculations!$B$612) -> 0 | Q97: =_xlfn.SWITCH($B$2,"Historical",Calculations!I16+Calculations!J16,"Future BAU",Calculations!I54+Calculations!J54,"Tier 1",Calculations!I94+Calculations!J94,"Tier 2a",Calculations!I221+Calculations!J221,"Tier 2b",Calculations!I241+Calculations!J241,"Tier 3",Calculations!I280+Calculations!J280,"Tier 4a",Calculations!I319+Calculations!J319,"Tier 4b",Calculations!I379+Calculations!J379)*IF($B$2="Historical",0,Calculations!$B$610-Calculations!$B$612) -> 128.4126949 | R97: 128.4126949 | S97: =_xlfn.RANK.EQ(R97,$R$87:$R$100,0)+COUNTIF($R$87:$R97,R97)-1 -> 7
A98: Vehicles & transport equipment | C98: =_xlfn.SWITCH($B$2,"Historical",Calculations!B17,"Future BAU",Calculations!B55,"Tier 1",Calculations!B95,"Tier 2a",Calculations!B222,"Tier 2b",Calculations!B242,"Tier 3",Calculations!B281,"Tier 4a",Calculations!B320,"Tier 4b",Calculations!B380)*Calculations!B$391 -> 0 | D98: =_xlfn.SWITCH($B$2,"Historical",Calculations!C17,"Future BAU",Calculations!C55,"Tier 1",Calculations!C95,"Tier 2a",Calculations!C222,"Tier 2b",Calculations!C242,"Tier 3",Calculations!C281,"Tier 4a",Calculations!C320,"Tier 4b",Calculations!C380)*Calculations!C$391 -> 0 | E98: =_xlfn.SWITCH($B$2,"Historical",Calculations!D17,"Future BAU",Calculations!D55,"Tier 1",Calculations!D95,"Tier 2a",Calculations!D222,"Tier 2b",Calculations!D242,"Tier 3",Calculations!D281,"Tier 4a",Calculations!D320,"Tier 4b",Calculations!D380)*Calculations!D$391 -> 0 | F98: =_xlfn.SWITCH($B$2,"Historical",Calculations!E17,"Future BAU",Calculations!E55,"Tier 1",Calculations!E95,"Tier 2a",Calculations!E222,"Tier 2b",Calculations!E242,"Tier 3",Calculations!E281,"Tier 4a",Calculations!E320,"Tier 4b",Calculations!E380)*Calculations!E$391 -> 0 | G98: =_xlfn.SWITCH($B$2,"Historical",Calculations!F17,"Future BAU",Calculations!F55,"Tier 1",Calculations!F95,"Tier 2a",Calculations!F222,"Tier 2b",Calculations!F242,"Tier 3",Calculations!F281,"Tier 4a",Calculations!F320,"Tier 4b",Calculations!F380)*Calculations!F$391 -> 0 | M98: =_xlfn.SWITCH($B$2,"Historical",Calculations!K17+Calculations!L17,"Future BAU",Calculations!K55+Calculations!L55,"Tier 1",Calculations!K95+Calculations!L95,"Tier 2a",Calculations!K222+Calculations!L222,"Tier 2b",Calculations!K242+Calculations!L242,"Tier 3",Calculations!K281+Calculations!L281,"Tier 4a",Calculations!K320+Calculations!L320,"Tier 4b",Calculations!K380+Calculations!L380)*Calculations!$B$399 -> 0 | P98: =_xlfn.SWITCH($B$2,"Historical",Calculations!I17+Calculations!J17,"Future BAU",Calculations!I55+Calculations!J55,"Tier 1",Calculations!I95+Calculations!J95,"Tier 2a",Calculations!I222+Calculations!J222,"Tier 2b",Calculations!I242+Calculations!J242,"Tier 3",Calculations!I281+Calculations!J281,"Tier 4a",Calculations!I320+Calculations!J320,"Tier 4b",Calculations!I380+Calculations!J380)*IF($B$2="Historical",Calculations!$B$610,Calculations!$B$612) -> 0 | Q98: =_xlfn.SWITCH($B$2,"Historical",Calculations!I17+Calculations!J17,"Future BAU",Calculations!I55+Calculations!J55,"Tier 1",Calculations!I95+Calculations!J95,"Tier 2a",Calculations!I222+Calculations!J222,"Tier 2b",Calculations!I242+Calculations!J242,"Tier 3",Calculations!I281+Calculations!J281,"Tier 4a",Calculations!I320+Calculations!J320,"Tier 4b",Calculations!I380+Calculations!J380)*IF($B$2="Historical",0,Calculations!$B$610-Calculations!$B$612) -> 70.86606451 | R98: 70.86606451 | S98: =_xlfn.RANK.EQ(R98,$R$87:$R$100,0)+COUNTIF($R$87:$R98,R98)-1 -> 12
A99: Electronics | C99: =_xlfn.SWITCH($B$2,"Historical",Calculations!B18,"Future BAU",Calculations!B56,"Tier 1",Calculations!B96,"Tier 2a",Calculations!B223,"Tier 2b",Calculations!B243,"Tier 3",Calculations!B282,"Tier 4a",Calculations!B321,"Tier 4b",Calculations!B381)*Calculations!B$391 -> 2.376605069e-17 | D99: =_xlfn.SWITCH($B$2,"Historical",Calculations!C18,"Future BAU",Calculations!C56,"Tier 1",Calculations!C96,"Tier 2a",Calculations!C223,"Tier 2b",Calculations!C243,"Tier 3",Calculations!C282,"Tier 4a",Calculations!C321,"Tier 4b",Calculations!C381)*Calculations!C$391 -> 1.046546315e-19 | E99: =_xlfn.SWITCH($B$2,"Historical",Calculations!D18,"Future BAU",Calculations!D56,"Tier 1",Calculations!D96,"Tier 2a",Calculations!D223,"Tier 2b",Calculations!D243,"Tier 3",Calculations!D282,"Tier 4a",Calculations!D321,"Tier 4b",Calculations!D381)*Calculations!D$391 -> 4.94605995e-18 | F99: =_xlfn.SWITCH($B$2,"Historical",Calculations!E18,"Future BAU",Calculations!E56,"Tier 1",Calculations!E96,"Tier 2a",Calculations!E223,"Tier 2b",Calculations!E243,"Tier 3",Calculations!E282,"Tier 4a",Calculations!E321,"Tier 4b",Calculations!E381)*Calculations!E$391 -> 5.649540643e-17 | G99: =_xlfn.SWITCH($B$2,"Historical",Calculations!F18,"Future BAU",Calculations!F56,"Tier 1",Calculations!F96,"Tier 2a",Calculations!F223,"Tier 2b",Calculations!F243,"Tier 3",Calculations!F282,"Tier 4a",Calculations!F321,"Tier 4b",Calculations!F381)*Calculations!F$391 -> 5.362208792e-16 | M99: =_xlfn.SWITCH($B$2,"Historical",Calculations!K18+Calculations!L18,"Future BAU",Calculations!K56+Calculations!L56,"Tier 1",Calculations!K96+Calculations!L96,"Tier 2a",Calculations!K223+Calculations!L223,"Tier 2b",Calculations!K243+Calculations!L243,"Tier 3",Calculations!K282+Calculations!L282,"Tier 4a",Calculations!K321+Calculations!L321,"Tier 4b",Calculations!K381+Calculations!L381)*Calculations!$B$399 -> 0 | P99: =_xlfn.SWITCH($B$2,"Historical",Calculations!I18+Calculations!J18,"Future BAU",Calculations!I56+Calculations!J56,"Tier 1",Calculations!I96+Calculations!J96,"Tier 2a",Calculations!I223+Calculations!J223,"Tier 2b",Calculations!I243+Calculations!J243,"Tier 3",Calculations!I282+Calculations!J282,"Tier 4a",Calculations!I321+Calculations!J321,"Tier 4b",Calculations!I381+Calculations!J381)*IF($B$2="Historical",Calculations!$B$610,Calculations!$B$612) -> 0 | Q99: =_xlfn.SWITCH($B$2,"Historical",Calculations!I18+Calculations!J18,"Future BAU",Calculations!I56+Calculations!J56,"Tier 1",Calculations!I96+Calculations!J96,"Tier 2a",Calculations!I223+Calculations!J223,"Tier 2b",Calculations!I243+Calculations!J243,"Tier 3",Calculations!I282+Calculations!J282,"Tier 4a",Calculations!I321+Calculations!J321,"Tier 4b",Calculations!I381+Calculations!J381)*IF($B$2="Historical",0,Calculations!$B$610-Calculations!$B$612) -> 77.22588123 | R99: 77.22588123 | S99: =_xlfn.RANK.EQ(R99,$R$87:$R$100,0)+COUNTIF($R$87:$R99,R99)-1 -> 10
A100: Other metal products | C100: =_xlfn.SWITCH($B$2,"Historical",Calculations!B19,"Future BAU",Calculations!B57,"Tier 1",Calculations!B97,"Tier 2a",Calculations!B224,"Tier 2b",Calculations!B244,"Tier 3",Calculations!B283,"Tier 4a",Calculations!B322,"Tier 4b",Calculations!B382)*Calculations!B$391 -> 0 | D100: =_xlfn.SWITCH($B$2,"Historical",Calculations!C19,"Future BAU",Calculations!C57,"Tier 1",Calculations!C97,"Tier 2a",Calculations!C224,"Tier 2b",Calculations!C244,"Tier 3",Calculations!C283,"Tier 4a",Calculations!C322,"Tier 4b",Calculations!C382)*Calculations!C$391 -> 0 | E100: =_xlfn.SWITCH($B$2,"Historical",Calculations!D19,"Future BAU",Calculations!D57,"Tier 1",Calculations!D97,"Tier 2a",Calculations!D224,"Tier 2b",Calculations!D244,"Tier 3",Calculations!D283,"Tier 4a",Calculations!D322,"Tier 4b",Calculations!D382)*Calculations!D$391 -> 0 | F100: =_xlfn.SWITCH($B$2,"Historical",Calculations!E19,"Future BAU",Calculations!E57,"Tier 1",Calculations!E97,"Tier 2a",Calculations!E224,"Tier 2b",Calculations!E244,"Tier 3",Calculations!E283,"Tier 4a",Calculations!E322,"Tier 4b",Calculations!E382)*Calculations!E$391 -> 0 | G100: =_xlfn.SWITCH($B$2,"Historical",Calculations!F19,"Future BAU",Calculations!F57,"Tier 1",Calculations!F97,"Tier 2a",Calculations!F224,"Tier 2b",Calculations!F244,"Tier 3",Calculations!F283,"Tier 4a",Calculations!F322,"Tier 4b",Calculations!F382)*Calculations!F$391 -> 0 | M100: =_xlfn.SWITCH($B$2,"Historical",Calculations!K19+Calculations!L19,"Future BAU",Calculations!K57+Calculations!L57,"Tier 1",Calculations!K97+Calculations!L97,"Tier 2a",Calculations!K224+Calculations!L224,"Tier 2b",Calculations!K244+Calculations!L244,"Tier 3",Calculations!K283+Calculations!L283,"Tier 4a",Calculations!K322+Calculations!L322,"Tier 4b",Calculations!K382+Calculations!L382)*Calculations!$B$399 -> 0 | P100: =_xlfn.SWITCH($B$2,"Historical",Calculations!I19+Calculations!J19,"Future BAU",Calculations!I57+Calculations!J57,"Tier 1",Calculations!I97+Calculations!J97,"Tier 2a",Calculations!I224+Calculations!J224,"Tier 2b",Calculations!I244+Calculations!J244,"Tier 3",Calculations!I283+Calculations!J283,"Tier 4a",Calculations!I322+Calculations!J322,"Tier 4b",Calculations!I382+Calculations!J382)*IF($B$2="Historical",Calculations!$B$610,Calculations!$B$612) -> 0 | Q100: =_xlfn.SWITCH($B$2,"Historical",Calculations!I19+Calculations!J19,"Future BAU",Calculations!I57+Calculations!J57,"Tier 1",Calculations!I97+Calculations!J97,"Tier 2a",Calculations!I224+Calculations!J224,"Tier 2b",Calculations!I244+Calculations!J244,"Tier 3",Calculations!I283+Calculations!J283,"Tier 4a",Calculations!I322+Calculations!J322,"Tier 4b",Calculations!I382+Calculations!J382)*IF($B$2="Historical",0,Calculations!$B$610-Calculations!$B$612) -> 72.0945241 | R100: 72.0945241 | S100: =_xlfn.RANK.EQ(R100,$R$87:$R$100,0)+COUNTIF($R$87:$R100,R100)-1 -> 11
A101: Other manufacturing | C101: =_xlfn.SWITCH($B$2,"Historical",Calculations!B20,"Future BAU",Calculations!B58,"Tier 1",Calculations!B98,"Tier 2a",Calculations!B225,"Tier 2b",Calculations!B245,"Tier 3",Calculations!B284,"Tier 4a",Calculations!B323,"Tier 4b",Calculations!B383)*Calculations!B$391 -> 1.269407303e-17 | D101: =_xlfn.SWITCH($B$2,"Historical",Calculations!C20,"Future BAU",Calculations!C58,"Tier 1",Calculations!C98,"Tier 2a",Calculations!C225,"Tier 2b",Calculations!C245,"Tier 3",Calculations!C284,"Tier 4a",Calculations!C323,"Tier 4b",Calculations!C383)*Calculations!C$391 -> 1.311117197e-19 | E101: =_xlfn.SWITCH($B$2,"Historical",Calculations!D20,"Future BAU",Calculations!D58,"Tier 1",Calculations!D98,"Tier 2a",Calculations!D225,"Tier 2b",Calculations!D245,"Tier 3",Calculations!D284,"Tier 4a",Calculations!D323,"Tier 4b",Calculations!D383)*Calculations!D$391 -> 1.040245829e-18 | F101: =_xlfn.SWITCH($B$2,"Historical",Calculations!E20,"Future BAU",Calculations!E58,"Tier 1",Calculations!E98,"Tier 2a",Calculations!E225,"Tier 2b",Calculations!E245,"Tier 3",Calculations!E284,"Tier 4a",Calculations!E323,"Tier 4b",Calculations!E383)*Calculations!E$391 -> 6.11662298e-17 | G101: =_xlfn.SWITCH($B$2,"Historical",Calculations!F20,"Future BAU",Calculations!F58,"Tier 1",Calculations!F98,"Tier 2a",Calculations!F225,"Tier 2b",Calculations!F245,"Tier 3",Calculations!F284,"Tier 4a",Calculations!F323,"Tier 4b",Calculations!F383)*Calculations!F$391 -> 2.590358456e-16 | M101: =_xlfn.SWITCH($B$2,"Historical",Calculations!K20+Calculations!L20,"Future BAU",Calculations!K58+Calculations!L58,"Tier 1",Calculations!K98+Calculations!L98,"Tier 2a",Calculations!K225+Calculations!L225,"Tier 2b",Calculations!K245+Calculations!L245,"Tier 3",Calculations!K284+Calculations!L284,"Tier 4a",Calculations!K323+Calculations!L323,"Tier 4b",Calculations!K383+Calculations!L383)*Calculations!$B$399 -> 0 | P101: =_xlfn.SWITCH($B$2,"Historical",Calculations!I20+Calculations!J20,"Future BAU",Calculations!I58+Calculations!J58,"Tier 1",Calculations!I98+Calculations!J98,"Tier 2a",Calculations!I225+Calculations!J225,"Tier 2b",Calculations!I245+Calculations!J245,"Tier 3",Calculations!I284+Calculations!J284,"Tier 4a",Calculations!I323+Calculations!J323,"Tier 4b",Calculations!I383+Calculations!J383)*IF($B$2="Historical",Calculations!$B$610,Calculations!$B$612) -> 0 | Q101: =_xlfn.SWITCH($B$2,"Historical",Calculations!I20+Calculations!J20,"Future BAU",Calculations!I58+Calculations!J58,"Tier 1",Calculations!I98+Calculations!J98,"Tier 2a",Calculations!I225+Calculations!J225,"Tier 2b",Calculations!I245+Calculations!J245,"Tier 3",Calculations!I284+Calculations!J284,"Tier 4a",Calculations!I323+Calculations!J323,"Tier 4b",Calculations!I383+Calculations!J383)*IF($B$2="Historical",0,Calculations!$B$610-Calculations!$B$612) -> 58.56890222 | R101: 58.56890222
A102: Fugitive methane (upstream) | O102: =_xlfn.SWITCH($B$2,"Historical",Calculations!E626,"Future BAU",Calculations!E627,"Tier 1",Calculations!E628,"Tier 2a",Calculations!E629,"Tier 2b",Calculations!E630,"Tier 3",Calculations!E631,"Tier 4a",Calculations!E632,"Tier 4b",Calculations!E633) -> 72.19132362 | R102: 72.19132362
A104: Sorted Data
B105: Fossil Feedstocks | C105: Coal | D105: Coke | E105: Coal/Coke Byproducts | F105: Petroleum | G105: Natural Gas | H105: Bioenergy and Waste | I105: Purchased Heat | J105: Direct Use of Electricity | K105: Electricity for Green H2 | L105: Blue Hydrogen | M105: Fossil Fuels w/ Carbon Capture | N105: Cement Calcination | O105: Fugitive Methane | P105: Electricity (on-target) | Q105: Electricity (off-target) | S105: Rank
A106: =INDEX(A$87:A$100,MATCH($S106,$S$87:$S$100,0)) -> Chemicals | B106: =INDEX(B$87:B$100,MATCH($S106,$S$87:$S$100,0)) -> 0 | C106: 0 | D106: 0 | E106: 0 | F106: 0 | G106: 0 | M106: 13.22204827 | N106: 0 | O106: 0 | P106: 0 | Q106: 1907.283818 | S106: 1
A107: =INDEX(A$87:A$100,MATCH($S107,$S$87:$S$100,0)) -> Refining & fuel processing | B107: 0 | C107: 0 | D107: 0 | E107: 0 | F107: 0 | G107: 0 | M107: 0 | N107: 0 | O107: 0 | P107: 0 | Q107: 1391.081735 | S107: 2
A108: Iron & steel | B108: 0 | C108: 0 | D108: 0 | E108: 0 | F108: 0 | G108: 0 | M108: 15.90399716 | N108: 0 | O108: 0 | P108: 0 | Q108: 651.8336312 | S108: 3
A109: Nonferrous metals | B109: 0 | C109: 0 | D109: 0 | E109: 0 | F109: 0 | G109: 0 | M109: 0 | N109: 0 | O109: 0 | P109: 0 | Q109: 406.5057145 | S109: 4
A110: Non-metallic minerals | B110: 0 | C110: 0 | D110: 0 | E110: 0 | F110: 0 | G110: 0 | M110: 19.3590881 | N110: 45.28493731 | O110: 0 | P110: 0 | Q110: 327.6937138 | S110: 5
A111: Plastic & rubber products | B111: 0 | C111: 0 | D111: 0 | E111: 0 | F111: 0 | G111: 0 | M111: 0 | N111: 0 | O111: 0 | P111: 0 | Q111: 232.4541014 | S111: 6
A112: Machinery | B112: 0 | C112: 6.533646693e-17 | D112: 6.934197648e-16 | E112: 1.845859434e-17 | F112: 3.652003664e-16 | G112: 1.517282374e-15 | M112: 0 | N112: 0 | O112: 0 | P112: 0 | Q112: 128.4126949 | S112: 7
A113: Food, beverage, & tobacco | B113: 0 | C113: 2.081625935e-15 | D113: 4.303689615e-17 | E113: 8.013338934e-19 | F113: 1.563705708e-16 | G113: 1.844621003e-15 | M113: 0 | N113: 0 | O113: 0 | P113: 0 | Q113: 127.3070459 | S113: 8
A114: Textiles, leather, & apparel | B114: 0 | C114: 0 | D114: 0 | E114: 0 | F114: 0 | G114: 0 | M114: 0 | N114: 0 | O114: 0 | P114: 0 | Q114: 117.3297148 | S114: 9
A115: Electronics | B115: 0 | C115: 2.376605069e-17 | D115: 1.046546315e-19 | E115: 4.94605995e-18 | F115: 5.649540643e-17 | G115: 5.362208792e-16 | M115: 0 | N115: 0 | O115: 0 | P115: 0 | Q115: 77.22588123 | S115: 10
A116: Other metal products | B116: 0 | C116: 0 | D116: 0 | E116: 0 | F116: 0 | G116: 0 | M116: 0 | N116: 0 | O116: 0 | P116: 0 | Q116: 72.0945241 | S116: 11
A117: Vehicles & transport equipment | B117: 0 | C117: 0 | D117: 0 | E117: 0 | F117: 0 | G117: 0 | M117: 0 | N117: 0 | O117: 0 | P117: 0 | Q117: 70.86606451 | S117: 12
A118: Pulp, paper, & printing | B118: 0 | C118: 0 | D118: 0 | E118: 0 | F118: 0 | G118: 0 | M118: 0 | N118: 0 | O118: 0 | P118: 0 | Q118: 67.87937703 | S118: 13
A119: Wood & furniture | B119: 0 | C119: 0 | D119: 0 | E119: 0 | F119: 0 | G119: 0 | M119: 0 | N119: 0 | O119: 0 | P119: 0 | Q119: 28.55611034 | S119: 14
A120: =A101 -> Other manufacturing | B120: =B101 -> 0 | C120: 1.269407303e-17 | D120: 1.311117197e-19 | E120: 1.040245829e-18 | F120: 6.11662298e-17 | G120: 2.590358456e-16 | M120: 0 | N120: 0 | O120: 0 | P120: 0 | Q120: 58.56890222
A121: =A102 -> Fugitive methane (upstream) | B121: =B102 -> 0 | C121: 0 | D121: 0 | E121: 0 | F121: 0 | G121: 0 | M121: 0 | N121: 0 | O121: 72.19132362 | P121: 0 | Q121: 0
A166: Annual Energy Expenditures by Subindustry by Energy Type
A168: Unsorted Subindustry Data for Selected Graph Scope
B169: Fossil Feedstocks | C169: Coal | D169: Coke | E169: Coal/Coke Byproducts | F169: Petroleum | G169: Natural Gas | H169: Bioenergy and Waste | I169: Purchased Heat | J169: Direct Use of Electricity | K169: Green Hydrogen | L169: Blue Hydrogen | M169: Fossil Fuels w/ Carbon Capture | N169: Carbon Pricing | O169: Total | P169: Rank
A170: Food, beverage, & tobacco | B170: =IF($B$2="Historical",Calculations!B$406,Calculations!B$411)*B8*10^3 -> 0 | C170: =IF($B$2="Historical",Calculations!C$406,Calculations!C$411)*C8*10^3 -> 9.022046629e-17 | D170: =IF($B$2="Historical",Calculations!D$406,Calculations!D$411)*D8*10^3 -> 1.553494917e-18 | E170: =IF($B$2="Historical",Calculations!E$406,Calculations!E$411)*E8*10^3 -> 7.018085766e-20 | F170: =_xlfn.SWITCH($B$2,"Historical",Calculations!$C$422,"Future BAU",Calculations!$C$423,"Tier 1",Calculations!$C$424,"Tier 2a",Calculations!$C$425,"Tier 2b",Calculations!$C$426,"Tier 3",Calculations!$C$427,"Tier 4a",Calculations!$C$428,"Tier 4b",Calculations!$C$429)*F8*10^3 -> 4.275569086e-17 | G170: =IF($B$2="Historical",Calculations!G$406,Calculations!G$411)*G8*10^3 -> 6.215219303e-16 | H170: =IF($B$2="Historical",Calculations!H$406,Calculations!H$411)*H8*10^3 -> 0 | I170: =IF($B$2="Historical",Calculations!I$406,Calculations!I$411)*I8*10^3 -> 3.341829528 | J170: =IF($B$2="Historical",Calculations!J$406,Calculations!J$411)*J8*10^3 -> 19.7602859 | K170: =IF($B$2="Historical",Calculations!K$406,Calculations!K$411)*K8*'Other Technical Data'!$B$16*10^3 -> 0 | L170: =IF($B$2="Historical",Calculations!L$406,Calculations!L$411)*L8*10^3 -> 0 | M170: =IF($B$2="Historical",Calculations!M$406,Calculations!M$411)*M8*10^3 -> 0 | N170: =IF($B$2="Historical",SUMPRODUCT(Calculations!B6:L6,Calculations!$C$433:$M$433),IF($B$2="Future BAU",SUMPRODUCT(Calculations!B44:L44,Calculations!$C$435:$M$435),IF($B$2="Tier 1",SUMPRODUCT(Calculations!B84:L84,Calculations!$C$435:$M$435),IF($B$2="Tier 2a",SUMPRODUCT(Calculations!B211:L211,Calculations!$C$435:$M$435),IF($B$2="Tier 2b",SUMPRODUCT(Calculations!B231:L231,Calculations!$C$435:$M$435),IF($B$2="Tier 3",SUMPRODUCT(Calculations!B270:L270,Calculations!$C$435:$M$435),IF($B$2="Tier 4a",SUMPRODUCT(Calculations!B309:L309,Calculations!$C$435:$M$435),IF($B$2="Tier 4b",SUMPRODUCT(Calculations!B369:L369,Calculations!$C$435:$M$435)))))))))/10^3 -> 2.063227869e-16 | O170: =SUM(B170:N170) -> 23.10211543 | P170: =_xlfn.RANK.EQ(O170,$O$170:$O$183,0)+COUNTIF($O$170:$O170,O170)-1 -> 7
A171: Textiles, leather, & apparel | B171: =IF($B$2="Historical",Calculations!B$406,Calculations!B$411)*B9*10^3 -> 0 | C171: =IF($B$2="Historical",Calculations!C$406,Calculations!C$411)*C9*10^3 -> 0 | D171: =IF($B$2="Historical",Calculations!D$406,Calculations!D$411)*D9*10^3 -> 0 | E171: =IF($B$2="Historical",Calculations!E$406,Calculations!E$411)*E9*10^3 -> 0 | F171: =_xlfn.SWITCH($B$2,"Historical",Calculations!$C$422,"Future BAU",Calculations!$C$423,"Tier 1",Calculations!$C$424,"Tier 2a",Calculations!$C$425,"Tier 2b",Calculations!$C$426,"Tier 3",Calculations!$C$427,"Tier 4a",Calculations!$C$428,"Tier 4b",Calculations!$C$429)*F9*10^3 -> 0 | G171: =IF($B$2="Historical",Calculations!G$406,Calculations!G$411)*G9*10^3 -> 0 | H171: =IF($B$2="Historical",Calculations!H$406,Calculations!H$411)*H9*10^3 -> 0 | I171: =IF($B$2="Historical",Calculations!I$406,Calculations!I$411)*I9*10^3 -> 2.177062156 | J171: =IF($B$2="Historical",Calculations!J$406,Calculations!J$411)*J9*10^3 -> 18.21162915 | K171: =IF($B$2="Historical",Calculations!K$406,Calculations!K$411)*K9*'Other Technical Data'!$B$16*10^3 -> 0 | L171: =IF($B$2="Historical",Calculations!L$406,Calculations!L$411)*L9*10^3 -> 0 | M171: =IF($B$2="Historical",Calculations!M$406,Calculations!M$411)*M9*10^3 -> 0 | N171: =IF($B$2="Historical",SUMPRODUCT(Calculations!B7:L7,Calculations!$C$433:$M$433),IF($B$2="Future BAU",SUMPRODUCT(Calculations!B45:L45,Calculations!$C$435:$M$435),IF($B$2="Tier 1",SUMPRODUCT(Calculations!B85:L85,Calculations!$C$435:$M$435),IF($B$2="Tier 2a",SUMPRODUCT(Calculations!B212:L212,Calculations!$C$435:$M$435),IF($B$2="Tier 2b",SUMPRODUCT(Calculations!B232:L232,Calculations!$C$435:$M$435),IF($B$2="Tier 3",SUMPRODUCT(Calculations!B271:L271,Calculations!$C$435:$M$435),IF($B$2="Tier 4a",SUMPRODUCT(Calculations!B310:L310,Calculations!$C$435:$M$435),IF($B$2="Tier 4b",SUMPRODUCT(Calculations!B370:L370,Calculations!$C$435:$M$435)))))))))/10^3 -> 0 | O171: =SUM(B171:N171) -> 20.3886913 | P171: =_xlfn.RANK.EQ(O171,$O$170:$O$183,0)+COUNTIF($O$170:$O171,O171)-1 -> 8
A172: Wood & furniture | B172: =IF($B$2="Historical",Calculations!B$406,Calculations!B$411)*B10*10^3 -> 0 | C172: =IF($B$2="Historical",Calculations!C$406,Calculations!C$411)*C10*10^3 -> 0 | D172: =IF($B$2="Historical",Calculations!D$406,Calculations!D$411)*D10*10^3 -> 0 | E172: =IF($B$2="Historical",Calculations!E$406,Calculations!E$411)*E10*10^3 -> 0 | F172: =_xlfn.SWITCH($B$2,"Historical",Calculations!$C$422,"Future BAU",Calculations!$C$423,"Tier 1",Calculations!$C$424,"Tier 2a",Calculations!$C$425,"Tier 2b",Calculations!$C$426,"Tier 3",Calculations!$C$427,"Tier 4a",Calculations!$C$428,"Tier 4b",Calculations!$C$429)*F10*10^3 -> 0 | G172: =IF($B$2="Historical",Calculations!G$406,Calculations!G$411)*G10*10^3 -> 0 | H172: =IF($B$2="Historical",Calculations!H$406,Calculations!H$411)*H10*10^3 -> 0 | I172: =IF($B$2="Historical",Calculations!I$406,Calculations!I$411)*I10*10^3 -> 0.06892295843 | J172: =IF($B$2="Historical",Calculations!J$406,Calculations!J$411)*J10*10^3 -> 4.432409066 | K172: =IF($B$2="Historical",Calculations!K$406,Calculations!K$411)*K10*'Other Technical Data'!$B$16*10^3 -> 0 | L172: =IF($B$2="Historical",Calculations!L$406,Calculations!L$411)*L10*10^3 -> 0 | M172: =IF($B$2="Historical",Calculations!M$406,Calculations!M$411)*M10*10^3 -> 0 | N172: =IF($B$2="Historical",SUMPRODUCT(Calculations!B8:L8,Calculations!$C$433:$M$433),IF($B$2="Future BAU",SUMPRODUCT(Calculations!B46:L46,Calculations!$C$435:$M$435),IF($B$2="Tier 1",SUMPRODUCT(Calculations!B86:L86,Calculations!$C$435:$M$435),IF($B$2="Tier 2a",SUMPRODUCT(Calculations!B213:L213,Calculations!$C$435:$M$435),IF($B$2="Tier 2b",SUMPRODUCT(Calculations!B233:L233,Calculations!$C$435:$M$435),IF($B$2="Tier 3",SUMPRODUCT(Calculations!B272:L272,Calculations!$C$435:$M$435),IF($B$2="Tier 4a",SUMPRODUCT(Calculations!B311:L311,Calculations!$C$435:$M$435),IF($B$2="Tier 4b",SUMPRODUCT(Calculations!B371:L371,Calculations!$C$435:$M$435)))))))))/10^3 -> 0 | O172: 4.501332024 | P172: =_xlfn.RANK.EQ(O172,$O$170:$O$183,0)+COUNTIF($O$170:$O172,O172)-1 -> 14
A173: Pulp, paper, & printing | B173: =IF($B$2="Historical",Calculations!B$406,Calculations!B$411)*B11*10^3 -> 0 | C173: =IF($B$2="Historical",Calculations!C$406,Calculations!C$411)*C11*10^3 -> 0 | D173: =IF($B$2="Historical",Calculations!D$406,Calculations!D$411)*D11*10^3 -> 0 | E173: =IF($B$2="Historical",Calculations!E$406,Calculations!E$411)*E11*10^3 -> 0 | F173: =_xlfn.SWITCH($B$2,"Historical",Calculations!$C$422,"Future BAU",Calculations!$C$423,"Tier 1",Calculations!$C$424,"Tier 2a",Calculations!$C$425,"Tier 2b",Calculations!$C$426,"Tier 3",Calculations!$C$427,"Tier 4a",Calculations!$C$428,"Tier 4b",Calculations!$C$429)*F11*10^3 -> 0 | G173: =IF($B$2="Historical",Calculations!G$406,Calculations!G$411)*G11*10^3 -> 0 | H173: =IF($B$2="Historical",Calculations!H$406,Calculations!H$411)*H11*10^3 -> 0 | I173: =IF($B$2="Historical",Calculations!I$406,Calculations!I$411)*I11*10^3 -> 2.536469726 | J173: =IF($B$2="Historical",Calculations!J$406,Calculations!J$411)*J11*10^3 -> 10.5360696 | K173: =IF($B$2="Historical",Calculations!K$406,Calculations!K$411)*K11*'Other Technical Data'!$B$16*10^3 -> 0 | L173: =IF($B$2="Historical",Calculations!L$406,Calculations!L$411)*L11*10^3 -> 0 | M173: =IF($B$2="Historical",Calculations!M$406,Calculations!M$411)*M11*10^3 -> 0 | N173: =IF($B$2="Historical",SUMPRODUCT(Calculations!B9:L9,Calculations!$C$433:$M$433),IF($B$2="Future BAU",SUMPRODUCT(Calculations!B47:L47,Calculations!$C$435:$M$435),IF($B$2="Tier 1",SUMPRODUCT(Calculations!B87:L87,Calculations!$C$435:$M$435),IF($B$2="Tier 2a",SUMPRODUCT(Calculations!B214:L214,Calculations!$C$435:$M$435),IF($B$2="Tier 2b",SUMPRODUCT(Calculations!B234:L234,Calculations!$C$435:$M$435),IF($B$2="Tier 3",SUMPRODUCT(Calculations!B273:L273,Calculations!$C$435:$M$435),IF($B$2="Tier 4a",SUMPRODUCT(Calculations!B312:L312,Calculations!$C$435:$M$435),IF($B$2="Tier 4b",SUMPRODUCT(Calculations!B372:L372,Calculations!$C$435:$M$435)))))))))/10^3 -> 0 | O173: 13.07253933 | P173: =_xlfn.RANK.EQ(O173,$O$170:$O$183,0)+COUNTIF($O$170:$O173,O173)-1 -> 10
A174: Refining & fuel processing | B174: =IF($B$2="Historical",Calculations!B$406,Calculations!B$411)*B12*10^3 -> 0 | C174: =IF($B$2="Historical",Calculations!C$406,Calculations!C$411)*C12*10^3 -> 0 | D174: =IF($B$2="Historical",Calculations!D$406,Calculations!D$411)*D12*10^3 -> 0 | E174: =IF($B$2="Historical",Calculations!E$406,Calculations!E$411)*E12*10^3 -> 0 | F174: =_xlfn.SWITCH($B$2,"Historical",Calculations!$C$422,"Future BAU",Calculations!$C$423,"Tier 1",Calculations!$C$424,"Tier 2a",Calculations!$C$425,"Tier 2b",Calculations!$C$426,"Tier 3",Calculations!$C$427,"Tier 4a",Calculations!$C$428,"Tier 4b",Calculations!$C$429)*F12*10^3 -> 0 | G174: =IF($B$2="Historical",Calculations!G$406,Calculations!G$411)*G12*10^3 -> 0 | H174: =IF($B$2="Historical",Calculations!H$406,Calculations!H$411)*H12*10^3 -> 0 | I174: =IF($B$2="Historical",Calculations!I$406,Calculations!I$411)*I12*10^3 -> 7.802242614 | J174: =IF($B$2="Historical",Calculations!J$406,Calculations!J$411)*J12*10^3 -> 38.89630699 | K174: =IF($B$2="Historical",Calculations!K$406,Calculations!K$411)*K12*'Other Technical Data'!$B$16*10^3 -> 70.53264055 | L174: =IF($B$2="Historical",Calculations!L$406,Calculations!L$411)*L12*10^3 -> 0 | M174: =IF($B$2="Historical",Calculations!M$406,Calculations!M$411)*M12*10^3 -> 0 | N174: =IF($B$2="Historical",SUMPRODUCT(Calculations!B10:L10,Calculations!$C$433:$M$433),IF($B$2="Future BAU",SUMPRODUCT(Calculations!B48:L48,Calculations!$C$435:$M$435),IF($B$2="Tier 1",SUMPRODUCT(Calculations!B88:L88,Calculations!$C$435:$M$435),IF($B$2="Tier 2a",SUMPRODUCT(Calculations!B215:L215,Calculations!$C$435:$M$435),IF($B$2="Tier 2b",SUMPRODUCT(Calculations!B235:L235,Calculations!$C$435:$M$435),IF($B$2="Tier 3",SUMPRODUCT(Calculations!B274:L274,Calculations!$C$435:$M$435),IF($B$2="Tier 4a",SUMPRODUCT(Calculations!B313:L313,Calculations!$C$435:$M$435),IF($B$2="Tier 4b",SUMPRODUCT(Calculations!B373:L373,Calculations!$C$435:$M$435)))))))))/10^3 -> 0 | O174: 117.2311901 | P174: =_xlfn.RANK.EQ(O174,$O$170:$O$183,0)+COUNTIF($O$170:$O174,O174)-1 -> 2
A175: Chemicals | B175: =IF($B$2="Historical",Calculations!B$406,Calculations!B$411)*B13*10^3 -> 0 | C175: =IF($B$2="Historical",Calculations!C$406,Calculations!C$411)*C13*10^3 -> 0 | D175: =IF($B$2="Historical",Calculations!D$406,Calculations!D$411)*D13*10^3 -> 0 | E175: =IF($B$2="Historical",Calculations!E$406,Calculations!E$411)*E13*10^3 -> 0 | F175: =_xlfn.SWITCH($B$2,"Historical",Calculations!$C$422,"Future BAU",Calculations!$C$423,"Tier 1",Calculations!$C$424,"Tier 2a",Calculations!$C$425,"Tier 2b",Calculations!$C$426,"Tier 3",Calculations!$C$427,"Tier 4a",Calculations!$C$428,"Tier 4b",Calculations!$C$429)*F13*10^3 -> 0 | G175: =IF($B$2="Historical",Calculations!G$406,Calculations!G$411)*G13*10^3 -> 0 | H175: =IF($B$2="Historical",Calculations!H$406,Calculations!H$411)*H13*10^3 -> 6.023098492 | I175: =IF($B$2="Historical",Calculations!I$406,Calculations!I$411)*I13*10^3 -> 25.60469507 | J175: =IF($B$2="Historical",Calculations!J$406,Calculations!J$411)*J13*10^3 -> 166.5519036 | K175: =IF($B$2="Historical",Calculations!K$406,Calculations!K$411)*K13*'Other Technical Data'!$B$16*10^3 -> 51.59421008 | L175: =IF($B$2="Historical",Calculations!L$406,Calculations!L$411)*L13*10^3 -> 23.231306 | M175: =IF($B$2="Historical",Calculations!M$406,Calculations!M$411)*M13*10^3 -> 0 | N175: =IF($B$2="Historical",SUMPRODUCT(Calculations!B11:L11,Calculations!$C$433:$M$433),IF($B$2="Future BAU",SUMPRODUCT(Calculations!B49:L49,Calculations!$C$435:$M$435),IF($B$2="Tier 1",SUMPRODUCT(Calculations!B89:L89,Calculations!$C$435:$M$435),IF($B$2="Tier 2a",SUMPRODUCT(Calculations!B216:L216,Calculations!$C$435:$M$435),IF($B$2="Tier 2b",SUMPRODUCT(Calculations!B236:L236,Calculations!$C$435:$M$435),IF($B$2="Tier 3",SUMPRODUCT(Calculations!B275:L275,Calculations!$C$435:$M$435),IF($B$2="Tier 4a",SUMPRODUCT(Calculations!B314:L314,Calculations!$C$435:$M$435),IF($B$2="Tier 4b",SUMPRODUCT(Calculations!B374:L374,Calculations!$C$435:$M$435)))))))))/10^3 -> 0.6611024137 | O175: 273.6663157 | P175: =_xlfn.RANK.EQ(O175,$O$170:$O$183,0)+COUNTIF($O$170:$O175,O175)-1 -> 1
A176: Plastic & rubber products | B176: =IF($B$2="Historical",Calculations!B$406,Calculations!B$411)*B14*10^3 -> 0 | C176: =IF($B$2="Historical",Calculations!C$406,Calculations!C$411)*C14*10^3 -> 0 | D176: =IF($B$2="Historical",Calculations!D$406,Calculations!D$411)*D14*10^3 -> 0 | E176: =IF($B$2="Historical",Calculations!E$406,Calculations!E$411)*E14*10^3 -> 0 | F176: =_xlfn.SWITCH($B$2,"Historical",Calculations!$C$422,"Future BAU",Calculations!$C$423,"Tier 1",Calculations!$C$424,"Tier 2a",Calculations!$C$425,"Tier 2b",Calculations!$C$426,"Tier 3",Calculations!$C$427,"Tier 4a",Calculations!$C$428,"Tier 4b",Calculations!$C$429)*F14*10^3 -> 0 | G176: =IF($B$2="Historical",Calculations!G$406,Calculations!G$411)*G14*10^3 -> 0 | H176: =IF($B$2="Historical",Calculations!H$406,Calculations!H$411)*H14*10^3 -> 0 | I176: =IF($B$2="Historical",Calculations!I$406,Calculations!I$411)*I14*10^3 -> 0.7608417967 | J176: =IF($B$2="Historical",Calculations!J$406,Calculations!J$411)*J14*10^3 -> 36.0809527 | K176: =IF($B$2="Historical",Calculations!K$406,Calculations!K$411)*K14*'Other Technical Data'!$B$16*10^3 -> 0 | L176: =IF($B$2="Historical",Calculations!L$406,Calculations!L$411)*L14*10^3 -> 0 | M176: =IF($B$2="Historical",Calculations!M$406,Calculations!M$411)*M14*10^3 -> 0 | N176: =IF($B$2="Historical",SUMPRODUCT(Calculations!B12:L12,Calculations!$C$433:$M$433),IF($B$2="Future BAU",SUMPRODUCT(Calculations!B50:L50,Calculations!$C$435:$M$435),IF($B$2="Tier 1",SUMPRODUCT(Calculations!B90:L90,Calculations!$C$435:$M$435),IF($B$2="Tier 2a",SUMPRODUCT(Calculations!B217:L217,Calculations!$C$435:$M$435),IF($B$2="Tier 2b",SUMPRODUCT(Calculations!B237:L237,Calculations!$C$435:$M$435),IF($B$2="Tier 3",SUMPRODUCT(Calculations!B276:L276,Calculations!$C$435:$M$435),IF($B$2="Tier 4a",SUMPRODUCT(Calculations!B315:L315,Calculations!$C$435:$M$435),IF($B$2="Tier 4b",SUMPRODUCT(Calculations!B375:L375,Calculations!$C$435:$M$435)))))))))/10^3 -> 0 | O176: 36.84179449 | P176: =_xlfn.RANK.EQ(O176,$O$170:$O$183,0)+COUNTIF($O$170:$O176,O176)-1 -> 6
A177: Non-metallic minerals | B177: =IF($B$2="Historical",Calculations!B$406,Calculations!B$411)*B15*10^3 -> 0 | C177: =IF($B$2="Historical",Calculations!C$406,Calculations!C$411)*C15*10^3 -> 0 | D177: =IF($B$2="Historical",Calculations!D$406,Calculations!D$411)*D15*10^3 -> 0 | E177: =IF($B$2="Historical",Calculations!E$406,Calculations!E$411)*E15*10^3 -> 0 | F177: =_xlfn.SWITCH($B$2,"Historical",Calculations!$C$422,"Future BAU",Calculations!$C$423,"Tier 1",Calculations!$C$424,"Tier 2a",Calculations!$C$425,"Tier 2b",Calculations!$C$426,"Tier 3",Calculations!$C$427,"Tier 4a",Calculations!$C$428,"Tier 4b",Calculations!$C$429)*F15*10^3 -> 0 | G177: =IF($B$2="Historical",Calculations!G$406,Calculations!G$411)*G15*10^3 -> 0 | H177: =IF($B$2="Historical",Calculations!H$406,Calculations!H$411)*H15*10^3 -> 0 | I177: =IF($B$2="Historical",Calculations!I$406,Calculations!I$411)*I15*10^3 -> 0.1978868651 | J177: =IF($B$2="Historical",Calculations!J$406,Calculations!J$411)*J15*10^3 -> 30.12671932 | K177: =IF($B$2="Historical",Calculations!K$406,Calculations!K$411)*K15*'Other Technical Data'!$B$16*10^3 -> 8.262394035 | L177: =IF($B$2="Historical",Calculations!L$406,Calculations!L$411)*L15*10^3 -> 0 | M177: =IF($B$2="Historical",Calculations!M$406,Calculations!M$411)*M15*10^3 -> 13.62412363 | N177: =IF($B$2="Historical",SUMPRODUCT(Calculations!B13:L13,Calculations!$C$433:$M$433),IF($B$2="Future BAU",SUMPRODUCT(Calculations!B51:L51,Calculations!$C$435:$M$435),IF($B$2="Tier 1",SUMPRODUCT(Calculations!B91:L91,Calculations!$C$435:$M$435),IF($B$2="Tier 2a",SUMPRODUCT(Calculations!B218:L218,Calculations!$C$435:$M$435),IF($B$2="Tier 2b",SUMPRODUCT(Calculations!B238:L238,Calculations!$C$435:$M$435),IF($B$2="Tier 3",SUMPRODUCT(Calculations!B277:L277,Calculations!$C$435:$M$435),IF($B$2="Tier 4a",SUMPRODUCT(Calculations!B316:L316,Calculations!$C$435:$M$435),IF($B$2="Tier 4b",SUMPRODUCT(Calculations!B376:L376,Calculations!$C$435:$M$435)))))))))/10^3 -> 0.967954405 | O177: 53.17907826 | P177: =_xlfn.RANK.EQ(O177,$O$170:$O$183,0)+COUNTIF($O$170:$O177,O177)-1 -> 5
A178: Iron & steel | B178: =IF($B$2="Historical",Calculations!B$406,Calculations!B$411)*B16*10^3 -> 0 | C178: =IF($B$2="Historical",Calculations!C$406,Calculations!C$411)*C16*10^3 -> 0 | D178: =IF($B$2="Historical",Calculations!D$406,Calculations!D$411)*D16*10^3 -> 0 | E178: =IF($B$2="Historical",Calculations!E$406,Calculations!E$411)*E16*10^3 -> 0 | F178: =_xlfn.SWITCH($B$2,"Historical",Calculations!$C$422,"Future BAU",Calculations!$C$423,"Tier 1",Calculations!$C$424,"Tier 2a",Calculations!$C$425,"Tier 2b",Calculations!$C$426,"Tier 3",Calculations!$C$427,"Tier 4a",Calculations!$C$428,"Tier 4b",Calculations!$C$429)*F16*10^3 -> 0 | G178: =IF($B$2="Historical",Calculations!G$406,Calculations!G$411)*G16*10^3 -> 0 | H178: =IF($B$2="Historical",Calculations!H$406,Calculations!H$411)*H16*10^3 -> 0 | I178: =IF($B$2="Historical",Calculations!I$406,Calculations!I$411)*I16*10^3 -> 0.6717797709 | J178: =IF($B$2="Historical",Calculations!J$406,Calculations!J$411)*J16*10^3 -> 70.34321092 | K178: =IF($B$2="Historical",Calculations!K$406,Calculations!K$411)*K16*'Other Technical Data'!$B$16*10^3 -> 12.28488264 | L178: =IF($B$2="Historical",Calculations!L$406,Calculations!L$411)*L16*10^3 -> 0 | M178: =IF($B$2="Historical",Calculations!M$406,Calculations!M$411)*M16*10^3 -> 11.19257386 | N178: =IF($B$2="Historical",SUMPRODUCT(Calculations!B14:L14,Calculations!$C$433:$M$433),IF($B$2="Future BAU",SUMPRODUCT(Calculations!B52:L52,Calculations!$C$435:$M$435),IF($B$2="Tier 1",SUMPRODUCT(Calculations!B92:L92,Calculations!$C$435:$M$435),IF($B$2="Tier 2a",SUMPRODUCT(Calculations!B219:L219,Calculations!$C$435:$M$435),IF($B$2="Tier 2b",SUMPRODUCT(Calculations!B239:L239,Calculations!$C$435:$M$435),IF($B$2="Tier 3",SUMPRODUCT(Calculations!B278:L278,Calculations!$C$435:$M$435),IF($B$2="Tier 4a",SUMPRODUCT(Calculations!B317:L317,Calculations!$C$435:$M$435),IF($B$2="Tier 4b",SUMPRODUCT(Calculations!B377:L377,Calculations!$C$435:$M$435)))))))))/10^3 -> 0.795199858 | O178: 95.28764705 | P178: =_xlfn.RANK.EQ(O178,$O$170:$O$183,0)+COUNTIF($O$170:$O178,O178)-1 -> 3
A179: Nonferrous metals | B179: =IF($B$2="Historical",Calculations!B$406,Calculations!B$411)*B17*10^3 -> 0 | C179: =IF($B$2="Historical",Calculations!C$406,Calculations!C$411)*C17*10^3 -> 0 | D179: =IF($B$2="Historical",Calculations!D$406,Calculations!D$411)*D17*10^3 -> 0 | E179: =IF($B$2="Historical",Calculations!E$406,Calculations!E$411)*E17*10^3 -> 0 | F179: =_xlfn.SWITCH($B$2,"Historical",Calculations!$C$422,"Future BAU",Calculations!$C$423,"Tier 1",Calculations!$C$424,"Tier 2a",Calculations!$C$425,"Tier 2b",Calculations!$C$426,"Tier 3",Calculations!$C$427,"Tier 4a",Calculations!$C$428,"Tier 4b",Calculations!$C$429)*F17*10^3 -> 0 | G179: =IF($B$2="Historical",Calculations!G$406,Calculations!G$411)*G17*10^3 -> 0 | H179: =IF($B$2="Historical",Calculations!H$406,Calculations!H$411)*H17*10^3 -> 0 | I179: =IF($B$2="Historical",Calculations!I$406,Calculations!I$411)*I17*10^3 -> 1.854679095 | J179: =IF($B$2="Historical",Calculations!J$406,Calculations!J$411)*J17*10^3 -> 61.05589582 | K179: =IF($B$2="Historical",Calculations!K$406,Calculations!K$411)*K17*'Other Technical Data'!$B$16*10^3 -> 0.813174769 | L179: =IF($B$2="Historical",Calculations!L$406,Calculations!L$411)*L17*10^3 -> 0 | M179: =IF($B$2="Historical",Calculations!M$406,Calculations!M$411)*M17*10^3 -> 0 | N179: =IF($B$2="Historical",SUMPRODUCT(Calculations!B15:L15,Calculations!$C$433:$M$433),IF($B$2="Future BAU",SUMPRODUCT(Calculations!B53:L53,Calculations!$C$435:$M$435),IF($B$2="Tier 1",SUMPRODUCT(Calculations!B93:L93,Calculations!$C$435:$M$435),IF($B$2="Tier 2a",SUMPRODUCT(Calculations!B220:L220,Calculations!$C$435:$M$435),IF($B$2="Tier 2b",SUMPRODUCT(Calculations!B240:L240,Calculations!$C$435:$M$435),IF($B$2="Tier 3",SUMPRODUCT(Calculations!B279:L279,Calculations!$C$435:$M$435),IF($B$2="Tier 4a",SUMPRODUCT(Calculations!B318:L318,Calculations!$C$435:$M$435),IF($B$2="Tier 4b",SUMPRODUCT(Calculations!B378:L378,Calculations!$C$435:$M$435)))))))))/10^3 -> 0 | O179: 63.72374968 | P179: =_xlfn.RANK.EQ(O179,$O$170:$O$183,0)+COUNTIF($O$170:$O179,O179)-1 -> 4
A180: Machinery | B180: =IF($B$2="Historical",Calculations!B$406,Calculations!B$411)*B18*10^3 -> 0 | C180: =IF($B$2="Historical",Calculations!C$406,Calculations!C$411)*C18*10^3 -> 2.831770307e-18 | D180: =IF($B$2="Historical",Calculations!D$406,Calculations!D$411)*D18*10^3 -> 2.503024559e-17 | E180: =IF($B$2="Historical",Calculations!E$406,Calculations!E$411)*E18*10^3 -> 1.616604505e-18 | F180: =_xlfn.SWITCH($B$2,"Historical",Calculations!$C$422,"Future BAU",Calculations!$C$423,"Tier 1",Calculations!$C$424,"Tier 2a",Calculations!$C$425,"Tier 2b",Calculations!$C$426,"Tier 3",Calculations!$C$427,"Tier 4a",Calculations!$C$428,"Tier 4b",Calculations!$C$429)*F18*10^3 -> 9.985506795e-17 | G180: =IF($B$2="Historical",Calculations!G$406,Calculations!G$411)*G18*10^3 -> 5.112292815e-16 | H180: =IF($B$2="Historical",Calculations!H$406,Calculations!H$411)*H18*10^3 -> 0 | I180: =IF($B$2="Historical",Calculations!I$406,Calculations!I$411)*I18*10^3 -> 0.1911995404 | J180: =IF($B$2="Historical",Calculations!J$406,Calculations!J$411)*J18*10^3 -> 19.93190201 | K180: =IF($B$2="Historical",Calculations!K$406,Calculations!K$411)*K18*'Other Technical Data'!$B$16*10^3 -> 0 | L180: =IF($B$2="Historical",Calculations!L$406,Calculations!L$411)*L18*10^3 -> 0 | M180: =IF($B$2="Historical",Calculations!M$406,Calculations!M$411)*M18*10^3 -> 0 | N180: =IF($B$2="Historical",SUMPRODUCT(Calculations!B16:L16,Calculations!$C$433:$M$433),IF($B$2="Future BAU",SUMPRODUCT(Calculations!B54:L54,Calculations!$C$435:$M$435),IF($B$2="Tier 1",SUMPRODUCT(Calculations!B94:L94,Calculations!$C$435:$M$435),IF($B$2="Tier 2a",SUMPRODUCT(Calculations!B221:L221,Calculations!$C$435:$M$435),IF($B$2="Tier 2b",SUMPRODUCT(Calculations!B241:L241,Calculations!$C$435:$M$435),IF($B$2="Tier 3",SUMPRODUCT(Calculations!B280:L280,Calculations!$C$435:$M$435),IF($B$2="Tier 4a",SUMPRODUCT(Calculations!B319:L319,Calculations!$C$435:$M$435),IF($B$2="Tier 4b",SUMPRODUCT(Calculations!B379:L379,Calculations!$C$435:$M$435)))))))))/10^3 -> 1.329848783e-16 | O180: 20.12310155 | P180: =_xlfn.RANK.EQ(O180,$O$170:$O$183,0)+COUNTIF($O$170:$O180,O180)-1 -> 9
A181: Vehicles & transport equipment | B181: =IF($B$2="Historical",Calculations!B$406,Calculations!B$411)*B19*10^3 -> 0 | C181: =IF($B$2="Historical",Calculations!C$406,Calculations!C$411)*C19*10^3 -> 0 | D181: =IF($B$2="Historical",Calculations!D$406,Calculations!D$411)*D19*10^3 -> 0 | E181: =IF($B$2="Historical",Calculations!E$406,Calculations!E$411)*E19*10^3 -> 0 | F181: =_xlfn.SWITCH($B$2,"Historical",Calculations!$C$422,"Future BAU",Calculations!$C$423,"Tier 1",Calculations!$C$424,"Tier 2a",Calculations!$C$425,"Tier 2b",Calculations!$C$426,"Tier 3",Calculations!$C$427,"Tier 4a",Calculations!$C$428,"Tier 4b",Calculations!$C$429)*F19*10^3 -> 0 | G181: =IF($B$2="Historical",Calculations!G$406,Calculations!G$411)*G19*10^3 -> 0 | H181: =IF($B$2="Historical",Calculations!H$406,Calculations!H$411)*H19*10^3 -> 0 | I181: =IF($B$2="Historical",Calculations!I$406,Calculations!I$411)*I19*10^3 -> 0.1540662259 | J181: =IF($B$2="Historical",Calculations!J$406,Calculations!J$411)*J19*10^3 -> 10.99965587 | K181: =IF($B$2="Historical",Calculations!K$406,Calculations!K$411)*K19*'Other Technical Data'!$B$16*10^3 -> 0 | L181: =IF($B$2="Historical",Calculations!L$406,Calculations!L$411)*L19*10^3 -> 0 | M181: =IF($B$2="Historical",Calculations!M$406,Calculations!M$411)*M19*10^3 -> 0 | N181: =IF($B$2="Historical",SUMPRODUCT(Calculations!B17:L17,Calculations!$C$433:$M$433),IF($B$2="Future BAU",SUMPRODUCT(Calculations!B55:L55,Calculations!$C$435:$M$435),IF($B$2="Tier 1",SUMPRODUCT(Calculations!B95:L95,Calculations!$C$435:$M$435),IF($B$2="Tier 2a",SUMPRODUCT(Calculations!B222:L222,Calculations!$C$435:$M$435),IF($B$2="Tier 2b",SUMPRODUCT(Calculations!B242:L242,Calculations!$C$435:$M$435),IF($B$2="Tier 3",SUMPRODUCT(Calculations!B281:L281,Calculations!$C$435:$M$435),IF($B$2="Tier 4a",SUMPRODUCT(Calculations!B320:L320,Calculations!$C$435:$M$435),IF($B$2="Tier 4b",SUMPRODUCT(Calculations!B380:L380,Calculations!$C$435:$M$435)))))))))/10^3 -> 0 | O181: 11.1537221 | P181: =_xlfn.RANK.EQ(O181,$O$170:$O$183,0)+COUNTIF($O$170:$O181,O181)-1 -> 13
A182: Electronics | B182: =IF($B$2="Historical",Calculations!B$406,Calculations!B$411)*B20*10^3 -> 0 | C182: =IF($B$2="Historical",Calculations!C$406,Calculations!C$411)*C20*10^3 -> 1.030052585e-18 | D182: =IF($B$2="Historical",Calculations!D$406,Calculations!D$411)*D20*10^3 -> 3.777698967e-21 | E182: =IF($B$2="Historical",Calculations!E$406,Calculations!E$411)*E20*10^3 -> 4.331761482e-19 | F182: =_xlfn.SWITCH($B$2,"Historical",Calculations!$C$422,"Future BAU",Calculations!$C$423,"Tier 1",Calculations!$C$424,"Tier 2a",Calculations!$C$425,"Tier 2b",Calculations!$C$426,"Tier 3",Calculations!$C$427,"Tier 4a",Calculations!$C$428,"Tier 4b",Calculations!$C$429)*F20*10^3 -> 1.544728091e-17 | G182: =IF($B$2="Historical",Calculations!G$406,Calculations!G$411)*G20*10^3 -> 1.806729054e-16 | H182: =IF($B$2="Historical",Calculations!H$406,Calculations!H$411)*H20*10^3 -> 0 | I182: =IF($B$2="Historical",Calculations!I$406,Calculations!I$411)*I20*10^3 -> 0.1581999721 | J182: =IF($B$2="Historical",Calculations!J$406,Calculations!J$411)*J20*10^3 -> 11.98681095 | K182: =IF($B$2="Historical",Calculations!K$406,Calculations!K$411)*K20*'Other Technical Data'!$B$16*10^3 -> 0 | L182: =IF($B$2="Historical",Calculations!L$406,Calculations!L$411)*L20*10^3 -> 0 | M182: =IF($B$2="Historical",Calculations!M$406,Calculations!M$411)*M20*10^3 -> 0 | N182: =IF($B$2="Historical",SUMPRODUCT(Calculations!B18:L18,Calculations!$C$433:$M$433),IF($B$2="Future BAU",SUMPRODUCT(Calculations!B56:L56,Calculations!$C$435:$M$435),IF($B$2="Tier 1",SUMPRODUCT(Calculations!B96:L96,Calculations!$C$435:$M$435),IF($B$2="Tier 2a",SUMPRODUCT(Calculations!B223:L223,Calculations!$C$435:$M$435),IF($B$2="Tier 2b",SUMPRODUCT(Calculations!B243:L243,Calculations!$C$435:$M$435),IF($B$2="Tier 3",SUMPRODUCT(Calculations!B282:L282,Calculations!$C$435:$M$435),IF($B$2="Tier 4a",SUMPRODUCT(Calculations!B321:L321,Calculations!$C$435:$M$435),IF($B$2="Tier 4b",SUMPRODUCT(Calculations!B381:L381,Calculations!$C$435:$M$435)))))))))/10^3 -> 3.107665254e-17 | O182: 12.14501092 | P182: =_xlfn.RANK.EQ(O182,$O$170:$O$183,0)+COUNTIF($O$170:$O182,O182)-1 -> 11
A183: Other metal products | B183: =IF($B$2="Historical",Calculations!B$406,Calculations!B$411)*B21*10^3 -> 0 | C183: =IF($B$2="Historical",Calculations!C$406,Calculations!C$411)*C21*10^3 -> 0 | D183: =IF($B$2="Historical",Calculations!D$406,Calculations!D$411)*D21*10^3 -> 0 | E183: =IF($B$2="Historical",Calculations!E$406,Calculations!E$411)*E21*10^3 -> 0 | F183: =_xlfn.SWITCH($B$2,"Historical",Calculations!$C$422,"Future BAU",Calculations!$C$423,"Tier 1",Calculations!$C$424,"Tier 2a",Calculations!$C$425,"Tier 2b",Calculations!$C$426,"Tier 3",Calculations!$C$427,"Tier 4a",Calculations!$C$428,"Tier 4b",Calculations!$C$429)*F21*10^3 -> 0 | G183: =IF($B$2="Historical",Calculations!G$406,Calculations!G$411)*G21*10^3 -> 0 | H183: =IF($B$2="Historical",Calculations!H$406,Calculations!H$411)*H21*10^3 -> 0 | I183: =IF($B$2="Historical",Calculations!I$406,Calculations!I$411)*I21*10^3 -> 0.05406955515 | J183: =IF($B$2="Historical",Calculations!J$406,Calculations!J$411)*J21*10^3 -> 11.19033434 | K183: =IF($B$2="Historical",Calculations!K$406,Calculations!K$411)*K21*'Other Technical Data'!$B$16*10^3 -> 0 | L183: =IF($B$2="Historical",Calculations!L$406,Calculations!L$411)*L21*10^3 -> 0 | M183: =IF($B$2="Historical",Calculations!M$406,Calculations!M$411)*M21*10^3 -> 0 | N183: =IF($B$2="Historical",SUMPRODUCT(Calculations!B19:L19,Calculations!$C$433:$M$433),IF($B$2="Future BAU",SUMPRODUCT(Calculations!B57:L57,Calculations!$C$435:$M$435),IF($B$2="Tier 1",SUMPRODUCT(Calculations!B97:L97,Calculations!$C$435:$M$435),IF($B$2="Tier 2a",SUMPRODUCT(Calculations!B224:L224,Calculations!$C$435:$M$435),IF($B$2="Tier 2b",SUMPRODUCT(Calculations!B244:L244,Calculations!$C$435:$M$435),IF($B$2="Tier 3",SUMPRODUCT(Calculations!B283:L283,Calculations!$C$435:$M$435),IF($B$2="Tier 4a",SUMPRODUCT(Calculations!B322:L322,Calculations!$C$435:$M$435),IF($B$2="Tier 4b",SUMPRODUCT(Calculations!B382:L382,Calculations!$C$435:$M$435)))))))))/10^3 -> 0 | O183: 11.2444039 | P183: =_xlfn.RANK.EQ(O183,$O$170:$O$183,0)+COUNTIF($O$170:$O183,O183)-1 -> 12
A184: Other manufacturing | B184: =IF($B$2="Historical",Calculations!B$406,Calculations!B$411)*B22*10^3 -> 0 | C184: =IF($B$2="Historical",Calculations!C$406,Calculations!C$411)*C22*10^3 -> 5.501781895e-19 | D184: =IF($B$2="Historical",Calculations!D$406,Calculations!D$411)*D22*10^3 -> 4.732715609e-21 | E184: =IF($B$2="Historical",Calculations!E$406,Calculations!E$411)*E22*10^3 -> 9.110477547e-20 | F184: =_xlfn.SWITCH($B$2,"Historical",Calculations!$C$422,"Future BAU",Calculations!$C$423,"Tier 1",Calculations!$C$424,"Tier 2a",Calculations!$C$425,"Tier 2b",Calculations!$C$426,"Tier 3",Calculations!$C$427,"Tier 4a",Calculations!$C$428,"Tier 4b",Calculations!$C$429)*F22*10^3 -> 1.672440281e-17 | G184: =IF($B$2="Historical",Calculations!G$406,Calculations!G$411)*G22*10^3 -> 8.727888197e-17 | H184: =IF($B$2="Historical",Calculations!H$406,Calculations!H$411)*H22*10^3 -> 0 | I184: =IF($B$2="Historical",Calculations!I$406,Calculations!I$411)*I22*10^3 -> 0.0284672166 | J184: =IF($B$2="Historical",Calculations!J$406,Calculations!J$411)*J22*10^3 -> 9.09092065 | K184: =IF($B$2="Historical",Calculations!K$406,Calculations!K$411)*K22*'Other Technical Data'!$B$16*10^3 -> 0 | L184: =IF($B$2="Historical",Calculations!L$406,Calculations!L$411)*L22*10^3 -> 0 | M184: =IF($B$2="Historical",Calculations!M$406,Calculations!M$411)*M22*10^3 -> 0 | N184: =IF($B$2="Historical",SUMPRODUCT(Calculations!B20:L20,Calculations!$C$433:$M$433),IF($B$2="Future BAU",SUMPRODUCT(Calculations!B58:L58,Calculations!$C$435:$M$435),IF($B$2="Tier 1",SUMPRODUCT(Calculations!B98:L98,Calculations!$C$435:$M$435),IF($B$2="Tier 2a",SUMPRODUCT(Calculations!B225:L225,Calculations!$C$435:$M$435),IF($B$2="Tier 2b",SUMPRODUCT(Calculations!B245:L245,Calculations!$C$435:$M$435),IF($B$2="Tier 3",SUMPRODUCT(Calculations!B284:L284,Calculations!$C$435:$M$435),IF($B$2="Tier 4a",SUMPRODUCT(Calculations!B323:L323,Calculations!$C$435:$M$435),IF($B$2="Tier 4b",SUMPRODUCT(Calculations!B383:L383,Calculations!$C$435:$M$435)))))))))/10^3 -> 1.67033753e-17 | O184: 9.119387867
A186: Sorted by Subindustry Total
B187: Fossil Feedstocks | C187: Coal | D187: Coke | E187: Coal/Coke Byproducts | F187: Petroleum | G187: Natural Gas | H187: Bioenergy and Waste | I187: Purchased Heat | J187: Direct Use of Electricity | K187: Green Hydrogen | L187: Blue Hydrogen | M187: Fossil Fuels w/ Carbon Capture | N187: Carbon Pricing | O187: Total | P187: Rank
A188: =INDEX(A$170:A$183,MATCH($P188,$P$170:$P$183,0)) -> Chemicals | B188: 0 | C188: 0 | D188: 0 | E188: 0 | F188: 0 | G188: 0 | H188: 6.023098492 | I188: 25.60469507 | J188: 166.5519036 | K188: 51.59421008 | L188: 23.231306 | M188: 0 | N188: 0.6611024137 | O188: 273.6663157 | P188: 1
A189: =INDEX(A$170:A$183,MATCH($P189,$P$170:$P$183,0)) -> Refining & fuel processing | B189: 0 | C189: 0 | D189: 0 | E189: 0 | F189: 0 | G189: 0 | H189: 0 | I189: 7.802242614 | J189: 38.89630699 | K189: 70.53264055 | L189: 0 | M189: 0 | N189: 0 | O189: 117.2311901 | P189: 2
A190: Iron & steel | B190: 0 | C190: 0 | D190: 0 | E190: 0 | F190: 0 | G190: 0 | H190: 0 | I190: 0.6717797709 | J190: 70.34321092 | K190: 12.28488264 | L190: 0 | M190: 11.19257386 | N190: 0.795199858 | O190: 95.28764705 | P190: 3
A191: Nonferrous metals | B191: 0 | C191: 0 | D191: 0 | E191: 0 | F191: 0 | G191: 0 | H191: 0 | I191: 1.854679095 | J191: 61.05589582 | K191: 0.813174769 | L191: 0 | M191: 0 | N191: 0 | O191: 63.72374968 | P191: 4
A192: Non-metallic minerals | B192: 0 | C192: 0 | D192: 0 | E192: 0 | F192: 0 | G192: 0 | H192: 0 | I192: 0.1978868651 | J192: 30.12671932 | K192: 8.262394035 | L192: 0 | M192: 13.62412363 | N192: 0.967954405 | O192: 53.17907826 | P192: 5
A193: Plastic & rubber products | B193: 0 | C193: 0 | D193: 0 | E193: 0 | F193: 0 | G193: 0 | H193: 0 | I193: 0.7608417967 | J193: 36.0809527 | K193: 0 | L193: 0 | M193: 0 | N193: 0 | O193: 36.84179449 | P193: 6
A194: Food, beverage, & tobacco | B194: 0 | C194: 9.022046629e-17 | D194: 1.553494917e-18 | E194: 7.018085766e-20 | F194: 4.275569086e-17 | G194: 6.215219303e-16 | H194: 0 | I194: 3.341829528 | J194: 19.7602859 | K194: 0 | L194: 0 | M194: 0 | N194: 2.063227869e-16 | O194: 23.10211543 | P194: 7
A195: Textiles, leather, & apparel | B195: 0 | C195: 0 | D195: 0 | E195: 0 | F195: 0 | G195: 0 | H195: 0 | I195: 2.177062156 | J195: 18.21162915 | K195: 0 | L195: 0 | M195: 0 | N195: 0 | O195: 20.3886913 | P195: 8
A196: Machinery | B196: 0 | C196: 2.831770307e-18 | D196: 2.503024559e-17 | E196: 1.616604505e-18 | F196: 9.985506795e-17 | G196: 5.112292815e-16 | H196: 0 | I196: 0.1911995404 | J196: 19.93190201 | K196: 0 | L196: 0 | M196: 0 | N196: 1.329848783e-16 | O196: 20.12310155 | P196: 9
A197: Pulp, paper, & printing | B197: 0 | C197: 0 | D197: 0 | E197: 0 | F197: 0 | G197: 0 | H197: 0 | I197: 2.536469726 | J197: 10.5360696 | K197: 0 | L197: 0 | M197: 0 | N197: 0 | O197: 13.07253933 | P197: 10
A198: Electronics | B198: 0 | C198: 1.030052585e-18 | D198: 3.777698967e-21 | E198: 4.331761482e-19 | F198: 1.544728091e-17 | G198: 1.806729054e-16 | H198: 0 | I198: 0.1581999721 | J198: 11.98681095 | K198: 0 | L198: 0 | M198: 0 | N198: 3.107665254e-17 | O198: 12.14501092 | P198: 11
A199: Other metal products | B199: 0 | C199: 0 | D199: 0 | E199: 0 | F199: 0 | G199: 0 | H199: 0 | I199: 0.05406955515 | J199: 11.19033434 | K199: 0 | L199: 0 | M199: 0 | N199: 0 | O199: 11.2444039 | P199: 12
A200: Vehicles & transport equipment | B200: 0 | C200: 0 | D200: 0 | E200: 0 | F200: 0 | G200: 0 | H200: 0 | I200: 0.1540662259 | J200: 10.99965587 | K200: 0 | L200: 0 | M200: 0 | N200: 0 | O200: 11.1537221 | P200: 13
A201: Wood & furniture | B201: 0 | C201: 0 | D201: 0 | E201: 0 | F201: 0 | G201: 0 | H201: 0 | I201: 0.06892295843 | J201: 4.432409066 | K201: 0 | L201: 0 | M201: 0 | N201: 0 | O201: 4.501332024 | P201: 14
A202: =A184 -> Other manufacturing | B202: =B184 -> 0 | C202: 5.501781895e-19 | D202: 4.732715609e-21 | E202: 9.110477547e-20 | F202: 1.672440281e-17 | G202: 8.727888197e-17 | H202: 0 | I202: 0.0284672166 | J202: 9.09092065 | K202: 0 | L202: 0 | M202: 0 | N202: 1.67033753e-17 | O202: 9.119387867
A247: CapEx Need by Subindustry by Tier
B249: Tier 1: Efficiency | C249: Tier 2a: Easy Electrification | D249: Tier 2b: Other Electrification | E249: Tier 3: CCS | F249: Tier 4a: Green H2 | G249: Tier 4b: Chem. Feedstocks
A250: Select which tiers to show on graph: | B250: Include | C250: Include | D250: Include | E250: Include | F250: Include | G250: Include
A252: Unsorted Subindustry Data
A253: Industry | B253: Tier 1: Efficiency | C253: Tier 2a: Easy Electrification | D253: Tier 2b: Other Electrification | E253: Tier 3: CCS | F253: Tier 4a: Green H2 | G253: Tier 4b: Chem. Feedstocks | H253: Unit | I253: Total of Included Tiers | J253: Rank
A254: Food, beverage, & tobacco | B254: =IF(B$250="Include",Calculations!B573/10^3,0) -> 0.523880372 | C254: =IF(C$250="Include",Calculations!C573/10^3,0) -> 8.43190615 | D254: =IF(D$250="Include",Calculations!D573/10^3,0) -> 0.2643442039 | E254: =IF(E$250="Include",Calculations!E573/10^3,0) -> 0 | F254: =IF(F$250="Include",Calculations!F573/10^3,0) -> 0 | G254: =IF(G$250="Include",Calculations!G573/10^3,0) -> 0 | H254: billion $ | I254: =SUM(B254:G254) -> 9.220130726 | J254: =_xlfn.RANK.EQ(I254,$I$254:$I$267,0)+COUNTIF($I$254:I254,I254)-1 -> 6
A255: Textiles, leather, & apparel | B255: =IF(B$250="Include",Calculations!B574/10^3,0) -> 2.37252842 | C255: =IF(C$250="Include",Calculations!C574/10^3,0) -> 1.628045642 | D255: =IF(D$250="Include",Calculations!D574/10^3,0) -> 2.106845531 | E255: =IF(E$250="Include",Calculations!E574/10^3,0) -> 0 | F255: =IF(F$250="Include",Calculations!F574/10^3,0) -> 0 | G255: =IF(G$250="Include",Calculations!G574/10^3,0) -> 0 | H255: billion $ | I255: =SUM(B255:G255) -> 6.107419593 | J255: =_xlfn.RANK.EQ(I255,$I$254:$I$267,0)+COUNTIF($I$254:I255,I255)-1 -> 11
A256: Wood & furniture | B256: =IF(B$250="Include",Calculations!B575/10^3,0) -> 0.1454174128 | C256: =IF(C$250="Include",Calculations!C575/10^3,0) -> 0.1533375155 | D256: =IF(D$250="Include",Calculations!D575/10^3,0) -> 0.4627726827 | E256: =IF(E$250="Include",Calculations!E575/10^3,0) -> 0 | F256: =IF(F$250="Include",Calculations!F575/10^3,0) -> 0 | G256: =IF(G$250="Include",Calculations!G575/10^3,0) -> 0 | H256: billion $ | I256: 0.761527611 | J256: =_xlfn.RANK.EQ(I256,$I$254:$I$267,0)+COUNTIF($I$254:I256,I256)-1 -> 14
A257: Pulp, paper, & printing | B257: =IF(B$250="Include",Calculations!B576/10^3,0) -> 0.7733124083 | C257: =IF(C$250="Include",Calculations!C576/10^3,0) -> 0.9342294192 | D257: =IF(D$250="Include",Calculations!D576/10^3,0) -> 6.43073682 | E257: =IF(E$250="Include",Calculations!E576/10^3,0) -> 0 | F257: =IF(F$250="Include",Calculations!F576/10^3,0) -> 0 | G257: =IF(G$250="Include",Calculations!G576/10^3,0) -> 0 | H257: billion $ | I257: 8.138278648 | J257: =_xlfn.RANK.EQ(I257,$I$254:$I$267,0)+COUNTIF($I$254:I257,I257)-1 -> 9
A258: Refining & fuel processing | B258: =IF(B$250="Include",Calculations!B577/10^3,0) -> 5.191817547 | C258: =IF(C$250="Include",Calculations!C577/10^3,0) -> 33.64180956 | D258: =IF(D$250="Include",Calculations!D577/10^3,0) -> 7.767011818 | E258: =IF(E$250="Include",Calculations!E577/10^3,0) -> 0 | F258: =IF(F$250="Include",Calculations!F577/10^3,0) -> 225.8951494 | G258: =IF(G$250="Include",Calculations!G577/10^3,0) -> 0 | H258: billion $ | I258: 272.4957883 | J258: =_xlfn.RANK.EQ(I258,$I$254:$I$267,0)+COUNTIF($I$254:I258,I258)-1 -> 3
A259: Chemicals | B259: =IF(B$250="Include",Calculations!B578/10^3,0) -> 26.53355608 | C259: =IF(C$250="Include",Calculations!C578/10^3,0) -> 110.9901873 | D259: =IF(D$250="Include",Calculations!D578/10^3,0) -> 87.24984946 | E259: =IF(E$250="Include",Calculations!E578/10^3,0) -> 0 | F259: =IF(F$250="Include",Calculations!F578/10^3,0) -> 66.03698145 | G259: =IF(G$250="Include",Calculations!G578/10^3,0) -> 201.1522446 | H259: billion $ | I259: 491.9628189 | J259: =_xlfn.RANK.EQ(I259,$I$254:$I$267,0)+COUNTIF($I$254:I259,I259)-1 -> 1
A260: Plastic & rubber products | B260: =IF(B$250="Include",Calculations!B579/10^3,0) -> 0.1899146285 | C260: =IF(C$250="Include",Calculations!C579/10^3,0) -> 2.080809203 | D260: =IF(D$250="Include",Calculations!D579/10^3,0) -> 3.966154815 | E260: =IF(E$250="Include",Calculations!E579/10^3,0) -> 0 | F260: =IF(F$250="Include",Calculations!F579/10^3,0) -> 0 | G260: =IF(G$250="Include",Calculations!G579/10^3,0) -> 0 | H260: billion $ | I260: 6.236878646 | J260: =_xlfn.RANK.EQ(I260,$I$254:$I$267,0)+COUNTIF($I$254:I260,I260)-1 -> 10
A261: Non-metallic minerals | B261: =IF(B$250="Include",Calculations!B580/10^3,0) -> 8.088521514 | C261: =IF(C$250="Include",Calculations!C580/10^3,0) -> 3.610227991 | D261: =IF(D$250="Include",Calculations!D580/10^3,0) -> 36.43125205 | E261: =IF(E$250="Include",Calculations!E580/10^3,0) -> 290.2072886 | F261: =IF(F$250="Include",Calculations!F580/10^3,0) -> 26.46200001 | G261: =IF(G$250="Include",Calculations!G580/10^3,0) -> 0 | H261: billion $ | I261: 364.7992901 | J261: =_xlfn.RANK.EQ(I261,$I$254:$I$267,0)+COUNTIF($I$254:I261,I261)-1 -> 2
A262: Iron & steel | B262: =IF(B$250="Include",Calculations!B581/10^3,0) -> 7.858212633 | C262: =IF(C$250="Include",Calculations!C581/10^3,0) -> 79.04946101 | D262: =IF(D$250="Include",Calculations!D581/10^3,0) -> 36.47717271 | E262: =IF(E$250="Include",Calculations!E581/10^3,0) -> 89.78885445 | F262: =IF(F$250="Include",Calculations!F581/10^3,0) -> 48.99824157 | G262: =IF(G$250="Include",Calculations!G581/10^3,0) -> 0 | H262: billion $ | I262: 262.1719424 | J262: =_xlfn.RANK.EQ(I262,$I$254:$I$267,0)+COUNTIF($I$254:I262,I262)-1 -> 4
A263: Nonferrous metals | B263: =IF(B$250="Include",Calculations!B582/10^3,0) -> 2.630670176 | C263: =IF(C$250="Include",Calculations!C582/10^3,0) -> 2.578705322 | D263: =IF(D$250="Include",Calculations!D582/10^3,0) -> 31.28567794 | E263: =IF(E$250="Include",Calculations!E582/10^3,0) -> 0 | F263: =IF(F$250="Include",Calculations!F582/10^3,0) -> 2.604357847 | G263: =IF(G$250="Include",Calculations!G582/10^3,0) -> 0 | H263: billion $ | I263: 39.09941129 | J263: =_xlfn.RANK.EQ(I263,$I$254:$I$267,0)+COUNTIF($I$254:I263,I263)-1 -> 5
A264: Machinery | B264: =IF(B$250="Include",Calculations!B583/10^3,0) -> 0.6147980962 | C264: =IF(C$250="Include",Calculations!C583/10^3,0) -> 1.280167193 | D264: =IF(D$250="Include",Calculations!D583/10^3,0) -> 6.44376681 | E264: =IF(E$250="Include",Calculations!E583/10^3,0) -> 0 | F264: =IF(F$250="Include",Calculations!F583/10^3,0) -> 0 | G264: =IF(G$250="Include",Calculations!G583/10^3,0) -> 0 | H264: billion $ | I264: 8.338732099 | J264: =_xlfn.RANK.EQ(I264,$I$254:$I$267,0)+COUNTIF($I$254:I264,I264)-1 -> 7
A265: Vehicles & transport equipment | B265: =IF(B$250="Include",Calculations!B584/10^3,0) -> 0.2265598724 | C265: =IF(C$250="Include",Calculations!C584/10^3,0) -> 1.177280084 | D265: =IF(D$250="Include",Calculations!D584/10^3,0) -> 3.399175561 | E265: =IF(E$250="Include",Calculations!E584/10^3,0) -> 0 | F265: =IF(F$250="Include",Calculations!F584/10^3,0) -> 0 | G265: =IF(G$250="Include",Calculations!G584/10^3,0) -> 0 | H265: billion $ | I265: 4.803015517 | J265: =_xlfn.RANK.EQ(I265,$I$254:$I$267,0)+COUNTIF($I$254:I265,I265)-1 -> 12
A266: Electronics | B266: =IF(B$250="Include",Calculations!B585/10^3,0) -> 0.6827401507 | C266: =IF(C$250="Include",Calculations!C585/10^3,0) -> 0.7931716181 | D266: =IF(D$250="Include",Calculations!D585/10^3,0) -> 2.311116847 | E266: =IF(E$250="Include",Calculations!E585/10^3,0) -> 0 | F266: =IF(F$250="Include",Calculations!F585/10^3,0) -> 0 | G266: =IF(G$250="Include",Calculations!G585/10^3,0) -> 0 | H266: billion $ | I266: 3.787028616 | J266: =_xlfn.RANK.EQ(I266,$I$254:$I$267,0)+COUNTIF($I$254:I266,I266)-1 -> 13
A267: Other metal products | B267: =IF(B$250="Include",Calculations!B586/10^3,0) -> 0.8616678475 | C267: =IF(C$250="Include",Calculations!C586/10^3,0) -> 1.674697444 | D267: =IF(D$250="Include",Calculations!D586/10^3,0) -> 5.657149193 | E267: =IF(E$250="Include",Calculations!E586/10^3,0) -> 0 | F267: =IF(F$250="Include",Calculations!F586/10^3,0) -> 0 | G267: =IF(G$250="Include",Calculations!G586/10^3,0) -> 0 | H267: billion $ | I267: 8.193514484 | J267: =_xlfn.RANK.EQ(I267,$I$254:$I$267,0)+COUNTIF($I$254:I267,I267)-1 -> 8
A268: Other manufacturing | B268: =IF(B$250="Include",Calculations!B587/10^3,0) -> 0.1365299788 | C268: =IF(C$250="Include",Calculations!C587/10^3,0) -> 0.412500374 | D268: =IF(D$250="Include",Calculations!D587/10^3,0) -> 1.214771922 | E268: =IF(E$250="Include",Calculations!E587/10^3,0) -> 0 | F268: =IF(F$250="Include",Calculations!F587/10^3,0) -> 0 | G268: =IF(G$250="Include",Calculations!G587/10^3,0) -> 0 | H268: billion $ | I268: 1.763802275
A270: Sorted Subindustry Data
A271: Industry | B271: Tier 1: Efficiency | C271: Tier 2a: Easy Electrification | D271: Tier 2b: Other Electrification | E271: Tier 3: CCS | F271: Tier 4a: Green H2 | G271: Tier 4b: Chem. Feedstocks | H271: Unit | I271: Total of Included Tiers | J271: Rank
A272: =INDEX(A$254:A$267,MATCH($J272,$J$254:$J$267,0)) -> Chemicals | B272: =INDEX(B$254:B$267,MATCH($J272,$J$254:$J$267,0)) -> 26.53355608 | C272: 110.9901873 | D272: 87.24984946 | E272: 0 | F272: 66.03698145 | G272: 201.1522446 | H272: billion $ | I272: =SUM(B272:G272) -> 491.9628189 | J272: 1
A273: =INDEX(A$254:A$267,MATCH($J273,$J$254:$J$267,0)) -> Non-metallic minerals | B273: 8.088521514 | C273: 3.610227991 | D273: 36.43125205 | E273: 290.2072886 | F273: 26.46200001 | G273: 0 | H273: billion $ | I273: =SUM(B273:G273) -> 364.7992901 | J273: 2
A274: Refining & fuel processing | B274: 5.191817547 | C274: 33.64180956 | D274: 7.767011818 | E274: 0 | F274: 225.8951494 | G274: 0 | H274: billion $ | I274: 272.4957883 | J274: 3
A275: Iron & steel | B275: 7.858212633 | C275: 79.04946101 | D275: 36.47717271 | E275: 89.78885445 | F275: 48.99824157 | G275: 0 | H275: billion $ | I275: 262.1719424 | J275: 4
A276: Nonferrous metals | B276: 2.630670176 | C276: 2.578705322 | D276: 31.28567794 | E276: 0 | F276: 2.604357847 | G276: 0 | H276: billion $ | I276: 39.09941129 | J276: 5
A277: Food, beverage, & tobacco | B277: 0.523880372 | C277: 8.43190615 | D277: 0.2643442039 | E277: 0 | F277: 0 | G277: 0 | H277: billion $ | I277: 9.220130726 | J277: 6
A278: Machinery | B278: 0.6147980962 | C278: 1.280167193 | D278: 6.44376681 | E278: 0 | F278: 0 | G278: 0 | H278: billion $ | I278: 8.338732099 | J278: 7
A279: Other metal products | B279: 0.8616678475 | C279: 1.674697444 | D279: 5.657149193 | E279: 0 | F279: 0 | G279: 0 | H279: billion $ | I279: 8.193514484 | J279: 8
A280: Pulp, paper, & printing | B280: 0.7733124083 | C280: 0.9342294192 | D280: 6.43073682 | E280: 0 | F280: 0 | G280: 0 | H280: billion $ | I280: 8.138278648 | J280: 9
A281: Plastic & rubber products | B281: 0.1899146285 | C281: 2.080809203 | D281: 3.966154815 | E281: 0 | F281: 0 | G281: 0 | H281: billion $ | I281: 6.236878646 | J281: 10
A282: Textiles, leather, & apparel | B282: 2.37252842 | C282: 1.628045642 | D282: 2.106845531 | E282: 0 | F282: 0 | G282: 0 | H282: billion $ | I282: 6.107419593 | J282: 11
A283: Vehicles & transport equipment | B283: 0.2265598724 | C283: 1.177280084 | D283: 3.399175561 | E283: 0 | F283: 0 | G283: 0 | H283: billion $ | I283: 4.803015517 | J283: 12
A284: Electronics | B284: 0.6827401507 | C284: 0.7931716181 | D284: 2.311116847 | E284: 0 | F284: 0 | G284: 0 | H284: billion $ | I284: 3.787028616 | J284: 13
A285: Wood & furniture | B285: 0.1454174128 | C285: 0.1533375155 | D285: 0.4627726827 | E285: 0 | F285: 0 | G285: 0 | H285: billion $ | I285: 0.761527611 | J285: 14
A286: Other manufacturing | B286: =Calculations!B587/10^3 -> 0.1365299788 | C286: =Calculations!C587/10^3 -> 0.412500374 | D286: =Calculations!D587/10^3 -> 1.214771922 | E286: =Calculations!E587/10^3 -> 0 | F286: =Calculations!F587/10^3 -> 0 | G286: =Calculations!G587/10^3 -> 0 | H286: billion $ | I286: 1.763802275
A329: Change in Product Demand by Subindustry
A331: Unsorted Data
B332: Natural Change in Product Demand | C332: Change from Material Efficiency and Product Longevity Policy Interventions | D332: Total | E332: Rank
A333: =Calculations!A25 -> Food, beverage, & tobacco | B333: =Calculations!D25 -> 0 | C333: =-Calculations!I65 -> 0 | D333: =ROUND(SUM(B333:C333),2) -> 0 | E333: =_xlfn.RANK.EQ(D333,$D$333:$D$346,0)+COUNTIF($D$333:$D333,$D333)-1 -> 4
A334: =Calculations!A26 -> Textiles, leather, & apparel | B334: =Calculations!D26 -> 0 | C334: =-Calculations!I66 -> 0 | D334: =ROUND(SUM(B334:C334),2) -> 0 | E334: =_xlfn.RANK.EQ(D334,$D$333:$D$346,0)+COUNTIF($D$333:$D334,$D334)-1 -> 5
A335: =Calculations!A27 -> Wood & furniture | B335: =Calculations!D27 -> 0 | C335: =-Calculations!I67 -> 0 | D335: 0 | E335: =_xlfn.RANK.EQ(D335,$D$333:$D$346,0)+COUNTIF($D$333:$D335,$D335)-1 -> 6
A336: =Calculations!A28 -> Pulp, paper, & printing | B336: =Calculations!D28 -> 0 | C336: =-Calculations!I68 -> -0.05 | D336: -0.05 | E336: =_xlfn.RANK.EQ(D336,$D$333:$D$346,0)+COUNTIF($D$333:$D336,$D336)-1 -> 7
A337: =Calculations!A29 -> Refining & fuel processing | B337: =Calculations!D29 -> 0.02732240437 | C337: =-Calculations!I69 -> 0 | D337: 0.03 | E337: =_xlfn.RANK.EQ(D337,$D$333:$D$346,0)+COUNTIF($D$333:$D337,$D337)-1 -> 3
A338: =Calculations!A30 -> Chemicals | B338: =Calculations!D30 -> 0.4542265614 | C338: =-Calculations!I70 -> -0.3460608303 | D338: 0.11 | E338: =_xlfn.RANK.EQ(D338,$D$333:$D$346,0)+COUNTIF($D$333:$D338,$D338)-1 -> 2
A339: =Calculations!A31 -> Plastic & rubber products | B339: =Calculations!D31 -> 0.974789916 | C339: =-Calculations!I71 -> 0 | D339: 0.97 | E339: =_xlfn.RANK.EQ(D339,$D$333:$D$346,0)+COUNTIF($D$333:$D339,$D339)-1 -> 1
A340: =Calculations!A32 -> Non-metallic minerals | B340: =Calculations!D32 -> -0.2936772047 | C340: =-Calculations!I72 -> -0.2931239601 | D340: -0.59 | E340: =_xlfn.RANK.EQ(D340,$D$333:$D$346,0)+COUNTIF($D$333:$D340,$D340)-1 -> 14
A341: =Calculations!A33 -> Iron & steel | B341: =Calculations!D33 -> -0.2139800285 | C341: =-Calculations!I73 -> -0.2731419401 | D341: -0.49 | E341: =_xlfn.RANK.EQ(D341,$D$333:$D$346,0)+COUNTIF($D$333:$D341,$D341)-1 -> 13
A342: =Calculations!A34 -> Nonferrous metals | B342: =Calculations!D34 -> 0.15 | C342: =-Calculations!I74 -> -0.399625 | D342: -0.25 | E342: =_xlfn.RANK.EQ(D342,$D$333:$D$346,0)+COUNTIF($D$333:$D342,$D342)-1 -> 8
A343: =Calculations!A35 -> Machinery | B343: =Calculations!D35 -> -0.2139800285 | C343: =-Calculations!I75 -> -0.1965049929 | D343: -0.41 | E343: =_xlfn.RANK.EQ(D343,$D$333:$D$346,0)+COUNTIF($D$333:$D343,$D343)-1 -> 9
A344: =Calculations!A36 -> Vehicles & transport equipment | B344: =Calculations!D36 -> -0.2139800285 | C344: =-Calculations!I76 -> -0.1965049929 | D344: -0.41 | E344: =_xlfn.RANK.EQ(D344,$D$333:$D$346,0)+COUNTIF($D$333:$D344,$D344)-1 -> 10
A345: =Calculations!A37 -> Electronics | B345: =Calculations!D37 -> -0.2139800285 | C345: =-Calculations!I77 -> -0.1965049929 | D345: -0.41 | E345: =_xlfn.RANK.EQ(D345,$D$333:$D$346,0)+COUNTIF($D$333:$D345,$D345)-1 -> 11
A346: =Calculations!A38 -> Other metal products | B346: =Calculations!D38 -> -0.2139800285 | C346: =-Calculations!I78 -> -0.1965049929 | D346: -0.41 | E346: =_xlfn.RANK.EQ(D346,$D$333:$D$346,0)+COUNTIF($D$333:$D346,$D346)-1 -> 12
A347: =Calculations!A39 -> Other manufacturing | B347: =Calculations!D39 -> 0 | C347: =-Calculations!I79 -> 0 | D347: 0
A349: Sorted Data
B350: Natural Change in Product Demand | C350: Change from Material Efficiency and Product Longevity Policy Interventions | D350: Total | E350: Rank
A351: =INDEX(A$333:A$347,MATCH($E351,$E$333:$E$346,0)) -> Plastic & rubber products | B351: 0.974789916 | C351: 0 | D351: 0.97 | E351: 1
A352: Chemicals | B352: 0.4542265614 | C352: -0.3460608303 | D352: 0.11 | E352: 2
A353: Refining & fuel processing | B353: 0.02732240437 | C353: 0 | D353: 0.03 | E353: 3
A354: Food, beverage, & tobacco | B354: 0 | C354: 0 | D354: 0 | E354: 4
A355: Textiles, leather, & apparel | B355: 0 | C355: 0 | D355: 0 | E355: 5
A356: Wood & furniture | B356: 0 | C356: 0 | D356: 0 | E356: 6
A357: Pulp, paper, & printing | B357: 0 | C357: -0.05 | D357: -0.05 | E357: 7
A358: Nonferrous metals | B358: 0.15 | C358: -0.399625 | D358: -0.25 | E358: 8
A359: Machinery | B359: -0.2139800285 | C359: -0.1965049929 | D359: -0.41 | E359: 9
A360: Vehicles & transport equipment | B360: -0.2139800285 | C360: -0.1965049929 | D360: -0.41 | E360: 10
A361: Electronics | B361: -0.2139800285 | C361: -0.1965049929 | D361: -0.41 | E361: 11
A362: Other metal products | B362: -0.2139800285 | C362: -0.1965049929 | D362: -0.41 | E362: 12
A363: Iron & steel | B363: -0.2139800285 | C363: -0.2731419401 | D363: -0.49 | E363: 13
A364: Non-metallic minerals | B364: -0.2936772047 | C364: -0.2931239601 | D364: -0.59 | E364: 14
A365: =A347 -> Other manufacturing | B365: =B347 -> 0 | C365: =C347 -> 0 | D365: =D347 -> 0

Sheet Time Series Graphs
A1: Instructions:
A2: If you have changed any settings at the top of the "User Settings" tab, click the button
A3: below to update the time-series graphs below to reflect your new settings before using the graphs.
A5: Are the time-series graphs currently up-to-date?
A6: =IF(INDEX($AD$24:$AD$40,MATCH($B$19,$B$24:$B$40,0))=$AD$19,"Yes","No") -> Yes
A12: After clicking the button above, update the year in the yellow drop-down menu to match the max data year if they are different:
A13: Max year to show on graphs: | C13: 2070 | D13: =$C$24 -> 2070 | E13: =IF(C13=D13,"← Years match, looks good.","← Please update year in yellow drop-down menu.") -> ← Years match, looks good.
A14: (This must be done manually because the graphs don't pick up changes in the max year if the cell containing the max year is updated by a macro.)
A16: Do not make edits below this line unless you are a model developer working on this model.
A18: For each value in the "Year shown on graphs" drop-down menu, the VBA macro will copy the following row and past it "as values" over the corresponding row in the table below. | AD18: Settings Used
A19: ='User Settings'!B1 -> China | B19: ='User Settings'!B5 -> 2070 | C19: =MAX('User Settings'!B3:B4) -> 2070 | D19: ='Energy Use Graphs'!J10*'Unit Conversions'!$E$17 -> 5040.592236 | E19: ='Energy Use Graphs'!K10*'Unit Conversions'!$E$17 -> 3496.282087 | F19: ='CO2 Emissions Graphs'!B10 -> 0 | G19: ='CO2 Emissions Graphs'!C10 -> 2.183422525e-15 | H19: ='CO2 Emissions Graphs'!D10 -> 7.366924273e-16 | I19: ='CO2 Emissions Graphs'!E10 -> 2.524623401e-17 | J19: ='CO2 Emissions Graphs'!F10 -> 6.392325734e-16 | K19: ='CO2 Emissions Graphs'!G10 -> 4.157160102e-15 | L19: ='CO2 Emissions Graphs'!M10 -> 48.48513354 | M19: ='CO2 Emissions Graphs'!N10 -> 45.28493731 | N19: ='CO2 Emissions Graphs'!O10 -> 72.19132362 | O19: ='CO2 Emissions Graphs'!P10 -> 0 | P19: ='CO2 Emissions Graphs'!Q10 -> 5665.093028 | Q19: ='Finanical Expenditures Graphs'!B10 -> 0 | R19: ='Finanical Expenditures Graphs'!C10 -> 9.463246737e-17 | S19: ='Finanical Expenditures Graphs'!D10 -> 2.659225092e-17 | T19: ='Finanical Expenditures Graphs'!E10 -> 2.211066286e-18 | U19: ='Finanical Expenditures Graphs'!F10 -> 1.747824425e-16 | V19: ='Finanical Expenditures Graphs'!G10 -> 1.400702999e-15 | W19: ='Finanical Expenditures Graphs'!H10 -> 6.023098492 | X19: ='Finanical Expenditures Graphs'!I10 -> 45.60241209 | Y19: ='Finanical Expenditures Graphs'!J10 -> 519.1950069 | Z19: ='Finanical Expenditures Graphs'!K10 -> 143.4873021 | AA19: ='Finanical Expenditures Graphs'!L10 -> 23.231306 | AB19: ='Finanical Expenditures Graphs'!M10 -> 24.81669749 | AC19: ='Finanical Expenditures Graphs'!N10 -> 2.424256677 | AD19: =_xlfn.CONCAT('User Settings'!B1,'User Settings'!B3:B5,'User Settings'!B8,'User Settings'!B11,'User Settings'!F2:F6,'User Settings'!I2:I4,'User Settings'!G8:H8,'User Settings'!B16:B30,'User Settings'!E16:E27) -> China20702060207050TRUE0+0%+0%+0%+0%+0%+0%7%High ImprovementIncludeIncludeIncludeIncludeIncludeIncludeIncludeIncludeIncludeIncludeIncludeIncludeIncludeIncludeIncludeIncludeIncludeIncludeIncludeIncludeIncludeIncludeIncludeIncludeIncludeIncludeInclude
D21: Electricity Demand (TWh / yr) | F21: CO2 Emissions (MMT CO2 / yr) | Q21: Energy Expenditures (billions of 2021 USD / yr)
A22: Data type: | B22: year | D22: elec demand | E22: elec demand | F22: co2 | G22: co2 | H22: co2 | I22: co2 | J22: co2 | K22: co2 | L22: co2 | M22: co2 | N22: co2 | O22: co2 | P22: co2 | Q22: E cost | R22: E cost | S22: E cost | T22: E cost | U22: E cost | V22: E cost | W22: E cost | X22: E cost | Y22: E cost | Z22: E cost | AA22: E cost | AB22: E cost | AC22: E cost
A23: Region | B23: Year shown on graphs | C23: Year to achieve clean | D23: Direct use of Electricity | E23: Electricity for Green H2 | F23: Fossil Feedstocks | G23: Coal | H23: Coke | I23: Coal/Coke Byproducts | J23: Petroleum | K23: Natural Gas | L23: Fossil Fuels w/ Carbon Capture | M23: Cement Calcination | N23: Fugitive Methane | O23: Electricity (on-target) | P23: Electricity (off-target) | Q23: Fossil Feedstocks | R23: Coal | S23: Coke | T23: Coal/Coke Byproducts | U23: Petroleum | V23: Natural Gas | W23: Bioenergy and Waste | X23: Purchased Heat | Y23: Direct Use of Electricity | Z23: Electricity for Green H2 | AA23: Blue Hydrogen | AB23: Fossil Fuels w/ Carbon Capture | AC23: Carbon Pricing | AD23: Settings Used
A24: China | B24: 2022 | C24: 2070 | D24: 4413.720641 | E24: 0 | F24: 291.5478265 | G24: 1046.524931 | H24: 1401.90533 | I24: 253.8572863 | J24: 814.0606522 | K24: 299.9237841 | L24: 0 | M24: 907 | N24: 521.3859971 | O24: 2928.957026 | P24: 0 | Q24: 27.71275597 | R24: 38.87811199 | S24: 43.37513022 | T24: 19.05671341 | U24: 87.28708172 | V24: 74.54918393 | W24: 0 | X24: 103.7911929 | Y24: 428.1424524 | Z24: 0 | AA24: 0 | AB24: 0 | AC24: 0 | AD24: China20702060202250TRUE0+0%+0%+0%+0%+0%+0%7%High ImprovementIncludeIncludeIncludeIncludeIncludeIncludeIncludeIncludeIncludeIncludeIncludeIncludeIncludeIncludeIncludeIncludeIncludeIncludeIncludeIncludeIncludeIncludeIncludeIncludeIncludeIncludeInclude
A25: China | B25: 2025 | C25: 2070 | D25: 4424.880686 | E25: 0 | F25: 299.8246244 | G25: 1043.603112 | H25: 1388.673027 | I25: 251.7158343 | J25: 821.1356209 | K25: 301.256775 | L25: 0 | M25: 890.3521735 | N25: 519.2290957 | O25: 2704.544742 | P25: 231.8181207 | Q25: 28.93664216 | R25: 39.17341688 | S25: 43.41328066 | T25: 19.09279047 | U25: 90.19171602 | V25: 76.54452411 | W25: 0 | X25: 102.112748 | Y25: 430.8843811 | Z25: 0 | AA25: 0 | AB25: 0 | AC25: 0 | AD25: China20702060202550TRUE0+0%+0%+0%+0%+0%+0%7%High ImprovementIncludeIncludeIncludeIncludeIncludeIncludeIncludeIncludeIncludeIncludeIncludeIncludeIncludeIncludeIncludeIncludeIncludeIncludeIncludeIncludeIncludeIncludeIncludeIncludeIncludeIncludeInclude
A26: China | B26: 2030 | C26: 2070 | D26: 4712.971015 | E26: 202.1139956 | F26: 292.0553332 | G26: 790.7267654 | H26: 993.0648484 | I26: 183.8598469 | J26: 669.4523959 | K26: 234.1844417 | L26: 15.76343389 | M26: 715.0624927 | N26: 417.6179344 | O26: 2574.997726 | P26: 686.6660602 | Q26: 28.89650766 | R26: 30.19126085 | S26: 31.57904102 | T26: 14.18549474 | U26: 71.90008556 | V26: 61.65840622 | W26: 0.109011004 | X26: 93.51187254 | Y26: 461.88362 | Z26: 16.35909371 | AA26: 0.9412986027 | AB26: 8.448112877 | AC26: 38.5204865 | AD26: China20702060203050TRUE0+0%+0%+0%+0%+0%+0%7%High ImprovementIncludeIncludeIncludeIncludeIncludeIncludeIncludeIncludeIncludeIncludeIncludeIncludeIncludeIncludeIncludeIncludeIncludeIncludeIncludeIncludeIncludeIncludeIncludeIncludeIncludeIncludeInclude
A27: China | B27: 2035 | C27: 2070 | D27: 4888.765797 | E27: 503.2929803 | F27: 278.114325 | G27: 586.9686155 | H27: 695.0931414 | I27: 132.2982547 | J27: 538.6758186 | K27: 177.8817908 | L27: 25.3058938 | M27: 571.5059847 | N27: 331.2121688 | O27: 2354.068997 | P27: 1224.115878 | Q27: 28.19297577 | R27: 22.79000792 | S27: 22.47703987 | T27: 10.37974041 | U27: 55.28827903 | V27: 48.47205437 | W27: 0.3317630251 | X27: 85.52243955 | Y27: 482.1675345 | Z27: 38.22632951 | AA27: 2.643559841 | AB27: 13.8050747 | AC27: 29.1988601 | AD27: China20702060203550TRUE0+0%+0%+0%+0%+0%+0%7%High ImprovementIncludeIncludeIncludeIncludeIncludeIncludeIncludeIncludeIncludeIncludeIncludeIncludeIncludeIncludeIncludeIncludeIncludeIncludeIncludeIncludeIncludeIncludeIncludeIncludeIncludeIncludeInclude
A28: China | B28: 2040 | C28: 2070 | D28: 4985.584423 | E28: 841.938487 | F28: 258.1830419 | G28: 425.38583 | H28: 474.7985519 | I28: 93.68540269 | J28: 427.1839528 | K28: 131.480612 | L28: 30.8508719 | M28: 453.7018985 | N28: 259.7512023 | O28: 2035.347399 | P28: 1831.812659 | Q28: 26.79988869 | R28: 16.79065141 | S28: 15.60847342 | T28: 7.472384934 | U28: 40.74864663 | V28: 37.03832737 | W28: 0.6743757526 | X28: 78.15202422 | Y28: 494.8326034 | Z28: 59.74811693 | AA28: 4.938673471 | AB28: 17.03947338 | AC28: 29.6884729 | AD28: China20702060204050TRUE0+0%+0%+0%+0%+0%+0%7%High ImprovementIncludeIncludeIncludeIncludeIncludeIncludeIncludeIncludeIncludeIncludeIncludeIncludeIncludeIncludeIncludeIncludeIncludeIncludeIncludeIncludeIncludeIncludeIncludeIncludeIncludeIncludeInclude
A29: China | B29: 2045 | C29: 2070 | D29: 5032.319193 | E29: 1186.153206 | F29: 232.3093336 | G29: 299.2192924 | H29: 314.9862947 | I29: 65.10073962 | J29: 332.3102049 | K29: 93.92404866 | L29: 34.06836443 | M29: 356.4508053 | N29: 202.2543058 | O29: 1628.919159 | P29: 2497.676045 | Q29: 24.67866049 | R29: 12.00364327 | S29: 10.52401997 | T29: 5.277304984 | U29: 28.48858436 | V29: 27.32323454 | W29: 1.145315577 | X29: 71.39430726 | Y29: 502.6164388 | Z29: 78.25936057 | AA29: 7.672664692 | AB29: 18.92089542 | AC29: 27.30313097 | AD29: China20702060204550TRUE0+0%+0%+0%+0%+0%+0%7%High ImprovementIncludeIncludeIncludeIncludeIncludeIncludeIncludeIncludeIncludeIncludeIncludeIncludeIncludeIncludeIncludeIncludeIncludeIncludeIncludeIncludeIncludeIncludeIncludeIncludeIncludeIncludeInclude
A30: China | B30: 2050 | C30: 2070 | D30: 5053.737562 | E30: 1524.271992 | F30: 200.3588253 | G30: 202.1317322 | H30: 201.1843524 | I30: 44.06544797 | J30: 250.9117862 | K30: 64.06830558 | L30: 36.18911199 | M30: 275.2876314 | N30: 157.318943 | O30: 1148.732905 | P30: 3216.452133 | Q30: 21.77136947 | R30: 8.239193079 | S30: 6.829845806 | T30: 3.629536381 | U30: 18.56233807 | V30: 19.22777631 | W30: 1.756433564 | X30: 65.22907496 | Y30: 507.9143273 | Z30: 92.96527442 | AA30: 10.70505403 | AB30: 20.04985891 | AC30: 23.29106314 | AD30: China20702060205050TRUE0+0%+0%+0%+0%+0%+0%7%High ImprovementIncludeIncludeIncludeIncludeIncludeIncludeIncludeIncludeIncludeIncludeIncludeIncludeIncludeIncludeIncludeIncludeIncludeIncludeIncludeIncludeIncludeIncludeIncludeIncludeIncludeIncludeInclude
A31: China | B31: 2055 | C31: 2070 | D31: 5046.724022 | E31: 1886.60114 | F31: 161.9662847 | G31: 130.5582398 | H31: 122.543102 | I31: 28.68792924 | J31: 182.3421045 | K31: 41.60064241 | L31: 38.1085651 | M31: 206.4346913 | N31: 124.2281621 | O31: 605.3912424 | P31: 3995.5822 | Q31: 17.99314138 | R31: 5.405954903 | S31: 4.225941872 | T31: 2.400325369 | U31: 11.51275972 | V31: 12.86789585 | W31: 2.52408438 | X31: 59.62221914 | Y31: 510.3637351 | Z31: 105.6542958 | AA31: 13.90566739 | AB31: 20.88819432 | AC31: 18.69452004 | AD31: China20702060205550TRUE0+0%+0%+0%+0%+0%+0%7%High ImprovementIncludeIncludeIncludeIncludeIncludeIncludeIncludeIncludeIncludeIncludeIncludeIncludeIncludeIncludeIncludeIncludeIncludeIncludeIncludeIncludeIncludeIncludeIncludeIncludeIncludeIncludeInclude
A32: China | B32: 2060 | C32: 2070 | D32: 5015.85073 | E32: 2332.595013 | F32: 116.4869895 | G32: 78.31450882 | H32: 68.86413818 | I32: 17.26631822 | J32: 122.4541906 | K32: 25.02145022 | L32: 40.48077115 | M32: 146.7547209 | N32: 100.9475365 | O32: 0 | P32: 4876.448589 | Q32: 13.22382372 | R32: 3.293236562 | S32: 2.411794685 | T32: 1.467179406 | U32: 6.889598258 | V32: 7.969972058 | W32: 3.470326168 | X32: 54.52573718 | Y32: 510.3765805 | Z32: 118.9972394 | AA32: 17.1488962 | AB32: 21.7889085 | AC32: 13.94922118 | AD32: China20702060206050TRUE0+0%+0%+0%+0%+0%+0%7%High ImprovementIncludeIncludeIncludeIncludeIncludeIncludeIncludeIncludeIncludeIncludeIncludeIncludeIncludeIncludeIncludeIncludeIncludeIncludeIncludeIncludeIncludeIncludeIncludeIncludeIncludeIncludeInclude
A33: China | B33: 2065 | C33: 2070 | D33: 5008.958056 | E33: 2861.200819 | F33: 62.94809464 | G33: 36.41856566 | H33: 30.26994099 | I33: 8.092438309 | J33: 62.71619775 | K33: 11.58995593 | L33: 43.80220004 | M33: 93.70391033 | N33: 84.18229094 | O33: 0 | P33: 5222.658843 | Q33: 7.298950835 | R33: 1.554941057 | S33: 1.076388837 | T33: 0.6981894352 | U33: 3.243152896 | V33: 3.798393946 | W33: 4.624201367 | X33: 49.877732 | Y33: 512.8059153 | Z33: 131.6938154 | AA33: 20.30540781 | AB33: 23.02490421 | AC33: 8.63983317 | AD33: China20702060206550TRUE0+0%+0%+0%+0%+0%+0%7%High ImprovementIncludeIncludeIncludeIncludeIncludeIncludeIncludeIncludeIncludeIncludeIncludeIncludeIncludeIncludeIncludeIncludeIncludeIncludeIncludeIncludeIncludeIncludeIncludeIncludeIncludeIncludeInclude
A34: China | B34: 2070 | C34: 2070 | D34: 5040.592236 | E34: 3496.282087 | F34: 0 | G34: 2.183422525e-15 | H34: 7.366924273e-16 | I34: 2.524623401e-17 | J34: 6.392325734e-16 | K34: 4.157160102e-15 | L34: 48.48513354 | M34: 45.28493731 | N34: 72.19132362 | O34: 0 | P34: 5665.093028 | Q34: 0 | R34: 9.463246737e-17 | S34: 2.659225092e-17 | T34: 2.211066286e-18 | U34: 1.747824425e-16 | V34: 1.400702999e-15 | W34: 6.023098492 | X34: 45.60241209 | Y34: 519.1950069 | Z34: 143.4873021 | AA34: 23.231306 | AB34: 24.81669749 | AC34: 2.424256677 | AD34: China20702060207050TRUE0+0%+0%+0%+0%+0%+0%7%High ImprovementIncludeIncludeIncludeIncludeIncludeIncludeIncludeIncludeIncludeIncludeIncludeIncludeIncludeIncludeIncludeIncludeIncludeIncludeIncludeIncludeIncludeIncludeIncludeIncludeIncludeIncludeInclude
A35: China | B35: 2075 | C35: 2070 | D35: 5040.592236 | E35: 3496.282087 | F35: 0 | G35: 2.183422525e-15 | H35: 7.366924273e-16 | I35: 2.524623401e-17 | J35: 6.392325734e-16 | K35: 4.157160102e-15 | L35: 48.48513354 | M35: 45.28493731 | N35: 72.19132362 | O35: 0 | P35: 5665.093028 | Q35: 0 | R35: 9.463246737e-17 | S35: 2.659225092e-17 | T35: 2.211066286e-18 | U35: 1.747824425e-16 | V35: 1.400702999e-15 | W35: 6.023098492 | X35: 45.60241209 | Y35: 519.1950069 | Z35: 143.4873021 | AA35: 23.231306 | AB35: 24.81669749 | AC35: 2.424256677 | AD35: China20702060207550TRUE0+0%+0%+0%+0%+0%+0%7%High ImprovementIncludeIncludeIncludeIncludeIncludeIncludeIncludeIncludeIncludeIncludeIncludeIncludeIncludeIncludeIncludeIncludeIncludeIncludeIncludeIncludeIncludeIncludeIncludeIncludeIncludeIncludeInclude
A36: China | B36: 2080 | C36: 2070 | D36: 5040.592236 | E36: 3496.282087 | F36: 0 | G36: 2.183422525e-15 | H36: 7.366924273e-16 | I36: 2.524623401e-17 | J36: 6.392325734e-16 | K36: 4.157160102e-15 | L36: 48.48513354 | M36: 45.28493731 | N36: 72.19132362 | O36: 0 | P36: 5665.093028 | Q36: 0 | R36: 9.463246737e-17 | S36: 2.659225092e-17 | T36: 2.211066286e-18 | U36: 1.747824425e-16 | V36: 1.400702999e-15 | W36: 6.023098492 | X36: 45.60241209 | Y36: 519.1950069 | Z36: 143.4873021 | AA36: 23.231306 | AB36: 24.81669749 | AC36: 2.424256677 | AD36: China20702060208050TRUE0+0%+0%+0%+0%+0%+0%7%High ImprovementIncludeIncludeIncludeIncludeIncludeIncludeIncludeIncludeIncludeIncludeIncludeIncludeIncludeIncludeIncludeIncludeIncludeIncludeIncludeIncludeIncludeIncludeIncludeIncludeIncludeIncludeInclude
A37: China | B37: 2085 | C37: 2070 | D37: 5040.592236 | E37: 3496.282087 | F37: 0 | G37: 2.183422525e-15 | H37: 7.366924273e-16 | I37: 2.524623401e-17 | J37: 6.392325734e-16 | K37: 4.157160102e-15 | L37: 48.48513354 | M37: 45.28493731 | N37: 72.19132362 | O37: 0 | P37: 5665.093028 | Q37: 0 | R37: 9.463246737e-17 | S37: 2.659225092e-17 | T37: 2.211066286e-18 | U37: 1.747824425e-16 | V37: 1.400702999e-15 | W37: 6.023098492 | X37: 45.60241209 | Y37: 519.1950069 | Z37: 143.4873021 | AA37: 23.231306 | AB37: 24.81669749 | AC37: 2.424256677 | AD37: China20702060208550TRUE0+0%+0%+0%+0%+0%+0%7%High ImprovementIncludeIncludeIncludeIncludeIncludeIncludeIncludeIncludeIncludeIncludeIncludeIncludeIncludeIncludeIncludeIncludeIncludeIncludeIncludeIncludeIncludeIncludeIncludeIncludeIncludeIncludeInclude
A38: China | B38: 2090 | C38: 2070 | D38: 5040.592236 | E38: 3496.282087 | F38: 0 | G38: 2.183422525e-15 | H38: 7.366924273e-16 | I38: 2.524623401e-17 | J38: 6.392325734e-16 | K38: 4.157160102e-15 | L38: 48.48513354 | M38: 45.28493731 | N38: 72.19132362 | O38: 0 | P38: 5665.093028 | Q38: 0 | R38: 9.463246737e-17 | S38: 2.659225092e-17 | T38: 2.211066286e-18 | U38: 1.747824425e-16 | V38: 1.400702999e-15 | W38: 6.023098492 | X38: 45.60241209 | Y38: 519.1950069 | Z38: 143.4873021 | AA38: 23.231306 | AB38: 24.81669749 | AC38: 2.424256677 | AD38: China20702060209050TRUE0+0%+0%+0%+0%+0%+0%7%High ImprovementIncludeIncludeIncludeIncludeIncludeIncludeIncludeIncludeIncludeIncludeIncludeIncludeIncludeIncludeIncludeIncludeIncludeIncludeIncludeIncludeIncludeIncludeIncludeIncludeIncludeIncludeInclude
A39: China | B39: 2095 | C39: 2070 | D39: 5040.592236 | E39: 3496.282087 | F39: 0 | G39: 2.183422525e-15 | H39: 7.366924273e-16 | I39: 2.524623401e-17 | J39: 6.392325734e-16 | K39: 4.157160102e-15 | L39: 48.48513354 | M39: 45.28493731 | N39: 72.19132362 | O39: 0 | P39: 5665.093028 | Q39: 0 | R39: 9.463246737e-17 | S39: 2.659225092e-17 | T39: 2.211066286e-18 | U39: 1.747824425e-16 | V39: 1.400702999e-15 | W39: 6.023098492 | X39: 45.60241209 | Y39: 519.1950069 | Z39: 143.4873021 | AA39: 23.231306 | AB39: 24.81669749 | AC39: 2.424256677 | AD39: China20702060209550TRUE0+0%+0%+0%+0%+0%+0%7%High ImprovementIncludeIncludeIncludeIncludeIncludeIncludeIncludeIncludeIncludeIncludeIncludeIncludeIncludeIncludeIncludeIncludeIncludeIncludeIncludeIncludeIncludeIncludeIncludeIncludeIncludeIncludeInclude
A40: China | B40: 2100 | C40: 2070 | D40: 5040.592236 | E40: 3496.282087 | F40: 0 | G40: 2.183422525e-15 | H40: 7.366924273e-16 | I40: 2.524623401e-17 | J40: 6.392325734e-16 | K40: 4.157160102e-15 | L40: 48.48513354 | M40: 45.28493731 | N40: 72.19132362 | O40: 0 | P40: 5665.093028 | Q40: 0 | R40: 9.463246737e-17 | S40: 2.659225092e-17 | T40: 2.211066286e-18 | U40: 1.747824425e-16 | V40: 1.400702999e-15 | W40: 6.023098492 | X40: 45.60241209 | Y40: 519.1950069 | Z40: 143.4873021 | AA40: 23.231306 | AB40: 24.81669749 | AC40: 2.424256677 | AD40: China20702060210050TRUE0+0%+0%+0%+0%+0%+0%7%High ImprovementIncludeIncludeIncludeIncludeIncludeIncludeIncludeIncludeIncludeIncludeIncludeIncludeIncludeIncludeIncludeIncludeIncludeIncludeIncludeIncludeIncludeIncludeIncludeIncludeIncludeIncludeInclude
A43: Electricity Demand
A45: Unit: TWh / year | B45: Direct use of Electricity by Industry | C45: Electricity for Green H2 for Industry
A46: =_xlfn._xlws.FILTER(_xlfn._xlws.FILTER($B$24:$AC$40,($B$24:$B$40<=$C$13)),($B$22:$AC$22="year")+($B$22:$AC$22="elec demand")) -> 2022 | B46: 4413.720641 | C46: 0
A47: 2025 | B47: 4424.880686 | C47: 0
A48: 2030 | B48: 4712.971015 | C48: 202.1139956
A49: 2035 | B49: 4888.765797 | C49: 503.2929803
A50: 2040 | B50: 4985.584423 | C50: 841.938487
A51: 2045 | B51: 5032.319193 | C51: 1186.153206
A52: 2050 | B52: 5053.737562 | C52: 1524.271992
A53: 2055 | B53: 5046.724022 | C53: 1886.60114
A54: 2060 | B54: 5015.85073 | C54: 2332.595013
A55: 2065 | B55: 5008.958056 | C55: 2861.200819
A56: 2070 | B56: 5040.592236 | C56: 3496.282087
A98: CO2 Emissions
A100: Unit: MMT CO2/yr | B100: =F23 -> Fossil Feedstocks | C100: =G23 -> Coal | D100: =H23 -> Coke | E100: Coal/Coke Byproducts | F100: Petroleum | G100: Natural Gas | H100: Fossil Fuels w/ Carbon Capture | I100: Cement Calcination | J100: Fugitive Methane | K100: Electricity (on-target) | L100: Electricity (off-target)
A101: =_xlfn._xlws.FILTER(_xlfn._xlws.FILTER($B$24:$AC$40,($B$24:$B$40<=$C$13)),($B$22:$AC$22="year")+($B$22:$AC$22="co2")) -> 2022 | B101: 291.5478265 | C101: 1046.524931 | D101: 1401.90533 | E101: 253.8572863 | F101: 814.0606522 | G101: 299.9237841 | H101: 0 | I101: 907 | J101: 521.3859971 | K101: 2928.957026 | L101: 0
A102: 2025 | B102: 299.8246244 | C102: 1043.603112 | D102: 1388.673027 | E102: 251.7158343 | F102: 821.1356209 | G102: 301.256775 | H102: 0 | I102: 890.3521735 | J102: 519.2290957 | K102: 2704.544742 | L102: 231.8181207
A103: 2030 | B103: 292.0553332 | C103: 790.7267654 | D103: 993.0648484 | E103: 183.8598469 | F103: 669.4523959 | G103: 234.1844417 | H103: 15.76343389 | I103: 715.0624927 | J103: 417.6179344 | K103: 2574.997726 | L103: 686.6660602
A104: 2035 | B104: 278.114325 | C104: 586.9686155 | D104: 695.0931414 | E104: 132.2982547 | F104: 538.6758186 | G104: 177.8817908 | H104: 25.3058938 | I104: 571.5059847 | J104: 331.2121688 | K104: 2354.068997 | L104: 1224.115878
A105: 2040 | B105: 258.1830419 | C105: 425.38583 | D105: 474.7985519 | E105: 93.68540269 | F105: 427.1839528 | G105: 131.480612 | H105: 30.8508719 | I105: 453.7018985 | J105: 259.7512023 | K105: 2035.347399 | L105: 1831.812659
A106: 2045 | B106: 232.3093336 | C106: 299.2192924 | D106: 314.9862947 | E106: 65.10073962 | F106: 332.3102049 | G106: 93.92404866 | H106: 34.06836443 | I106: 356.4508053 | J106: 202.2543058 | K106: 1628.919159 | L106: 2497.676045
A107: 2050 | B107: 200.3588253 | C107: 202.1317322 | D107: 201.1843524 | E107: 44.06544797 | F107: 250.9117862 | G107: 64.06830558 | H107: 36.18911199 | I107: 275.2876314 | J107: 157.318943 | K107: 1148.732905 | L107: 3216.452133
A108: 2055 | B108: 161.9662847 | C108: 130.5582398 | D108: 122.543102 | E108: 28.68792924 | F108: 182.3421045 | G108: 41.60064241 | H108: 38.1085651 | I108: 206.4346913 | J108: 124.2281621 | K108: 605.3912424 | L108: 3995.5822
A109: 2060 | B109: 116.4869895 | C109: 78.31450882 | D109: 68.86413818 | E109: 17.26631822 | F109: 122.4541906 | G109: 25.02145022 | H109: 40.48077115 | I109: 146.7547209 | J109: 100.9475365 | K109: 0 | L109: 4876.448589
A110: 2065 | B110: 62.94809464 | C110: 36.41856566 | D110: 30.26994099 | E110: 8.092438309 | F110: 62.71619775 | G110: 11.58995593 | H110: 43.80220004 | I110: 93.70391033 | J110: 84.18229094 | K110: 0 | L110: 5222.658843
A111: 2070 | B111: 0 | C111: 2.183422525e-15 | D111: 7.366924273e-16 | E111: 2.524623401e-17 | F111: 6.392325734e-16 | G111: 4.157160102e-15 | H111: 48.48513354 | I111: 45.28493731 | J111: 72.19132362 | K111: 0 | L111: 5665.093028
A153: Annual Energy Expenditures
A155: Unit: billions of 2021 USD / yr | B155: Fossil Feedstocks | C155: Coal | D155: Coke | E155: Coal/Coke Byproducts | F155: Petroleum | G155: Natural Gas | H155: Bioenergy and Waste | I155: Purchased Heat | J155: Direct Use of Electricity | K155: Electricity for Green H2 | L155: Blue Hydrogen | M155: Fossil Fuels w/ Carbon Capture | N155: Carbon Pricing
A156: =_xlfn._xlws.FILTER(_xlfn._xlws.FILTER($B$24:$AC$40,($B$24:$B$40<=$C$13)),($B$22:$AC$22="year")+($B$22:$AC$22="E cost")) -> 2022 | B156: 27.71275597 | C156: 38.87811199 | D156: 43.37513022 | E156: 19.05671341 | F156: 87.28708172 | G156: 74.54918393 | H156: 0 | I156: 103.7911929 | J156: 428.1424524 | K156: 0 | L156: 0 | M156: 0 | N156: 0
A157: 2025 | B157: 28.93664216 | C157: 39.17341688 | D157: 43.41328066 | E157: 19.09279047 | F157: 90.19171602 | G157: 76.54452411 | H157: 0 | I157: 102.112748 | J157: 430.8843811 | K157: 0 | L157: 0 | M157: 0 | N157: 0
A158: 2030 | B158: 28.89650766 | C158: 30.19126085 | D158: 31.57904102 | E158: 14.18549474 | F158: 71.90008556 | G158: 61.65840622 | H158: 0.109011004 | I158: 93.51187254 | J158: 461.88362 | K158: 16.35909371 | L158: 0.9412986027 | M158: 8.448112877 | N158: 38.5204865
A159: 2035 | B159: 28.19297577 | C159: 22.79000792 | D159: 22.47703987 | E159: 10.37974041 | F159: 55.28827903 | G159: 48.47205437 | H159: 0.3317630251 | I159: 85.52243955 | J159: 482.1675345 | K159: 38.22632951 | L159: 2.643559841 | M159: 13.8050747 | N159: 29.1988601
A160: 2040 | B160: 26.79988869 | C160: 16.79065141 | D160: 15.60847342 | E160: 7.472384934 | F160: 40.74864663 | G160: 37.03832737 | H160: 0.6743757526 | I160: 78.15202422 | J160: 494.8326034 | K160: 59.74811693 | L160: 4.938673471 | M160: 17.03947338 | N160: 29.6884729
A161: 2045 | B161: 24.67866049 | C161: 12.00364327 | D161: 10.52401997 | E161: 5.277304984 | F161: 28.48858436 | G161: 27.32323454 | H161: 1.145315577 | I161: 71.39430726 | J161: 502.6164388 | K161: 78.25936057 | L161: 7.672664692 | M161: 18.92089542 | N161: 27.30313097
A162: 2050 | B162: 21.77136947 | C162: 8.239193079 | D162: 6.829845806 | E162: 3.629536381 | F162: 18.56233807 | G162: 19.22777631 | H162: 1.756433564 | I162: 65.22907496 | J162: 507.9143273 | K162: 92.96527442 | L162: 10.70505403 | M162: 20.04985891 | N162: 23.29106314
A163: 2055 | B163: 17.99314138 | C163: 5.405954903 | D163: 4.225941872 | E163: 2.400325369 | F163: 11.51275972 | G163: 12.86789585 | H163: 2.52408438 | I163: 59.62221914 | J163: 510.3637351 | K163: 105.6542958 | L163: 13.90566739 | M163: 20.88819432 | N163: 18.69452004
A164: 2060 | B164: 13.22382372 | C164: 3.293236562 | D164: 2.411794685 | E164: 1.467179406 | F164: 6.889598258 | G164: 7.969972058 | H164: 3.470326168 | I164: 54.52573718 | J164: 510.3765805 | K164: 118.9972394 | L164: 17.1488962 | M164: 21.7889085 | N164: 13.94922118
A165: 2065 | B165: 7.298950835 | C165: 1.554941057 | D165: 1.076388837 | E165: 0.6981894352 | F165: 3.243152896 | G165: 3.798393946 | H165: 4.624201367 | I165: 49.877732 | J165: 512.8059153 | K165: 131.6938154 | L165: 20.30540781 | M165: 23.02490421 | N165: 8.63983317
A166: 2070 | B166: 0 | C166: 9.463246737e-17 | D166: 2.659225092e-17 | E166: 2.211066286e-18 | F166: 1.747824425e-16 | G166: 1.400702999e-15 | H166: 6.023098492 | I166: 45.60241209 | J166: 519.1950069 | K166: 143.4873021 | L166: 23.231306 | M166: 24.81669749 | N166: 2.424256677

Sheet Subindstry Demand Cng Graphs (hidden)
A1: Iron and Steel Industry Energy Use Waterfall Graph
B2: Emissions | C2: Change since last row | D2: Unit
A3: =_xlfn.CONCAT('Other Region-Specific Data'!$O$2," Actual") -> 2022 Actual | B3: =Calculations!M14 -> 21322.63482 | C3: =B3 -> 21322.63482 | D3: PJ | F3: Material demand change relative to historical
A4: Future BAU Projection | B4: =Calculations!M52 -> 16760.01681 | C4: =B4-B3 -> -4562.618007 | D4: PJ | F4: =(B5/B3)-1 -> -0.4871219686
A5: Mat. Eff. & Longevity | B5: =Calculations!M52*(1-(Calculations!H73*'Achievable Interventions'!$S$45)) -> 10935.91097 | C5: =B5-B4 -> -5824.105842 | D5: PJ
A6: Energy efficiency | B6: =Calculations!M92 -> 8825.47201 | C6: -2110.438959 | D6: PJ
A7: Tier 2a: Easy Electrification | B7: =Calculations!M219 -> 5269.309686 | C7: -3556.162325 | D7: PJ
A8: Tier 2b: Other Electrification | B8: =Calculations!M239 -> 4907.006069 | C8: -362.3036169 | D8: PJ
A9: Tier 3: CCS | B9: =Calculations!M278 -> 5217.48967 | C9: 310.4836011 | D9: PJ
A10: Tier 4a: Green H2 | B10: =Calculations!M317 -> 5476.118778 | C10: 258.6291083 | D10: PJ
A44: Annotated China version
A45: Does not update when country selector or other selectors change so that it continues to refer to China and annotations remain accurate.
B46: Emissions | C46: Change since last row | D46: Unit
A47: 2022 Actual | B47: 21322.63482 | C47: 21322.63482 | D47: PJ | F47: Material demand change relative to historical
A48: Future BAU Projection | B48: 16760.01681 | C48: -4562.618007 | D48: PJ | F48: =(B49/B47)-1 -> -0.4871219686
A49: Mat. Eff. & Longevity | B49: 10935.91097 | C49: -5824.105842 | D49: PJ
A50: Energy efficiency | B50: 8825.47201 | C50: -2110.438959 | D50: PJ
A51: Tier 2a: Easy Electrification | B51: 5268.089164 | C51: -3557.382846 | D51: PJ
A52: Tier 2b: Other Electrification | B52: 4906.293365 | C52: -361.7957997 | D52: PJ
A53: Tier 3: CCS | B53: 5216.824693 | C53: 310.5313281 | D53: PJ
A54: Tier 4a: Green H2 | B54: 5567.875294 | C54: 351.0506015 | D54: PJ
A89: Non-Metallic Minerals Industry Energy Use Waterfall Graph
B90: Emissions | C90: Change since last row | D90: Unit
A91: =_xlfn.CONCAT('Other Region-Specific Data'!$O$2," Actual") -> 2022 Actual | B91: =Calculations!M13 -> 9054.973623 | C91: =B91 -> 9054.973623 | D91: PJ | F91: Material demand change relative to historical
A92: Future BAU Projection | B92: =Calculations!M51 -> 6395.734281 | C92: =B92-B91 -> -2659.239342 | D92: PJ | F92: =(B93/B91)-1 -> -0.5868011647
A93: Mat. Eff. & Longevity | B93: =Calculations!M51*(1-(Calculations!H72*'Achievable Interventions'!$S$45)) -> 3741.504554 | C93: =B93-B92 -> -2654.229727 | D93: PJ
A94: Energy efficiency | B94: =Calculations!M91 -> 3198.986394 | C94: -542.5181604 | D94: PJ
A95: Tier 2a: Easy Electrification | B95: =Calculations!M218 -> 3048.91941 | C95: -150.0669843 | D95: PJ
A96: Tier 2b: Other Electrification | B96: =Calculations!M238 -> 2759.122717 | C96: -289.7966923 | D96: PJ
A97: Tier 3: CCS | B97: =Calculations!M277 -> 3894.082136 | C97: 1134.959419 | D97: PJ
A98: Tier 4a: Green H2 | B98: =Calculations!M316 -> 4068.027274 | C98: 173.9451376 | D98: PJ
A133: Annotated China version
A134: Does not update when country selector or other selectors change so that it continues to refer to China and annotations remain accurate.
B135: Emissions | C135: Change since last row | D135: Unit
A136: 2022 Actual | B136: 9054.973623 | C136: 9054.973623 | D136: PJ | F136: Material demand change relative to historical
A137: Future BAU Projection | B137: 6395.734281 | C137: -2659.239342 | D137: PJ | F137: =(B138/B136)-1 -> -0.5868011647
A138: Mat. Eff. & Longevity | B138: 3741.504554 | C138: -2654.229727 | D138: PJ
A139: Energy efficiency | B139: 3198.986394 | C139: -542.5181604 | D139: PJ
A140: Tier 2a: Easy Electrification | B140: 3048.91941 | C140: -150.0669843 | D140: PJ
A141: Tier 2b: Other Electrification | B141: 2759.122717 | C141: -289.7966923 | D141: PJ
A142: Tier 3: CCS | B142: 3966.195585 | C142: 1207.072867 | D142: PJ
A143: Tier 4a: Green H2 | B143: 4202.263986 | C143: 236.068401 | D143: PJ

Sheet Subindustry Color Sort Graphs (hidden)
A1: Purpose of this Sheet and Instructions
A2: For reports showing more than one country, it is desirable for the same subindustry to have the same color in different graphs.
A3: The chart of annual industrial energy use by subindustry resorts the bars from largest to smallest (based on Historical data).
A4: Since colors in Excel are bound to the position of the data series, this causes the colors to represent different subindustries for different countries.
A5: The graphs on this tab address this by creating several versions with different color orders adapted to the sort order of subindustries in each country.
A6: All of these graphs will update when settings (such as the active country) are changed, but for color consistency, copy only the one labeled as being
A7: for the country that is selected in the country selector on the "Graphs" tab.
A9: China Color Order
A43: Indonesia Color Order
A77: Viet Nam Color Order
A112: United States Color Order

Sheet Tier 1 2a 2b Composition Graphs
A1: Composition of technology effects within tiers
A3: Tier 1: Efficiency | B3: Share | C3: Remove zeroes
A4: Material efficiency | B4: =IF('Achievable Interventions'!$S$45=0,NA(),Calculations!L65/SUM(Calculations!L$65:L$67)) -> 0.3396901537 | C4: =IF(B4>0,B4,NA()) -> 0.3396901537
A5: Product longevity | B5: =IF('Achievable Interventions'!$S$45=0,NA(),Calculations!L66/SUM(Calculations!L$65:L$67)) -> 0.2681085628 | C5: =IF(B5>0,B5,NA()) -> 0.2681085628
A6: Energy efficiency | B6: =IF('Achievable Interventions'!$S$45=0,NA(),Calculations!L67/SUM(Calculations!L$65:L$67)) -> 0.3922012835 | C6: =IF(B6>0,B6,NA()) -> 0.3922012835
A21: Tier 2a: Easy Electrification | B21: Share | C21: Remove zeroes
A22: Direct use of geothermal heat | B22: =Calculations!B124/(SUM(Calculations!B99:F99)-SUM(Calculations!B226:F226)) -> 0.01151064161 | C22: =IF(B22>0,B22,NA()) -> 0.01151064161
A23: Secondary steel | B23: =Calculations!B180/(SUM(Calculations!B99:F99)-SUM(Calculations!B226:F226)) -> 0.2482680617 | C23: =IF(B23>0,B23,NA()) -> 0.2482680617
A24: Non-thermal electrification | B24: =SUM(Calculations!C172:C186)/(SUM(Calculations!B99:F99)-SUM(Calculations!B226:F226)) -> 0.1875671657 | C24: =IF(B24>0,B24,NA()) -> 0.1875671657
A25: Low-temp. thermal elec. | B25: =SUM(Calculations!D172:E186)/(SUM(Calculations!B99:F99)-SUM(Calculations!B226:F226)) -> 0.5526541309 | C25: =IF(B25>0,B25,NA()) -> 0.5526541309
A39: Tier 2b: Other Electrification | B39: Share | C39: Remove zeroes
A40: Medium-temp electrification | B40: =SUM(Calculations!F172:G186)/(SUM(Calculations!B226:F226)-SUM(Calculations!B246:F246)) -> 0.5692655517 | C40: =IF(B40>0,B40,NA()) -> 0.5692655517
A41: High-temp electrification | B41: =SUM(Calculations!H172:I186)/(SUM(Calculations!B226:F226)-SUM(Calculations!B246:F246)) -> 0.4307344483 | C41: =IF(B41>0,B41,NA()) -> 0.4307344483

Sheet Indifference Curves (hidden)
A1: About this tab
A2: This tab builds a graph showing the combination of carbon pricing and electricity cost settings that result in | K2: end year electricity price | L2: ='Other Region-Specific Data'!O126 -> 0.02861190588 | M2: billion USD / PJ
A3: zero annual energy costs for various technologies. The data in this sheet do not update automatically when the active | K3: end year electricity price | L3: =L2*'Unit Conversions'!E6*10^9 -> 0.103 | M3: USD / kWh
A4: country or other settings on the "Graphs" tab change and need to be updated manually. | K4: end year electricity price | L4: =L3*10^3 -> 103 | M4: USD / MWh
A6: Why are only four tiers shown on the graph? | K6: Electricity Price (USD/MWh) | L6: Corresponding setting for percent reduction in electricity cost lever | M6: Corresponding H2 price
A7: Tiers 1 (efficiency) is not shown because it achieves energy cost savings even without any carbon pricing and at all electricity prices. | K7: 0 | L7: =($L$4-K7)/$L$4 -> 1 | M7: ='H2 Production Cost'!E177 -> 0.3053900438
A8: Tier 4b (feedstocks) is not shown because carbon pricing is not charged on the type of emissions that are avoided by tier 4b (largely downstream, | K8: 20 | L8: =($L$4-K8)/$L$4 -> 0.8058252427 | M8: ='H2 Production Cost'!E178 -> 1.182607393
A9: from the use and decay of industrial products). It can be assumed tier 4b would be similar to tier 4a if carbon pricing were to apply to these emissions. | K9: 40 | L9: =($L$4-K9)/$L$4 -> 0.6116504854 | M9: ='H2 Production Cost'!E179 -> 2.059824743
K10: 60 | L10: 0.4174757282 | M10: ='H2 Production Cost'!E180 -> 2.937042092
A11: Steps to update the graph | K11: 80 | L11: 0.2233009709 | M11: ='H2 Production Cost'!E181 -> 3.814259442
K12: 100 | L12: 0.02912621359 | M12: ='H2 Production Cost'!E182 -> 4.691476791
A13: Setup Directions | K13: 120 | L13: -0.1650485437
K14: 140 | L14: -0.359223301
A15: First, temporarily set the carbon price and electricity cost reduction controls (on the "Graphs" tab) to equal the following cells. | K15: 160 | L15: -0.5533980583
K16: 180 | L16: -0.7475728155
A17: Elec Cost Reduction | B17: =L15 -> -0.5533980583 | K17: 200 | L17: -0.9417475728
A18: Carbon price rate | B18: 244.5572657 | K18: This chart updates when the active country is changed.
A20: Next, temporarily set the "Corresponding price for active country" cell on on the "H2 Production Cost" tab to equal the following cell.
A21: Save the formula in that cell somewhere convenient so you can paste it back later.
A23: Clean H2 price | B23: =M9 -> 2.059824743
A25: Plotting Data
A27: For Tiers 2a and 2b
A28: Set the electricity cost reduction to an amount corresponding to a specific electricity price in the table on the right.
A29: Use Data > Forecast > What-If Analysis > Goal Seek from the Excel toolbar.
A30: Tell Excel to make the cost of a tier (2a, 2b, 3, or 4a) zero (the orange cells below) by adjusting the carbon price rate (above).
A31: Copy the result and paste it in the corresponding spot in the table for the active country below.
A32: All results should form lines, so you only need to log two data points per technology.
A34: For tier 3
A35: Electricity cost reduction doesn't matter for CCS. You only need to run Goal Seek once to find the carbon price.
A36: But you do need to fill into at least two electricity price rows so the graph can draw a line.
A38: For tier 4a
A39: Set the "Clean H2 price" above equal to the value in the "Corresponding H2 price" for the electricity price you are testing
A40: in the table on the upper right. The electricity cost reduction setting doesn't matter.
A42: Change in annual energy expenditures by tier
A43: Tier 2a: Easy Electrification | B43: ='Finanical Expenditures Graphs'!B50 -> -49.50309646 | C43: billions of 2021 USD / year
A44: Tier 2b: Other Electrification | B44: ='Finanical Expenditures Graphs'!B51 -> 18.11255652 | C44: billions of 2021 USD / year
A45: Tier 3: CCS | B45: ='Finanical Expenditures Graphs'!B52 -> -1.013933086 | C45: billions of 2021 USD / year
A46: Tier 4a: Green H2 | B46: ='Finanical Expenditures Graphs'!B53 -> 51.67806526 | C46: billions of 2021 USD / year
A49: Results Graphs
A51: China
B52: Carbon price rate that makes this technology energy cost-neutral
A53: Electricity Price (USD/MWh) | B53: X-Axis | C53: Tier 2a: Easy Electrification | D53: Tier 2b: Other Electrification | E53: Tier 3: CCS | F53: Tier 4a: Green H2
A54: 0 | B54: 0 | E54: 47.15736991
A55: 20 | F55: 116.8006762
A56: 40
A57: 60 | F57: 380.0047922
A58: 80 | D58: 48.03570145
A59: 100
A60: 120
A61: 140 | D61: 182.5158186
A62: 160 | C62: 67.33132866
A63: 180
A64: 200 | B64: 0 | C64: 110.5169769 | E64: 47.15736991
A90: Indonesia
B91: Carbon price rate that makes this technology energy cost-neutral
A92: Electricity Price (USD/MWh) | B92: X-Axis | C92: Tier 2a: Easy Electrification | D92: Tier 2b: Other Electrification | E92: Tier 3: CCS | F92: Tier 4a: Green H2
A93: 0 | B93: 0 | E93: 27.59361356
A94: 20 | F94: 83.97591036
A95: 40 | F95: 183.8814909
A96: 60
A97: 80 | D97: 70.04999163
A98: 100 | D98: 104.8367946
A99: 120
A100: 140
A101: 160 | C101: 60.62496812
A102: 180 | C102: 76.03378349
A103: 200 | B103: 0 | E103: 27.59361356
A129: Viet Nam
B130: Carbon price rate that makes this technology energy cost-neutral
A131: Electricity Price (USD/MWh) | B131: X-Axis | C131: Tier 2a: Easy Electrification | D131: Tier 2b: Other Electrification | E131: Tier 3: CCS | F131: Tier 4a: Green H2
A132: 0 | B132: 0 | E132: 29.1051659
A133: 20 | F133: 124.2965829
A134: 40 | F134: 244.5572657
A135: 60
A136: 80
A137: 100
A138: 120 | D138: 167.6363176
A139: 140
A140: 160 | C140: 83.74589128 | D140: 241.8712208
A141: 180 | C141: 101.0454978
A142: 200 | B142: 0 | E142: 29.1051659

Sheet Asian Country Comparison Graphs
A1: Historical Percentage Industrial Non-Feedstock Fuel Use by Fuel by Country
A2: These graphs show multiple countries and do not change when the region selector is changed.
A4: The version below groups coal, coke, and coal/coke byproducts but breaks out feedstocks.
B5: Fossil Feedstocks | C5: Coal and Related Byproducts | D5: Petroleum | E5: Natural Gas | F5: Bioenergy and Waste | G5: Purchased Heat | H5: Electricity
A6: =_xlfn.CONCAT("China ",'Other Region-Specific Data'!$B$2) -> China 2022 | B6: =SUM('Other Region-Specific Data'!$B$5:$B$8)/SUM('Energy Use Data'!$J$9:$J$23,'Other Region-Specific Data'!$B$5:$B$8) -> 0.06255673686 | C6: =SUM('Energy Use Data'!B9:D23)/SUM('Energy Use Data'!$J$9:$J$23,'Other Region-Specific Data'!$B$5:$B$8) -> 0.4081116637 | D6: =SUM('Energy Use Data'!E9:E23)/SUM('Energy Use Data'!$J$9:$J$23,'Other Region-Specific Data'!$B$5:$B$8) -> 0.1559389867 | E6: =SUM('Energy Use Data'!F9:F23)/SUM('Energy Use Data'!$J$9:$J$23,'Other Region-Specific Data'!$B$5:$B$8) -> 0.08008266328 | F6: =SUM('Energy Use Data'!G9:G23)/SUM('Energy Use Data'!$J$9:$J$23,'Other Region-Specific Data'!$B$5:$B$8) -> 0 | G6: =SUM('Energy Use Data'!H9:H23)/SUM('Energy Use Data'!$J$9:$J$23,'Other Region-Specific Data'!$B$5:$B$8) -> 0.0799442096 | H6: =SUM('Energy Use Data'!I9:I23)/SUM('Energy Use Data'!$J$9:$J$23,'Other Region-Specific Data'!$B$5:$B$8) -> 0.2133657399
A7: =_xlfn.CONCAT("Indonesia ",'Other Region-Specific Data'!$C$2) -> Indonesia 2022 | B7: =SUM('Other Region-Specific Data'!$C$5:$C$8)/SUM('Energy Use Data'!$J$27:$J$41,'Other Region-Specific Data'!$C$5:$C$8) -> 0.01594239114 | C7: =SUM('Energy Use Data'!B27:D41)/SUM('Energy Use Data'!$J$27:$J$41,'Other Region-Specific Data'!$C$5:$C$8) -> 0.5586972579 | D7: =SUM('Energy Use Data'!E27:E41)/SUM('Energy Use Data'!$J$27:$J$41,'Other Region-Specific Data'!$C$5:$C$8) -> 0.02835819424 | E7: =SUM('Energy Use Data'!F27:F41)/SUM('Energy Use Data'!$J$27:$J$41,'Other Region-Specific Data'!$C$5:$C$8) -> 0.05272853714 | F7: =SUM('Energy Use Data'!G27:G41)/SUM('Energy Use Data'!$J$27:$J$41,'Other Region-Specific Data'!$C$5:$C$8) -> 0.085350577 | G7: =SUM('Energy Use Data'!H27:H41)/SUM('Energy Use Data'!$J$27:$J$41,'Other Region-Specific Data'!$C$5:$C$8) -> 0 | H7: =SUM('Energy Use Data'!I27:I41)/SUM('Energy Use Data'!$J$27:$J$41,'Other Region-Specific Data'!$C$5:$C$8) -> 0.2589230426
A8: =_xlfn.CONCAT("Viet Nam ",'Other Region-Specific Data'!$D$2) -> Viet Nam 2022 | B8: =SUM('Other Region-Specific Data'!$D$5:$D$8)/SUM('Energy Use Data'!$J$45:$J$59,'Other Region-Specific Data'!$D$5:$D$8) -> 0.02971618851 | C8: =SUM('Energy Use Data'!B45:D59)/SUM('Energy Use Data'!$J$45:$J$59,'Other Region-Specific Data'!$D$5:$D$8) -> 0.578171201 | D8: =SUM('Energy Use Data'!E45:E59)/SUM('Energy Use Data'!$J$45:$J$59,'Other Region-Specific Data'!$D$5:$D$8) -> 0.07659503886 | E8: =SUM('Energy Use Data'!F45:F59)/SUM('Energy Use Data'!$J$45:$J$59,'Other Region-Specific Data'!$D$5:$D$8) -> 0.01364905118 | F8: =SUM('Energy Use Data'!G45:G59)/SUM('Energy Use Data'!$J$45:$J$59,'Other Region-Specific Data'!$D$5:$D$8) -> 0.1040311419 | G8: =SUM('Energy Use Data'!H45:H59)/SUM('Energy Use Data'!$J$45:$J$59,'Other Region-Specific Data'!$D$5:$D$8) -> 0 | H8: =SUM('Energy Use Data'!I45:I59)/SUM('Energy Use Data'!$J$45:$J$59,'Other Region-Specific Data'!$D$5:$D$8) -> 0.1978373785
A9: =_xlfn.CONCAT("Philippines ",'Other Region-Specific Data'!$E$2) -> Philippines 2021 | B9: =SUM('Other Region-Specific Data'!$E$5:$E$8)/SUM('Energy Use Data'!$J$63:$J$77,'Other Region-Specific Data'!$E$5:$E$8) -> 0.008894165213 | C9: =SUM('Energy Use Data'!B63:D77)/SUM('Energy Use Data'!$J$63:$J$77,'Other Region-Specific Data'!$E$5:$E$8) -> 0.2727512027 | D9: =SUM('Energy Use Data'!E63:E77)/SUM('Energy Use Data'!$J$63:$J$77,'Other Region-Specific Data'!$E$5:$E$8) -> 0.1614578481 | E9: =SUM('Energy Use Data'!F63:F77)/SUM('Energy Use Data'!$J$63:$J$77,'Other Region-Specific Data'!$E$5:$E$8) -> 0.01704957329 | F9: =SUM('Energy Use Data'!G63:G77)/SUM('Energy Use Data'!$J$63:$J$77,'Other Region-Specific Data'!$E$5:$E$8) -> 0.1299816298 | G9: =SUM('Energy Use Data'!H63:H77)/SUM('Energy Use Data'!$J$63:$J$77,'Other Region-Specific Data'!$E$5:$E$8) -> 0 | H9: =SUM('Energy Use Data'!I63:I77)/SUM('Energy Use Data'!$J$63:$J$77,'Other Region-Specific Data'!$E$5:$E$8) -> 0.4098655809
A31: The version below excludes feedstocks. It groups coal, coke, and coal/coke byproducts.
B32: Coal and Related Byproducts | C32: Petroleum | D32: Natural Gas | E32: Bioenergy and Waste | F32: Purchased Heat | G32: Electricity
A33: =_xlfn.CONCAT("China ",'Other Region-Specific Data'!$B$2) -> China 2022 | B33: =SUM('Energy Use Data'!B9:D23)/SUM('Energy Use Data'!$J$9:$J$23) -> 0.4353454548 | C33: =SUM('Energy Use Data'!E9:E23)/SUM('Energy Use Data'!$J$9:$J$23) -> 0.1663449862 | D33: =SUM('Energy Use Data'!F9:F23)/SUM('Energy Use Data'!$J$9:$J$23) -> 0.08542667746 | E33: =SUM('Energy Use Data'!G9:G23)/SUM('Energy Use Data'!$J$9:$J$23) -> 0 | F33: =SUM('Energy Use Data'!H9:H23)/SUM('Energy Use Data'!$J$9:$J$23) -> 0.0852789846 | G33: =SUM('Energy Use Data'!I9:I23)/SUM('Energy Use Data'!$J$9:$J$23) -> 0.227603897
A34: =_xlfn.CONCAT("Indonesia ",'Other Region-Specific Data'!$C$2) -> Indonesia 2022 | B34: =SUM('Energy Use Data'!B27:D41)/SUM('Energy Use Data'!$J$27:$J$41) -> 0.5677485269 | C34: =SUM('Energy Use Data'!E27:E41)/SUM('Energy Use Data'!$J$27:$J$41) -> 0.02881761594 | D34: =SUM('Energy Use Data'!F27:F41)/SUM('Energy Use Data'!$J$27:$J$41) -> 0.05358277469 | E34: =SUM('Energy Use Data'!G27:G41)/SUM('Energy Use Data'!$J$27:$J$41) -> 0.08673331341 | F34: =SUM('Energy Use Data'!H27:H41)/SUM('Energy Use Data'!$J$27:$J$41) -> 0 | G34: =SUM('Energy Use Data'!I27:I41)/SUM('Energy Use Data'!$J$27:$J$41) -> 0.263117769
A35: =_xlfn.CONCAT("Viet Nam ",'Other Region-Specific Data'!$D$2) -> Viet Nam 2022 | B35: =SUM('Energy Use Data'!B45:D59)/SUM('Energy Use Data'!$J$45:$J$59) -> 0.595878437 | C35: =SUM('Energy Use Data'!E45:E59)/SUM('Energy Use Data'!$J$45:$J$59) -> 0.07894086034 | D35: =SUM('Energy Use Data'!F45:F59)/SUM('Energy Use Data'!$J$45:$J$59) -> 0.01406707091 | E35: =SUM('Energy Use Data'!G45:G59)/SUM('Energy Use Data'!$J$45:$J$59) -> 0.1072172293 | F35: =SUM('Energy Use Data'!H45:H59)/SUM('Energy Use Data'!$J$45:$J$59) -> 0 | G35: =SUM('Energy Use Data'!I45:I59)/SUM('Energy Use Data'!$J$45:$J$59) -> 0.2038964024
A36: =_xlfn.CONCAT("Philippines ",'Other Region-Specific Data'!$E$2) -> Philippines 2021 | B36: =SUM('Energy Use Data'!B63:D77)/SUM('Energy Use Data'!$J$63:$J$77) -> 0.2751988669 | C36: =SUM('Energy Use Data'!E63:E77)/SUM('Energy Use Data'!$J$63:$J$77) -> 0.1629067678 | D36: =SUM('Energy Use Data'!F63:F77)/SUM('Energy Use Data'!$J$63:$J$77) -> 0.01720257584 | E36: =SUM('Energy Use Data'!G63:G77)/SUM('Energy Use Data'!$J$63:$J$77) -> 0.1311480825 | F36: =SUM('Energy Use Data'!H63:H77)/SUM('Energy Use Data'!$J$63:$J$77) -> 0 | G36: =SUM('Energy Use Data'!I63:I77)/SUM('Energy Use Data'!$J$63:$J$77) -> 0.413543707
A56: The version below breaks out feedstocks and also breaks out coal, coke, and coal/coke byproducts.
B57: Fossil Feedstocks | C57: Coal | D57: Coke | E57: Coal/Coke Byproducts | F57: Petroleum | G57: Natural Gas | H57: Bioenergy and Waste | I57: Purchased Heat | J57: Electricity
A58: =_xlfn.CONCAT("China ",'Other Region-Specific Data'!$B$2) -> China 2022 | B58: =SUM('Other Region-Specific Data'!B5:B8)/SUM('Energy Use Data'!$J$9:$J$23,'Other Region-Specific Data'!$B$5:$B$8) -> 0.06255673686 | C58: =SUM('Energy Use Data'!B9:B23)/SUM('Energy Use Data'!$J$9:$J$23,'Other Region-Specific Data'!$B$5:$B$8) -> 0.1566145288 | D58: =SUM('Energy Use Data'!C9:C23)/SUM('Energy Use Data'!$J$9:$J$23,'Other Region-Specific Data'!$B$5:$B$8) -> 0.1747300791 | E58: =SUM('Energy Use Data'!D9:D23)/SUM('Energy Use Data'!$J$9:$J$23,'Other Region-Specific Data'!$B$5:$B$8) -> 0.07676705578 | F58: =SUM('Energy Use Data'!E9:E23)/SUM('Energy Use Data'!$J$9:$J$23,'Other Region-Specific Data'!$B$5:$B$8) -> 0.1559389867 | G58: =SUM('Energy Use Data'!F9:F23)/SUM('Energy Use Data'!$J$9:$J$23,'Other Region-Specific Data'!$B$5:$B$8) -> 0.08008266328 | H58: =SUM('Energy Use Data'!G9:G23)/SUM('Energy Use Data'!$J$9:$J$23,'Other Region-Specific Data'!$B$5:$B$8) -> 0 | I58: =SUM('Energy Use Data'!H9:H23)/SUM('Energy Use Data'!$J$9:$J$23,'Other Region-Specific Data'!$B$5:$B$8) -> 0.0799442096 | J58: =SUM('Energy Use Data'!I9:I23)/SUM('Energy Use Data'!$J$9:$J$23,'Other Region-Specific Data'!$B$5:$B$8) -> 0.2133657399
A59: =_xlfn.CONCAT("Indonesia ",'Other Region-Specific Data'!$C$2) -> Indonesia 2022 | B59: =SUM('Other Region-Specific Data'!C5:C8)/SUM('Energy Use Data'!$J$27:$J$41,'Other Region-Specific Data'!$C$5:$C$8) -> 0.01594239114 | C59: =SUM('Energy Use Data'!B27:B41)/SUM('Energy Use Data'!$J$27:$J$41,'Other Region-Specific Data'!$C$5:$C$8) -> 0.3904855959 | D59: =SUM('Energy Use Data'!C27:C41)/SUM('Energy Use Data'!$J$27:$J$41,'Other Region-Specific Data'!$C$5:$C$8) -> 0.168211662 | E59: =SUM('Energy Use Data'!D27:D41)/SUM('Energy Use Data'!$J$27:$J$41,'Other Region-Specific Data'!$C$5:$C$8) -> 0 | F59: =SUM('Energy Use Data'!E27:E41)/SUM('Energy Use Data'!$J$27:$J$41,'Other Region-Specific Data'!$C$5:$C$8) -> 0.02835819424 | G59: =SUM('Energy Use Data'!F27:F41)/SUM('Energy Use Data'!$J$27:$J$41,'Other Region-Specific Data'!$C$5:$C$8) -> 0.05272853714 | H59: =SUM('Energy Use Data'!G27:G41)/SUM('Energy Use Data'!$J$27:$J$41,'Other Region-Specific Data'!$C$5:$C$8) -> 0.085350577 | I59: =SUM('Energy Use Data'!H27:H41)/SUM('Energy Use Data'!$J$27:$J$41,'Other Region-Specific Data'!$C$5:$C$8) -> 0 | J59: =SUM('Energy Use Data'!I27:I41)/SUM('Energy Use Data'!$J$27:$J$41,'Other Region-Specific Data'!$C$5:$C$8) -> 0.2589230426
A60: =_xlfn.CONCAT("Viet Nam ",'Other Region-Specific Data'!$D$2) -> Viet Nam 2022 | B60: =SUM('Other Region-Specific Data'!D5:D8)/SUM('Energy Use Data'!$J$45:$J$59,'Other Region-Specific Data'!$D$5:$D$8) -> 0.02971618851 | C60: =SUM('Energy Use Data'!B45:B59)/SUM('Energy Use Data'!$J$45:$J$59,'Other Region-Specific Data'!$D$5:$D$8) -> 0.578171201 | D60: =SUM('Energy Use Data'!C45:C59)/SUM('Energy Use Data'!$J$45:$J$59,'Other Region-Specific Data'!$D$5:$D$8) -> 0 | E60: =SUM('Energy Use Data'!D45:D59)/SUM('Energy Use Data'!$J$45:$J$59,'Other Region-Specific Data'!$D$5:$D$8) -> 0 | F60: =SUM('Energy Use Data'!E45:E59)/SUM('Energy Use Data'!$J$45:$J$59,'Other Region-Specific Data'!$D$5:$D$8) -> 0.07659503886 | G60: =SUM('Energy Use Data'!F45:F59)/SUM('Energy Use Data'!$J$45:$J$59,'Other Region-Specific Data'!$D$5:$D$8) -> 0.01364905118 | H60: =SUM('Energy Use Data'!G45:G59)/SUM('Energy Use Data'!$J$45:$J$59,'Other Region-Specific Data'!$D$5:$D$8) -> 0.1040311419 | I60: =SUM('Energy Use Data'!H45:H59)/SUM('Energy Use Data'!$J$45:$J$59,'Other Region-Specific Data'!$D$5:$D$8) -> 0 | J60: =SUM('Energy Use Data'!I45:I59)/SUM('Energy Use Data'!$J$45:$J$59,'Other Region-Specific Data'!$D$5:$D$8) -> 0.1978373785
A61: =_xlfn.CONCAT("Philippines ",'Other Region-Specific Data'!$E$2) -> Philippines 2021 | B61: =SUM('Other Region-Specific Data'!$E$5:$E$8)/SUM('Energy Use Data'!$J$63:$J$77,'Other Region-Specific Data'!$E$5:$E$8) -> 0.008894165213 | C61: =SUM('Energy Use Data'!B63:B77)/SUM('Energy Use Data'!$J$63:$J$77,'Other Region-Specific Data'!$E$5:$E$8) -> 0.2727512027 | D61: =SUM('Energy Use Data'!C63:C77)/SUM('Energy Use Data'!$J$63:$J$77,'Other Region-Specific Data'!$E$5:$E$8) -> 0 | E61: =SUM('Energy Use Data'!D63:D77)/SUM('Energy Use Data'!$J$63:$J$77,'Other Region-Specific Data'!$E$5:$E$8) -> 0 | F61: =SUM('Energy Use Data'!E63:E77)/SUM('Energy Use Data'!$J$63:$J$77,'Other Region-Specific Data'!$E$5:$E$8) -> 0.1614578481 | G61: =SUM('Energy Use Data'!F63:F77)/SUM('Energy Use Data'!$J$63:$J$77,'Other Region-Specific Data'!$E$5:$E$8) -> 0.01704957329 | H61: =SUM('Energy Use Data'!G63:G77)/SUM('Energy Use Data'!$J$63:$J$77,'Other Region-Specific Data'!$E$5:$E$8) -> 0.1299816298 | I61: =SUM('Energy Use Data'!H63:H77)/SUM('Energy Use Data'!$J$63:$J$77,'Other Region-Specific Data'!$E$5:$E$8) -> 0 | J61: =SUM('Energy Use Data'!I63:I77)/SUM('Energy Use Data'!$J$63:$J$77,'Other Region-Specific Data'!$E$5:$E$8) -> 0.4098655809
A82: Historical Percentage Industrial Fuel Use by Subsector by Country
A83: This graph shows all three EAP countries and does not change when the country selector is changed.
A85: This graph includes feedstocks, which are added to the "Chemicals" industry, similar to the six-tier energy use by subindustry graph above.
B86: =_xlfn.CONCAT("China ",'Other Region-Specific Data'!$B$2) -> China 2022 | C86: =_xlfn.CONCAT("Indonesia ",'Other Region-Specific Data'!$C$2) -> Indonesia 2022 | D86: =_xlfn.CONCAT("Viet Nam ",'Other Region-Specific Data'!$D$2) -> Viet Nam 2022 | E86: =_xlfn.CONCAT("Philippines ",'Other Region-Specific Data'!$E$2) -> Philippines 2021
A87: Iron & steel | B87: =(INDEX('Energy Use Data'!$J$9:$J$23,MATCH($A87,'Energy Use Data'!$A$9:$A$23,0))+IF($A87="Chemicals",SUM('Other Region-Specific Data'!$B$5:$B$8),0))/SUM('Energy Use Data'!$J$9:$J$23,'Other Region-Specific Data'!$B$5:$B$8) -> 0.2863245323 | C87: =(INDEX('Energy Use Data'!$J$27:$J$41,MATCH($A87,'Energy Use Data'!$A$27:$A$41,0))+IF($A87="Chemicals",SUM('Other Region-Specific Data'!$C$5:$C$8),0))/SUM('Energy Use Data'!$J$27:$J$41,'Other Region-Specific Data'!$C$5:$C$8) -> 0.2450248813 | D87: =(INDEX('Energy Use Data'!$J$45:$J$59,MATCH($A87,'Energy Use Data'!$A$45:$A$59,0))+IF($A87="Chemicals",SUM('Other Region-Specific Data'!$D$5:$D$8),0))/SUM('Energy Use Data'!$J$45:$J$59,'Other Region-Specific Data'!$D$5:$D$8) -> 0.1940615638 | E87: =(INDEX('Energy Use Data'!$J$63:$J$77,MATCH($A87,'Energy Use Data'!$A$63:$A$77,0))+IF($A87="Chemicals",SUM('Other Region-Specific Data'!$E$5:$E$8),0))/SUM('Energy Use Data'!$J$63:$J$77,'Other Region-Specific Data'!$E$5:$E$8) -> 0.1436168085
A88: Chemicals | B88: =(INDEX('Energy Use Data'!$J$9:$J$23,MATCH($A88,'Energy Use Data'!$A$9:$A$23,0))+IF($A88="Chemicals",SUM('Other Region-Specific Data'!$B$5:$B$8),0))/SUM('Energy Use Data'!$J$9:$J$23,'Other Region-Specific Data'!$B$5:$B$8) -> 0.2841129683 | C88: =(INDEX('Energy Use Data'!$J$27:$J$41,MATCH($A88,'Energy Use Data'!$A$27:$A$41,0))+IF($A88="Chemicals",SUM('Other Region-Specific Data'!$C$5:$C$8),0))/SUM('Energy Use Data'!$J$27:$J$41,'Other Region-Specific Data'!$C$5:$C$8) -> 0.07240531227 | D88: =(INDEX('Energy Use Data'!$J$45:$J$59,MATCH($A88,'Energy Use Data'!$A$45:$A$59,0))+IF($A88="Chemicals",SUM('Other Region-Specific Data'!$D$5:$D$8),0))/SUM('Energy Use Data'!$J$45:$J$59,'Other Region-Specific Data'!$D$5:$D$8) -> 0.0747249107 | E88: =(INDEX('Energy Use Data'!$J$63:$J$77,MATCH($A88,'Energy Use Data'!$A$63:$A$77,0))+IF($A88="Chemicals",SUM('Other Region-Specific Data'!$E$5:$E$8),0))/SUM('Energy Use Data'!$J$63:$J$77,'Other Region-Specific Data'!$E$5:$E$8) -> 0.04039449316
A89: Refining & fuel processing | B89: =(INDEX('Energy Use Data'!$J$9:$J$23,MATCH($A89,'Energy Use Data'!$A$9:$A$23,0))+IF($A89="Chemicals",SUM('Other Region-Specific Data'!$B$5:$B$8),0))/SUM('Energy Use Data'!$J$9:$J$23,'Other Region-Specific Data'!$B$5:$B$8) -> 0.1217105056 | C89: =(INDEX('Energy Use Data'!$J$27:$J$41,MATCH($A89,'Energy Use Data'!$A$27:$A$41,0))+IF($A89="Chemicals",SUM('Other Region-Specific Data'!$C$5:$C$8),0))/SUM('Energy Use Data'!$J$27:$J$41,'Other Region-Specific Data'!$C$5:$C$8) -> 0.005304328033 | D89: =(INDEX('Energy Use Data'!$J$45:$J$59,MATCH($A89,'Energy Use Data'!$A$45:$A$59,0))+IF($A89="Chemicals",SUM('Other Region-Specific Data'!$D$5:$D$8),0))/SUM('Energy Use Data'!$J$45:$J$59,'Other Region-Specific Data'!$D$5:$D$8) -> 0.05228759548 | E89: =(INDEX('Energy Use Data'!$J$63:$J$77,MATCH($A89,'Energy Use Data'!$A$63:$A$77,0))+IF($A89="Chemicals",SUM('Other Region-Specific Data'!$E$5:$E$8),0))/SUM('Energy Use Data'!$J$63:$J$77,'Other Region-Specific Data'!$E$5:$E$8) -> 0.142514399
A90: Non-metallic minerals | B90: =(INDEX('Energy Use Data'!$J$9:$J$23,MATCH($A90,'Energy Use Data'!$A$9:$A$23,0))+IF($A90="Chemicals",SUM('Other Region-Specific Data'!$B$5:$B$8),0))/SUM('Energy Use Data'!$J$9:$J$23,'Other Region-Specific Data'!$B$5:$B$8) -> 0.121591966 | C90: =(INDEX('Energy Use Data'!$J$27:$J$41,MATCH($A90,'Energy Use Data'!$A$27:$A$41,0))+IF($A90="Chemicals",SUM('Other Region-Specific Data'!$C$5:$C$8),0))/SUM('Energy Use Data'!$J$27:$J$41,'Other Region-Specific Data'!$C$5:$C$8) -> 0.1505281606 | D90: =(INDEX('Energy Use Data'!$J$45:$J$59,MATCH($A90,'Energy Use Data'!$A$45:$A$59,0))+IF($A90="Chemicals",SUM('Other Region-Specific Data'!$D$5:$D$8),0))/SUM('Energy Use Data'!$J$45:$J$59,'Other Region-Specific Data'!$D$5:$D$8) -> 0.2685034101 | E90: =(INDEX('Energy Use Data'!$J$63:$J$77,MATCH($A90,'Energy Use Data'!$A$63:$A$77,0))+IF($A90="Chemicals",SUM('Other Region-Specific Data'!$E$5:$E$8),0))/SUM('Energy Use Data'!$J$63:$J$77,'Other Region-Specific Data'!$E$5:$E$8) -> 0.1815198272
A91: Nonferrous metals | B91: =(INDEX('Energy Use Data'!$J$9:$J$23,MATCH($A91,'Energy Use Data'!$A$9:$A$23,0))+IF($A91="Chemicals",SUM('Other Region-Specific Data'!$B$5:$B$8),0))/SUM('Energy Use Data'!$J$9:$J$23,'Other Region-Specific Data'!$B$5:$B$8) -> 0.05509141983 | C91: =(INDEX('Energy Use Data'!$J$27:$J$41,MATCH($A91,'Energy Use Data'!$A$27:$A$41,0))+IF($A91="Chemicals",SUM('Other Region-Specific Data'!$C$5:$C$8),0))/SUM('Energy Use Data'!$J$27:$J$41,'Other Region-Specific Data'!$C$5:$C$8) -> 0.1501731426 | D91: =(INDEX('Energy Use Data'!$J$45:$J$59,MATCH($A91,'Energy Use Data'!$A$45:$A$59,0))+IF($A91="Chemicals",SUM('Other Region-Specific Data'!$D$5:$D$8),0))/SUM('Energy Use Data'!$J$45:$J$59,'Other Region-Specific Data'!$D$5:$D$8) -> 0.06801571293 | E91: =(INDEX('Energy Use Data'!$J$63:$J$77,MATCH($A91,'Energy Use Data'!$A$63:$A$77,0))+IF($A91="Chemicals",SUM('Other Region-Specific Data'!$E$5:$E$8),0))/SUM('Energy Use Data'!$J$63:$J$77,'Other Region-Specific Data'!$E$5:$E$8) -> 0.01015948535
A92: Food, beverage, & tobacco | B92: =(INDEX('Energy Use Data'!$J$9:$J$23,MATCH($A92,'Energy Use Data'!$A$9:$A$23,0))+IF($A92="Chemicals",SUM('Other Region-Specific Data'!$B$5:$B$8),0))/SUM('Energy Use Data'!$J$9:$J$23,'Other Region-Specific Data'!$B$5:$B$8) -> 0.02102791831 | C92: =(INDEX('Energy Use Data'!$J$27:$J$41,MATCH($A92,'Energy Use Data'!$A$27:$A$41,0))+IF($A92="Chemicals",SUM('Other Region-Specific Data'!$C$5:$C$8),0))/SUM('Energy Use Data'!$J$27:$J$41,'Other Region-Specific Data'!$C$5:$C$8) -> 0.1823475655 | D92: =(INDEX('Energy Use Data'!$J$45:$J$59,MATCH($A92,'Energy Use Data'!$A$45:$A$59,0))+IF($A92="Chemicals",SUM('Other Region-Specific Data'!$D$5:$D$8),0))/SUM('Energy Use Data'!$J$45:$J$59,'Other Region-Specific Data'!$D$5:$D$8) -> 0.05149730628 | E92: =(INDEX('Energy Use Data'!$J$63:$J$77,MATCH($A92,'Energy Use Data'!$A$63:$A$77,0))+IF($A92="Chemicals",SUM('Other Region-Specific Data'!$E$5:$E$8),0))/SUM('Energy Use Data'!$J$63:$J$77,'Other Region-Specific Data'!$E$5:$E$8) -> 0.2570754442
A93: Machinery | B93: =(INDEX('Energy Use Data'!$J$9:$J$23,MATCH($A93,'Energy Use Data'!$A$9:$A$23,0))+IF($A93="Chemicals",SUM('Other Region-Specific Data'!$B$5:$B$8),0))/SUM('Energy Use Data'!$J$9:$J$23,'Other Region-Specific Data'!$B$5:$B$8) -> 0.02070012391 | C93: =(INDEX('Energy Use Data'!$J$27:$J$41,MATCH($A93,'Energy Use Data'!$A$27:$A$41,0))+IF($A93="Chemicals",SUM('Other Region-Specific Data'!$C$5:$C$8),0))/SUM('Energy Use Data'!$J$27:$J$41,'Other Region-Specific Data'!$C$5:$C$8) -> 0.003223163603 | D93: =(INDEX('Energy Use Data'!$J$45:$J$59,MATCH($A93,'Energy Use Data'!$A$45:$A$59,0))+IF($A93="Chemicals",SUM('Other Region-Specific Data'!$D$5:$D$8),0))/SUM('Energy Use Data'!$J$45:$J$59,'Other Region-Specific Data'!$D$5:$D$8) -> 0.007553820516 | E93: =(INDEX('Energy Use Data'!$J$63:$J$77,MATCH($A93,'Energy Use Data'!$A$63:$A$77,0))+IF($A93="Chemicals",SUM('Other Region-Specific Data'!$E$5:$E$8),0))/SUM('Energy Use Data'!$J$63:$J$77,'Other Region-Specific Data'!$E$5:$E$8) -> 0.0152090262
A94: Textiles, leather, & apparel | B94: =(INDEX('Energy Use Data'!$J$9:$J$23,MATCH($A94,'Energy Use Data'!$A$9:$A$23,0))+IF($A94="Chemicals",SUM('Other Region-Specific Data'!$B$5:$B$8),0))/SUM('Energy Use Data'!$J$9:$J$23,'Other Region-Specific Data'!$B$5:$B$8) -> 0.01904607864 | C94: =(INDEX('Energy Use Data'!$J$27:$J$41,MATCH($A94,'Energy Use Data'!$A$27:$A$41,0))+IF($A94="Chemicals",SUM('Other Region-Specific Data'!$C$5:$C$8),0))/SUM('Energy Use Data'!$J$27:$J$41,'Other Region-Specific Data'!$C$5:$C$8) -> 0.06225973278 | D94: =(INDEX('Energy Use Data'!$J$45:$J$59,MATCH($A94,'Energy Use Data'!$A$45:$A$59,0))+IF($A94="Chemicals",SUM('Other Region-Specific Data'!$D$5:$D$8),0))/SUM('Energy Use Data'!$J$45:$J$59,'Other Region-Specific Data'!$D$5:$D$8) -> 0.05620331589 | E94: =(INDEX('Energy Use Data'!$J$63:$J$77,MATCH($A94,'Energy Use Data'!$A$63:$A$77,0))+IF($A94="Chemicals",SUM('Other Region-Specific Data'!$E$5:$E$8),0))/SUM('Energy Use Data'!$J$63:$J$77,'Other Region-Specific Data'!$E$5:$E$8) -> 0.02757842276
A95: Other metal products | B95: =(INDEX('Energy Use Data'!$J$9:$J$23,MATCH($A95,'Energy Use Data'!$A$9:$A$23,0))+IF($A95="Chemicals",SUM('Other Region-Specific Data'!$B$5:$B$8),0))/SUM('Energy Use Data'!$J$9:$J$23,'Other Region-Specific Data'!$B$5:$B$8) -> 0.01476983559 | C95: =(INDEX('Energy Use Data'!$J$27:$J$41,MATCH($A95,'Energy Use Data'!$A$27:$A$41,0))+IF($A95="Chemicals",SUM('Other Region-Specific Data'!$C$5:$C$8),0))/SUM('Energy Use Data'!$J$27:$J$41,'Other Region-Specific Data'!$C$5:$C$8) -> 0.009453290336 | D95: =(INDEX('Energy Use Data'!$J$45:$J$59,MATCH($A95,'Energy Use Data'!$A$45:$A$59,0))+IF($A95="Chemicals",SUM('Other Region-Specific Data'!$D$5:$D$8),0))/SUM('Energy Use Data'!$J$45:$J$59,'Other Region-Specific Data'!$D$5:$D$8) -> 0.03795788359 | E95: =(INDEX('Energy Use Data'!$J$63:$J$77,MATCH($A95,'Energy Use Data'!$A$63:$A$77,0))+IF($A95="Chemicals",SUM('Other Region-Specific Data'!$E$5:$E$8),0))/SUM('Energy Use Data'!$J$63:$J$77,'Other Region-Specific Data'!$E$5:$E$8) -> 0.000635727907
A96: Electronics | B96: =(INDEX('Energy Use Data'!$J$9:$J$23,MATCH($A96,'Energy Use Data'!$A$9:$A$23,0))+IF($A96="Chemicals",SUM('Other Region-Specific Data'!$B$5:$B$8),0))/SUM('Energy Use Data'!$J$9:$J$23,'Other Region-Specific Data'!$B$5:$B$8) -> 0.0134095026 | C96: =(INDEX('Energy Use Data'!$J$27:$J$41,MATCH($A96,'Energy Use Data'!$A$27:$A$41,0))+IF($A96="Chemicals",SUM('Other Region-Specific Data'!$C$5:$C$8),0))/SUM('Energy Use Data'!$J$27:$J$41,'Other Region-Specific Data'!$C$5:$C$8) -> 0.01462349668 | D96: =(INDEX('Energy Use Data'!$J$45:$J$59,MATCH($A96,'Energy Use Data'!$A$45:$A$59,0))+IF($A96="Chemicals",SUM('Other Region-Specific Data'!$D$5:$D$8),0))/SUM('Energy Use Data'!$J$45:$J$59,'Other Region-Specific Data'!$D$5:$D$8) -> 0.01790062279 | E96: =(INDEX('Energy Use Data'!$J$63:$J$77,MATCH($A96,'Energy Use Data'!$A$63:$A$77,0))+IF($A96="Chemicals",SUM('Other Region-Specific Data'!$E$5:$E$8),0))/SUM('Energy Use Data'!$J$63:$J$77,'Other Region-Specific Data'!$E$5:$E$8) -> 0.06768515781
A97: Pulp, paper, & printing | B97: =(INDEX('Energy Use Data'!$J$9:$J$23,MATCH($A97,'Energy Use Data'!$A$9:$A$23,0))+IF($A97="Chemicals",SUM('Other Region-Specific Data'!$B$5:$B$8),0))/SUM('Energy Use Data'!$J$9:$J$23,'Other Region-Specific Data'!$B$5:$B$8) -> 0.01241592625 | C97: =(INDEX('Energy Use Data'!$J$27:$J$41,MATCH($A97,'Energy Use Data'!$A$27:$A$41,0))+IF($A97="Chemicals",SUM('Other Region-Specific Data'!$C$5:$C$8),0))/SUM('Energy Use Data'!$J$27:$J$41,'Other Region-Specific Data'!$C$5:$C$8) -> 0.03625447384 | D97: =(INDEX('Energy Use Data'!$J$45:$J$59,MATCH($A97,'Energy Use Data'!$A$45:$A$59,0))+IF($A97="Chemicals",SUM('Other Region-Specific Data'!$D$5:$D$8),0))/SUM('Energy Use Data'!$J$45:$J$59,'Other Region-Specific Data'!$D$5:$D$8) -> 0.05139493174 | E97: =(INDEX('Energy Use Data'!$J$63:$J$77,MATCH($A97,'Energy Use Data'!$A$63:$A$77,0))+IF($A97="Chemicals",SUM('Other Region-Specific Data'!$E$5:$E$8),0))/SUM('Energy Use Data'!$J$63:$J$77,'Other Region-Specific Data'!$E$5:$E$8) -> 0.04130677778
A98: Vehicles & transport equipment | B98: =(INDEX('Energy Use Data'!$J$9:$J$23,MATCH($A98,'Energy Use Data'!$A$9:$A$23,0))+IF($A98="Chemicals",SUM('Other Region-Specific Data'!$B$5:$B$8),0))/SUM('Energy Use Data'!$J$9:$J$23,'Other Region-Specific Data'!$B$5:$B$8) -> 0.01186612582 | C98: =(INDEX('Energy Use Data'!$J$27:$J$41,MATCH($A98,'Energy Use Data'!$A$27:$A$41,0))+IF($A98="Chemicals",SUM('Other Region-Specific Data'!$C$5:$C$8),0))/SUM('Energy Use Data'!$J$27:$J$41,'Other Region-Specific Data'!$C$5:$C$8) -> 0.02288380037 | D98: =(INDEX('Energy Use Data'!$J$45:$J$59,MATCH($A98,'Energy Use Data'!$A$45:$A$59,0))+IF($A98="Chemicals",SUM('Other Region-Specific Data'!$D$5:$D$8),0))/SUM('Energy Use Data'!$J$45:$J$59,'Other Region-Specific Data'!$D$5:$D$8) -> 0.004526151627 | E98: =(INDEX('Energy Use Data'!$J$63:$J$77,MATCH($A98,'Energy Use Data'!$A$63:$A$77,0))+IF($A98="Chemicals",SUM('Other Region-Specific Data'!$E$5:$E$8),0))/SUM('Energy Use Data'!$J$63:$J$77,'Other Region-Specific Data'!$E$5:$E$8) -> 0.008942957073
A99: Plastic & rubber products | B99: =(INDEX('Energy Use Data'!$J$9:$J$23,MATCH($A99,'Energy Use Data'!$A$9:$A$23,0))+IF($A99="Chemicals",SUM('Other Region-Specific Data'!$B$5:$B$8),0))/SUM('Energy Use Data'!$J$9:$J$23,'Other Region-Specific Data'!$B$5:$B$8) -> 0.01018055655 | C99: =(INDEX('Energy Use Data'!$J$27:$J$41,MATCH($A99,'Energy Use Data'!$A$27:$A$41,0))+IF($A99="Chemicals",SUM('Other Region-Specific Data'!$C$5:$C$8),0))/SUM('Energy Use Data'!$J$27:$J$41,'Other Region-Specific Data'!$C$5:$C$8) -> 0.03353711436 | D99: =(INDEX('Energy Use Data'!$J$45:$J$59,MATCH($A99,'Energy Use Data'!$A$45:$A$59,0))+IF($A99="Chemicals",SUM('Other Region-Specific Data'!$D$5:$D$8),0))/SUM('Energy Use Data'!$J$45:$J$59,'Other Region-Specific Data'!$D$5:$D$8) -> 0.006196938142 | E99: =(INDEX('Energy Use Data'!$J$63:$J$77,MATCH($A99,'Energy Use Data'!$A$63:$A$77,0))+IF($A99="Chemicals",SUM('Other Region-Specific Data'!$E$5:$E$8),0))/SUM('Energy Use Data'!$J$63:$J$77,'Other Region-Specific Data'!$E$5:$E$8) -> 0.01271356507
A100: Wood & furniture | B100: =(INDEX('Energy Use Data'!$J$9:$J$23,MATCH($A100,'Energy Use Data'!$A$9:$A$23,0))+IF($A100="Chemicals",SUM('Other Region-Specific Data'!$B$5:$B$8),0))/SUM('Energy Use Data'!$J$9:$J$23,'Other Region-Specific Data'!$B$5:$B$8) -> 0.002693943392 | C100: =(INDEX('Energy Use Data'!$J$27:$J$41,MATCH($A100,'Energy Use Data'!$A$27:$A$41,0))+IF($A100="Chemicals",SUM('Other Region-Specific Data'!$C$5:$C$8),0))/SUM('Energy Use Data'!$J$27:$J$41,'Other Region-Specific Data'!$C$5:$C$8) -> 0.009907290232 | D100: =(INDEX('Energy Use Data'!$J$45:$J$59,MATCH($A100,'Energy Use Data'!$A$45:$A$59,0))+IF($A100="Chemicals",SUM('Other Region-Specific Data'!$D$5:$D$8),0))/SUM('Energy Use Data'!$J$45:$J$59,'Other Region-Specific Data'!$D$5:$D$8) -> 0.0589818841 | E100: =(INDEX('Energy Use Data'!$J$63:$J$77,MATCH($A100,'Energy Use Data'!$A$63:$A$77,0))+IF($A100="Chemicals",SUM('Other Region-Specific Data'!$E$5:$E$8),0))/SUM('Energy Use Data'!$J$63:$J$77,'Other Region-Specific Data'!$E$5:$E$8) -> 0.009257161437
A101: Other manufacturing | B101: =(INDEX('Energy Use Data'!$J$9:$J$23,MATCH($A101,'Energy Use Data'!$A$9:$A$23,0))+IF($A101="Chemicals",SUM('Other Region-Specific Data'!$B$5:$B$8),0))/SUM('Energy Use Data'!$J$9:$J$23,'Other Region-Specific Data'!$B$5:$B$8) -> 0.005058596864 | C101: =(INDEX('Energy Use Data'!$J$27:$J$41,MATCH($A101,'Energy Use Data'!$A$27:$A$41,0))+IF($A101="Chemicals",SUM('Other Region-Specific Data'!$C$5:$C$8),0))/SUM('Energy Use Data'!$J$27:$J$41,'Other Region-Specific Data'!$C$5:$C$8) -> 0.002074247466 | D101: =(INDEX('Energy Use Data'!$J$45:$J$59,MATCH($A101,'Energy Use Data'!$A$45:$A$59,0))+IF($A101="Chemicals",SUM('Other Region-Specific Data'!$D$5:$D$8),0))/SUM('Energy Use Data'!$J$45:$J$59,'Other Region-Specific Data'!$D$5:$D$8) -> 0.05019395228 | E101: =(INDEX('Energy Use Data'!$J$63:$J$77,MATCH($A101,'Energy Use Data'!$A$63:$A$77,0))+IF($A101="Chemicals",SUM('Other Region-Specific Data'!$E$5:$E$8),0))/SUM('Energy Use Data'!$J$63:$J$77,'Other Region-Specific Data'!$E$5:$E$8) -> 0.04139074657

Sheet Energy Use Data
A1: Directions
A2: Please enter energy use data on this sheet for each country. Consoliate data into the 15 subindustry categories and 7 energy source categories provided.
A3: Please convert the energy units from the original data source to petajoules, the standardized SI units used on this sheet for all countries.
A4: Energy amounts entered on this sheet should exclude chemical feedstocks. They should include fuels burned for energy, as well as coke or coking coal used in steelmaking.
A5: Chemical feedstock data should be entered on the "Other Country-Specific Data" sheet.
A7: Country: China | B7: Energy Use Excluding Chemical Feedstocks | E7: Year: 2022 | F7: Units: Petajoules (PJ) | I7: References: 1, 42
A8: Industry | B8: Coal | C8: Coke | D8: Coal/Coke Byproducts | E8: Petroleum | F8: Natural Gas | G8: Bioenergy and Waste | H8: Purchased Heat | I8: Electricity | J8: Total
A9: Food, beverage, & tobacco | B9: =SUMPRODUCT(($A9='CESY 4-3'!$C$17:$C$47)*(B$8='CESY 4-3'!$G$3:$AI$3)*'CESY 4-3'!$G$17:$AI$47)*'Unit Conversions'!$E$3 -> 222.2948417 | C9: =SUMPRODUCT(($A9='CESY 4-3'!$C$17:$C$47)*(C$8='CESY 4-3'!$G$3:$AI$3)*'CESY 4-3'!$G$17:$AI$47)*'Unit Conversions'!$E$3 -> 3.827667057 | D9: =SUMPRODUCT(($A9='CESY 4-3'!$C$17:$C$47)*(D$8='CESY 4-3'!$G$3:$AI$3)*'CESY 4-3'!$G$17:$AI$47)*'Unit Conversions'!$E$3 -> 0.172919109 | E9: =SUMPRODUCT(($A9='CESY 4-3'!$C$17:$C$47)*(E$8='CESY 4-3'!$G$3:$AI$3)*'CESY 4-3'!$G$17:$AI$47)*'Unit Conversions'!$E$3 -> 21.37456038 | F9: =SUMPRODUCT(($A9='CESY 4-3'!$C$17:$C$47)*(F$8='CESY 4-3'!$G$3:$AI$3)*'CESY 4-3'!$G$17:$AI$47)*'Unit Conversions'!$E$3 -> 351.4624853 | G9: 0 | H9: =SUMPRODUCT(($A9='CESY 4-3'!$C$17:$C$47)*(H$8='CESY 4-3'!$G$3:$AI$3)*'CESY 4-3'!$G$17:$AI$47)*'Unit Conversions'!$E$3 -> 396.4654162 | I9: =SUMPRODUCT(($A9='CESY 4-3'!$C$17:$C$47)*(I$8='CESY 4-3'!$G$3:$AI$3)*'CESY 4-3'!$G$17:$AI$47)*'Unit Conversions'!$E$3 -> 570.3546307 | J9: =SUM(B9:I9) -> 1565.952521 | K9: Note on bioenergy use in China
A10: Textiles, leather, & apparel | B10: =SUMPRODUCT(($A10='CESY 4-3'!$C$17:$C$47)*(B$8='CESY 4-3'!$G$3:$AI$3)*'CESY 4-3'!$G$17:$AI$47)*'Unit Conversions'!$E$3 -> 36.03458382 | C10: =SUMPRODUCT(($A10='CESY 4-3'!$C$17:$C$47)*(C$8='CESY 4-3'!$G$3:$AI$3)*'CESY 4-3'!$G$17:$AI$47)*'Unit Conversions'!$E$3 -> 1.433177022 | D10: =SUMPRODUCT(($A10='CESY 4-3'!$C$17:$C$47)*(D$8='CESY 4-3'!$G$3:$AI$3)*'CESY 4-3'!$G$17:$AI$47)*'Unit Conversions'!$E$3 -> 0.002930832356 | E10: =SUMPRODUCT(($A10='CESY 4-3'!$C$17:$C$47)*(E$8='CESY 4-3'!$G$3:$AI$3)*'CESY 4-3'!$G$17:$AI$47)*'Unit Conversions'!$E$3 -> 13.74853458 | F10: =SUMPRODUCT(($A10='CESY 4-3'!$C$17:$C$47)*(F$8='CESY 4-3'!$G$3:$AI$3)*'CESY 4-3'!$G$17:$AI$47)*'Unit Conversions'!$E$3 -> 227.7667057 | G10: 0 | H10: =SUMPRODUCT(($A10='CESY 4-3'!$C$17:$C$47)*(H$8='CESY 4-3'!$G$3:$AI$3)*'CESY 4-3'!$G$17:$AI$47)*'Unit Conversions'!$E$3 -> 353.7368113 | I10: =SUMPRODUCT(($A10='CESY 4-3'!$C$17:$C$47)*(I$8='CESY 4-3'!$G$3:$AI$3)*'CESY 4-3'!$G$17:$AI$47)*'Unit Conversions'!$E$3 -> 785.6418523 | J10: =SUM(B10:I10) -> 1418.364596 | K10: CESY reports no bioenergy use by industry.
A11: Wood & furniture | B11: =SUMPRODUCT(($A11='CESY 4-3'!$C$17:$C$47)*(B$8='CESY 4-3'!$G$3:$AI$3)*'CESY 4-3'!$G$17:$AI$47)*'Unit Conversions'!$E$3 -> 2.268464244 | C11: =SUMPRODUCT(($A11='CESY 4-3'!$C$17:$C$47)*(C$8='CESY 4-3'!$G$3:$AI$3)*'CESY 4-3'!$G$17:$AI$47)*'Unit Conversions'!$E$3 -> 0.002930832356 | D11: =SUMPRODUCT(($A11='CESY 4-3'!$C$17:$C$47)*(D$8='CESY 4-3'!$G$3:$AI$3)*'CESY 4-3'!$G$17:$AI$47)*'Unit Conversions'!$E$3 -> 0 | E11: =SUMPRODUCT(($A11='CESY 4-3'!$C$17:$C$47)*(E$8='CESY 4-3'!$G$3:$AI$3)*'CESY 4-3'!$G$17:$AI$47)*'Unit Conversions'!$E$3 -> 6.735052755 | F11: =SUMPRODUCT(($A11='CESY 4-3'!$C$17:$C$47)*(F$8='CESY 4-3'!$G$3:$AI$3)*'CESY 4-3'!$G$17:$AI$47)*'Unit Conversions'!$E$3 -> 22.8985932 | G11: 0 | H11: =SUMPRODUCT(($A11='CESY 4-3'!$C$17:$C$47)*(H$8='CESY 4-3'!$G$3:$AI$3)*'CESY 4-3'!$G$17:$AI$47)*'Unit Conversions'!$E$3 -> 8.936107855 | I11: =SUMPRODUCT(($A11='CESY 4-3'!$C$17:$C$47)*(I$8='CESY 4-3'!$G$3:$AI$3)*'CESY 4-3'!$G$17:$AI$47)*'Unit Conversions'!$E$3 -> 159.7772567 | J11: 200.6184056 | K11: China's bioenergy goes to the power sector (biomass combustion), the transport sector (liquid biofuels), and
A12: Pulp, paper, & printing | B12: =SUMPRODUCT(($A12='CESY 4-3'!$C$17:$C$47)*(B$8='CESY 4-3'!$G$3:$AI$3)*'CESY 4-3'!$G$17:$AI$47)*'Unit Conversions'!$E$3 -> 84.81828839 | C12: =SUMPRODUCT(($A12='CESY 4-3'!$C$17:$C$47)*(C$8='CESY 4-3'!$G$3:$AI$3)*'CESY 4-3'!$G$17:$AI$47)*'Unit Conversions'!$E$3 -> 0.4308323564 | D12: =SUMPRODUCT(($A12='CESY 4-3'!$C$17:$C$47)*(D$8='CESY 4-3'!$G$3:$AI$3)*'CESY 4-3'!$G$17:$AI$47)*'Unit Conversions'!$E$3 -> 0 | E12: =SUMPRODUCT(($A12='CESY 4-3'!$C$17:$C$47)*(E$8='CESY 4-3'!$G$3:$AI$3)*'CESY 4-3'!$G$17:$AI$47)*'Unit Conversions'!$E$3 -> 16.64712778 | F12: =SUMPRODUCT(($A12='CESY 4-3'!$C$17:$C$47)*(F$8='CESY 4-3'!$G$3:$AI$3)*'CESY 4-3'!$G$17:$AI$47)*'Unit Conversions'!$E$3 -> 88.14771395 | G12: 0 | H12: =SUMPRODUCT(($A12='CESY 4-3'!$C$17:$C$47)*(H$8='CESY 4-3'!$G$3:$AI$3)*'CESY 4-3'!$G$17:$AI$47)*'Unit Conversions'!$E$3 -> 358.7250879 | I12: =SUMPRODUCT(($A12='CESY 4-3'!$C$17:$C$47)*(I$8='CESY 4-3'!$G$3:$AI$3)*'CESY 4-3'!$G$17:$AI$47)*'Unit Conversions'!$E$3 -> 375.8470106 | J12: 924.616061 | K12: to the residential builidngs sector, particularly in rural areas (and a bit for commercial buildings).
A13: Refining & fuel processing | B13: =SUMPRODUCT(($A13='CESY 4-3'!$C$17:$C$47)*(B$8='CESY 4-3'!$G$3:$AI$3)*'CESY 4-3'!$G$17:$AI$47)*'Unit Conversions'!$E$3 -> 705.630129 | C13: =SUMPRODUCT(($A13='CESY 4-3'!$C$17:$C$47)*(C$8='CESY 4-3'!$G$3:$AI$3)*'CESY 4-3'!$G$17:$AI$47)*'Unit Conversions'!$E$3 -> 25.44548652 | D13: =SUMPRODUCT(($A13='CESY 4-3'!$C$17:$C$47)*(D$8='CESY 4-3'!$G$3:$AI$3)*'CESY 4-3'!$G$17:$AI$47)*'Unit Conversions'!$E$3 -> 579.5720985 | E13: =SUMPRODUCT(($A13='CESY 4-3'!$C$17:$C$47)*(E$8='CESY 4-3'!$G$3:$AI$3)*'CESY 4-3'!$G$17:$AI$47)*'Unit Conversions'!$E$3 -> 5793.824736 | F13: =SUMPRODUCT(($A13='CESY 4-3'!$C$17:$C$47)*(F$8='CESY 4-3'!$G$3:$AI$3)*'CESY 4-3'!$G$17:$AI$47)*'Unit Conversions'!$E$3 -> 454.3317702 | G13: 0 | H13: =SUMPRODUCT(($A13='CESY 4-3'!$C$17:$C$47)*(H$8='CESY 4-3'!$G$3:$AI$3)*'CESY 4-3'!$G$17:$AI$47)*'Unit Conversions'!$E$3 -> 929.3288394 | I13: =SUMPRODUCT(($A13='CESY 4-3'!$C$17:$C$47)*(I$8='CESY 4-3'!$G$3:$AI$3)*'CESY 4-3'!$G$17:$AI$47)*'Unit Conversions'!$E$3 -> 575.6682298 | J13: 9063.80129 | K13: This may not be strictly accurate, since one would imagine at least the pulp and paper industry, and maybe
A14: Chemicals | B14: =SUMPRODUCT(($A14='CESY 4-3'!$C$17:$C$47)*(B$8='CESY 4-3'!$G$3:$AI$3)*'CESY 4-3'!$G$17:$AI$47)*'Unit Conversions'!$E$3 -> 2902.180539 | C14: =SUMPRODUCT(($A14='CESY 4-3'!$C$17:$C$47)*(C$8='CESY 4-3'!$G$3:$AI$3)*'CESY 4-3'!$G$17:$AI$47)*'Unit Conversions'!$E$3 -> 1190.143611 | D14: =SUMPRODUCT(($A14='CESY 4-3'!$C$17:$C$47)*(D$8='CESY 4-3'!$G$3:$AI$3)*'CESY 4-3'!$G$17:$AI$47)*'Unit Conversions'!$E$3 -> 396.0785463 | E14: =SUMPRODUCT(($A14='CESY 4-3'!$C$17:$C$47)*(E$8='CESY 4-3'!$G$3:$AI$3)*'CESY 4-3'!$G$17:$AI$47)*'Unit Conversions'!$E$3 -> 4092.368113 | F14: =SUMPRODUCT(($A14='CESY 4-3'!$C$17:$C$47)*(F$8='CESY 4-3'!$G$3:$AI$3)*'CESY 4-3'!$G$17:$AI$47)*'Unit Conversions'!$E$3 -> 1975.905627 | G14: 0 | H14: =SUMPRODUCT(($A14='CESY 4-3'!$C$17:$C$47)*(H$8='CESY 4-3'!$G$3:$AI$3)*'CESY 4-3'!$G$17:$AI$47)*'Unit Conversions'!$E$3 -> 3191.661782 | I14: =SUMPRODUCT(($A14='CESY 4-3'!$C$17:$C$47)*(I$8='CESY 4-3'!$G$3:$AI$3)*'CESY 4-3'!$G$17:$AI$47)*'Unit Conversions'!$E$3 -> 2750.990621 | J14: 16499.32884 | K14: the wood and wood products industry, would burn some biogenic byproducts, but there are no data on this.
A15: Plastic & rubber products | B15: =SUMPRODUCT(($A15='CESY 4-3'!$C$17:$C$47)*(B$8='CESY 4-3'!$G$3:$AI$3)*'CESY 4-3'!$G$17:$AI$47)*'Unit Conversions'!$E$3 -> 36.36283705 | C15: =SUMPRODUCT(($A15='CESY 4-3'!$C$17:$C$47)*(C$8='CESY 4-3'!$G$3:$AI$3)*'CESY 4-3'!$G$17:$AI$47)*'Unit Conversions'!$E$3 -> 1.603165299 | D15: =SUMPRODUCT(($A15='CESY 4-3'!$C$17:$C$47)*(D$8='CESY 4-3'!$G$3:$AI$3)*'CESY 4-3'!$G$17:$AI$47)*'Unit Conversions'!$E$3 -> 2.989449004 | E15: =SUMPRODUCT(($A15='CESY 4-3'!$C$17:$C$47)*(E$8='CESY 4-3'!$G$3:$AI$3)*'CESY 4-3'!$G$17:$AI$47)*'Unit Conversions'!$E$3 -> 21.1957796 | F15: =SUMPRODUCT(($A15='CESY 4-3'!$C$17:$C$47)*(F$8='CESY 4-3'!$G$3:$AI$3)*'CESY 4-3'!$G$17:$AI$47)*'Unit Conversions'!$E$3 -> 72.52344666 | G15: 0 | H15: =SUMPRODUCT(($A15='CESY 4-3'!$C$17:$C$47)*(H$8='CESY 4-3'!$G$3:$AI$3)*'CESY 4-3'!$G$17:$AI$47)*'Unit Conversions'!$E$3 -> 44.07385698 | I15: =SUMPRODUCT(($A15='CESY 4-3'!$C$17:$C$47)*(I$8='CESY 4-3'!$G$3:$AI$3)*'CESY 4-3'!$G$17:$AI$47)*'Unit Conversions'!$E$3 -> 579.3991794 | J15: 758.147714
A16: Non-metallic minerals | B16: =SUMPRODUCT(($A16='CESY 4-3'!$C$17:$C$47)*(B$8='CESY 4-3'!$G$3:$AI$3)*'CESY 4-3'!$G$17:$AI$47)*'Unit Conversions'!$E$3 -> 4697.485346 | C16: =SUMPRODUCT(($A16='CESY 4-3'!$C$17:$C$47)*(C$8='CESY 4-3'!$G$3:$AI$3)*'CESY 4-3'!$G$17:$AI$47)*'Unit Conversions'!$E$3 -> 292.0310668 | D16: =SUMPRODUCT(($A16='CESY 4-3'!$C$17:$C$47)*(D$8='CESY 4-3'!$G$3:$AI$3)*'CESY 4-3'!$G$17:$AI$47)*'Unit Conversions'!$E$3 -> 209.6570926 | E16: =SUMPRODUCT(($A16='CESY 4-3'!$C$17:$C$47)*(E$8='CESY 4-3'!$G$3:$AI$3)*'CESY 4-3'!$G$17:$AI$47)*'Unit Conversions'!$E$3 -> 1391.820047 | F16: =SUMPRODUCT(($A16='CESY 4-3'!$C$17:$C$47)*(F$8='CESY 4-3'!$G$3:$AI$3)*'CESY 4-3'!$G$17:$AI$47)*'Unit Conversions'!$E$3 -> 952.1981243 | G16: 0 | H16: =SUMPRODUCT(($A16='CESY 4-3'!$C$17:$C$47)*(H$8='CESY 4-3'!$G$3:$AI$3)*'CESY 4-3'!$G$17:$AI$47)*'Unit Conversions'!$E$3 -> 64.25849941 | I16: =SUMPRODUCT(($A16='CESY 4-3'!$C$17:$C$47)*(I$8='CESY 4-3'!$G$3:$AI$3)*'CESY 4-3'!$G$17:$AI$47)*'Unit Conversions'!$E$3 -> 1447.523447 | J16: 9054.973623
A17: Iron & steel | B17: =SUMPRODUCT(($A17='CESY 4-3'!$C$17:$C$47)*(B$8='CESY 4-3'!$G$3:$AI$3)*'CESY 4-3'!$G$17:$AI$47)*'Unit Conversions'!$E$3 -> 2568.959555 | C17: =SUMPRODUCT(($A17='CESY 4-3'!$C$17:$C$47)*(C$8='CESY 4-3'!$G$3:$AI$3)*'CESY 4-3'!$G$17:$AI$47)*'Unit Conversions'!$E$3 -> 11204.99707 | D17: =SUMPRODUCT(($A17='CESY 4-3'!$C$17:$C$47)*(D$8='CESY 4-3'!$G$3:$AI$3)*'CESY 4-3'!$G$17:$AI$47)*'Unit Conversions'!$E$3 -> 4319.639508 | E17: =SUMPRODUCT(($A17='CESY 4-3'!$C$17:$C$47)*(E$8='CESY 4-3'!$G$3:$AI$3)*'CESY 4-3'!$G$17:$AI$47)*'Unit Conversions'!$E$3 -> 38.02168816 | F17: =SUMPRODUCT(($A17='CESY 4-3'!$C$17:$C$47)*(F$8='CESY 4-3'!$G$3:$AI$3)*'CESY 4-3'!$G$17:$AI$47)*'Unit Conversions'!$E$3 -> 536.0873388 | G17: 0 | H17: =SUMPRODUCT(($A17='CESY 4-3'!$C$17:$C$47)*(H$8='CESY 4-3'!$G$3:$AI$3)*'CESY 4-3'!$G$17:$AI$47)*'Unit Conversions'!$E$3 -> 183.7045721 | I17: =SUMPRODUCT(($A17='CESY 4-3'!$C$17:$C$47)*(I$8='CESY 4-3'!$G$3:$AI$3)*'CESY 4-3'!$G$17:$AI$47)*'Unit Conversions'!$E$3 -> 2471.225088 | J17: 21322.63482
A18: Nonferrous metals | B18: =SUMPRODUCT(($A18='CESY 4-3'!$C$17:$C$47)*(B$8='CESY 4-3'!$G$3:$AI$3)*'CESY 4-3'!$G$17:$AI$47)*'Unit Conversions'!$E$3 -> 335.4337632 | C18: =SUMPRODUCT(($A18='CESY 4-3'!$C$17:$C$47)*(C$8='CESY 4-3'!$G$3:$AI$3)*'CESY 4-3'!$G$17:$AI$47)*'Unit Conversions'!$E$3 -> 104.352286 | D18: =SUMPRODUCT(($A18='CESY 4-3'!$C$17:$C$47)*(D$8='CESY 4-3'!$G$3:$AI$3)*'CESY 4-3'!$G$17:$AI$47)*'Unit Conversions'!$E$3 -> 165.507034 | E18: =SUMPRODUCT(($A18='CESY 4-3'!$C$17:$C$47)*(E$8='CESY 4-3'!$G$3:$AI$3)*'CESY 4-3'!$G$17:$AI$47)*'Unit Conversions'!$E$3 -> 105.8528722 | F18: =SUMPRODUCT(($A18='CESY 4-3'!$C$17:$C$47)*(F$8='CESY 4-3'!$G$3:$AI$3)*'CESY 4-3'!$G$17:$AI$47)*'Unit Conversions'!$E$3 -> 279.1998828 | G18: 0 | H18: =SUMPRODUCT(($A18='CESY 4-3'!$C$17:$C$47)*(H$8='CESY 4-3'!$G$3:$AI$3)*'CESY 4-3'!$G$17:$AI$47)*'Unit Conversions'!$E$3 -> 309.1735053 | I18: =SUMPRODUCT(($A18='CESY 4-3'!$C$17:$C$47)*(I$8='CESY 4-3'!$G$3:$AI$3)*'CESY 4-3'!$G$17:$AI$47)*'Unit Conversions'!$E$3 -> 2803.147714 | J18: 4102.667057
A19: Machinery | B19: =SUMPRODUCT(($A19='CESY 4-3'!$C$17:$C$47)*(B$8='CESY 4-3'!$G$3:$AI$3)*'CESY 4-3'!$G$17:$AI$47)*'Unit Conversions'!$E$3 -> 6.11957796 | C19: =SUMPRODUCT(($A19='CESY 4-3'!$C$17:$C$47)*(C$8='CESY 4-3'!$G$3:$AI$3)*'CESY 4-3'!$G$17:$AI$47)*'Unit Conversions'!$E$3 -> 54.09144197 | D19: =SUMPRODUCT(($A19='CESY 4-3'!$C$17:$C$47)*(D$8='CESY 4-3'!$G$3:$AI$3)*'CESY 4-3'!$G$17:$AI$47)*'Unit Conversions'!$E$3 -> 3.493552169 | E19: =SUMPRODUCT(($A19='CESY 4-3'!$C$17:$C$47)*(E$8='CESY 4-3'!$G$3:$AI$3)*'CESY 4-3'!$G$17:$AI$47)*'Unit Conversions'!$E$3 -> 43.78370457 | F19: =SUMPRODUCT(($A19='CESY 4-3'!$C$17:$C$47)*(F$8='CESY 4-3'!$G$3:$AI$3)*'CESY 4-3'!$G$17:$AI$47)*'Unit Conversions'!$E$3 -> 253.5580305 | G19: 0 | H19: =SUMPRODUCT(($A19='CESY 4-3'!$C$17:$C$47)*(H$8='CESY 4-3'!$G$3:$AI$3)*'CESY 4-3'!$G$17:$AI$47)*'Unit Conversions'!$E$3 -> 38.77491208 | I19: =SUMPRODUCT(($A19='CESY 4-3'!$C$17:$C$47)*(I$8='CESY 4-3'!$G$3:$AI$3)*'CESY 4-3'!$G$17:$AI$47)*'Unit Conversions'!$E$3 -> 1141.720399 | J19: 1541.541618
A20: Vehicles & transport equipment | B20: =SUMPRODUCT(($A20='CESY 4-3'!$C$17:$C$47)*(B$8='CESY 4-3'!$G$3:$AI$3)*'CESY 4-3'!$G$17:$AI$47)*'Unit Conversions'!$E$3 -> 10.23446659 | C20: =SUMPRODUCT(($A20='CESY 4-3'!$C$17:$C$47)*(C$8='CESY 4-3'!$G$3:$AI$3)*'CESY 4-3'!$G$17:$AI$47)*'Unit Conversions'!$E$3 -> 4.144196952 | D20: =SUMPRODUCT(($A20='CESY 4-3'!$C$17:$C$47)*(D$8='CESY 4-3'!$G$3:$AI$3)*'CESY 4-3'!$G$17:$AI$47)*'Unit Conversions'!$E$3 -> 1.099062134 | E20: =SUMPRODUCT(($A20='CESY 4-3'!$C$17:$C$47)*(E$8='CESY 4-3'!$G$3:$AI$3)*'CESY 4-3'!$G$17:$AI$47)*'Unit Conversions'!$E$3 -> 26.69988277 | F20: =SUMPRODUCT(($A20='CESY 4-3'!$C$17:$C$47)*(F$8='CESY 4-3'!$G$3:$AI$3)*'CESY 4-3'!$G$17:$AI$47)*'Unit Conversions'!$E$3 -> 242.0076202 | G20: 0 | H20: =SUMPRODUCT(($A20='CESY 4-3'!$C$17:$C$47)*(H$8='CESY 4-3'!$G$3:$AI$3)*'CESY 4-3'!$G$17:$AI$47)*'Unit Conversions'!$E$3 -> 29.26436108 | I20: =SUMPRODUCT(($A20='CESY 4-3'!$C$17:$C$47)*(I$8='CESY 4-3'!$G$3:$AI$3)*'CESY 4-3'!$G$17:$AI$47)*'Unit Conversions'!$E$3 -> 570.2227433 | J20: 883.6723329
A21: Electronics | B21: =SUMPRODUCT(($A21='CESY 4-3'!$C$17:$C$47)*(B$8='CESY 4-3'!$G$3:$AI$3)*'CESY 4-3'!$G$17:$AI$47)*'Unit Conversions'!$E$3 -> 4.794841735 | C21: =SUMPRODUCT(($A21='CESY 4-3'!$C$17:$C$47)*(C$8='CESY 4-3'!$G$3:$AI$3)*'CESY 4-3'!$G$17:$AI$47)*'Unit Conversions'!$E$3 -> 0.01758499414 | D21: =SUMPRODUCT(($A21='CESY 4-3'!$C$17:$C$47)*(D$8='CESY 4-3'!$G$3:$AI$3)*'CESY 4-3'!$G$17:$AI$47)*'Unit Conversions'!$E$3 -> 2.016412661 | E21: =SUMPRODUCT(($A21='CESY 4-3'!$C$17:$C$47)*(E$8='CESY 4-3'!$G$3:$AI$3)*'CESY 4-3'!$G$17:$AI$47)*'Unit Conversions'!$E$3 -> 14.58968347 | F21: =SUMPRODUCT(($A21='CESY 4-3'!$C$17:$C$47)*(F$8='CESY 4-3'!$G$3:$AI$3)*'CESY 4-3'!$G$17:$AI$47)*'Unit Conversions'!$E$3 -> 193.0216882 | G21: 0 | H21: =SUMPRODUCT(($A21='CESY 4-3'!$C$17:$C$47)*(H$8='CESY 4-3'!$G$3:$AI$3)*'CESY 4-3'!$G$17:$AI$47)*'Unit Conversions'!$E$3 -> 34.51934349 | I21: =SUMPRODUCT(($A21='CESY 4-3'!$C$17:$C$47)*(I$8='CESY 4-3'!$G$3:$AI$3)*'CESY 4-3'!$G$17:$AI$47)*'Unit Conversions'!$E$3 -> 749.6483001 | J21: 998.6078546
A22: Other metal products | B22: =SUMPRODUCT(($A22='CESY 4-3'!$C$17:$C$47)*(B$8='CESY 4-3'!$G$3:$AI$3)*'CESY 4-3'!$G$17:$AI$47)*'Unit Conversions'!$E$3 -> 49.12954279 | C22: =SUMPRODUCT(($A22='CESY 4-3'!$C$17:$C$47)*(C$8='CESY 4-3'!$G$3:$AI$3)*'CESY 4-3'!$G$17:$AI$47)*'Unit Conversions'!$E$3 -> 129.6453693 | D22: =SUMPRODUCT(($A22='CESY 4-3'!$C$17:$C$47)*(D$8='CESY 4-3'!$G$3:$AI$3)*'CESY 4-3'!$G$17:$AI$47)*'Unit Conversions'!$E$3 -> 36.40093787 | E22: =SUMPRODUCT(($A22='CESY 4-3'!$C$17:$C$47)*(E$8='CESY 4-3'!$G$3:$AI$3)*'CESY 4-3'!$G$17:$AI$47)*'Unit Conversions'!$E$3 -> 17.73446659 | F22: =SUMPRODUCT(($A22='CESY 4-3'!$C$17:$C$47)*(F$8='CESY 4-3'!$G$3:$AI$3)*'CESY 4-3'!$G$17:$AI$47)*'Unit Conversions'!$E$3 -> 265.0410317 | G22: 0 | H22: =SUMPRODUCT(($A22='CESY 4-3'!$C$17:$C$47)*(H$8='CESY 4-3'!$G$3:$AI$3)*'CESY 4-3'!$G$17:$AI$47)*'Unit Conversions'!$E$3 -> 7.889800703 | I22: =SUMPRODUCT(($A22='CESY 4-3'!$C$17:$C$47)*(I$8='CESY 4-3'!$G$3:$AI$3)*'CESY 4-3'!$G$17:$AI$47)*'Unit Conversions'!$E$3 -> 594.0709261 | J22: 1099.912075
A23: Other manufacturing | B23: =SUMPRODUCT(($A23='CESY 4-3'!$C$17:$C$47)*(B$8='CESY 4-3'!$G$3:$AI$3)*'CESY 4-3'!$G$17:$AI$47)*'Unit Conversions'!$E$3 -> 1.362837046 | C23: =SUMPRODUCT(($A23='CESY 4-3'!$C$17:$C$47)*(C$8='CESY 4-3'!$G$3:$AI$3)*'CESY 4-3'!$G$17:$AI$47)*'Unit Conversions'!$E$3 -> 0.01172332943 | D23: =SUMPRODUCT(($A23='CESY 4-3'!$C$17:$C$47)*(D$8='CESY 4-3'!$G$3:$AI$3)*'CESY 4-3'!$G$17:$AI$47)*'Unit Conversions'!$E$3 -> 0.2256740914 | E23: =SUMPRODUCT(($A23='CESY 4-3'!$C$17:$C$47)*(E$8='CESY 4-3'!$G$3:$AI$3)*'CESY 4-3'!$G$17:$AI$47)*'Unit Conversions'!$E$3 -> 8.405627198 | F23: =SUMPRODUCT(($A23='CESY 4-3'!$C$17:$C$47)*(F$8='CESY 4-3'!$G$3:$AI$3)*'CESY 4-3'!$G$17:$AI$47)*'Unit Conversions'!$E$3 -> 49.61899179 | G23: 0 | H23: =SUMPRODUCT(($A23='CESY 4-3'!$C$17:$C$47)*(H$8='CESY 4-3'!$G$3:$AI$3)*'CESY 4-3'!$G$17:$AI$47)*'Unit Conversions'!$E$3 -> 2.945486518 | I23: =SUMPRODUCT(($A23='CESY 4-3'!$C$17:$C$47)*(I$8='CESY 4-3'!$G$3:$AI$3)*'CESY 4-3'!$G$17:$AI$47)*'Unit Conversions'!$E$3 -> 314.144197 | J23: 376.7145369
A25: Country: Indonesia | B25: Energy Use Excluding Chemical Feedstocks | E25: Year: 2022 | F25: Units: Petajoules (PJ) | I25: Reference: 50, 51
A26: Industry | B26: Coal | C26: Coke | D26: Coal/Coke Byproducts | E26: Petroleum | F26: Natural Gas | G26: Bioenergy and Waste | H26: Purchased Heat | I26: Electricity | J26: Total
A27: Food, beverage, & tobacco | B27: ='Indonesia Energy Use'!B186 -> 229.0926657 | C27: ='Indonesia Energy Use'!C186 -> 0.6642167795 | D27: ='Indonesia Energy Use'!D186 -> 0 | E27: ='Indonesia Energy Use'!E186 -> 23.71347541 | F27: ='Indonesia Energy Use'!F186 -> 26.42853741 | G27: ='Indonesia Energy Use'!G186 -> 197.4964515 | H27: ='Indonesia Energy Use'!H186 -> 0 | I27: ='Indonesia Energy Use'!I186 -> 97.33730206 | J27: =SUM(B27:I27) -> 574.7326488
A28: Textiles, leather, & apparel | B28: ='Indonesia Energy Use'!B187 -> 61.36888066 | C28: ='Indonesia Energy Use'!C187 -> 0.4811253695 | D28: ='Indonesia Energy Use'!D187 -> 0 | E28: ='Indonesia Energy Use'!E187 -> 6.535905127 | F28: ='Indonesia Energy Use'!F187 -> 2.961053309 | G28: ='Indonesia Energy Use'!G187 -> 1.348233631 | H28: ='Indonesia Energy Use'!H187 -> 0 | I28: ='Indonesia Energy Use'!I187 -> 123.5383027 | J28: =SUM(B28:I28) -> 196.2335008
A29: Wood & furniture | B29: ='Indonesia Energy Use'!B188 -> 0.6250135104 | C29: ='Indonesia Energy Use'!C188 -> 0.003536850759 | D29: ='Indonesia Energy Use'!D188 -> 0 | E29: ='Indonesia Energy Use'!E188 -> 2.821424019 | F29: ='Indonesia Energy Use'!F188 -> 0.1702331333 | G29: ='Indonesia Energy Use'!G188 -> 0.4749081494 | H29: ='Indonesia Energy Use'!H188 -> 0 | I29: ='Indonesia Energy Use'!I188 -> 27.13120283 | J29: 31.2263185
A30: Pulp, paper, & printing | B30: ='Indonesia Energy Use'!B189 -> 33.15951003 | C30: ='Indonesia Energy Use'!C189 -> 0.01492687489 | D30: ='Indonesia Energy Use'!D189 -> 0 | E30: ='Indonesia Energy Use'!E189 -> 2.46943535 | F30: ='Indonesia Energy Use'!F189 -> 24.93941382 | G30: ='Indonesia Energy Use'!G189 -> 1.198711241 | H30: ='Indonesia Energy Use'!H189 -> 0 | I30: ='Indonesia Energy Use'!I189 -> 52.48676039 | J30: 114.2687577
A31: Refining & fuel processing | B31: ='Indonesia Energy Use'!B190 -> 0.1399692323 | C31: ='Indonesia Energy Use'!C190 -> 0.1859884021 | D31: ='Indonesia Energy Use'!D190 -> 0 | E31: ='Indonesia Energy Use'!E190 -> 0.7458870068 | F31: ='Indonesia Energy Use'!F190 -> 3.849714224 | G31: ='Indonesia Energy Use'!G190 -> 0.118775458 | H31: ='Indonesia Energy Use'!H190 -> 0 | I31: ='Indonesia Energy Use'!I190 -> 11.67812579 | J31: 16.71846011
A32: Chemicals | B32: ='Indonesia Energy Use'!B191 -> 48.21776994 | C32: ='Indonesia Energy Use'!C191 -> 0.3030243322 | D32: ='Indonesia Energy Use'!D191 -> 0 | E32: ='Indonesia Energy Use'!E191 -> 3.282292295 | F32: ='Indonesia Energy Use'!F191 -> 38.35543255 | G32: ='Indonesia Energy Use'!G191 -> 7.080345676 | H32: ='Indonesia Energy Use'!H191 -> 0 | I32: ='Indonesia Energy Use'!I191 -> 80.72394012 | J32: 177.9628049
A33: Plastic & rubber products | B33: ='Indonesia Energy Use'!B192 -> 13.86826973 | C33: ='Indonesia Energy Use'!C192 -> 0.2212142512 | D33: ='Indonesia Energy Use'!D192 -> 0 | E33: ='Indonesia Energy Use'!E192 -> 4.049475399 | F33: ='Indonesia Energy Use'!F192 -> 14.21977665 | G33: ='Indonesia Energy Use'!G192 -> 18.25811515 | H33: ='Indonesia Energy Use'!H192 -> 0 | I33: ='Indonesia Energy Use'!I192 -> 55.08719 | J33: 105.7040412
A34: Non-metallic minerals | B34: ='Indonesia Energy Use'!B193 -> 286.9967443 | C34: ='Indonesia Energy Use'!C193 -> 0.1699382588 | D34: ='Indonesia Energy Use'!D193 -> 0 | E34: ='Indonesia Energy Use'!E193 -> 8.680427333 | F34: ='Indonesia Energy Use'!F193 -> 35.90271584 | G34: ='Indonesia Energy Use'!G193 -> 33.69801783 | H34: ='Indonesia Energy Use'!H193 -> 0 | I34: ='Indonesia Energy Use'!I193 -> 108.9947312 | J34: 474.4425747
A35: Iron & steel | B35: ='Indonesia Energy Use'!B194 -> 121.07105 | C35: ='Indonesia Energy Use'!C194 -> 528.0740051 | D35: ='Indonesia Energy Use'!D194 -> 0 | E35: ='Indonesia Energy Use'!E194 -> 11.6172931 | F35: ='Indonesia Energy Use'!F194 -> 3.150575772 | G35: ='Indonesia Energy Use'!G194 -> 0.0734492402 | H35: ='Indonesia Energy Use'!H194 -> 0 | I35: ='Indonesia Energy Use'!I194 -> 108.2959366 | J35: 772.2823099
A36: Nonferrous metals | B36: ='Indonesia Energy Use'!B195 -> 431.4792535 | C36: ='Indonesia Energy Use'!C195 -> 0.01844136873 | D36: ='Indonesia Energy Use'!D195 -> 0 | E36: ='Indonesia Energy Use'!E195 -> 3.243270408 | F36: ='Indonesia Energy Use'!F195 -> 3.039299063 | G36: ='Indonesia Energy Use'!G195 -> 7.86624983 | H36: ='Indonesia Energy Use'!H195 -> 0 | I36: ='Indonesia Energy Use'!I195 -> 27.67709613 | J36: 473.3236103
A37: Machinery | B37: ='Indonesia Energy Use'!B196 -> 0 | C37: ='Indonesia Energy Use'!C196 -> 3.565224e-06 | D37: ='Indonesia Energy Use'!D196 -> 0 | E37: ='Indonesia Energy Use'!E196 -> 1.922142807 | F37: ='Indonesia Energy Use'!F196 -> 0.5819974577 | G37: ='Indonesia Energy Use'!G196 -> 0.07099447651 | H37: ='Indonesia Energy Use'!H196 -> 0 | I37: ='Indonesia Energy Use'!I196 -> 7.583798282 | J37: 10.15893659
A38: Vehicles & transport equipment | B38: ='Indonesia Energy Use'!B197 -> 2.1887292e-05 | C38: ='Indonesia Energy Use'!C197 -> 0.03283246968 | D38: ='Indonesia Energy Use'!D197 -> 0 | E38: ='Indonesia Energy Use'!E197 -> 5.225614874 | F38: ='Indonesia Energy Use'!F197 -> 6.734210211 | G38: ='Indonesia Energy Use'!G197 -> 0.2268071733 | H38: ='Indonesia Energy Use'!H197 -> 0 | I38: ='Indonesia Energy Use'!I197 -> 59.90687912 | J38: 72.12636574
A39: Electronics | B39: ='Indonesia Energy Use'!B198 -> 4.40873534 | C39: ='Indonesia Energy Use'!C198 -> 0.001343000074 | D39: ='Indonesia Energy Use'!D198 -> 0 | E39: ='Indonesia Energy Use'!E198 -> 1.45328551 | F39: ='Indonesia Energy Use'!F198 -> 3.181966535 | G39: ='Indonesia Energy Use'!G198 -> 0.9793602452 | H39: ='Indonesia Energy Use'!H198 -> 0 | I39: ='Indonesia Energy Use'!I198 -> 36.06641544 | J39: 46.09110607
A40: Other metal products | B40: ='Indonesia Energy Use'!B199 -> 0.2341502498 | C40: ='Indonesia Energy Use'!C199 -> 0.004197258988 | D40: ='Indonesia Energy Use'!D199 -> 0 | E40: ='Indonesia Energy Use'!E199 -> 12.17945493 | F40: ='Indonesia Energy Use'!F199 -> 2.460242291 | G40: ='Indonesia Energy Use'!G199 -> 0.09670532337 | H40: ='Indonesia Energy Use'!H199 -> 0 | I40: ='Indonesia Energy Use'!I199 -> 14.82062769 | J40: 29.79537775
A41: Other manufacturing | B41: ='Indonesia Energy Use'!B200 -> 0.09100736014 | C41: ='Indonesia Energy Use'!C200 -> 0.003570695629 | D41: ='Indonesia Energy Use'!D200 -> 0 | E41: ='Indonesia Energy Use'!E200 -> 1.441464721 | F41: ='Indonesia Energy Use'!F200 -> 0.2174087251 | G41: ='Indonesia Energy Use'!G200 -> 0.02531333756 | H41: ='Indonesia Energy Use'!H200 -> 0 | I41: ='Indonesia Energy Use'!I200 -> 4.758957436 | J41: 6.537722275
A43: Country: Viet Nam | B43: Energy Use Excluding Chemical Feedstocks | E43: Year: 2022 | F43: Units: Petajoules (PJ) | I43: References: 74, 75
A44: Industry | B44: Coal | C44: Coke | D44: Coal/Coke Byproducts | E44: Petroleum | F44: Natural Gas | G44: Bioenergy and Waste | H44: Purchased Heat | I44: Electricity | J44: Total
A45: Food, beverage, & tobacco | B45: ='Viet Nam Energy Use'!B226 -> 19.67856297 | C45: ='Viet Nam Energy Use'!C226 -> 0 | D45: ='Viet Nam Energy Use'!D226 -> 0 | E45: ='Viet Nam Energy Use'!E226 -> 7.527030238 | F45: ='Viet Nam Energy Use'!F226 -> 0.9799735055 | G45: ='Viet Nam Energy Use'!G226 -> 9.890338259 | H45: ='Viet Nam Energy Use'!H226 -> 0 | I45: ='Viet Nam Energy Use'!I226 -> 67.9968 | J45: =SUM(B45:I45) -> 106.072705
A46: Textiles, leather, & apparel | B46: ='Viet Nam Energy Use'!B227 -> 55.85531509 | C46: ='Viet Nam Energy Use'!C227 -> 0 | D46: ='Viet Nam Energy Use'!D227 -> 0 | E46: ='Viet Nam Energy Use'!E227 -> 4.986486803 | F46: ='Viet Nam Energy Use'!F227 -> 0.2186094743 | G46: ='Viet Nam Energy Use'!G227 -> 0 | H46: ='Viet Nam Energy Use'!H227 -> 0 | I46: ='Viet Nam Energy Use'!I227 -> 54.7056 | J46: =SUM(B46:I46) -> 115.7660114
A47: Wood & furniture | B47: ='Viet Nam Energy Use'!B228 -> 0.2360433689 | C47: ='Viet Nam Energy Use'!C228 -> 0 | D47: ='Viet Nam Energy Use'!D228 -> 0 | E47: ='Viet Nam Energy Use'!E228 -> 2.366500035 | F47: ='Viet Nam Energy Use'!F228 -> 0 | G47: ='Viet Nam Energy Use'!G228 -> 97.36588471 | H47: ='Viet Nam Energy Use'!H228 -> 0 | I47: ='Viet Nam Energy Use'!I228 -> 21.5208 | J47: 121.4892281
A48: Pulp, paper, & printing | B48: ='Viet Nam Energy Use'!B229 -> 27.80342419 | C48: ='Viet Nam Energy Use'!C229 -> 0 | D48: ='Viet Nam Energy Use'!D229 -> 0 | E48: ='Viet Nam Energy Use'!E229 -> 1.831873113 | F48: ='Viet Nam Energy Use'!F229 -> 0.2525316341 | G48: ='Viet Nam Energy Use'!G229 -> 62.48120782 | H48: ='Viet Nam Energy Use'!H229 -> 0 | I48: ='Viet Nam Energy Use'!I229 -> 13.4928 | J48: 105.8618368
A49: Refining & fuel processing | B49: ='Viet Nam Energy Use'!B230 -> 0 | C49: ='Viet Nam Energy Use'!C230 -> 0 | D49: ='Viet Nam Energy Use'!D230 -> 0 | E49: ='Viet Nam Energy Use'!E230 -> 93.533112 | F49: ='Viet Nam Energy Use'!F230 -> 0 | G49: ='Viet Nam Energy Use'!G230 -> 3.463899262 | H49: ='Viet Nam Energy Use'!H230 -> 0 | I49: ='Viet Nam Energy Use'!I230 -> 10.70350919 | J49: 107.7005205
A50: Chemicals | B50: ='Viet Nam Energy Use'!B231 -> 37.89117238 | C50: ='Viet Nam Energy Use'!C231 -> 0 | D50: ='Viet Nam Energy Use'!D231 -> 0 | E50: ='Viet Nam Energy Use'!E231 -> 8.049864973 | F50: ='Viet Nam Energy Use'!F231 -> 16.57935539 | G50: ='Viet Nam Energy Use'!G231 -> 0.0005158402069 | H50: ='Viet Nam Energy Use'!H231 -> 0 | I50: ='Viet Nam Energy Use'!I231 -> 30.18679312 | J50: 92.70770171
A51: Plastic & rubber products | B51: ='Viet Nam Energy Use'!B232 -> 0 | C51: ='Viet Nam Energy Use'!C232 -> 0 | D51: ='Viet Nam Energy Use'!D232 -> 0 | E51: ='Viet Nam Energy Use'!E232 -> 0 | F51: ='Viet Nam Energy Use'!F232 -> 0.6078722408 | G51: ='Viet Nam Energy Use'!G232 -> 0 | H51: ='Viet Nam Energy Use'!H232 -> 0 | I51: ='Viet Nam Energy Use'!I232 -> 12.15640688 | J51: 12.76427912
A52: Non-metallic minerals | B52: ='Viet Nam Energy Use'!B233 -> 444.9541738 | C52: ='Viet Nam Energy Use'!C233 -> 0 | D52: ='Viet Nam Energy Use'!D233 -> 0 | E52: ='Viet Nam Energy Use'!E233 -> 21.44048784 | F52: ='Viet Nam Energy Use'!F233 -> 7.613640312 | G52: ='Viet Nam Energy Use'!G233 -> 37.71588025 | H52: ='Viet Nam Energy Use'!H233 -> 0 | I52: ='Viet Nam Energy Use'!I233 -> 41.3316 | J52: 553.0557822
A53: Iron & steel | B53: ='Viet Nam Energy Use'!B234 -> 369.8757872 | C53: ='Viet Nam Energy Use'!C234 -> 0 | D53: ='Viet Nam Energy Use'!D234 -> 0 | E53: ='Viet Nam Energy Use'!E234 -> 0 | F53: ='Viet Nam Energy Use'!F234 -> 0 | G53: ='Viet Nam Energy Use'!G234 -> 0 | H53: ='Viet Nam Energy Use'!H234 -> 0 | I53: ='Viet Nam Energy Use'!I234 -> 29.8467709 | J53: 399.7225581
A54: Nonferrous metals | B54: ='Viet Nam Energy Use'!B235 -> 129.6360025 | C54: ='Viet Nam Energy Use'!C235 -> 0 | D54: ='Viet Nam Energy Use'!D235 -> 0 | E54: ='Viet Nam Energy Use'!E235 -> 0 | F54: ='Viet Nam Energy Use'!F235 -> 0 | G54: ='Viet Nam Energy Use'!G235 -> 0 | H54: ='Viet Nam Energy Use'!H235 -> 0 | I54: ='Viet Nam Energy Use'!I235 -> 10.46085254 | J54: 140.096855
A55: Machinery | B55: ='Viet Nam Energy Use'!B236 -> 0.04969334083 | C55: ='Viet Nam Energy Use'!C236 -> 0 | D55: ='Viet Nam Energy Use'!D236 -> 0 | E55: ='Viet Nam Energy Use'!E236 -> 9.590715318 | F55: ='Viet Nam Energy Use'!F236 -> 1.13073866 | G55: ='Viet Nam Energy Use'!G236 -> 0 | H55: ='Viet Nam Energy Use'!H236 -> 0 | I55: ='Viet Nam Energy Use'!I236 -> 4.788 | J55: 15.55914732
A56: Vehicles & transport equipment | B56: ='Viet Nam Energy Use'!B237 -> 0 | C56: ='Viet Nam Energy Use'!C237 -> 0 | D56: ='Viet Nam Energy Use'!D237 -> 0 | E56: ='Viet Nam Energy Use'!E237 -> 5.490579367 | F56: ='Viet Nam Energy Use'!F237 -> 0.6030606188 | G56: ='Viet Nam Energy Use'!G237 -> 0 | H56: ='Viet Nam Energy Use'!H237 -> 0 | I56: ='Viet Nam Energy Use'!I237 -> 3.2292 | J56: 9.322839986
A57: Electronics | B57: ='Viet Nam Energy Use'!B238 -> 0 | C57: ='Viet Nam Energy Use'!C238 -> 0 | D57: ='Viet Nam Energy Use'!D238 -> 0 | E57: ='Viet Nam Energy Use'!E238 -> 0 | F57: ='Viet Nam Energy Use'!F238 -> 0 | G57: ='Viet Nam Energy Use'!G238 -> 0 | H57: ='Viet Nam Energy Use'!H238 -> 0 | I57: ='Viet Nam Energy Use'!I238 -> 36.8712 | J57: 36.8712
A58: Other metal products | B58: ='Viet Nam Energy Use'!B239 -> 72.3466399 | C58: ='Viet Nam Energy Use'!C239 -> 0 | D58: ='Viet Nam Energy Use'!D239 -> 0 | E58: ='Viet Nam Energy Use'!E239 -> 0 | F58: ='Viet Nam Energy Use'!F239 -> 0 | G58: ='Viet Nam Energy Use'!G239 -> 0 | H58: ='Viet Nam Energy Use'!H239 -> 0 | I58: ='Viet Nam Energy Use'!I239 -> 5.837942524 | J58: 78.18458242
A59: Other manufacturing | B59: ='Viet Nam Energy Use'!B240 -> 32.57398491 | C59: ='Viet Nam Energy Use'!C240 -> 0 | D59: ='Viet Nam Energy Use'!D240 -> 0 | E59: ='Viet Nam Energy Use'!E240 -> 2.951659861 | F59: ='Viet Nam Energy Use'!F240 -> 0.1281503815 | G59: ='Viet Nam Energy Use'!G240 -> 3.362697856 | H59: ='Viet Nam Energy Use'!H240 -> 0 | I59: ='Viet Nam Energy Use'!I240 -> 64.3716 | J59: 103.388093
A61: Country: Philippines | B61: Energy Use Excluding Chemical Feedstocks | E61: Year: 2021 | F61: Units: Petajoules (PJ) | I61: Reference: 90
A62: Industry | B62: Coal | C62: Coke | D62: Coal/Coke Byproducts | E62: Petroleum | F62: Natural Gas | G62: Bioenergy and Waste | H62: Purchased Heat | I62: Electricity | J62: Total
A63: Food, beverage, & tobacco | B63: ='Philippine Energy Use'!B111 -> 7.89128064 | C63: ='Philippine Energy Use'!C111 -> 0 | D63: ='Philippine Energy Use'!D111 -> 0 | E63: ='Philippine Energy Use'!E111 -> 12.57672852 | F63: ='Philippine Energy Use'!F111 -> 0 | G63: ='Philippine Energy Use'!G111 -> 38.28870468 | H63: ='Philippine Energy Use'!H111 -> 0 | I63: ='Philippine Energy Use'!I111 -> 18.17866692 | J63: =SUM(B63:I63) -> 76.93538076
A64: Textiles, leather, & apparel | B64: ='Philippine Energy Use'!B112 -> 0.50199732 | C64: ='Philippine Energy Use'!C112 -> 0 | D64: ='Philippine Energy Use'!D112 -> 0 | E64: ='Philippine Energy Use'!E112 -> 0.0439614 | F64: ='Philippine Energy Use'!F112 -> 0 | G64: ='Philippine Energy Use'!G112 -> 0.00041868 | H64: ='Philippine Energy Use'!H112 -> 0 | I64: ='Philippine Energy Use'!I112 -> 7.70706144 | J64: =SUM(B64:I64) -> 8.25343884
A65: Wood & furniture | B65: ='Philippine Energy Use'!B113 -> 0 | C65: ='Philippine Energy Use'!C113 -> 0 | D65: ='Philippine Energy Use'!D113 -> 0 | E65: ='Philippine Energy Use'!E113 -> 0.41491188 | F65: ='Philippine Energy Use'!F113 -> 0 | G65: ='Philippine Energy Use'!G113 -> 0.00125604 | H65: ='Philippine Energy Use'!H113 -> 0 | I65: ='Philippine Energy Use'!I113 -> 2.35423764 | J65: 2.77040556
A66: Pulp, paper, & printing | B66: ='Philippine Energy Use'!B114 -> 6.3806832 | C66: ='Philippine Energy Use'!C114 -> 0 | D66: ='Philippine Energy Use'!D114 -> 0 | E66: ='Philippine Energy Use'!E114 -> 0.408213 | F66: ='Philippine Energy Use'!F114 -> 0 | G66: ='Philippine Energy Use'!G114 -> 0.0041868 | H66: ='Philippine Energy Use'!H114 -> 0 | I66: ='Philippine Energy Use'!I114 -> 5.56886268 | J66: 12.36194568
A67: Refining & fuel processing | B67: ='Philippine Energy Use'!B115 -> 0 | C67: ='Philippine Energy Use'!C115 -> 0 | D67: ='Philippine Energy Use'!D115 -> 0 | E67: ='Philippine Energy Use'!E115 -> 10.48709664 | F67: ='Philippine Energy Use'!F115 -> 5.08779936 | G67: ='Philippine Energy Use'!G115 -> 0 | H67: ='Philippine Energy Use'!H115 -> 0 | I67: ='Philippine Energy Use'!I115 -> 27.07561692 | J67: 42.65051292
A68: Chemicals | B68: ='Philippine Energy Use'!B116 -> 1.85810184 | C68: ='Philippine Energy Use'!C116 -> 0 | D68: ='Philippine Energy Use'!D116 -> 0 | E68: ='Philippine Energy Use'!E116 -> 3.858451596 | F68: ='Philippine Energy Use'!F116 -> 0 | G68: ='Philippine Energy Use'!G116 -> 0.02836686103 | H68: ='Philippine Energy Use'!H116 -> 0 | I68: ='Philippine Energy Use'!I116 -> 3.682233401 | J68: 9.427153698
A69: Plastic & rubber products | B69: ='Philippine Energy Use'!B117 -> 0.42161076 | C69: ='Philippine Energy Use'!C117 -> 0 | D69: ='Philippine Energy Use'!D117 -> 0 | E69: ='Philippine Energy Use'!E117 -> 0.2977847644 | F69: ='Philippine Energy Use'!F117 -> 0 | G69: ='Philippine Energy Use'!G117 -> 0.004290178974 | H69: ='Philippine Energy Use'!H117 -> 0 | I69: ='Philippine Energy Use'!I117 -> 3.081123319 | J69: 3.804809022
A70: Non-metallic minerals | B70: ='Philippine Energy Use'!B118 -> 37.84322916 | C70: ='Philippine Energy Use'!C118 -> 0 | D70: ='Philippine Energy Use'!D118 -> 0 | E70: ='Philippine Energy Use'!E118 -> 8.85005784 | F70: ='Philippine Energy Use'!F118 -> 0 | G70: ='Philippine Energy Use'!G118 -> 0.05777784 | H70: ='Philippine Energy Use'!H118 -> 0 | I70: ='Philippine Energy Use'!I118 -> 7.57266516 | J70: 54.32373
A71: Iron & steel | B71: ='Philippine Energy Use'!B119 -> 15.86294784 | C71: ='Philippine Energy Use'!C119 -> 0 | D71: ='Philippine Energy Use'!D119 -> 0 | E71: ='Philippine Energy Use'!E119 -> 6.83327628 | F71: ='Philippine Energy Use'!F119 -> 0 | G71: ='Philippine Energy Use'!G119 -> 0.01088568 | H71: ='Philippine Energy Use'!H119 -> 0 | I71: ='Philippine Energy Use'!I119 -> 20.27332296 | J71: 42.98043276
A72: Nonferrous metals | B72: ='Philippine Energy Use'!B120 -> 1.672245018 | C72: ='Philippine Energy Use'!C120 -> 0 | D72: ='Philippine Energy Use'!D120 -> 0 | E72: ='Philippine Energy Use'!E120 -> 0 | F72: ='Philippine Energy Use'!F120 -> 0 | G72: ='Philippine Energy Use'!G120 -> 0 | H72: ='Philippine Energy Use'!H120 -> 0 | I72: ='Philippine Energy Use'!I120 -> 1.368200469 | J72: 3.040445487
A73: Machinery | B73: ='Philippine Energy Use'!B121 -> 0 | C73: ='Philippine Energy Use'!C121 -> 0 | D73: ='Philippine Energy Use'!D121 -> 0 | E73: ='Philippine Energy Use'!E121 -> 0.4280868556 | F73: ='Philippine Energy Use'!F121 -> 0 | G73: ='Philippine Energy Use'!G121 -> 0.006032322066 | H73: ='Philippine Energy Use'!H121 -> 0 | I73: ='Philippine Energy Use'!I121 -> 4.117510501 | J73: 4.551629678
A74: Vehicles & transport equipment | B74: ='Philippine Energy Use'!B122 -> 0 | C74: ='Philippine Energy Use'!C122 -> 0 | D74: ='Philippine Energy Use'!D122 -> 0 | E74: ='Philippine Energy Use'!E122 -> 0.2517164691 | F74: ='Philippine Energy Use'!F122 -> 0 | G74: ='Philippine Energy Use'!G122 -> 0.003547025075 | H74: ='Philippine Energy Use'!H122 -> 0 | I74: ='Philippine Energy Use'!I122 -> 2.421109622 | J74: 2.676373116
A75: Electronics | B75: ='Philippine Energy Use'!B123 -> 0 | C75: ='Philippine Energy Use'!C123 -> 0 | D75: ='Philippine Energy Use'!D123 -> 0 | E75: ='Philippine Energy Use'!E123 -> 1.905126995 | F75: ='Philippine Energy Use'!F123 -> 0 | G75: ='Philippine Energy Use'!G123 -> 0.02684581286 | H75: ='Philippine Energy Use'!H123 -> 0 | I75: ='Philippine Energy Use'!I123 -> 18.324273 | J75: 20.25624581
A76: Other metal products | B76: ='Philippine Energy Use'!B124 -> 0 | C76: ='Philippine Energy Use'!C124 -> 0 | D76: ='Philippine Energy Use'!D124 -> 0 | E76: ='Philippine Energy Use'!E124 -> 0.01789376632 | F76: ='Philippine Energy Use'!F124 -> 0 | G76: ='Philippine Energy Use'!G124 -> 0.0002521473388 | H76: ='Philippine Energy Use'!H124 -> 0 | I76: ='Philippine Energy Use'!I124 -> 0.1721093973 | J76: 0.190255311
A77: Other manufacturing | B77: ='Philippine Energy Use'!B125 -> 9.194594382 | C77: ='Philippine Energy Use'!C125 -> 0 | D77: ='Philippine Energy Use'!D125 -> 0 | E77: ='Philippine Energy Use'!E125 -> 1.94644332 | F77: ='Philippine Energy Use'!F125 -> 0.0146538 | G77: ='Philippine Energy Use'!G125 -> 0.46724688 | H77: ='Philippine Energy Use'!H125 -> 0 | I77: ='Philippine Energy Use'!I125 -> 0.7641367711 | J77: 12.38707515
A79: Country: United States | B79: Energy Use Excluding Chemical Feedstocks | E79: Year: 2022 | F79: Units: Petajoules (PJ) | I79: Reference: 46, 42
A80: Industry | B80: Coal | C80: Coke | D80: Coal/Coke Byproducts | E80: Petroleum | F80: Natural Gas | G80: Bioenergy and Waste | H80: Purchased Heat | I80: Electricity | J80: Total
A81: Food, beverage, & tobacco | B81: ='AEO T25 Food'!C24*'Unit Conversions'!$E$4 -> 135.8406802 | C81: 0 | D81: 0 | E81: ='AEO T25 Food'!C22*'Unit Conversions'!$E$4 -> 3.459890945 | F81: ='AEO T25 Food'!C23*'Unit Conversions'!$E$4 -> 685.4382329 | G81: ='AEO T25 Food'!C25*'Unit Conversions'!$E$4 -> 46.03656268 | H81: 0 | I81: ='AEO T25 Food'!C26*'Unit Conversions'!$E$4 -> 316.8600043 | J81: =SUM(B81:I81) -> 1187.635371
A82: Textiles, leather, & apparel | B82: ='U.S. Textiles'!F10 -> 1.055059994 | C82: 0 | D82: 0 | E82: ='U.S. Textiles'!D10 -> 1.055059994 | F82: ='U.S. Textiles'!E10 -> 39.03721977 | G82: 0 | H82: 0 | I82: ='U.S. Textiles'!C10 -> 52.75299969 | J82: =SUM(B82:I82) -> 93.90033946 | K82: This row is from EIA MECS because textiles, leather, & apparel are not included in EIA AEO.
A83: Wood & furniture | B83: ='AEO T33 Other Mfg'!C22*'Unit Conversions'!$E$4 -> 0 | C83: 0 | D83: 0 | E83: ='AEO T33 Other Mfg'!C20*'Unit Conversions'!$E$4 -> 7.603625355 | F83: ='AEO T33 Other Mfg'!C21*'Unit Conversions'!$E$4 -> 59.00744493 | G83: ='AEO T33 Other Mfg'!C24*'Unit Conversions'!$E$4 -> 313.5624903 | H83: 0 | I83: ='AEO T33 Other Mfg'!C25*'Unit Conversions'!$E$4 -> 69.38457084 | J83: 449.5581314
A84: Pulp, paper, & printing | B84: ='AEO T26 Paper'!C25*'Unit Conversions'!$E$4 -> 34.69037787 | C84: 0 | D84: 0 | E84: ='AEO T26 Paper'!C23*'Unit Conversions'!$E$4 -> 41.34907145 | F84: ='AEO T26 Paper'!C24*'Unit Conversions'!$E$4 -> 605.4775771 | G84: ='AEO T26 Paper'!C26*'Unit Conversions'!$E$4 -> 958.7636818 | H84: 0 | I84: ='AEO T26 Paper'!C27*'Unit Conversions'!$E$4 -> 207.2771581 | J84: 1847.557866
A85: Refining & fuel processing | B85: ='AEO T24 Refining'!C31*'Unit Conversions'!$E$4 -> 25.32143985 | C85: 0 | D85: 0 | E85: ='AEO T24 Refining'!C26*'Unit Conversions'!$E$4 -> 1847.95986 | F85: ='AEO T24 Refining'!C28*'Unit Conversions'!$E$4 -> 1452.040098 | G85: ='AEO T24 Refining'!C32*'Unit Conversions'!$E$4 -> 968.6253117 | H85: 0 | I85: ='AEO T24 Refining'!C33*'Unit Conversions'!$E$4 -> 197.5314888 | J85: 4491.478198
A86: Chemicals | B86: ='AEO T27 Chemicals'!C26*'Unit Conversions'!$E$4 -> 64.36173407 | C86: 0 | D86: 0 | E86: ='AEO T27 Chemicals'!C24*'Unit Conversions'!$E$4 -> 402.5773818 | F86: ='AEO T27 Chemicals'!C25*'Unit Conversions'!$E$4 -> 2325.272634 | G86: ='AEO T27 Chemicals'!C27*'Unit Conversions'!$E$4 -> 0.007079452559 | H86: 0 | I86: ='AEO T27 Chemicals'!C28*'Unit Conversions'!$E$4 -> 414.7521717 | J86: 3206.971001
A87: Plastic & rubber products | B87: ='AEO T33 Other Mfg'!C34*'Unit Conversions'!$E$4 -> 0 | C87: 0 | D87: 0 | E87: ='AEO T33 Other Mfg'!C32*'Unit Conversions'!$E$4 -> 0.4978047367 | F87: ='AEO T33 Other Mfg'!C33*'Unit Conversions'!$E$4 -> 85.25474318 | G87: ='AEO T33 Other Mfg'!C36*'Unit Conversions'!$E$4 -> 0 | H87: 0 | I87: ='AEO T33 Other Mfg'!C37*'Unit Conversions'!$E$4 -> 167.0232453 | J87: 252.7757932
A88: Non-metallic minerals | B88: ='AEO T29 Cement'!C25*'Unit Conversions'!$E$4 -> 136.637643 | C88: 0 | D88: 0 | E88: ='AEO T29 Cement'!C23*'Unit Conversions'!$E$4 -> 80.61133447 | F88: ='AEO T29 Cement'!C24*'Unit Conversions'!$E$4 -> 106.4008264 | G88: ='AEO T29 Cement'!C28*'Unit Conversions'!$E$4 -> 50.37425299 | H88: 0 | I88: ='AEO T29 Cement'!C29*'Unit Conversions'!$E$4 -> 55.26546048 | J88: 429.2895173
A89: Iron & steel | B89: ='AEO T30 Steel'!C26*'Unit Conversions'!$E$4 -> 130.7578116 | C89: =('AEO T30 Steel'!C24+'AEO T30 Steel'!C25)*'Unit Conversions'!$E$4 -> 411.0389513 | D89: 0 | E89: ='AEO T30 Steel'!C22*'Unit Conversions'!$E$4 -> 3.551374142 | F89: ='AEO T30 Steel'!C23*'Unit Conversions'!$E$4 -> 310.9469934 | G89: ='AEO T30 Steel'!C28*'Unit Conversions'!$E$4 -> 0 | H89: 0 | I89: ='AEO T30 Steel'!C29*'Unit Conversions'!$E$4 -> 224.0582883 | J89: 1080.353419
A90: Nonferrous metals | B90: ='AEO T31 Aluminum'!C25*'Unit Conversions'!$E$4 -> 0 | C90: 0 | D90: 0 | E90: ='AEO T31 Aluminum'!C23*'Unit Conversions'!$E$4 -> 0.8911110562 | F90: ='AEO T31 Aluminum'!C24*'Unit Conversions'!$E$4 -> 107.2540945 | G90: ='AEO T31 Aluminum'!C26*'Unit Conversions'!$E$4 -> 0 | H90: 0 | I90: ='AEO T31 Aluminum'!C27*'Unit Conversions'!$E$4 -> 92.2098949 | J90: 200.3551005
A91: Machinery | B91: ='AEO T32 Metal Prods'!C36*'Unit Conversions'!$E$4 -> 0 | C91: 0 | D91: 0 | E91: ='AEO T32 Metal Prods'!C34*'Unit Conversions'!$E$4 -> 1.383657374 | F91: ='AEO T32 Metal Prods'!C35*'Unit Conversions'!$E$4 -> 52.09359142 | G91: ='AEO T32 Metal Prods'!C37*'Unit Conversions'!$E$4 -> 0 | H91: 0 | I91: ='AEO T32 Metal Prods'!C38*'Unit Conversions'!$E$4 -> 77.22735403 | J91: 130.7046028
A92: Vehicles & transport equipment | B92: ='AEO T32 Metal Prods'!C60*'Unit Conversions'!$E$4 -> 0 | C92: 0 | D92: 0 | E92: ='AEO T32 Metal Prods'!C58*'Unit Conversions'!$E$4 -> 7.667357309 | F92: ='AEO T32 Metal Prods'!C59*'Unit Conversions'!$E$4 -> 154.5241416 | G92: ='AEO T32 Metal Prods'!C61*'Unit Conversions'!$E$4 -> 0 | H92: 0 | I92: ='AEO T32 Metal Prods'!C62*'Unit Conversions'!$E$4 -> 174.3643285 | J92: 336.5558273
A93: Electronics | B93: =('AEO T32 Metal Prods'!C48+'AEO T32 Metal Prods'!C73)*'Unit Conversions'!$E$4 -> 0 | C93: 0 | D93: 0 | E93: =('AEO T32 Metal Prods'!C46+'AEO T32 Metal Prods'!C71)*'Unit Conversions'!$E$4 -> 0.2512783634 | F93: =('AEO T32 Metal Prods'!C47+'AEO T32 Metal Prods'!C72)*'Unit Conversions'!$E$4 -> 60.24623201 | G93: =('AEO T32 Metal Prods'!C49+'AEO T32 Metal Prods'!C74)*'Unit Conversions'!$E$4 -> 0 | H93: 0 | I93: =('AEO T32 Metal Prods'!C50+'AEO T32 Metal Prods'!C75)*'Unit Conversions'!$E$4 -> 147.9459385 | J93: 208.4434489
A94: Other metal products | B94: ='AEO T32 Metal Prods'!C24*'Unit Conversions'!$E$4 -> 0 | C94: 0 | D94: 0 | E94: ='AEO T32 Metal Prods'!C21*'Unit Conversions'!$E$4 -> 0.4770137244 | F94: ='AEO T32 Metal Prods'!C22*'Unit Conversions'!$E$4 -> 108.2264378 | G94: ='AEO T32 Metal Prods'!C25*'Unit Conversions'!$E$4 -> 0 | H94: 0 | I94: ='AEO T32 Metal Prods'!C26*'Unit Conversions'!$E$4 -> 132.7022334 | J94: 241.4056849
A95: Other manufacturing | B95: ='AEO T33 Other Mfg'!C48*'Unit Conversions'!$E$4-B82 -> 27.41874508 | C95: 0 | D95: 0 | E95: ='AEO T33 Other Mfg'!C46*'Unit Conversions'!$E$4-E82 -> 78.51404506 | F95: ='AEO T33 Other Mfg'!C47*'Unit Conversions'!$E$4-F82 -> 724.396052 | G95: ='AEO T33 Other Mfg'!C50*'Unit Conversions'!$E$4-G82 -> 23.73693809 | H95: 0 | I95: ='AEO T33 Other Mfg'!C51*'Unit Conversions'!$E$4-I82 -> 454.9025367 | J95: 1308.968317 | K95: We subtract the textiles row because textiles are not broken out in EIA AEO data, but we are breaking them out here.
A97: Region: Selected U.S. State | B97: Energy Use Excluding Chemical Feedstocks | E97: Year: 2022 | F97: Units: Petajoules (PJ) | I97: Reference: 121
A98: Industry | B98: Coal | C98: Coke | D98: Coal/Coke Byproducts | E98: Petroleum | F98: Natural Gas | G98: Bioenergy and Waste | H98: Purchased Heat | I98: Electricity | J98: Total
